Workbook

Sheet TH_CN
A1: BẢNG TỔNG HỢP CÔNG NỢ NĂM 2025
B2: TỔNG CÔNG NỢ | C2: =SUM(C$5:C$22) -> 1988048642 | D2: 1701039677 | E2: 1623410269 | F2: 1565673298 | G2: 1383532739 | H2: 1271413794 | I2: 1444375093 | J2: 1370671691 | K2: 1247968595 | L2: 1269534183 | M2: 1269534183 | N2: 1269534183
A4: NHÓM KHÁCH HÀNG | B4: TÊN NHÓM KHÁCH HÀNG | C4: 2025-01-31 | D4: =EOMONTH(C4,1) -> 2025-02-28 | E4: =EOMONTH(D4,1) -> 2025-03-31 | F4: 2025-04-30 | G4: 2025-05-31 | H4: 2025-06-30 | I4: 2025-07-31 | J4: 2025-08-31 | K4: 2025-09-30 | L4: 2025-10-31 | M4: 2025-11-30 | N4: 2025-12-31
A5: AAU | B5: CÔNG TY TNHH PHÂN PHỐI Á ÂU | C5: =SUMIFS('Báo cáo'!$O:$O,'Báo cáo'!$AD:$AD,$A5,'Báo cáo'!$Z:$Z,"<="&C$4)+SUMIFS('Báo cáo'!$P:$P,'Báo cáo'!$AD:$AD,$A5,'Báo cáo'!$Z:$Z,"<="&C$4)-SUMIFS('Báo cáo'!$Q:$Q,'Báo cáo'!$AD:$AD,$A5,'Báo cáo'!$AA:$AA,"<="&C$4) -> 0 | D5: =SUMIFS('Báo cáo'!$O:$O,'Báo cáo'!$AD:$AD,$A5,'Báo cáo'!$Z:$Z,"<="&D$4)+SUMIFS('Báo cáo'!$P:$P,'Báo cáo'!$AD:$AD,$A5,'Báo cáo'!$Z:$Z,"<="&D$4)-SUMIFS('Báo cáo'!$Q:$Q,'Báo cáo'!$AD:$AD,$A5,'Báo cáo'!$AA:$AA,"<="&D$4) -> 0 | E5: =SUMIFS('Báo cáo'!$O:$O,'Báo cáo'!$AD:$AD,$A5,'Báo cáo'!$Z:$Z,"<="&E$4)+SUMIFS('Báo cáo'!$P:$P,'Báo cáo'!$AD:$AD,$A5,'Báo cáo'!$Z:$Z,"<="&E$4)-SUMIFS('Báo cáo'!$Q:$Q,'Báo cáo'!$AD:$AD,$A5,'Báo cáo'!$AA:$AA,"<="&E$4) -> 5789097 | F5: =SUMIFS('Báo cáo'!$O:$O,'Báo cáo'!$AD:$AD,$A5,'Báo cáo'!$Z:$Z,"<="&F$4)+SUMIFS('Báo cáo'!$P:$P,'Báo cáo'!$AD:$AD,$A5,'Báo cáo'!$Z:$Z,"<="&F$4)-SUMIFS('Báo cáo'!$Q:$Q,'Báo cáo'!$AD:$AD,$A5,'Báo cáo'!$AA:$AA,"<="&F$4) -> 5789097 | G5: =SUMIFS('Báo cáo'!$O:$O,'Báo cáo'!$AD:$AD,$A5,'Báo cáo'!$Z:$Z,"<="&G$4)+SUMIFS('Báo cáo'!$P:$P,'Báo cáo'!$AD:$AD,$A5,'Báo cáo'!$Z:$Z,"<="&G$4)-SUMIFS('Báo cáo'!$Q:$Q,'Báo cáo'!$AD:$AD,$A5,'Báo cáo'!$AA:$AA,"<="&G$4) -> 9139847 | H5: =SUMIFS('Báo cáo'!$O:$O,'Báo cáo'!$AD:$AD,$A5,'Báo cáo'!$Z:$Z,"<="&H$4)+SUMIFS('Báo cáo'!$P:$P,'Báo cáo'!$AD:$AD,$A5,'Báo cáo'!$Z:$Z,"<="&H$4)-SUMIFS('Báo cáo'!$Q:$Q,'Báo cáo'!$AD:$AD,$A5,'Báo cáo'!$AA:$AA,"<="&H$4) -> 9139847 | I5: =SUMIFS('Báo cáo'!$O:$O,'Báo cáo'!$AD:$AD,$A5,'Báo cáo'!$Z:$Z,"<="&I$4)+SUMIFS('Báo cáo'!$P:$P,'Báo cáo'!$AD:$AD,$A5,'Báo cáo'!$Z:$Z,"<="&I$4)-SUMIFS('Báo cáo'!$Q:$Q,'Báo cáo'!$AD:$AD,$A5,'Báo cáo'!$AA:$AA,"<="&I$4) -> 10186099 | J5: =SUMIFS('Báo cáo'!$O:$O,'Báo cáo'!$AD:$AD,$A5,'Báo cáo'!$Z:$Z,"<="&J$4)+SUMIFS('Báo cáo'!$P:$P,'Báo cáo'!$AD:$AD,$A5,'Báo cáo'!$Z:$Z,"<="&J$4)-SUMIFS('Báo cáo'!$Q:$Q,'Báo cáo'!$AD:$AD,$A5,'Báo cáo'!$AA:$AA,"<="&J$4) -> 10186099 | K5: =SUMIFS('Báo cáo'!$O:$O,'Báo cáo'!$AD:$AD,$A5,'Báo cáo'!$Z:$Z,"<="&K$4)+SUMIFS('Báo cáo'!$P:$P,'Báo cáo'!$AD:$AD,$A5,'Báo cáo'!$Z:$Z,"<="&K$4)-SUMIFS('Báo cáo'!$Q:$Q,'Báo cáo'!$AD:$AD,$A5,'Báo cáo'!$AA:$AA,"<="&K$4) -> 10186099 | L5: =SUMIFS('Báo cáo'!$O:$O,'Báo cáo'!$AD:$AD,$A5,'Báo cáo'!$Z:$Z,"<="&L$4)+SUMIFS('Báo cáo'!$P:$P,'Báo cáo'!$AD:$AD,$A5,'Báo cáo'!$Z:$Z,"<="&L$4)-SUMIFS('Báo cáo'!$Q:$Q,'Báo cáo'!$AD:$AD,$A5,'Báo cáo'!$AA:$AA,"<="&L$4) -> 10186099 | M5: =SUMIFS('Báo cáo'!$O:$O,'Báo cáo'!$AD:$AD,$A5,'Báo cáo'!$Z:$Z,"<="&M$4)+SUMIFS('Báo cáo'!$P:$P,'Báo cáo'!$AD:$AD,$A5,'Báo cáo'!$Z:$Z,"<="&M$4)-SUMIFS('Báo cáo'!$Q:$Q,'Báo cáo'!$AD:$AD,$A5,'Báo cáo'!$AA:$AA,"<="&M$4) -> 10186099 | N5: =SUMIFS('Báo cáo'!$O:$O,'Báo cáo'!$AD:$AD,$A5,'Báo cáo'!$Z:$Z,"<="&N$4)+SUMIFS('Báo cáo'!$P:$P,'Báo cáo'!$AD:$AD,$A5,'Báo cáo'!$Z:$Z,"<="&N$4)-SUMIFS('Báo cáo'!$Q:$Q,'Báo cáo'!$AD:$AD,$A5,'Báo cáo'!$AA:$AA,"<="&N$4) -> 10186099
A6: CIRCLE K | B6: CÔNG TY TNHH VÒNG TRÒN ĐỎ | C6: =SUMIFS('Báo cáo'!$O:$O,'Báo cáo'!$AD:$AD,$A6,'Báo cáo'!$Z:$Z,"<="&C$4)+SUMIFS('Báo cáo'!$P:$P,'Báo cáo'!$AD:$AD,$A6,'Báo cáo'!$Z:$Z,"<="&C$4)-SUMIFS('Báo cáo'!$Q:$Q,'Báo cáo'!$AD:$AD,$A6,'Báo cáo'!$AA:$AA,"<="&C$4) -> 156975388 | D6: =SUMIFS('Báo cáo'!$O:$O,'Báo cáo'!$AD:$AD,$A6,'Báo cáo'!$Z:$Z,"<="&D$4)+SUMIFS('Báo cáo'!$P:$P,'Báo cáo'!$AD:$AD,$A6,'Báo cáo'!$Z:$Z,"<="&D$4)-SUMIFS('Báo cáo'!$Q:$Q,'Báo cáo'!$AD:$AD,$A6,'Báo cáo'!$AA:$AA,"<="&D$4) -> 137928532 | E6: =SUMIFS('Báo cáo'!$O:$O,'Báo cáo'!$AD:$AD,$A6,'Báo cáo'!$Z:$Z,"<="&E$4)+SUMIFS('Báo cáo'!$P:$P,'Báo cáo'!$AD:$AD,$A6,'Báo cáo'!$Z:$Z,"<="&E$4)-SUMIFS('Báo cáo'!$Q:$Q,'Báo cáo'!$AD:$AD,$A6,'Báo cáo'!$AA:$AA,"<="&E$4) -> 126538302 | F6: =SUMIFS('Báo cáo'!$O:$O,'Báo cáo'!$AD:$AD,$A6,'Báo cáo'!$Z:$Z,"<="&F$4)+SUMIFS('Báo cáo'!$P:$P,'Báo cáo'!$AD:$AD,$A6,'Báo cáo'!$Z:$Z,"<="&F$4)-SUMIFS('Báo cáo'!$Q:$Q,'Báo cáo'!$AD:$AD,$A6,'Báo cáo'!$AA:$AA,"<="&F$4) -> 136642469 | G6: =SUMIFS('Báo cáo'!$O:$O,'Báo cáo'!$AD:$AD,$A6,'Báo cáo'!$Z:$Z,"<="&G$4)+SUMIFS('Báo cáo'!$P:$P,'Báo cáo'!$AD:$AD,$A6,'Báo cáo'!$Z:$Z,"<="&G$4)-SUMIFS('Báo cáo'!$Q:$Q,'Báo cáo'!$AD:$AD,$A6,'Báo cáo'!$AA:$AA,"<="&G$4) -> 138315568 | H6: =SUMIFS('Báo cáo'!$O:$O,'Báo cáo'!$AD:$AD,$A6,'Báo cáo'!$Z:$Z,"<="&H$4)+SUMIFS('Báo cáo'!$P:$P,'Báo cáo'!$AD:$AD,$A6,'Báo cáo'!$Z:$Z,"<="&H$4)-SUMIFS('Báo cáo'!$Q:$Q,'Báo cáo'!$AD:$AD,$A6,'Báo cáo'!$AA:$AA,"<="&H$4) -> 111052929 | I6: =SUMIFS('Báo cáo'!$O:$O,'Báo cáo'!$AD:$AD,$A6,'Báo cáo'!$Z:$Z,"<="&I$4)+SUMIFS('Báo cáo'!$P:$P,'Báo cáo'!$AD:$AD,$A6,'Báo cáo'!$Z:$Z,"<="&I$4)-SUMIFS('Báo cáo'!$Q:$Q,'Báo cáo'!$AD:$AD,$A6,'Báo cáo'!$AA:$AA,"<="&I$4) -> 88523130 | J6: =SUMIFS('Báo cáo'!$O:$O,'Báo cáo'!$AD:$AD,$A6,'Báo cáo'!$Z:$Z,"<="&J$4)+SUMIFS('Báo cáo'!$P:$P,'Báo cáo'!$AD:$AD,$A6,'Báo cáo'!$Z:$Z,"<="&J$4)-SUMIFS('Báo cáo'!$Q:$Q,'Báo cáo'!$AD:$AD,$A6,'Báo cáo'!$AA:$AA,"<="&J$4) -> 75072111 | K6: =SUMIFS('Báo cáo'!$O:$O,'Báo cáo'!$AD:$AD,$A6,'Báo cáo'!$Z:$Z,"<="&K$4)+SUMIFS('Báo cáo'!$P:$P,'Báo cáo'!$AD:$AD,$A6,'Báo cáo'!$Z:$Z,"<="&K$4)-SUMIFS('Báo cáo'!$Q:$Q,'Báo cáo'!$AD:$AD,$A6,'Báo cáo'!$AA:$AA,"<="&K$4) -> 63057910 | L6: =SUMIFS('Báo cáo'!$O:$O,'Báo cáo'!$AD:$AD,$A6,'Báo cáo'!$Z:$Z,"<="&L$4)+SUMIFS('Báo cáo'!$P:$P,'Báo cáo'!$AD:$AD,$A6,'Báo cáo'!$Z:$Z,"<="&L$4)-SUMIFS('Báo cáo'!$Q:$Q,'Báo cáo'!$AD:$AD,$A6,'Báo cáo'!$AA:$AA,"<="&L$4) -> 81019616 | M6: =SUMIFS('Báo cáo'!$O:$O,'Báo cáo'!$AD:$AD,$A6,'Báo cáo'!$Z:$Z,"<="&M$4)+SUMIFS('Báo cáo'!$P:$P,'Báo cáo'!$AD:$AD,$A6,'Báo cáo'!$Z:$Z,"<="&M$4)-SUMIFS('Báo cáo'!$Q:$Q,'Báo cáo'!$AD:$AD,$A6,'Báo cáo'!$AA:$AA,"<="&M$4) -> 81019616 | N6: =SUMIFS('Báo cáo'!$O:$O,'Báo cáo'!$AD:$AD,$A6,'Báo cáo'!$Z:$Z,"<="&N$4)+SUMIFS('Báo cáo'!$P:$P,'Báo cáo'!$AD:$AD,$A6,'Báo cáo'!$Z:$Z,"<="&N$4)-SUMIFS('Báo cáo'!$Q:$Q,'Báo cáo'!$AD:$AD,$A6,'Báo cáo'!$AA:$AA,"<="&N$4) -> 81019616
A7: CircleK-010 | B7: CHI NHÁNH CÔNG TY TNHH VÒNG TRÒN ĐỎ TẠI HÀ NỘI | C7: =SUMIFS('Báo cáo'!$O:$O,'Báo cáo'!$AD:$AD,$A7,'Báo cáo'!$Z:$Z,"<="&C$4)+SUMIFS('Báo cáo'!$P:$P,'Báo cáo'!$AD:$AD,$A7,'Báo cáo'!$Z:$Z,"<="&C$4)-SUMIFS('Báo cáo'!$Q:$Q,'Báo cáo'!$AD:$AD,$A7,'Báo cáo'!$AA:$AA,"<="&C$4) -> 357827694 | D7: =SUMIFS('Báo cáo'!$O:$O,'Báo cáo'!$AD:$AD,$A7,'Báo cáo'!$Z:$Z,"<="&D$4)+SUMIFS('Báo cáo'!$P:$P,'Báo cáo'!$AD:$AD,$A7,'Báo cáo'!$Z:$Z,"<="&D$4)-SUMIFS('Báo cáo'!$Q:$Q,'Báo cáo'!$AD:$AD,$A7,'Báo cáo'!$AA:$AA,"<="&D$4) -> 364802928 | E7: =SUMIFS('Báo cáo'!$O:$O,'Báo cáo'!$AD:$AD,$A7,'Báo cáo'!$Z:$Z,"<="&E$4)+SUMIFS('Báo cáo'!$P:$P,'Báo cáo'!$AD:$AD,$A7,'Báo cáo'!$Z:$Z,"<="&E$4)-SUMIFS('Báo cáo'!$Q:$Q,'Báo cáo'!$AD:$AD,$A7,'Báo cáo'!$AA:$AA,"<="&E$4) -> 277629738 | F7: =SUMIFS('Báo cáo'!$O:$O,'Báo cáo'!$AD:$AD,$A7,'Báo cáo'!$Z:$Z,"<="&F$4)+SUMIFS('Báo cáo'!$P:$P,'Báo cáo'!$AD:$AD,$A7,'Báo cáo'!$Z:$Z,"<="&F$4)-SUMIFS('Báo cáo'!$Q:$Q,'Báo cáo'!$AD:$AD,$A7,'Báo cáo'!$AA:$AA,"<="&F$4) -> 284661897 | G7: =SUMIFS('Báo cáo'!$O:$O,'Báo cáo'!$AD:$AD,$A7,'Báo cáo'!$Z:$Z,"<="&G$4)+SUMIFS('Báo cáo'!$P:$P,'Báo cáo'!$AD:$AD,$A7,'Báo cáo'!$Z:$Z,"<="&G$4)-SUMIFS('Báo cáo'!$Q:$Q,'Báo cáo'!$AD:$AD,$A7,'Báo cáo'!$AA:$AA,"<="&G$4) -> 314989925 | H7: =SUMIFS('Báo cáo'!$O:$O,'Báo cáo'!$AD:$AD,$A7,'Báo cáo'!$Z:$Z,"<="&H$4)+SUMIFS('Báo cáo'!$P:$P,'Báo cáo'!$AD:$AD,$A7,'Báo cáo'!$Z:$Z,"<="&H$4)-SUMIFS('Báo cáo'!$Q:$Q,'Báo cáo'!$AD:$AD,$A7,'Báo cáo'!$AA:$AA,"<="&H$4) -> 323552053 | I7: =SUMIFS('Báo cáo'!$O:$O,'Báo cáo'!$AD:$AD,$A7,'Báo cáo'!$Z:$Z,"<="&I$4)+SUMIFS('Báo cáo'!$P:$P,'Báo cáo'!$AD:$AD,$A7,'Báo cáo'!$Z:$Z,"<="&I$4)-SUMIFS('Báo cáo'!$Q:$Q,'Báo cáo'!$AD:$AD,$A7,'Báo cáo'!$AA:$AA,"<="&I$4) -> 369308692 | J7: =SUMIFS('Báo cáo'!$O:$O,'Báo cáo'!$AD:$AD,$A7,'Báo cáo'!$Z:$Z,"<="&J$4)+SUMIFS('Báo cáo'!$P:$P,'Báo cáo'!$AD:$AD,$A7,'Báo cáo'!$Z:$Z,"<="&J$4)-SUMIFS('Báo cáo'!$Q:$Q,'Báo cáo'!$AD:$AD,$A7,'Báo cáo'!$AA:$AA,"<="&J$4) -> 361642404 | K7: =SUMIFS('Báo cáo'!$O:$O,'Báo cáo'!$AD:$AD,$A7,'Báo cáo'!$Z:$Z,"<="&K$4)+SUMIFS('Báo cáo'!$P:$P,'Báo cáo'!$AD:$AD,$A7,'Báo cáo'!$Z:$Z,"<="&K$4)-SUMIFS('Báo cáo'!$Q:$Q,'Báo cáo'!$AD:$AD,$A7,'Báo cáo'!$AA:$AA,"<="&K$4) -> 208618353 | L7: =SUMIFS('Báo cáo'!$O:$O,'Báo cáo'!$AD:$AD,$A7,'Báo cáo'!$Z:$Z,"<="&L$4)+SUMIFS('Báo cáo'!$P:$P,'Báo cáo'!$AD:$AD,$A7,'Báo cáo'!$Z:$Z,"<="&L$4)-SUMIFS('Báo cáo'!$Q:$Q,'Báo cáo'!$AD:$AD,$A7,'Báo cáo'!$AA:$AA,"<="&L$4) -> 267747539 | M7: =SUMIFS('Báo cáo'!$O:$O,'Báo cáo'!$AD:$AD,$A7,'Báo cáo'!$Z:$Z,"<="&M$4)+SUMIFS('Báo cáo'!$P:$P,'Báo cáo'!$AD:$AD,$A7,'Báo cáo'!$Z:$Z,"<="&M$4)-SUMIFS('Báo cáo'!$Q:$Q,'Báo cáo'!$AD:$AD,$A7,'Báo cáo'!$AA:$AA,"<="&M$4) -> 267747539 | N7: =SUMIFS('Báo cáo'!$O:$O,'Báo cáo'!$AD:$AD,$A7,'Báo cáo'!$Z:$Z,"<="&N$4)+SUMIFS('Báo cáo'!$P:$P,'Báo cáo'!$AD:$AD,$A7,'Báo cáo'!$Z:$Z,"<="&N$4)-SUMIFS('Báo cáo'!$Q:$Q,'Báo cáo'!$AD:$AD,$A7,'Báo cáo'!$AA:$AA,"<="&N$4) -> 267747539
A8: KMARKET | B8: CÔNG TY TNHH THƯƠNG MẠI K & K TOÀN CẦU | C8: =SUMIFS('Báo cáo'!$O:$O,'Báo cáo'!$AD:$AD,$A8,'Báo cáo'!$Z:$Z,"<="&C$4)+SUMIFS('Báo cáo'!$P:$P,'Báo cáo'!$AD:$AD,$A8,'Báo cáo'!$Z:$Z,"<="&C$4)-SUMIFS('Báo cáo'!$Q:$Q,'Báo cáo'!$AD:$AD,$A8,'Báo cáo'!$AA:$AA,"<="&C$4) -> 19410586.59 | D8: =SUMIFS('Báo cáo'!$O:$O,'Báo cáo'!$AD:$AD,$A8,'Báo cáo'!$Z:$Z,"<="&D$4)+SUMIFS('Báo cáo'!$P:$P,'Báo cáo'!$AD:$AD,$A8,'Báo cáo'!$Z:$Z,"<="&D$4)-SUMIFS('Báo cáo'!$Q:$Q,'Báo cáo'!$AD:$AD,$A8,'Báo cáo'!$AA:$AA,"<="&D$4) -> 33204195.59 | E8: =SUMIFS('Báo cáo'!$O:$O,'Báo cáo'!$AD:$AD,$A8,'Báo cáo'!$Z:$Z,"<="&E$4)+SUMIFS('Báo cáo'!$P:$P,'Báo cáo'!$AD:$AD,$A8,'Báo cáo'!$Z:$Z,"<="&E$4)-SUMIFS('Báo cáo'!$Q:$Q,'Báo cáo'!$AD:$AD,$A8,'Báo cáo'!$AA:$AA,"<="&E$4) -> 37584268.59 | F8: =SUMIFS('Báo cáo'!$O:$O,'Báo cáo'!$AD:$AD,$A8,'Báo cáo'!$Z:$Z,"<="&F$4)+SUMIFS('Báo cáo'!$P:$P,'Báo cáo'!$AD:$AD,$A8,'Báo cáo'!$Z:$Z,"<="&F$4)-SUMIFS('Báo cáo'!$Q:$Q,'Báo cáo'!$AD:$AD,$A8,'Báo cáo'!$AA:$AA,"<="&F$4) -> 34959811 | G8: =SUMIFS('Báo cáo'!$O:$O,'Báo cáo'!$AD:$AD,$A8,'Báo cáo'!$Z:$Z,"<="&G$4)+SUMIFS('Báo cáo'!$P:$P,'Báo cáo'!$AD:$AD,$A8,'Báo cáo'!$Z:$Z,"<="&G$4)-SUMIFS('Báo cáo'!$Q:$Q,'Báo cáo'!$AD:$AD,$A8,'Báo cáo'!$AA:$AA,"<="&G$4) -> 42436668 | H8: =SUMIFS('Báo cáo'!$O:$O,'Báo cáo'!$AD:$AD,$A8,'Báo cáo'!$Z:$Z,"<="&H$4)+SUMIFS('Báo cáo'!$P:$P,'Báo cáo'!$AD:$AD,$A8,'Báo cáo'!$Z:$Z,"<="&H$4)-SUMIFS('Báo cáo'!$Q:$Q,'Báo cáo'!$AD:$AD,$A8,'Báo cáo'!$AA:$AA,"<="&H$4) -> 29198499 | I8: =SUMIFS('Báo cáo'!$O:$O,'Báo cáo'!$AD:$AD,$A8,'Báo cáo'!$Z:$Z,"<="&I$4)+SUMIFS('Báo cáo'!$P:$P,'Báo cáo'!$AD:$AD,$A8,'Báo cáo'!$Z:$Z,"<="&I$4)-SUMIFS('Báo cáo'!$Q:$Q,'Báo cáo'!$AD:$AD,$A8,'Báo cáo'!$AA:$AA,"<="&I$4) -> 36826774 | J8: =SUMIFS('Báo cáo'!$O:$O,'Báo cáo'!$AD:$AD,$A8,'Báo cáo'!$Z:$Z,"<="&J$4)+SUMIFS('Báo cáo'!$P:$P,'Báo cáo'!$AD:$AD,$A8,'Báo cáo'!$Z:$Z,"<="&J$4)-SUMIFS('Báo cáo'!$Q:$Q,'Báo cáo'!$AD:$AD,$A8,'Báo cáo'!$AA:$AA,"<="&J$4) -> 38216456 | K8: =SUMIFS('Báo cáo'!$O:$O,'Báo cáo'!$AD:$AD,$A8,'Báo cáo'!$Z:$Z,"<="&K$4)+SUMIFS('Báo cáo'!$P:$P,'Báo cáo'!$AD:$AD,$A8,'Báo cáo'!$Z:$Z,"<="&K$4)-SUMIFS('Báo cáo'!$Q:$Q,'Báo cáo'!$AD:$AD,$A8,'Báo cáo'!$AA:$AA,"<="&K$4) -> 28873623 | L8: =SUMIFS('Báo cáo'!$O:$O,'Báo cáo'!$AD:$AD,$A8,'Báo cáo'!$Z:$Z,"<="&L$4)+SUMIFS('Báo cáo'!$P:$P,'Báo cáo'!$AD:$AD,$A8,'Báo cáo'!$Z:$Z,"<="&L$4)-SUMIFS('Báo cáo'!$Q:$Q,'Báo cáo'!$AD:$AD,$A8,'Báo cáo'!$AA:$AA,"<="&L$4) -> 34905515 | M8: =SUMIFS('Báo cáo'!$O:$O,'Báo cáo'!$AD:$AD,$A8,'Báo cáo'!$Z:$Z,"<="&M$4)+SUMIFS('Báo cáo'!$P:$P,'Báo cáo'!$AD:$AD,$A8,'Báo cáo'!$Z:$Z,"<="&M$4)-SUMIFS('Báo cáo'!$Q:$Q,'Báo cáo'!$AD:$AD,$A8,'Báo cáo'!$AA:$AA,"<="&M$4) -> 34905515 | N8: =SUMIFS('Báo cáo'!$O:$O,'Báo cáo'!$AD:$AD,$A8,'Báo cáo'!$Z:$Z,"<="&N$4)+SUMIFS('Báo cáo'!$P:$P,'Báo cáo'!$AD:$AD,$A8,'Báo cáo'!$Z:$Z,"<="&N$4)-SUMIFS('Báo cáo'!$Q:$Q,'Báo cáo'!$AD:$AD,$A8,'Báo cáo'!$AA:$AA,"<="&N$4) -> 34905515
A9: LARIA (FM) | B9: CÔNG TY TNHH THƯƠNG MẠI LARIA | C9: =SUMIFS('Báo cáo'!$O:$O,'Báo cáo'!$AD:$AD,$A9,'Báo cáo'!$Z:$Z,"<="&C$4)+SUMIFS('Báo cáo'!$P:$P,'Báo cáo'!$AD:$AD,$A9,'Báo cáo'!$Z:$Z,"<="&C$4)-SUMIFS('Báo cáo'!$Q:$Q,'Báo cáo'!$AD:$AD,$A9,'Báo cáo'!$AA:$AA,"<="&C$4) -> 18031478.1 | D9: =SUMIFS('Báo cáo'!$O:$O,'Báo cáo'!$AD:$AD,$A9,'Báo cáo'!$Z:$Z,"<="&D$4)+SUMIFS('Báo cáo'!$P:$P,'Báo cáo'!$AD:$AD,$A9,'Báo cáo'!$Z:$Z,"<="&D$4)-SUMIFS('Báo cáo'!$Q:$Q,'Báo cáo'!$AD:$AD,$A9,'Báo cáo'!$AA:$AA,"<="&D$4) -> 27629140 | E9: =SUMIFS('Báo cáo'!$O:$O,'Báo cáo'!$AD:$AD,$A9,'Báo cáo'!$Z:$Z,"<="&E$4)+SUMIFS('Báo cáo'!$P:$P,'Báo cáo'!$AD:$AD,$A9,'Báo cáo'!$Z:$Z,"<="&E$4)-SUMIFS('Báo cáo'!$Q:$Q,'Báo cáo'!$AD:$AD,$A9,'Báo cáo'!$AA:$AA,"<="&E$4) -> 33905177.68 | F9: =SUMIFS('Báo cáo'!$O:$O,'Báo cáo'!$AD:$AD,$A9,'Báo cáo'!$Z:$Z,"<="&F$4)+SUMIFS('Báo cáo'!$P:$P,'Báo cáo'!$AD:$AD,$A9,'Báo cáo'!$Z:$Z,"<="&F$4)-SUMIFS('Báo cáo'!$Q:$Q,'Báo cáo'!$AD:$AD,$A9,'Báo cáo'!$AA:$AA,"<="&F$4) -> 23556795.58 | G9: =SUMIFS('Báo cáo'!$O:$O,'Báo cáo'!$AD:$AD,$A9,'Báo cáo'!$Z:$Z,"<="&G$4)+SUMIFS('Báo cáo'!$P:$P,'Báo cáo'!$AD:$AD,$A9,'Báo cáo'!$Z:$Z,"<="&G$4)-SUMIFS('Báo cáo'!$Q:$Q,'Báo cáo'!$AD:$AD,$A9,'Báo cáo'!$AA:$AA,"<="&G$4) -> 28884678.58 | H9: =SUMIFS('Báo cáo'!$O:$O,'Báo cáo'!$AD:$AD,$A9,'Báo cáo'!$Z:$Z,"<="&H$4)+SUMIFS('Báo cáo'!$P:$P,'Báo cáo'!$AD:$AD,$A9,'Báo cáo'!$Z:$Z,"<="&H$4)-SUMIFS('Báo cáo'!$Q:$Q,'Báo cáo'!$AD:$AD,$A9,'Báo cáo'!$AA:$AA,"<="&H$4) -> 16656521.58 | I9: =SUMIFS('Báo cáo'!$O:$O,'Báo cáo'!$AD:$AD,$A9,'Báo cáo'!$Z:$Z,"<="&I$4)+SUMIFS('Báo cáo'!$P:$P,'Báo cáo'!$AD:$AD,$A9,'Báo cáo'!$Z:$Z,"<="&I$4)-SUMIFS('Báo cáo'!$Q:$Q,'Báo cáo'!$AD:$AD,$A9,'Báo cáo'!$AA:$AA,"<="&I$4) -> 11810135.58 | J9: =SUMIFS('Báo cáo'!$O:$O,'Báo cáo'!$AD:$AD,$A9,'Báo cáo'!$Z:$Z,"<="&J$4)+SUMIFS('Báo cáo'!$P:$P,'Báo cáo'!$AD:$AD,$A9,'Báo cáo'!$Z:$Z,"<="&J$4)-SUMIFS('Báo cáo'!$Q:$Q,'Báo cáo'!$AD:$AD,$A9,'Báo cáo'!$AA:$AA,"<="&J$4) -> 15090522.58 | K9: =SUMIFS('Báo cáo'!$O:$O,'Báo cáo'!$AD:$AD,$A9,'Báo cáo'!$Z:$Z,"<="&K$4)+SUMIFS('Báo cáo'!$P:$P,'Báo cáo'!$AD:$AD,$A9,'Báo cáo'!$Z:$Z,"<="&K$4)-SUMIFS('Báo cáo'!$Q:$Q,'Báo cáo'!$AD:$AD,$A9,'Báo cáo'!$AA:$AA,"<="&K$4) -> 15751364.58 | L9: =SUMIFS('Báo cáo'!$O:$O,'Báo cáo'!$AD:$AD,$A9,'Báo cáo'!$Z:$Z,"<="&L$4)+SUMIFS('Báo cáo'!$P:$P,'Báo cáo'!$AD:$AD,$A9,'Báo cáo'!$Z:$Z,"<="&L$4)-SUMIFS('Báo cáo'!$Q:$Q,'Báo cáo'!$AD:$AD,$A9,'Báo cáo'!$AA:$AA,"<="&L$4) -> 9482063 | M9: =SUMIFS('Báo cáo'!$O:$O,'Báo cáo'!$AD:$AD,$A9,'Báo cáo'!$Z:$Z,"<="&M$4)+SUMIFS('Báo cáo'!$P:$P,'Báo cáo'!$AD:$AD,$A9,'Báo cáo'!$Z:$Z,"<="&M$4)-SUMIFS('Báo cáo'!$Q:$Q,'Báo cáo'!$AD:$AD,$A9,'Báo cáo'!$AA:$AA,"<="&M$4) -> 9482063 | N9: =SUMIFS('Báo cáo'!$O:$O,'Báo cáo'!$AD:$AD,$A9,'Báo cáo'!$Z:$Z,"<="&N$4)+SUMIFS('Báo cáo'!$P:$P,'Báo cáo'!$AD:$AD,$A9,'Báo cáo'!$Z:$Z,"<="&N$4)-SUMIFS('Báo cáo'!$Q:$Q,'Báo cáo'!$AD:$AD,$A9,'Báo cáo'!$AA:$AA,"<="&N$4) -> 9482063
A10: LONG BEACH | B10: CÔNG TY CỔ PHẦN THƯƠNG MẠI LONG BEACH | C10: =SUMIFS('Báo cáo'!$O:$O,'Báo cáo'!$AD:$AD,$A10,'Báo cáo'!$Z:$Z,"<="&C$4)+SUMIFS('Báo cáo'!$P:$P,'Báo cáo'!$AD:$AD,$A10,'Báo cáo'!$Z:$Z,"<="&C$4)-SUMIFS('Báo cáo'!$Q:$Q,'Báo cáo'!$AD:$AD,$A10,'Báo cáo'!$AA:$AA,"<="&C$4) -> 0 | D10: =SUMIFS('Báo cáo'!$O:$O,'Báo cáo'!$AD:$AD,$A10,'Báo cáo'!$Z:$Z,"<="&D$4)+SUMIFS('Báo cáo'!$P:$P,'Báo cáo'!$AD:$AD,$A10,'Báo cáo'!$Z:$Z,"<="&D$4)-SUMIFS('Báo cáo'!$Q:$Q,'Báo cáo'!$AD:$AD,$A10,'Báo cáo'!$AA:$AA,"<="&D$4) -> 0 | E10: =SUMIFS('Báo cáo'!$O:$O,'Báo cáo'!$AD:$AD,$A10,'Báo cáo'!$Z:$Z,"<="&E$4)+SUMIFS('Báo cáo'!$P:$P,'Báo cáo'!$AD:$AD,$A10,'Báo cáo'!$Z:$Z,"<="&E$4)-SUMIFS('Báo cáo'!$Q:$Q,'Báo cáo'!$AD:$AD,$A10,'Báo cáo'!$AA:$AA,"<="&E$4) -> 0 | F10: =SUMIFS('Báo cáo'!$O:$O,'Báo cáo'!$AD:$AD,$A10,'Báo cáo'!$Z:$Z,"<="&F$4)+SUMIFS('Báo cáo'!$P:$P,'Báo cáo'!$AD:$AD,$A10,'Báo cáo'!$Z:$Z,"<="&F$4)-SUMIFS('Báo cáo'!$Q:$Q,'Báo cáo'!$AD:$AD,$A10,'Báo cáo'!$AA:$AA,"<="&F$4) -> 0 | G10: =SUMIFS('Báo cáo'!$O:$O,'Báo cáo'!$AD:$AD,$A10,'Báo cáo'!$Z:$Z,"<="&G$4)+SUMIFS('Báo cáo'!$P:$P,'Báo cáo'!$AD:$AD,$A10,'Báo cáo'!$Z:$Z,"<="&G$4)-SUMIFS('Báo cáo'!$Q:$Q,'Báo cáo'!$AD:$AD,$A10,'Báo cáo'!$AA:$AA,"<="&G$4) -> 0 | H10: =SUMIFS('Báo cáo'!$O:$O,'Báo cáo'!$AD:$AD,$A10,'Báo cáo'!$Z:$Z,"<="&H$4)+SUMIFS('Báo cáo'!$P:$P,'Báo cáo'!$AD:$AD,$A10,'Báo cáo'!$Z:$Z,"<="&H$4)-SUMIFS('Báo cáo'!$Q:$Q,'Báo cáo'!$AD:$AD,$A10,'Báo cáo'!$AA:$AA,"<="&H$4) -> 0 | I10: =SUMIFS('Báo cáo'!$O:$O,'Báo cáo'!$AD:$AD,$A10,'Báo cáo'!$Z:$Z,"<="&I$4)+SUMIFS('Báo cáo'!$P:$P,'Báo cáo'!$AD:$AD,$A10,'Báo cáo'!$Z:$Z,"<="&I$4)-SUMIFS('Báo cáo'!$Q:$Q,'Báo cáo'!$AD:$AD,$A10,'Báo cáo'!$AA:$AA,"<="&I$4) -> 0 | J10: =SUMIFS('Báo cáo'!$O:$O,'Báo cáo'!$AD:$AD,$A10,'Báo cáo'!$Z:$Z,"<="&J$4)+SUMIFS('Báo cáo'!$P:$P,'Báo cáo'!$AD:$AD,$A10,'Báo cáo'!$Z:$Z,"<="&J$4)-SUMIFS('Báo cáo'!$Q:$Q,'Báo cáo'!$AD:$AD,$A10,'Báo cáo'!$AA:$AA,"<="&J$4) -> 0 | K10: =SUMIFS('Báo cáo'!$O:$O,'Báo cáo'!$AD:$AD,$A10,'Báo cáo'!$Z:$Z,"<="&K$4)+SUMIFS('Báo cáo'!$P:$P,'Báo cáo'!$AD:$AD,$A10,'Báo cáo'!$Z:$Z,"<="&K$4)-SUMIFS('Báo cáo'!$Q:$Q,'Báo cáo'!$AD:$AD,$A10,'Báo cáo'!$AA:$AA,"<="&K$4) -> 5852983 | L10: =SUMIFS('Báo cáo'!$O:$O,'Báo cáo'!$AD:$AD,$A10,'Báo cáo'!$Z:$Z,"<="&L$4)+SUMIFS('Báo cáo'!$P:$P,'Báo cáo'!$AD:$AD,$A10,'Báo cáo'!$Z:$Z,"<="&L$4)-SUMIFS('Báo cáo'!$Q:$Q,'Báo cáo'!$AD:$AD,$A10,'Báo cáo'!$AA:$AA,"<="&L$4) -> 11312647 | M10: =SUMIFS('Báo cáo'!$O:$O,'Báo cáo'!$AD:$AD,$A10,'Báo cáo'!$Z:$Z,"<="&M$4)+SUMIFS('Báo cáo'!$P:$P,'Báo cáo'!$AD:$AD,$A10,'Báo cáo'!$Z:$Z,"<="&M$4)-SUMIFS('Báo cáo'!$Q:$Q,'Báo cáo'!$AD:$AD,$A10,'Báo cáo'!$AA:$AA,"<="&M$4) -> 11312647 | N10: =SUMIFS('Báo cáo'!$O:$O,'Báo cáo'!$AD:$AD,$A10,'Báo cáo'!$Z:$Z,"<="&N$4)+SUMIFS('Báo cáo'!$P:$P,'Báo cáo'!$AD:$AD,$A10,'Báo cáo'!$Z:$Z,"<="&N$4)-SUMIFS('Báo cáo'!$Q:$Q,'Báo cáo'!$AD:$AD,$A10,'Báo cáo'!$AA:$AA,"<="&N$4) -> 11312647
A11: LOTTE | B11: CÔNG TY CỔ PHẦN TRUNG TÂM THƯƠNG MẠI LOTTE VIỆT NAM | C11: =SUMIFS('Báo cáo'!$O:$O,'Báo cáo'!$AD:$AD,$A11,'Báo cáo'!$Z:$Z,"<="&C$4)+SUMIFS('Báo cáo'!$P:$P,'Báo cáo'!$AD:$AD,$A11,'Báo cáo'!$Z:$Z,"<="&C$4)-SUMIFS('Báo cáo'!$Q:$Q,'Báo cáo'!$AD:$AD,$A11,'Báo cáo'!$AA:$AA,"<="&C$4) -> 486142974 | D11: =SUMIFS('Báo cáo'!$O:$O,'Báo cáo'!$AD:$AD,$A11,'Báo cáo'!$Z:$Z,"<="&D$4)+SUMIFS('Báo cáo'!$P:$P,'Báo cáo'!$AD:$AD,$A11,'Báo cáo'!$Z:$Z,"<="&D$4)-SUMIFS('Báo cáo'!$Q:$Q,'Báo cáo'!$AD:$AD,$A11,'Báo cáo'!$AA:$AA,"<="&D$4) -> 265593225 | E11: =SUMIFS('Báo cáo'!$O:$O,'Báo cáo'!$AD:$AD,$A11,'Báo cáo'!$Z:$Z,"<="&E$4)+SUMIFS('Báo cáo'!$P:$P,'Báo cáo'!$AD:$AD,$A11,'Báo cáo'!$Z:$Z,"<="&E$4)-SUMIFS('Báo cáo'!$Q:$Q,'Báo cáo'!$AD:$AD,$A11,'Báo cáo'!$AA:$AA,"<="&E$4) -> 105098390 | F11: =SUMIFS('Báo cáo'!$O:$O,'Báo cáo'!$AD:$AD,$A11,'Báo cáo'!$Z:$Z,"<="&F$4)+SUMIFS('Báo cáo'!$P:$P,'Báo cáo'!$AD:$AD,$A11,'Báo cáo'!$Z:$Z,"<="&F$4)-SUMIFS('Báo cáo'!$Q:$Q,'Báo cáo'!$AD:$AD,$A11,'Báo cáo'!$AA:$AA,"<="&F$4) -> 155374993 | G11: =SUMIFS('Báo cáo'!$O:$O,'Báo cáo'!$AD:$AD,$A11,'Báo cáo'!$Z:$Z,"<="&G$4)+SUMIFS('Báo cáo'!$P:$P,'Báo cáo'!$AD:$AD,$A11,'Báo cáo'!$Z:$Z,"<="&G$4)-SUMIFS('Báo cáo'!$Q:$Q,'Báo cáo'!$AD:$AD,$A11,'Báo cáo'!$AA:$AA,"<="&G$4) -> 102515171 | H11: =SUMIFS('Báo cáo'!$O:$O,'Báo cáo'!$AD:$AD,$A11,'Báo cáo'!$Z:$Z,"<="&H$4)+SUMIFS('Báo cáo'!$P:$P,'Báo cáo'!$AD:$AD,$A11,'Báo cáo'!$Z:$Z,"<="&H$4)-SUMIFS('Báo cáo'!$Q:$Q,'Báo cáo'!$AD:$AD,$A11,'Báo cáo'!$AA:$AA,"<="&H$4) -> 117941908 | I11: =SUMIFS('Báo cáo'!$O:$O,'Báo cáo'!$AD:$AD,$A11,'Báo cáo'!$Z:$Z,"<="&I$4)+SUMIFS('Báo cáo'!$P:$P,'Báo cáo'!$AD:$AD,$A11,'Báo cáo'!$Z:$Z,"<="&I$4)-SUMIFS('Báo cáo'!$Q:$Q,'Báo cáo'!$AD:$AD,$A11,'Báo cáo'!$AA:$AA,"<="&I$4) -> 222315371 | J11: =SUMIFS('Báo cáo'!$O:$O,'Báo cáo'!$AD:$AD,$A11,'Báo cáo'!$Z:$Z,"<="&J$4)+SUMIFS('Báo cáo'!$P:$P,'Báo cáo'!$AD:$AD,$A11,'Báo cáo'!$Z:$Z,"<="&J$4)-SUMIFS('Báo cáo'!$Q:$Q,'Báo cáo'!$AD:$AD,$A11,'Báo cáo'!$AA:$AA,"<="&J$4) -> 241382905 | K11: =SUMIFS('Báo cáo'!$O:$O,'Báo cáo'!$AD:$AD,$A11,'Báo cáo'!$Z:$Z,"<="&K$4)+SUMIFS('Báo cáo'!$P:$P,'Báo cáo'!$AD:$AD,$A11,'Báo cáo'!$Z:$Z,"<="&K$4)-SUMIFS('Báo cáo'!$Q:$Q,'Báo cáo'!$AD:$AD,$A11,'Báo cáo'!$AA:$AA,"<="&K$4) -> 164641740 | L11: =SUMIFS('Báo cáo'!$O:$O,'Báo cáo'!$AD:$AD,$A11,'Báo cáo'!$Z:$Z,"<="&L$4)+SUMIFS('Báo cáo'!$P:$P,'Báo cáo'!$AD:$AD,$A11,'Báo cáo'!$Z:$Z,"<="&L$4)-SUMIFS('Báo cáo'!$Q:$Q,'Báo cáo'!$AD:$AD,$A11,'Báo cáo'!$AA:$AA,"<="&L$4) -> 176425089 | M11: =SUMIFS('Báo cáo'!$O:$O,'Báo cáo'!$AD:$AD,$A11,'Báo cáo'!$Z:$Z,"<="&M$4)+SUMIFS('Báo cáo'!$P:$P,'Báo cáo'!$AD:$AD,$A11,'Báo cáo'!$Z:$Z,"<="&M$4)-SUMIFS('Báo cáo'!$Q:$Q,'Báo cáo'!$AD:$AD,$A11,'Báo cáo'!$AA:$AA,"<="&M$4) -> 176425089 | N11: =SUMIFS('Báo cáo'!$O:$O,'Báo cáo'!$AD:$AD,$A11,'Báo cáo'!$Z:$Z,"<="&N$4)+SUMIFS('Báo cáo'!$P:$P,'Báo cáo'!$AD:$AD,$A11,'Báo cáo'!$Z:$Z,"<="&N$4)-SUMIFS('Báo cáo'!$Q:$Q,'Báo cáo'!$AD:$AD,$A11,'Báo cáo'!$AA:$AA,"<="&N$4) -> 176425089
A12: OKONO | B12: CÔNG TY TNHH OKONO VIỆT NAM | C12: =SUMIFS('Báo cáo'!$O:$O,'Báo cáo'!$AD:$AD,$A12,'Báo cáo'!$Z:$Z,"<="&C$4)+SUMIFS('Báo cáo'!$P:$P,'Báo cáo'!$AD:$AD,$A12,'Báo cáo'!$Z:$Z,"<="&C$4)-SUMIFS('Báo cáo'!$Q:$Q,'Báo cáo'!$AD:$AD,$A12,'Báo cáo'!$AA:$AA,"<="&C$4) -> 162194469 | D12: =SUMIFS('Báo cáo'!$O:$O,'Báo cáo'!$AD:$AD,$A12,'Báo cáo'!$Z:$Z,"<="&D$4)+SUMIFS('Báo cáo'!$P:$P,'Báo cáo'!$AD:$AD,$A12,'Báo cáo'!$Z:$Z,"<="&D$4)-SUMIFS('Báo cáo'!$Q:$Q,'Báo cáo'!$AD:$AD,$A12,'Báo cáo'!$AA:$AA,"<="&D$4) -> 132893518 | E12: =SUMIFS('Báo cáo'!$O:$O,'Báo cáo'!$AD:$AD,$A12,'Báo cáo'!$Z:$Z,"<="&E$4)+SUMIFS('Báo cáo'!$P:$P,'Báo cáo'!$AD:$AD,$A12,'Báo cáo'!$Z:$Z,"<="&E$4)-SUMIFS('Báo cáo'!$Q:$Q,'Báo cáo'!$AD:$AD,$A12,'Báo cáo'!$AA:$AA,"<="&E$4) -> 145041547.9 | F12: =SUMIFS('Báo cáo'!$O:$O,'Báo cáo'!$AD:$AD,$A12,'Báo cáo'!$Z:$Z,"<="&F$4)+SUMIFS('Báo cáo'!$P:$P,'Báo cáo'!$AD:$AD,$A12,'Báo cáo'!$Z:$Z,"<="&F$4)-SUMIFS('Báo cáo'!$Q:$Q,'Báo cáo'!$AD:$AD,$A12,'Báo cáo'!$AA:$AA,"<="&F$4) -> 162086117.9 | G12: =SUMIFS('Báo cáo'!$O:$O,'Báo cáo'!$AD:$AD,$A12,'Báo cáo'!$Z:$Z,"<="&G$4)+SUMIFS('Báo cáo'!$P:$P,'Báo cáo'!$AD:$AD,$A12,'Báo cáo'!$Z:$Z,"<="&G$4)-SUMIFS('Báo cáo'!$Q:$Q,'Báo cáo'!$AD:$AD,$A12,'Báo cáo'!$AA:$AA,"<="&G$4) -> 115895326 | H12: =SUMIFS('Báo cáo'!$O:$O,'Báo cáo'!$AD:$AD,$A12,'Báo cáo'!$Z:$Z,"<="&H$4)+SUMIFS('Báo cáo'!$P:$P,'Báo cáo'!$AD:$AD,$A12,'Báo cáo'!$Z:$Z,"<="&H$4)-SUMIFS('Báo cáo'!$Q:$Q,'Báo cáo'!$AD:$AD,$A12,'Báo cáo'!$AA:$AA,"<="&H$4) -> 70712452 | I12: =SUMIFS('Báo cáo'!$O:$O,'Báo cáo'!$AD:$AD,$A12,'Báo cáo'!$Z:$Z,"<="&I$4)+SUMIFS('Báo cáo'!$P:$P,'Báo cáo'!$AD:$AD,$A12,'Báo cáo'!$Z:$Z,"<="&I$4)-SUMIFS('Báo cáo'!$Q:$Q,'Báo cáo'!$AD:$AD,$A12,'Báo cáo'!$AA:$AA,"<="&I$4) -> 48642143 | J12: =SUMIFS('Báo cáo'!$O:$O,'Báo cáo'!$AD:$AD,$A12,'Báo cáo'!$Z:$Z,"<="&J$4)+SUMIFS('Báo cáo'!$P:$P,'Báo cáo'!$AD:$AD,$A12,'Báo cáo'!$Z:$Z,"<="&J$4)-SUMIFS('Báo cáo'!$Q:$Q,'Báo cáo'!$AD:$AD,$A12,'Báo cáo'!$AA:$AA,"<="&J$4) -> 74863153 | K12: =SUMIFS('Báo cáo'!$O:$O,'Báo cáo'!$AD:$AD,$A12,'Báo cáo'!$Z:$Z,"<="&K$4)+SUMIFS('Báo cáo'!$P:$P,'Báo cáo'!$AD:$AD,$A12,'Báo cáo'!$Z:$Z,"<="&K$4)-SUMIFS('Báo cáo'!$Q:$Q,'Báo cáo'!$AD:$AD,$A12,'Báo cáo'!$AA:$AA,"<="&K$4) -> 51395516 | L12: =SUMIFS('Báo cáo'!$O:$O,'Báo cáo'!$AD:$AD,$A12,'Báo cáo'!$Z:$Z,"<="&L$4)+SUMIFS('Báo cáo'!$P:$P,'Báo cáo'!$AD:$AD,$A12,'Báo cáo'!$Z:$Z,"<="&L$4)-SUMIFS('Báo cáo'!$Q:$Q,'Báo cáo'!$AD:$AD,$A12,'Báo cáo'!$AA:$AA,"<="&L$4) -> 67911410 | M12: =SUMIFS('Báo cáo'!$O:$O,'Báo cáo'!$AD:$AD,$A12,'Báo cáo'!$Z:$Z,"<="&M$4)+SUMIFS('Báo cáo'!$P:$P,'Báo cáo'!$AD:$AD,$A12,'Báo cáo'!$Z:$Z,"<="&M$4)-SUMIFS('Báo cáo'!$Q:$Q,'Báo cáo'!$AD:$AD,$A12,'Báo cáo'!$AA:$AA,"<="&M$4) -> 67911410 | N12: =SUMIFS('Báo cáo'!$O:$O,'Báo cáo'!$AD:$AD,$A12,'Báo cáo'!$Z:$Z,"<="&N$4)+SUMIFS('Báo cáo'!$P:$P,'Báo cáo'!$AD:$AD,$A12,'Báo cáo'!$Z:$Z,"<="&N$4)-SUMIFS('Báo cáo'!$Q:$Q,'Báo cáo'!$AD:$AD,$A12,'Báo cáo'!$AA:$AA,"<="&N$4) -> 67911410
A13: PTMART | B13: CÔNG TY CỔ PHẦN PT | C13: =SUMIFS('Báo cáo'!$O:$O,'Báo cáo'!$AD:$AD,$A13,'Báo cáo'!$Z:$Z,"<="&C$4)+SUMIFS('Báo cáo'!$P:$P,'Báo cáo'!$AD:$AD,$A13,'Báo cáo'!$Z:$Z,"<="&C$4)-SUMIFS('Báo cáo'!$Q:$Q,'Báo cáo'!$AD:$AD,$A13,'Báo cáo'!$AA:$AA,"<="&C$4) -> 2020512 | D13: =SUMIFS('Báo cáo'!$O:$O,'Báo cáo'!$AD:$AD,$A13,'Báo cáo'!$Z:$Z,"<="&D$4)+SUMIFS('Báo cáo'!$P:$P,'Báo cáo'!$AD:$AD,$A13,'Báo cáo'!$Z:$Z,"<="&D$4)-SUMIFS('Báo cáo'!$Q:$Q,'Báo cáo'!$AD:$AD,$A13,'Báo cáo'!$AA:$AA,"<="&D$4) -> 767167 | E13: =SUMIFS('Báo cáo'!$O:$O,'Báo cáo'!$AD:$AD,$A13,'Báo cáo'!$Z:$Z,"<="&E$4)+SUMIFS('Báo cáo'!$P:$P,'Báo cáo'!$AD:$AD,$A13,'Báo cáo'!$Z:$Z,"<="&E$4)-SUMIFS('Báo cáo'!$Q:$Q,'Báo cáo'!$AD:$AD,$A13,'Báo cáo'!$AA:$AA,"<="&E$4) -> 4251292 | F13: =SUMIFS('Báo cáo'!$O:$O,'Báo cáo'!$AD:$AD,$A13,'Báo cáo'!$Z:$Z,"<="&F$4)+SUMIFS('Báo cáo'!$P:$P,'Báo cáo'!$AD:$AD,$A13,'Báo cáo'!$Z:$Z,"<="&F$4)-SUMIFS('Báo cáo'!$Q:$Q,'Báo cáo'!$AD:$AD,$A13,'Báo cáo'!$AA:$AA,"<="&F$4) -> 7467468 | G13: =SUMIFS('Báo cáo'!$O:$O,'Báo cáo'!$AD:$AD,$A13,'Báo cáo'!$Z:$Z,"<="&G$4)+SUMIFS('Báo cáo'!$P:$P,'Báo cáo'!$AD:$AD,$A13,'Báo cáo'!$Z:$Z,"<="&G$4)-SUMIFS('Báo cáo'!$Q:$Q,'Báo cáo'!$AD:$AD,$A13,'Báo cáo'!$AA:$AA,"<="&G$4) -> 11183243 | H13: =SUMIFS('Báo cáo'!$O:$O,'Báo cáo'!$AD:$AD,$A13,'Báo cáo'!$Z:$Z,"<="&H$4)+SUMIFS('Báo cáo'!$P:$P,'Báo cáo'!$AD:$AD,$A13,'Báo cáo'!$Z:$Z,"<="&H$4)-SUMIFS('Báo cáo'!$Q:$Q,'Báo cáo'!$AD:$AD,$A13,'Báo cáo'!$AA:$AA,"<="&H$4) -> 2455579 | I13: =SUMIFS('Báo cáo'!$O:$O,'Báo cáo'!$AD:$AD,$A13,'Báo cáo'!$Z:$Z,"<="&I$4)+SUMIFS('Báo cáo'!$P:$P,'Báo cáo'!$AD:$AD,$A13,'Báo cáo'!$Z:$Z,"<="&I$4)-SUMIFS('Báo cáo'!$Q:$Q,'Báo cáo'!$AD:$AD,$A13,'Báo cáo'!$AA:$AA,"<="&I$4) -> 3659778 | J13: =SUMIFS('Báo cáo'!$O:$O,'Báo cáo'!$AD:$AD,$A13,'Báo cáo'!$Z:$Z,"<="&J$4)+SUMIFS('Báo cáo'!$P:$P,'Báo cáo'!$AD:$AD,$A13,'Báo cáo'!$Z:$Z,"<="&J$4)-SUMIFS('Báo cáo'!$Q:$Q,'Báo cáo'!$AD:$AD,$A13,'Báo cáo'!$AA:$AA,"<="&J$4) -> 3150552 | K13: =SUMIFS('Báo cáo'!$O:$O,'Báo cáo'!$AD:$AD,$A13,'Báo cáo'!$Z:$Z,"<="&K$4)+SUMIFS('Báo cáo'!$P:$P,'Báo cáo'!$AD:$AD,$A13,'Báo cáo'!$Z:$Z,"<="&K$4)-SUMIFS('Báo cáo'!$Q:$Q,'Báo cáo'!$AD:$AD,$A13,'Báo cáo'!$AA:$AA,"<="&K$4) -> 3831982 | L13: =SUMIFS('Báo cáo'!$O:$O,'Báo cáo'!$AD:$AD,$A13,'Báo cáo'!$Z:$Z,"<="&L$4)+SUMIFS('Báo cáo'!$P:$P,'Báo cáo'!$AD:$AD,$A13,'Báo cáo'!$Z:$Z,"<="&L$4)-SUMIFS('Báo cáo'!$Q:$Q,'Báo cáo'!$AD:$AD,$A13,'Báo cáo'!$AA:$AA,"<="&L$4) -> 4316081 | M13: =SUMIFS('Báo cáo'!$O:$O,'Báo cáo'!$AD:$AD,$A13,'Báo cáo'!$Z:$Z,"<="&M$4)+SUMIFS('Báo cáo'!$P:$P,'Báo cáo'!$AD:$AD,$A13,'Báo cáo'!$Z:$Z,"<="&M$4)-SUMIFS('Báo cáo'!$Q:$Q,'Báo cáo'!$AD:$AD,$A13,'Báo cáo'!$AA:$AA,"<="&M$4) -> 4316081 | N13: =SUMIFS('Báo cáo'!$O:$O,'Báo cáo'!$AD:$AD,$A13,'Báo cáo'!$Z:$Z,"<="&N$4)+SUMIFS('Báo cáo'!$P:$P,'Báo cáo'!$AD:$AD,$A13,'Báo cáo'!$Z:$Z,"<="&N$4)-SUMIFS('Báo cáo'!$Q:$Q,'Báo cáo'!$AD:$AD,$A13,'Báo cáo'!$AA:$AA,"<="&N$4) -> 4316081
A14: SAIGONHD | B14: CÔNG TY CỔ PHẦN SÀI GÒN HD | C14: =SUMIFS('Báo cáo'!$O:$O,'Báo cáo'!$AD:$AD,$A14,'Báo cáo'!$Z:$Z,"<="&C$4)+SUMIFS('Báo cáo'!$P:$P,'Báo cáo'!$AD:$AD,$A14,'Báo cáo'!$Z:$Z,"<="&C$4)-SUMIFS('Báo cáo'!$Q:$Q,'Báo cáo'!$AD:$AD,$A14,'Báo cáo'!$AA:$AA,"<="&C$4) -> 52132866 | D14: =SUMIFS('Báo cáo'!$O:$O,'Báo cáo'!$AD:$AD,$A14,'Báo cáo'!$Z:$Z,"<="&D$4)+SUMIFS('Báo cáo'!$P:$P,'Báo cáo'!$AD:$AD,$A14,'Báo cáo'!$Z:$Z,"<="&D$4)-SUMIFS('Báo cáo'!$Q:$Q,'Báo cáo'!$AD:$AD,$A14,'Báo cáo'!$AA:$AA,"<="&D$4) -> 50435907 | E14: =SUMIFS('Báo cáo'!$O:$O,'Báo cáo'!$AD:$AD,$A14,'Báo cáo'!$Z:$Z,"<="&E$4)+SUMIFS('Báo cáo'!$P:$P,'Báo cáo'!$AD:$AD,$A14,'Báo cáo'!$Z:$Z,"<="&E$4)-SUMIFS('Báo cáo'!$Q:$Q,'Báo cáo'!$AD:$AD,$A14,'Báo cáo'!$AA:$AA,"<="&E$4) -> 56581038 | F14: =SUMIFS('Báo cáo'!$O:$O,'Báo cáo'!$AD:$AD,$A14,'Báo cáo'!$Z:$Z,"<="&F$4)+SUMIFS('Báo cáo'!$P:$P,'Báo cáo'!$AD:$AD,$A14,'Báo cáo'!$Z:$Z,"<="&F$4)-SUMIFS('Báo cáo'!$Q:$Q,'Báo cáo'!$AD:$AD,$A14,'Báo cáo'!$AA:$AA,"<="&F$4) -> 61896533 | G14: =SUMIFS('Báo cáo'!$O:$O,'Báo cáo'!$AD:$AD,$A14,'Báo cáo'!$Z:$Z,"<="&G$4)+SUMIFS('Báo cáo'!$P:$P,'Báo cáo'!$AD:$AD,$A14,'Báo cáo'!$Z:$Z,"<="&G$4)-SUMIFS('Báo cáo'!$Q:$Q,'Báo cáo'!$AD:$AD,$A14,'Báo cáo'!$AA:$AA,"<="&G$4) -> 72146068 | H14: =SUMIFS('Báo cáo'!$O:$O,'Báo cáo'!$AD:$AD,$A14,'Báo cáo'!$Z:$Z,"<="&H$4)+SUMIFS('Báo cáo'!$P:$P,'Báo cáo'!$AD:$AD,$A14,'Báo cáo'!$Z:$Z,"<="&H$4)-SUMIFS('Báo cáo'!$Q:$Q,'Báo cáo'!$AD:$AD,$A14,'Báo cáo'!$AA:$AA,"<="&H$4) -> 56354493 | I14: =SUMIFS('Báo cáo'!$O:$O,'Báo cáo'!$AD:$AD,$A14,'Báo cáo'!$Z:$Z,"<="&I$4)+SUMIFS('Báo cáo'!$P:$P,'Báo cáo'!$AD:$AD,$A14,'Báo cáo'!$Z:$Z,"<="&I$4)-SUMIFS('Báo cáo'!$Q:$Q,'Báo cáo'!$AD:$AD,$A14,'Báo cáo'!$AA:$AA,"<="&I$4) -> 46305585 | J14: =SUMIFS('Báo cáo'!$O:$O,'Báo cáo'!$AD:$AD,$A14,'Báo cáo'!$Z:$Z,"<="&J$4)+SUMIFS('Báo cáo'!$P:$P,'Báo cáo'!$AD:$AD,$A14,'Báo cáo'!$Z:$Z,"<="&J$4)-SUMIFS('Báo cáo'!$Q:$Q,'Báo cáo'!$AD:$AD,$A14,'Báo cáo'!$AA:$AA,"<="&J$4) -> 40732153 | K14: =SUMIFS('Báo cáo'!$O:$O,'Báo cáo'!$AD:$AD,$A14,'Báo cáo'!$Z:$Z,"<="&K$4)+SUMIFS('Báo cáo'!$P:$P,'Báo cáo'!$AD:$AD,$A14,'Báo cáo'!$Z:$Z,"<="&K$4)-SUMIFS('Báo cáo'!$Q:$Q,'Báo cáo'!$AD:$AD,$A14,'Báo cáo'!$AA:$AA,"<="&K$4) -> 38439923 | L14: =SUMIFS('Báo cáo'!$O:$O,'Báo cáo'!$AD:$AD,$A14,'Báo cáo'!$Z:$Z,"<="&L$4)+SUMIFS('Báo cáo'!$P:$P,'Báo cáo'!$AD:$AD,$A14,'Báo cáo'!$Z:$Z,"<="&L$4)-SUMIFS('Báo cáo'!$Q:$Q,'Báo cáo'!$AD:$AD,$A14,'Báo cáo'!$AA:$AA,"<="&L$4) -> 38439923 | M14: =SUMIFS('Báo cáo'!$O:$O,'Báo cáo'!$AD:$AD,$A14,'Báo cáo'!$Z:$Z,"<="&M$4)+SUMIFS('Báo cáo'!$P:$P,'Báo cáo'!$AD:$AD,$A14,'Báo cáo'!$Z:$Z,"<="&M$4)-SUMIFS('Báo cáo'!$Q:$Q,'Báo cáo'!$AD:$AD,$A14,'Báo cáo'!$AA:$AA,"<="&M$4) -> 38439923 | N14: =SUMIFS('Báo cáo'!$O:$O,'Báo cáo'!$AD:$AD,$A14,'Báo cáo'!$Z:$Z,"<="&N$4)+SUMIFS('Báo cáo'!$P:$P,'Báo cáo'!$AD:$AD,$A14,'Báo cáo'!$Z:$Z,"<="&N$4)-SUMIFS('Báo cáo'!$Q:$Q,'Báo cáo'!$AD:$AD,$A14,'Báo cáo'!$AA:$AA,"<="&N$4) -> 38439923
A15: SATRA | B15: CHI NHÁNH TỔNG CÔNG TY THƯƠNG MẠI SÀI GÒN - TNHH MỘT THÀNH VIÊN - TRUNG TÂM PHÁT TRIỂN ĐỊA ỐC SATRA | C15: =SUMIFS('Báo cáo'!$O:$O,'Báo cáo'!$AD:$AD,$A15,'Báo cáo'!$Z:$Z,"<="&C$4)+SUMIFS('Báo cáo'!$P:$P,'Báo cáo'!$AD:$AD,$A15,'Báo cáo'!$Z:$Z,"<="&C$4)-SUMIFS('Báo cáo'!$Q:$Q,'Báo cáo'!$AD:$AD,$A15,'Báo cáo'!$AA:$AA,"<="&C$4) -> 338658981 | D15: =SUMIFS('Báo cáo'!$O:$O,'Báo cáo'!$AD:$AD,$A15,'Báo cáo'!$Z:$Z,"<="&D$4)+SUMIFS('Báo cáo'!$P:$P,'Báo cáo'!$AD:$AD,$A15,'Báo cáo'!$Z:$Z,"<="&D$4)-SUMIFS('Báo cáo'!$Q:$Q,'Báo cáo'!$AD:$AD,$A15,'Báo cáo'!$AA:$AA,"<="&D$4) -> 392272744 | E15: =SUMIFS('Báo cáo'!$O:$O,'Báo cáo'!$AD:$AD,$A15,'Báo cáo'!$Z:$Z,"<="&E$4)+SUMIFS('Báo cáo'!$P:$P,'Báo cáo'!$AD:$AD,$A15,'Báo cáo'!$Z:$Z,"<="&E$4)-SUMIFS('Báo cáo'!$Q:$Q,'Báo cáo'!$AD:$AD,$A15,'Báo cáo'!$AA:$AA,"<="&E$4) -> 435436115 | F15: =SUMIFS('Báo cáo'!$O:$O,'Báo cáo'!$AD:$AD,$A15,'Báo cáo'!$Z:$Z,"<="&F$4)+SUMIFS('Báo cáo'!$P:$P,'Báo cáo'!$AD:$AD,$A15,'Báo cáo'!$Z:$Z,"<="&F$4)-SUMIFS('Báo cáo'!$Q:$Q,'Báo cáo'!$AD:$AD,$A15,'Báo cáo'!$AA:$AA,"<="&F$4) -> 366934521 | G15: =SUMIFS('Báo cáo'!$O:$O,'Báo cáo'!$AD:$AD,$A15,'Báo cáo'!$Z:$Z,"<="&G$4)+SUMIFS('Báo cáo'!$P:$P,'Báo cáo'!$AD:$AD,$A15,'Báo cáo'!$Z:$Z,"<="&G$4)-SUMIFS('Báo cáo'!$Q:$Q,'Báo cáo'!$AD:$AD,$A15,'Báo cáo'!$AA:$AA,"<="&G$4) -> 266116760 | H15: =SUMIFS('Báo cáo'!$O:$O,'Báo cáo'!$AD:$AD,$A15,'Báo cáo'!$Z:$Z,"<="&H$4)+SUMIFS('Báo cáo'!$P:$P,'Báo cáo'!$AD:$AD,$A15,'Báo cáo'!$Z:$Z,"<="&H$4)-SUMIFS('Báo cáo'!$Q:$Q,'Báo cáo'!$AD:$AD,$A15,'Báo cáo'!$AA:$AA,"<="&H$4) -> 300771416 | I15: =SUMIFS('Báo cáo'!$O:$O,'Báo cáo'!$AD:$AD,$A15,'Báo cáo'!$Z:$Z,"<="&I$4)+SUMIFS('Báo cáo'!$P:$P,'Báo cáo'!$AD:$AD,$A15,'Báo cáo'!$Z:$Z,"<="&I$4)-SUMIFS('Báo cáo'!$Q:$Q,'Báo cáo'!$AD:$AD,$A15,'Báo cáo'!$AA:$AA,"<="&I$4) -> 263006760 | J15: =SUMIFS('Báo cáo'!$O:$O,'Báo cáo'!$AD:$AD,$A15,'Báo cáo'!$Z:$Z,"<="&J$4)+SUMIFS('Báo cáo'!$P:$P,'Báo cáo'!$AD:$AD,$A15,'Báo cáo'!$Z:$Z,"<="&J$4)-SUMIFS('Báo cáo'!$Q:$Q,'Báo cáo'!$AD:$AD,$A15,'Báo cáo'!$AA:$AA,"<="&J$4) -> 263327157 | K15: =SUMIFS('Báo cáo'!$O:$O,'Báo cáo'!$AD:$AD,$A15,'Báo cáo'!$Z:$Z,"<="&K$4)+SUMIFS('Báo cáo'!$P:$P,'Báo cáo'!$AD:$AD,$A15,'Báo cáo'!$Z:$Z,"<="&K$4)-SUMIFS('Báo cáo'!$Q:$Q,'Báo cáo'!$AD:$AD,$A15,'Báo cáo'!$AA:$AA,"<="&K$4) -> 203280726 | L15: =SUMIFS('Báo cáo'!$O:$O,'Báo cáo'!$AD:$AD,$A15,'Báo cáo'!$Z:$Z,"<="&L$4)+SUMIFS('Báo cáo'!$P:$P,'Báo cáo'!$AD:$AD,$A15,'Báo cáo'!$Z:$Z,"<="&L$4)-SUMIFS('Báo cáo'!$Q:$Q,'Báo cáo'!$AD:$AD,$A15,'Báo cáo'!$AA:$AA,"<="&L$4) -> 235564278 | M15: =SUMIFS('Báo cáo'!$O:$O,'Báo cáo'!$AD:$AD,$A15,'Báo cáo'!$Z:$Z,"<="&M$4)+SUMIFS('Báo cáo'!$P:$P,'Báo cáo'!$AD:$AD,$A15,'Báo cáo'!$Z:$Z,"<="&M$4)-SUMIFS('Báo cáo'!$Q:$Q,'Báo cáo'!$AD:$AD,$A15,'Báo cáo'!$AA:$AA,"<="&M$4) -> 235564278 | N15: =SUMIFS('Báo cáo'!$O:$O,'Báo cáo'!$AD:$AD,$A15,'Báo cáo'!$Z:$Z,"<="&N$4)+SUMIFS('Báo cáo'!$P:$P,'Báo cáo'!$AD:$AD,$A15,'Báo cáo'!$Z:$Z,"<="&N$4)-SUMIFS('Báo cáo'!$Q:$Q,'Báo cáo'!$AD:$AD,$A15,'Báo cáo'!$AA:$AA,"<="&N$4) -> 235564278
A16: SEVEN | B16: CÔNG TY CỔ PHẦN SEVEN SYSTEM VIỆT NAM | C16: =SUMIFS('Báo cáo'!$O:$O,'Báo cáo'!$AD:$AD,$A16,'Báo cáo'!$Z:$Z,"<="&C$4)+SUMIFS('Báo cáo'!$P:$P,'Báo cáo'!$AD:$AD,$A16,'Báo cáo'!$Z:$Z,"<="&C$4)-SUMIFS('Báo cáo'!$Q:$Q,'Báo cáo'!$AD:$AD,$A16,'Báo cáo'!$AA:$AA,"<="&C$4) -> 19455457 | D16: =SUMIFS('Báo cáo'!$O:$O,'Báo cáo'!$AD:$AD,$A16,'Báo cáo'!$Z:$Z,"<="&D$4)+SUMIFS('Báo cáo'!$P:$P,'Báo cáo'!$AD:$AD,$A16,'Báo cáo'!$Z:$Z,"<="&D$4)-SUMIFS('Báo cáo'!$Q:$Q,'Báo cáo'!$AD:$AD,$A16,'Báo cáo'!$AA:$AA,"<="&D$4) -> 24921692 | E16: =SUMIFS('Báo cáo'!$O:$O,'Báo cáo'!$AD:$AD,$A16,'Báo cáo'!$Z:$Z,"<="&E$4)+SUMIFS('Báo cáo'!$P:$P,'Báo cáo'!$AD:$AD,$A16,'Báo cáo'!$Z:$Z,"<="&E$4)-SUMIFS('Báo cáo'!$Q:$Q,'Báo cáo'!$AD:$AD,$A16,'Báo cáo'!$AA:$AA,"<="&E$4) -> 17568373 | F16: =SUMIFS('Báo cáo'!$O:$O,'Báo cáo'!$AD:$AD,$A16,'Báo cáo'!$Z:$Z,"<="&F$4)+SUMIFS('Báo cáo'!$P:$P,'Báo cáo'!$AD:$AD,$A16,'Báo cáo'!$Z:$Z,"<="&F$4)-SUMIFS('Báo cáo'!$Q:$Q,'Báo cáo'!$AD:$AD,$A16,'Báo cáo'!$AA:$AA,"<="&F$4) -> 21364411 | G16: =SUMIFS('Báo cáo'!$O:$O,'Báo cáo'!$AD:$AD,$A16,'Báo cáo'!$Z:$Z,"<="&G$4)+SUMIFS('Báo cáo'!$P:$P,'Báo cáo'!$AD:$AD,$A16,'Báo cáo'!$Z:$Z,"<="&G$4)-SUMIFS('Báo cáo'!$Q:$Q,'Báo cáo'!$AD:$AD,$A16,'Báo cáo'!$AA:$AA,"<="&G$4) -> 17527058 | H16: =SUMIFS('Báo cáo'!$O:$O,'Báo cáo'!$AD:$AD,$A16,'Báo cáo'!$Z:$Z,"<="&H$4)+SUMIFS('Báo cáo'!$P:$P,'Báo cáo'!$AD:$AD,$A16,'Báo cáo'!$Z:$Z,"<="&H$4)-SUMIFS('Báo cáo'!$Q:$Q,'Báo cáo'!$AD:$AD,$A16,'Báo cáo'!$AA:$AA,"<="&H$4) -> 26311885 | I16: =SUMIFS('Báo cáo'!$O:$O,'Báo cáo'!$AD:$AD,$A16,'Báo cáo'!$Z:$Z,"<="&I$4)+SUMIFS('Báo cáo'!$P:$P,'Báo cáo'!$AD:$AD,$A16,'Báo cáo'!$Z:$Z,"<="&I$4)-SUMIFS('Báo cáo'!$Q:$Q,'Báo cáo'!$AD:$AD,$A16,'Báo cáo'!$AA:$AA,"<="&I$4) -> 27104416 | J16: =SUMIFS('Báo cáo'!$O:$O,'Báo cáo'!$AD:$AD,$A16,'Báo cáo'!$Z:$Z,"<="&J$4)+SUMIFS('Báo cáo'!$P:$P,'Báo cáo'!$AD:$AD,$A16,'Báo cáo'!$Z:$Z,"<="&J$4)-SUMIFS('Báo cáo'!$Q:$Q,'Báo cáo'!$AD:$AD,$A16,'Báo cáo'!$AA:$AA,"<="&J$4) -> 26367033 | K16: =SUMIFS('Báo cáo'!$O:$O,'Báo cáo'!$AD:$AD,$A16,'Báo cáo'!$Z:$Z,"<="&K$4)+SUMIFS('Báo cáo'!$P:$P,'Báo cáo'!$AD:$AD,$A16,'Báo cáo'!$Z:$Z,"<="&K$4)-SUMIFS('Báo cáo'!$Q:$Q,'Báo cáo'!$AD:$AD,$A16,'Báo cáo'!$AA:$AA,"<="&K$4) -> 21711053 | L16: =SUMIFS('Báo cáo'!$O:$O,'Báo cáo'!$AD:$AD,$A16,'Báo cáo'!$Z:$Z,"<="&L$4)+SUMIFS('Báo cáo'!$P:$P,'Báo cáo'!$AD:$AD,$A16,'Báo cáo'!$Z:$Z,"<="&L$4)-SUMIFS('Báo cáo'!$Q:$Q,'Báo cáo'!$AD:$AD,$A16,'Báo cáo'!$AA:$AA,"<="&L$4) -> 17487377 | M16: =SUMIFS('Báo cáo'!$O:$O,'Báo cáo'!$AD:$AD,$A16,'Báo cáo'!$Z:$Z,"<="&M$4)+SUMIFS('Báo cáo'!$P:$P,'Báo cáo'!$AD:$AD,$A16,'Báo cáo'!$Z:$Z,"<="&M$4)-SUMIFS('Báo cáo'!$Q:$Q,'Báo cáo'!$AD:$AD,$A16,'Báo cáo'!$AA:$AA,"<="&M$4) -> 17487377 | N16: =SUMIFS('Báo cáo'!$O:$O,'Báo cáo'!$AD:$AD,$A16,'Báo cáo'!$Z:$Z,"<="&N$4)+SUMIFS('Báo cáo'!$P:$P,'Báo cáo'!$AD:$AD,$A16,'Báo cáo'!$Z:$Z,"<="&N$4)-SUMIFS('Báo cáo'!$Q:$Q,'Báo cáo'!$AD:$AD,$A16,'Báo cáo'!$AA:$AA,"<="&N$4) -> 17487377
A17: SIBA FOOD | B17: CHI NHÁNH CÔNG TY CỔ PHẦN SIBA FOOD VIỆT NAM TẠI HÀ NỘI | C17: =SUMIFS('Báo cáo'!$O:$O,'Báo cáo'!$AD:$AD,$A17,'Báo cáo'!$Z:$Z,"<="&C$4)+SUMIFS('Báo cáo'!$P:$P,'Báo cáo'!$AD:$AD,$A17,'Báo cáo'!$Z:$Z,"<="&C$4)-SUMIFS('Báo cáo'!$Q:$Q,'Báo cáo'!$AD:$AD,$A17,'Báo cáo'!$AA:$AA,"<="&C$4) -> 3231725 | D17: =SUMIFS('Báo cáo'!$O:$O,'Báo cáo'!$AD:$AD,$A17,'Báo cáo'!$Z:$Z,"<="&D$4)+SUMIFS('Báo cáo'!$P:$P,'Báo cáo'!$AD:$AD,$A17,'Báo cáo'!$Z:$Z,"<="&D$4)-SUMIFS('Báo cáo'!$Q:$Q,'Báo cáo'!$AD:$AD,$A17,'Báo cáo'!$AA:$AA,"<="&D$4) -> 2282596 | E17: =SUMIFS('Báo cáo'!$O:$O,'Báo cáo'!$AD:$AD,$A17,'Báo cáo'!$Z:$Z,"<="&E$4)+SUMIFS('Báo cáo'!$P:$P,'Báo cáo'!$AD:$AD,$A17,'Báo cáo'!$Z:$Z,"<="&E$4)-SUMIFS('Báo cáo'!$Q:$Q,'Báo cáo'!$AD:$AD,$A17,'Báo cáo'!$AA:$AA,"<="&E$4) -> 2744823 | F17: =SUMIFS('Báo cáo'!$O:$O,'Báo cáo'!$AD:$AD,$A17,'Báo cáo'!$Z:$Z,"<="&F$4)+SUMIFS('Báo cáo'!$P:$P,'Báo cáo'!$AD:$AD,$A17,'Báo cáo'!$Z:$Z,"<="&F$4)-SUMIFS('Báo cáo'!$Q:$Q,'Báo cáo'!$AD:$AD,$A17,'Báo cáo'!$AA:$AA,"<="&F$4) -> 3832807 | G17: =SUMIFS('Báo cáo'!$O:$O,'Báo cáo'!$AD:$AD,$A17,'Báo cáo'!$Z:$Z,"<="&G$4)+SUMIFS('Báo cáo'!$P:$P,'Báo cáo'!$AD:$AD,$A17,'Báo cáo'!$Z:$Z,"<="&G$4)-SUMIFS('Báo cáo'!$Q:$Q,'Báo cáo'!$AD:$AD,$A17,'Báo cáo'!$AA:$AA,"<="&G$4) -> 6724693 | H17: =SUMIFS('Báo cáo'!$O:$O,'Báo cáo'!$AD:$AD,$A17,'Báo cáo'!$Z:$Z,"<="&H$4)+SUMIFS('Báo cáo'!$P:$P,'Báo cáo'!$AD:$AD,$A17,'Báo cáo'!$Z:$Z,"<="&H$4)-SUMIFS('Báo cáo'!$Q:$Q,'Báo cáo'!$AD:$AD,$A17,'Báo cáo'!$AA:$AA,"<="&H$4) -> 2755730 | I17: =SUMIFS('Báo cáo'!$O:$O,'Báo cáo'!$AD:$AD,$A17,'Báo cáo'!$Z:$Z,"<="&I$4)+SUMIFS('Báo cáo'!$P:$P,'Báo cáo'!$AD:$AD,$A17,'Báo cáo'!$Z:$Z,"<="&I$4)-SUMIFS('Báo cáo'!$Q:$Q,'Báo cáo'!$AD:$AD,$A17,'Báo cáo'!$AA:$AA,"<="&I$4) -> 3745610 | J17: =SUMIFS('Báo cáo'!$O:$O,'Báo cáo'!$AD:$AD,$A17,'Báo cáo'!$Z:$Z,"<="&J$4)+SUMIFS('Báo cáo'!$P:$P,'Báo cáo'!$AD:$AD,$A17,'Báo cáo'!$Z:$Z,"<="&J$4)-SUMIFS('Báo cáo'!$Q:$Q,'Báo cáo'!$AD:$AD,$A17,'Báo cáo'!$AA:$AA,"<="&J$4) -> 6482903 | K17: =SUMIFS('Báo cáo'!$O:$O,'Báo cáo'!$AD:$AD,$A17,'Báo cáo'!$Z:$Z,"<="&K$4)+SUMIFS('Báo cáo'!$P:$P,'Báo cáo'!$AD:$AD,$A17,'Báo cáo'!$Z:$Z,"<="&K$4)-SUMIFS('Báo cáo'!$Q:$Q,'Báo cáo'!$AD:$AD,$A17,'Báo cáo'!$AA:$AA,"<="&K$4) -> 3088249 | L17: =SUMIFS('Báo cáo'!$O:$O,'Báo cáo'!$AD:$AD,$A17,'Báo cáo'!$Z:$Z,"<="&L$4)+SUMIFS('Báo cáo'!$P:$P,'Báo cáo'!$AD:$AD,$A17,'Báo cáo'!$Z:$Z,"<="&L$4)-SUMIFS('Báo cáo'!$Q:$Q,'Báo cáo'!$AD:$AD,$A17,'Báo cáo'!$AA:$AA,"<="&L$4) -> 9369612 | M17: =SUMIFS('Báo cáo'!$O:$O,'Báo cáo'!$AD:$AD,$A17,'Báo cáo'!$Z:$Z,"<="&M$4)+SUMIFS('Báo cáo'!$P:$P,'Báo cáo'!$AD:$AD,$A17,'Báo cáo'!$Z:$Z,"<="&M$4)-SUMIFS('Báo cáo'!$Q:$Q,'Báo cáo'!$AD:$AD,$A17,'Báo cáo'!$AA:$AA,"<="&M$4) -> 9369612 | N17: =SUMIFS('Báo cáo'!$O:$O,'Báo cáo'!$AD:$AD,$A17,'Báo cáo'!$Z:$Z,"<="&N$4)+SUMIFS('Báo cáo'!$P:$P,'Báo cáo'!$AD:$AD,$A17,'Báo cáo'!$Z:$Z,"<="&N$4)-SUMIFS('Báo cáo'!$Q:$Q,'Báo cáo'!$AD:$AD,$A17,'Báo cáo'!$AA:$AA,"<="&N$4) -> 9369612
A18: SUNSHINE | B18: CÔNG TY TNHH KINH DOANH THƯƠNG MẠI VÀ DỊCH VỤ SUNSHINE MART | C18: =SUMIFS('Báo cáo'!$O:$O,'Báo cáo'!$AD:$AD,$A18,'Báo cáo'!$Z:$Z,"<="&C$4)+SUMIFS('Báo cáo'!$P:$P,'Báo cáo'!$AD:$AD,$A18,'Báo cáo'!$Z:$Z,"<="&C$4)-SUMIFS('Báo cáo'!$Q:$Q,'Báo cáo'!$AD:$AD,$A18,'Báo cáo'!$AA:$AA,"<="&C$4) -> 28787364 | D18: =SUMIFS('Báo cáo'!$O:$O,'Báo cáo'!$AD:$AD,$A18,'Báo cáo'!$Z:$Z,"<="&D$4)+SUMIFS('Báo cáo'!$P:$P,'Báo cáo'!$AD:$AD,$A18,'Báo cáo'!$Z:$Z,"<="&D$4)-SUMIFS('Báo cáo'!$Q:$Q,'Báo cáo'!$AD:$AD,$A18,'Báo cáo'!$AA:$AA,"<="&D$4) -> 6212848 | E18: =SUMIFS('Báo cáo'!$O:$O,'Báo cáo'!$AD:$AD,$A18,'Báo cáo'!$Z:$Z,"<="&E$4)+SUMIFS('Báo cáo'!$P:$P,'Báo cáo'!$AD:$AD,$A18,'Báo cáo'!$Z:$Z,"<="&E$4)-SUMIFS('Báo cáo'!$Q:$Q,'Báo cáo'!$AD:$AD,$A18,'Báo cáo'!$AA:$AA,"<="&E$4) -> 6434707 | F18: =SUMIFS('Báo cáo'!$O:$O,'Báo cáo'!$AD:$AD,$A18,'Báo cáo'!$Z:$Z,"<="&F$4)+SUMIFS('Báo cáo'!$P:$P,'Báo cáo'!$AD:$AD,$A18,'Báo cáo'!$Z:$Z,"<="&F$4)-SUMIFS('Báo cáo'!$Q:$Q,'Báo cáo'!$AD:$AD,$A18,'Báo cáo'!$AA:$AA,"<="&F$4) -> 10724924 | G18: =SUMIFS('Báo cáo'!$O:$O,'Báo cáo'!$AD:$AD,$A18,'Báo cáo'!$Z:$Z,"<="&G$4)+SUMIFS('Báo cáo'!$P:$P,'Báo cáo'!$AD:$AD,$A18,'Báo cáo'!$Z:$Z,"<="&G$4)-SUMIFS('Báo cáo'!$Q:$Q,'Báo cáo'!$AD:$AD,$A18,'Báo cáo'!$AA:$AA,"<="&G$4) -> 8704017 | H18: =SUMIFS('Báo cáo'!$O:$O,'Báo cáo'!$AD:$AD,$A18,'Báo cáo'!$Z:$Z,"<="&H$4)+SUMIFS('Báo cáo'!$P:$P,'Báo cáo'!$AD:$AD,$A18,'Báo cáo'!$Z:$Z,"<="&H$4)-SUMIFS('Báo cáo'!$Q:$Q,'Báo cáo'!$AD:$AD,$A18,'Báo cáo'!$AA:$AA,"<="&H$4) -> 11352244 | I18: =SUMIFS('Báo cáo'!$O:$O,'Báo cáo'!$AD:$AD,$A18,'Báo cáo'!$Z:$Z,"<="&I$4)+SUMIFS('Báo cáo'!$P:$P,'Báo cáo'!$AD:$AD,$A18,'Báo cáo'!$Z:$Z,"<="&I$4)-SUMIFS('Báo cáo'!$Q:$Q,'Báo cáo'!$AD:$AD,$A18,'Báo cáo'!$AA:$AA,"<="&I$4) -> 8912215 | J18: =SUMIFS('Báo cáo'!$O:$O,'Báo cáo'!$AD:$AD,$A18,'Báo cáo'!$Z:$Z,"<="&J$4)+SUMIFS('Báo cáo'!$P:$P,'Báo cáo'!$AD:$AD,$A18,'Báo cáo'!$Z:$Z,"<="&J$4)-SUMIFS('Báo cáo'!$Q:$Q,'Báo cáo'!$AD:$AD,$A18,'Báo cáo'!$AA:$AA,"<="&J$4) -> 12690129 | K18: =SUMIFS('Báo cáo'!$O:$O,'Báo cáo'!$AD:$AD,$A18,'Báo cáo'!$Z:$Z,"<="&K$4)+SUMIFS('Báo cáo'!$P:$P,'Báo cáo'!$AD:$AD,$A18,'Báo cáo'!$Z:$Z,"<="&K$4)-SUMIFS('Báo cáo'!$Q:$Q,'Báo cáo'!$AD:$AD,$A18,'Báo cáo'!$AA:$AA,"<="&K$4) -> 20377136 | L18: =SUMIFS('Báo cáo'!$O:$O,'Báo cáo'!$AD:$AD,$A18,'Báo cáo'!$Z:$Z,"<="&L$4)+SUMIFS('Báo cáo'!$P:$P,'Báo cáo'!$AD:$AD,$A18,'Báo cáo'!$Z:$Z,"<="&L$4)-SUMIFS('Báo cáo'!$Q:$Q,'Báo cáo'!$AD:$AD,$A18,'Báo cáo'!$AA:$AA,"<="&L$4) -> 10424921 | M18: =SUMIFS('Báo cáo'!$O:$O,'Báo cáo'!$AD:$AD,$A18,'Báo cáo'!$Z:$Z,"<="&M$4)+SUMIFS('Báo cáo'!$P:$P,'Báo cáo'!$AD:$AD,$A18,'Báo cáo'!$Z:$Z,"<="&M$4)-SUMIFS('Báo cáo'!$Q:$Q,'Báo cáo'!$AD:$AD,$A18,'Báo cáo'!$AA:$AA,"<="&M$4) -> 10424921 | N18: =SUMIFS('Báo cáo'!$O:$O,'Báo cáo'!$AD:$AD,$A18,'Báo cáo'!$Z:$Z,"<="&N$4)+SUMIFS('Báo cáo'!$P:$P,'Báo cáo'!$AD:$AD,$A18,'Báo cáo'!$Z:$Z,"<="&N$4)-SUMIFS('Báo cáo'!$Q:$Q,'Báo cáo'!$AD:$AD,$A18,'Báo cáo'!$AA:$AA,"<="&N$4) -> 10424921
A19: T-MARTSTORES | B19: CÔNG TY CỔ PHẦN T - MARTSTORES | C19: =SUMIFS('Báo cáo'!$O:$O,'Báo cáo'!$AD:$AD,$A19,'Báo cáo'!$Z:$Z,"<="&C$4)+SUMIFS('Báo cáo'!$P:$P,'Báo cáo'!$AD:$AD,$A19,'Báo cáo'!$Z:$Z,"<="&C$4)-SUMIFS('Báo cáo'!$Q:$Q,'Báo cáo'!$AD:$AD,$A19,'Báo cáo'!$AA:$AA,"<="&C$4) -> 309369591 | D19: =SUMIFS('Báo cáo'!$O:$O,'Báo cáo'!$AD:$AD,$A19,'Báo cáo'!$Z:$Z,"<="&D$4)+SUMIFS('Báo cáo'!$P:$P,'Báo cáo'!$AD:$AD,$A19,'Báo cáo'!$Z:$Z,"<="&D$4)-SUMIFS('Báo cáo'!$Q:$Q,'Báo cáo'!$AD:$AD,$A19,'Báo cáo'!$AA:$AA,"<="&D$4) -> 214897035 | E19: =SUMIFS('Báo cáo'!$O:$O,'Báo cáo'!$AD:$AD,$A19,'Báo cáo'!$Z:$Z,"<="&E$4)+SUMIFS('Báo cáo'!$P:$P,'Báo cáo'!$AD:$AD,$A19,'Báo cáo'!$Z:$Z,"<="&E$4)-SUMIFS('Báo cáo'!$Q:$Q,'Báo cáo'!$AD:$AD,$A19,'Báo cáo'!$AA:$AA,"<="&E$4) -> 311630044 | F19: =SUMIFS('Báo cáo'!$O:$O,'Báo cáo'!$AD:$AD,$A19,'Báo cáo'!$Z:$Z,"<="&F$4)+SUMIFS('Báo cáo'!$P:$P,'Báo cáo'!$AD:$AD,$A19,'Báo cáo'!$Z:$Z,"<="&F$4)-SUMIFS('Báo cáo'!$Q:$Q,'Báo cáo'!$AD:$AD,$A19,'Báo cáo'!$AA:$AA,"<="&F$4) -> 244515942 | G19: =SUMIFS('Báo cáo'!$O:$O,'Báo cáo'!$AD:$AD,$A19,'Báo cáo'!$Z:$Z,"<="&G$4)+SUMIFS('Báo cáo'!$P:$P,'Báo cáo'!$AD:$AD,$A19,'Báo cáo'!$Z:$Z,"<="&G$4)-SUMIFS('Báo cáo'!$Q:$Q,'Báo cáo'!$AD:$AD,$A19,'Báo cáo'!$AA:$AA,"<="&G$4) -> 227760630 | H19: =SUMIFS('Báo cáo'!$O:$O,'Báo cáo'!$AD:$AD,$A19,'Báo cáo'!$Z:$Z,"<="&H$4)+SUMIFS('Báo cáo'!$P:$P,'Báo cáo'!$AD:$AD,$A19,'Báo cáo'!$Z:$Z,"<="&H$4)-SUMIFS('Báo cáo'!$Q:$Q,'Báo cáo'!$AD:$AD,$A19,'Báo cáo'!$AA:$AA,"<="&H$4) -> 151956310 | I19: =SUMIFS('Báo cáo'!$O:$O,'Báo cáo'!$AD:$AD,$A19,'Báo cáo'!$Z:$Z,"<="&I$4)+SUMIFS('Báo cáo'!$P:$P,'Báo cáo'!$AD:$AD,$A19,'Báo cáo'!$Z:$Z,"<="&I$4)-SUMIFS('Báo cáo'!$Q:$Q,'Báo cáo'!$AD:$AD,$A19,'Báo cáo'!$AA:$AA,"<="&I$4) -> 252447468 | J19: =SUMIFS('Báo cáo'!$O:$O,'Báo cáo'!$AD:$AD,$A19,'Báo cáo'!$Z:$Z,"<="&J$4)+SUMIFS('Báo cáo'!$P:$P,'Báo cáo'!$AD:$AD,$A19,'Báo cáo'!$Z:$Z,"<="&J$4)-SUMIFS('Báo cáo'!$Q:$Q,'Báo cáo'!$AD:$AD,$A19,'Báo cáo'!$AA:$AA,"<="&J$4) -> 139257278 | K19: =SUMIFS('Báo cáo'!$O:$O,'Báo cáo'!$AD:$AD,$A19,'Báo cáo'!$Z:$Z,"<="&K$4)+SUMIFS('Báo cáo'!$P:$P,'Báo cáo'!$AD:$AD,$A19,'Báo cáo'!$Z:$Z,"<="&K$4)-SUMIFS('Báo cáo'!$Q:$Q,'Báo cáo'!$AD:$AD,$A19,'Báo cáo'!$AA:$AA,"<="&K$4) -> 358908100 | L19: =SUMIFS('Báo cáo'!$O:$O,'Báo cáo'!$AD:$AD,$A19,'Báo cáo'!$Z:$Z,"<="&L$4)+SUMIFS('Báo cáo'!$P:$P,'Báo cáo'!$AD:$AD,$A19,'Báo cáo'!$Z:$Z,"<="&L$4)-SUMIFS('Báo cáo'!$Q:$Q,'Báo cáo'!$AD:$AD,$A19,'Báo cáo'!$AA:$AA,"<="&L$4) -> 231233133 | M19: =SUMIFS('Báo cáo'!$O:$O,'Báo cáo'!$AD:$AD,$A19,'Báo cáo'!$Z:$Z,"<="&M$4)+SUMIFS('Báo cáo'!$P:$P,'Báo cáo'!$AD:$AD,$A19,'Báo cáo'!$Z:$Z,"<="&M$4)-SUMIFS('Báo cáo'!$Q:$Q,'Báo cáo'!$AD:$AD,$A19,'Báo cáo'!$AA:$AA,"<="&M$4) -> 231233133 | N19: =SUMIFS('Báo cáo'!$O:$O,'Báo cáo'!$AD:$AD,$A19,'Báo cáo'!$Z:$Z,"<="&N$4)+SUMIFS('Báo cáo'!$P:$P,'Báo cáo'!$AD:$AD,$A19,'Báo cáo'!$Z:$Z,"<="&N$4)-SUMIFS('Báo cáo'!$Q:$Q,'Báo cáo'!$AD:$AD,$A19,'Báo cáo'!$AA:$AA,"<="&N$4) -> 231233133
A20: VIỆT Ý | B20: CÔNG TY TNHH VIỆT Ý | C20: =SUMIFS('Báo cáo'!$O:$O,'Báo cáo'!$AD:$AD,$A20,'Báo cáo'!$Z:$Z,"<="&C$4)+SUMIFS('Báo cáo'!$P:$P,'Báo cáo'!$AD:$AD,$A20,'Báo cáo'!$Z:$Z,"<="&C$4)-SUMIFS('Báo cáo'!$Q:$Q,'Báo cáo'!$AD:$AD,$A20,'Báo cáo'!$AA:$AA,"<="&C$4) -> 22056340 | D20: =SUMIFS('Báo cáo'!$O:$O,'Báo cáo'!$AD:$AD,$A20,'Báo cáo'!$Z:$Z,"<="&D$4)+SUMIFS('Báo cáo'!$P:$P,'Báo cáo'!$AD:$AD,$A20,'Báo cáo'!$Z:$Z,"<="&D$4)-SUMIFS('Báo cáo'!$Q:$Q,'Báo cáo'!$AD:$AD,$A20,'Báo cáo'!$AA:$AA,"<="&D$4) -> 33564165 | E20: =SUMIFS('Báo cáo'!$O:$O,'Báo cáo'!$AD:$AD,$A20,'Báo cáo'!$Z:$Z,"<="&E$4)+SUMIFS('Báo cáo'!$P:$P,'Báo cáo'!$AD:$AD,$A20,'Báo cáo'!$Z:$Z,"<="&E$4)-SUMIFS('Báo cáo'!$Q:$Q,'Báo cáo'!$AD:$AD,$A20,'Báo cáo'!$AA:$AA,"<="&E$4) -> 46986285 | F20: =SUMIFS('Báo cáo'!$O:$O,'Báo cáo'!$AD:$AD,$A20,'Báo cáo'!$Z:$Z,"<="&F$4)+SUMIFS('Báo cáo'!$P:$P,'Báo cáo'!$AD:$AD,$A20,'Báo cáo'!$Z:$Z,"<="&F$4)-SUMIFS('Báo cáo'!$Q:$Q,'Báo cáo'!$AD:$AD,$A20,'Báo cáo'!$AA:$AA,"<="&F$4) -> 33898798 | G20: =SUMIFS('Báo cáo'!$O:$O,'Báo cáo'!$AD:$AD,$A20,'Báo cáo'!$Z:$Z,"<="&G$4)+SUMIFS('Báo cáo'!$P:$P,'Báo cáo'!$AD:$AD,$A20,'Báo cáo'!$Z:$Z,"<="&G$4)-SUMIFS('Báo cáo'!$Q:$Q,'Báo cáo'!$AD:$AD,$A20,'Báo cáo'!$AA:$AA,"<="&G$4) -> 6811440 | H20: =SUMIFS('Báo cáo'!$O:$O,'Báo cáo'!$AD:$AD,$A20,'Báo cáo'!$Z:$Z,"<="&H$4)+SUMIFS('Báo cáo'!$P:$P,'Báo cáo'!$AD:$AD,$A20,'Báo cáo'!$Z:$Z,"<="&H$4)-SUMIFS('Báo cáo'!$Q:$Q,'Báo cáo'!$AD:$AD,$A20,'Báo cáo'!$AA:$AA,"<="&H$4) -> 18552649 | I20: =SUMIFS('Báo cáo'!$O:$O,'Báo cáo'!$AD:$AD,$A20,'Báo cáo'!$Z:$Z,"<="&I$4)+SUMIFS('Báo cáo'!$P:$P,'Báo cáo'!$AD:$AD,$A20,'Báo cáo'!$Z:$Z,"<="&I$4)-SUMIFS('Báo cáo'!$Q:$Q,'Báo cáo'!$AD:$AD,$A20,'Báo cáo'!$AA:$AA,"<="&I$4) -> 29442462 | J20: =SUMIFS('Báo cáo'!$O:$O,'Báo cáo'!$AD:$AD,$A20,'Báo cáo'!$Z:$Z,"<="&J$4)+SUMIFS('Báo cáo'!$P:$P,'Báo cáo'!$AD:$AD,$A20,'Báo cáo'!$Z:$Z,"<="&J$4)-SUMIFS('Báo cáo'!$Q:$Q,'Báo cáo'!$AD:$AD,$A20,'Báo cáo'!$AA:$AA,"<="&J$4) -> 38191739 | K20: =SUMIFS('Báo cáo'!$O:$O,'Báo cáo'!$AD:$AD,$A20,'Báo cáo'!$Z:$Z,"<="&K$4)+SUMIFS('Báo cáo'!$P:$P,'Báo cáo'!$AD:$AD,$A20,'Báo cáo'!$Z:$Z,"<="&K$4)-SUMIFS('Báo cáo'!$Q:$Q,'Báo cáo'!$AD:$AD,$A20,'Báo cáo'!$AA:$AA,"<="&K$4) -> 28196784 | L20: =SUMIFS('Báo cáo'!$O:$O,'Báo cáo'!$AD:$AD,$A20,'Báo cáo'!$Z:$Z,"<="&L$4)+SUMIFS('Báo cáo'!$P:$P,'Báo cáo'!$AD:$AD,$A20,'Báo cáo'!$Z:$Z,"<="&L$4)-SUMIFS('Báo cáo'!$Q:$Q,'Báo cáo'!$AD:$AD,$A20,'Báo cáo'!$AA:$AA,"<="&L$4) -> -330999 | M20: =SUMIFS('Báo cáo'!$O:$O,'Báo cáo'!$AD:$AD,$A20,'Báo cáo'!$Z:$Z,"<="&M$4)+SUMIFS('Báo cáo'!$P:$P,'Báo cáo'!$AD:$AD,$A20,'Báo cáo'!$Z:$Z,"<="&M$4)-SUMIFS('Báo cáo'!$Q:$Q,'Báo cáo'!$AD:$AD,$A20,'Báo cáo'!$AA:$AA,"<="&M$4) -> -330999 | N20: =SUMIFS('Báo cáo'!$O:$O,'Báo cáo'!$AD:$AD,$A20,'Báo cáo'!$Z:$Z,"<="&N$4)+SUMIFS('Báo cáo'!$P:$P,'Báo cáo'!$AD:$AD,$A20,'Báo cáo'!$Z:$Z,"<="&N$4)-SUMIFS('Báo cáo'!$Q:$Q,'Báo cáo'!$AD:$AD,$A20,'Báo cáo'!$AA:$AA,"<="&N$4) -> -330999
A21: VITALMART | B21: CÔNG TY CỔ PHẦN DỊCH VỤ THƯƠNG MẠI VITAL GO | C21: =SUMIFS('Báo cáo'!$O:$O,'Báo cáo'!$AD:$AD,$A21,'Báo cáo'!$Z:$Z,"<="&C$4)+SUMIFS('Báo cáo'!$P:$P,'Báo cáo'!$AD:$AD,$A21,'Báo cáo'!$Z:$Z,"<="&C$4)-SUMIFS('Báo cáo'!$Q:$Q,'Báo cáo'!$AD:$AD,$A21,'Báo cáo'!$AA:$AA,"<="&C$4) -> 11753216 | D21: =SUMIFS('Báo cáo'!$O:$O,'Báo cáo'!$AD:$AD,$A21,'Báo cáo'!$Z:$Z,"<="&D$4)+SUMIFS('Báo cáo'!$P:$P,'Báo cáo'!$AD:$AD,$A21,'Báo cáo'!$Z:$Z,"<="&D$4)-SUMIFS('Báo cáo'!$Q:$Q,'Báo cáo'!$AD:$AD,$A21,'Báo cáo'!$AA:$AA,"<="&D$4) -> 13633984 | E21: =SUMIFS('Báo cáo'!$O:$O,'Báo cáo'!$AD:$AD,$A21,'Báo cáo'!$Z:$Z,"<="&E$4)+SUMIFS('Báo cáo'!$P:$P,'Báo cáo'!$AD:$AD,$A21,'Báo cáo'!$Z:$Z,"<="&E$4)-SUMIFS('Báo cáo'!$Q:$Q,'Báo cáo'!$AD:$AD,$A21,'Báo cáo'!$AA:$AA,"<="&E$4) -> 10191071 | F21: =SUMIFS('Báo cáo'!$O:$O,'Báo cáo'!$AD:$AD,$A21,'Báo cáo'!$Z:$Z,"<="&F$4)+SUMIFS('Báo cáo'!$P:$P,'Báo cáo'!$AD:$AD,$A21,'Báo cáo'!$Z:$Z,"<="&F$4)-SUMIFS('Báo cáo'!$Q:$Q,'Báo cáo'!$AD:$AD,$A21,'Báo cáo'!$AA:$AA,"<="&F$4) -> 11966713 | G21: =SUMIFS('Báo cáo'!$O:$O,'Báo cáo'!$AD:$AD,$A21,'Báo cáo'!$Z:$Z,"<="&G$4)+SUMIFS('Báo cáo'!$P:$P,'Báo cáo'!$AD:$AD,$A21,'Báo cáo'!$Z:$Z,"<="&G$4)-SUMIFS('Báo cáo'!$Q:$Q,'Báo cáo'!$AD:$AD,$A21,'Báo cáo'!$AA:$AA,"<="&G$4) -> 14381646 | H21: =SUMIFS('Báo cáo'!$O:$O,'Báo cáo'!$AD:$AD,$A21,'Báo cáo'!$Z:$Z,"<="&H$4)+SUMIFS('Báo cáo'!$P:$P,'Báo cáo'!$AD:$AD,$A21,'Báo cáo'!$Z:$Z,"<="&H$4)-SUMIFS('Báo cáo'!$Q:$Q,'Báo cáo'!$AD:$AD,$A21,'Báo cáo'!$AA:$AA,"<="&H$4) -> 15490258 | I21: =SUMIFS('Báo cáo'!$O:$O,'Báo cáo'!$AD:$AD,$A21,'Báo cáo'!$Z:$Z,"<="&I$4)+SUMIFS('Báo cáo'!$P:$P,'Báo cáo'!$AD:$AD,$A21,'Báo cáo'!$Z:$Z,"<="&I$4)-SUMIFS('Báo cáo'!$Q:$Q,'Báo cáo'!$AD:$AD,$A21,'Báo cáo'!$AA:$AA,"<="&I$4) -> 17922957 | J21: =SUMIFS('Báo cáo'!$O:$O,'Báo cáo'!$AD:$AD,$A21,'Báo cáo'!$Z:$Z,"<="&J$4)+SUMIFS('Báo cáo'!$P:$P,'Báo cáo'!$AD:$AD,$A21,'Báo cáo'!$Z:$Z,"<="&J$4)-SUMIFS('Báo cáo'!$Q:$Q,'Báo cáo'!$AD:$AD,$A21,'Báo cáo'!$AA:$AA,"<="&J$4) -> 19257141 | K21: =SUMIFS('Báo cáo'!$O:$O,'Báo cáo'!$AD:$AD,$A21,'Báo cáo'!$Z:$Z,"<="&K$4)+SUMIFS('Báo cáo'!$P:$P,'Báo cáo'!$AD:$AD,$A21,'Báo cáo'!$Z:$Z,"<="&K$4)-SUMIFS('Báo cáo'!$Q:$Q,'Báo cáo'!$AD:$AD,$A21,'Báo cáo'!$AA:$AA,"<="&K$4) -> 15335908 | L21: =SUMIFS('Báo cáo'!$O:$O,'Báo cáo'!$AD:$AD,$A21,'Báo cáo'!$Z:$Z,"<="&L$4)+SUMIFS('Báo cáo'!$P:$P,'Báo cáo'!$AD:$AD,$A21,'Báo cáo'!$Z:$Z,"<="&L$4)-SUMIFS('Báo cáo'!$Q:$Q,'Báo cáo'!$AD:$AD,$A21,'Báo cáo'!$AA:$AA,"<="&L$4) -> 16984875 | M21: =SUMIFS('Báo cáo'!$O:$O,'Báo cáo'!$AD:$AD,$A21,'Báo cáo'!$Z:$Z,"<="&M$4)+SUMIFS('Báo cáo'!$P:$P,'Báo cáo'!$AD:$AD,$A21,'Báo cáo'!$Z:$Z,"<="&M$4)-SUMIFS('Báo cáo'!$Q:$Q,'Báo cáo'!$AD:$AD,$A21,'Báo cáo'!$AA:$AA,"<="&M$4) -> 16984875 | N21: =SUMIFS('Báo cáo'!$O:$O,'Báo cáo'!$AD:$AD,$A21,'Báo cáo'!$Z:$Z,"<="&N$4)+SUMIFS('Báo cáo'!$P:$P,'Báo cáo'!$AD:$AD,$A21,'Báo cáo'!$Z:$Z,"<="&N$4)-SUMIFS('Báo cáo'!$Q:$Q,'Báo cáo'!$AD:$AD,$A21,'Báo cáo'!$AA:$AA,"<="&N$4) -> 16984875
A22: VNPOST | B22: TỔNG CÔNG TY BƯU ĐIỆN VIỆT NAM | C22: =SUMIFS('Báo cáo'!$O:$O,'Báo cáo'!$AD:$AD,$A22,'Báo cáo'!$Z:$Z,"<="&C$4)+SUMIFS('Báo cáo'!$P:$P,'Báo cáo'!$AD:$AD,$A22,'Báo cáo'!$Z:$Z,"<="&C$4)-SUMIFS('Báo cáo'!$Q:$Q,'Báo cáo'!$AD:$AD,$A22,'Báo cáo'!$AA:$AA,"<="&C$4) -> 0 | D22: =SUMIFS('Báo cáo'!$O:$O,'Báo cáo'!$AD:$AD,$A22,'Báo cáo'!$Z:$Z,"<="&D$4)+SUMIFS('Báo cáo'!$P:$P,'Báo cáo'!$AD:$AD,$A22,'Báo cáo'!$Z:$Z,"<="&D$4)-SUMIFS('Báo cáo'!$Q:$Q,'Báo cáo'!$AD:$AD,$A22,'Báo cáo'!$AA:$AA,"<="&D$4) -> 0 | E22: =SUMIFS('Báo cáo'!$O:$O,'Báo cáo'!$AD:$AD,$A22,'Báo cáo'!$Z:$Z,"<="&E$4)+SUMIFS('Báo cáo'!$P:$P,'Báo cáo'!$AD:$AD,$A22,'Báo cáo'!$Z:$Z,"<="&E$4)-SUMIFS('Báo cáo'!$Q:$Q,'Báo cáo'!$AD:$AD,$A22,'Báo cáo'!$AA:$AA,"<="&E$4) -> 0 | F22: =SUMIFS('Báo cáo'!$O:$O,'Báo cáo'!$AD:$AD,$A22,'Báo cáo'!$Z:$Z,"<="&F$4)+SUMIFS('Báo cáo'!$P:$P,'Báo cáo'!$AD:$AD,$A22,'Báo cáo'!$Z:$Z,"<="&F$4)-SUMIFS('Báo cáo'!$Q:$Q,'Báo cáo'!$AD:$AD,$A22,'Báo cáo'!$AA:$AA,"<="&F$4) -> 0 | G22: =SUMIFS('Báo cáo'!$O:$O,'Báo cáo'!$AD:$AD,$A22,'Báo cáo'!$Z:$Z,"<="&G$4)+SUMIFS('Báo cáo'!$P:$P,'Báo cáo'!$AD:$AD,$A22,'Báo cáo'!$Z:$Z,"<="&G$4)-SUMIFS('Báo cáo'!$Q:$Q,'Báo cáo'!$AD:$AD,$A22,'Báo cáo'!$AA:$AA,"<="&G$4) -> 0 | H22: =SUMIFS('Báo cáo'!$O:$O,'Báo cáo'!$AD:$AD,$A22,'Báo cáo'!$Z:$Z,"<="&H$4)+SUMIFS('Báo cáo'!$P:$P,'Báo cáo'!$AD:$AD,$A22,'Báo cáo'!$Z:$Z,"<="&H$4)-SUMIFS('Báo cáo'!$Q:$Q,'Báo cáo'!$AD:$AD,$A22,'Báo cáo'!$AA:$AA,"<="&H$4) -> 7159020 | I22: =SUMIFS('Báo cáo'!$O:$O,'Báo cáo'!$AD:$AD,$A22,'Báo cáo'!$Z:$Z,"<="&I$4)+SUMIFS('Báo cáo'!$P:$P,'Báo cáo'!$AD:$AD,$A22,'Báo cáo'!$Z:$Z,"<="&I$4)-SUMIFS('Báo cáo'!$Q:$Q,'Báo cáo'!$AD:$AD,$A22,'Báo cáo'!$AA:$AA,"<="&I$4) -> 4215497 | J22: =SUMIFS('Báo cáo'!$O:$O,'Báo cáo'!$AD:$AD,$A22,'Báo cáo'!$Z:$Z,"<="&J$4)+SUMIFS('Báo cáo'!$P:$P,'Báo cáo'!$AD:$AD,$A22,'Báo cáo'!$Z:$Z,"<="&J$4)-SUMIFS('Báo cáo'!$Q:$Q,'Báo cáo'!$AD:$AD,$A22,'Báo cáo'!$AA:$AA,"<="&J$4) -> 4761955 | K22: =SUMIFS('Báo cáo'!$O:$O,'Báo cáo'!$AD:$AD,$A22,'Báo cáo'!$Z:$Z,"<="&K$4)+SUMIFS('Báo cáo'!$P:$P,'Báo cáo'!$AD:$AD,$A22,'Báo cáo'!$Z:$Z,"<="&K$4)-SUMIFS('Báo cáo'!$Q:$Q,'Báo cáo'!$AD:$AD,$A22,'Báo cáo'!$AA:$AA,"<="&K$4) -> 6421145 | L22: =SUMIFS('Báo cáo'!$O:$O,'Báo cáo'!$AD:$AD,$A22,'Báo cáo'!$Z:$Z,"<="&L$4)+SUMIFS('Báo cáo'!$P:$P,'Báo cáo'!$AD:$AD,$A22,'Báo cáo'!$Z:$Z,"<="&L$4)-SUMIFS('Báo cáo'!$Q:$Q,'Báo cáo'!$AD:$AD,$A22,'Báo cáo'!$AA:$AA,"<="&L$4) -> 47055004 | M22: =SUMIFS('Báo cáo'!$O:$O,'Báo cáo'!$AD:$AD,$A22,'Báo cáo'!$Z:$Z,"<="&M$4)+SUMIFS('Báo cáo'!$P:$P,'Báo cáo'!$AD:$AD,$A22,'Báo cáo'!$Z:$Z,"<="&M$4)-SUMIFS('Báo cáo'!$Q:$Q,'Báo cáo'!$AD:$AD,$A22,'Báo cáo'!$AA:$AA,"<="&M$4) -> 47055004 | N22: =SUMIFS('Báo cáo'!$O:$O,'Báo cáo'!$AD:$AD,$A22,'Báo cáo'!$Z:$Z,"<="&N$4)+SUMIFS('Báo cáo'!$P:$P,'Báo cáo'!$AD:$AD,$A22,'Báo cáo'!$Z:$Z,"<="&N$4)-SUMIFS('Báo cáo'!$Q:$Q,'Báo cáo'!$AD:$AD,$A22,'Báo cáo'!$AA:$AA,"<="&N$4) -> 47055004

Sheet Báo cáo
A1: CHI TIẾT CÔNG NỢ PHẢI THU THEO HÓA ĐƠN | Q1: =+SUBTOTAL(9,$P$3:$P$1048576) -> 64926024
A2: Tài khoản: 131; Tháng 9 năm 2025
A3: Mã khách hàng | B3: Tên Khách hàng | C3: Ngày hạch toán | D3: Số chứng từ | E3: Ngày hóa đơn | F3: Số hóa đơn | G3: Diễn giải | H3: Tiền hàng | I3: Tiền chiết khấu | J3: Tiền VAT | K3: Tổng giá trị | L3: Phân loại | M3: Ngày Thanh toán | N3: Chứng từ Thanh toán | O3: Số còn phải thu ĐK | P3: Giá Trị HD sau CK | Q3: Số tiền đã thu | R3: Số còn phải thu | S3: Ngày tính CN | T3: Số ngày được nợ | U3: Hạn thanh toán | V3: Số ngày nợ còn lại | W3: Nhóm nợ trước hạn | X3: Số ngày quá hạn | Y3: Nhóm nợ quá hạn | Z3: Tháng HĐ | AA3: Tháng Thanh toán | AB3: Ghi chú | AC3: Trạng Thái ghi sổ | AD3: NHÓM KHÁCH HÀNG | AE3: TÊN NHÓM KHÁCH HÀNG
A4: SATRA-004 | B4: CN TCT TM SÀI GÒN – TNHH MTV – SIÊU THỊ SÀI GÒN | C4: 2024-09-19 | E4: 2024-09-19 | F4: 00051367 | K4: 1392768 | L4: Tồn đầu kỳ | M4: 2025-02-19 | O4: =IF(Table1[[#This Row],[Phân loại]]="Tồn đầu kỳ",Table1[[#This Row],[Tổng giá trị]],0) -> 1392768 | P4: =IF(Table1[[#This Row],[Số còn phải thu ĐK]]<>0,0,IF(Table1[[#This Row],[Phân loại]]="Bán hàng",Table1[[#This Row],[Tổng giá trị]],-Table1[[#This Row],[Tổng giá trị]])) -> 0 | Q4: =IF(M4<>"",IF(O4<>0,O4,P4),0) -> 1392768 | R4: =Table1[[#This Row],[Số còn phải thu ĐK]]+Table1[[#This Row],[Giá Trị HD sau CK]]-Table1[[#This Row],[Số tiền đã thu]] -> 0 | S4: =IF(Table1[[#This Row],[Ngày hóa đơn]]<>"",Table1[[#This Row],[Ngày hóa đơn]],Table1[[#This Row],[Ngày hạch toán]]) -> 2024-09-19 | T4: 50 | U4: =IF(Table1[[#This Row],[Ngày tính CN]]="","",S4+T4) -> 2024-11-08 | V4: =IF(Table1[[#This Row],[Hạn thanh toán]]="","",IF((U4-NOW())<0,0,(U4-NOW()))) -> 0 | X4: =IF(OR(U4="",R4=0),"",IF((U4-NOW())<0,-(U4-NOW()),0)) ->  | Y4: =IF(R4=0,"Đã thanh toán",IF(X4="","",IF(X4<=0,"Chưa đến hạn thanh toán",IF(X4<=30,"Nợ quá hạn 30 ngày",IF(X4<=60,"Nợ quá hạn từ 30 ngày đến 60 ngày",IF(X4<=90,"Nợ quá hạn từ 60 ngày đến 90 ngày",IF(X4<=120,"Nợ quá hạn từ 90 ngày đến 120 ngày","Nợ quá hạn hơn 120 ngày có khả năng mất thanh toán"))))))) -> Đã thanh toán | Z4: =S4 -> 2024-09-19 | AA4: =M4 -> 2025-02-19 | AB4: check xong | AD4: =VLOOKUP($A4,MA_KH!$A:$Q,MA_KH!O$1,0) -> SATRA | AE4: =VLOOKUP($A4,MA_KH!$A:$Q,MA_KH!P$1,0) -> CHI NHÁNH TỔNG CÔNG TY THƯƠNG MẠI SÀI GÒN - TNHH MỘT THÀNH VIÊN - TRUNG TÂM PHÁT TRIỂN ĐỊA ỐC SATRA
A5: SATRA-004 | B5: CN TCT TM SÀI GÒN – TNHH MTV – SIÊU THỊ SÀI GÒN | C5: 2024-10-10 | E5: 2024-10-10 | F5: 00055770 | K5: 2813076 | L5: Tồn đầu kỳ | M5: 2025-02-19 | O5: =IF(Table1[[#This Row],[Phân loại]]="Tồn đầu kỳ",Table1[[#This Row],[Tổng giá trị]],0) -> 2813076 | P5: =IF(Table1[[#This Row],[Số còn phải thu ĐK]]<>0,0,IF(Table1[[#This Row],[Phân loại]]="Bán hàng",Table1[[#This Row],[Tổng giá trị]],-Table1[[#This Row],[Tổng giá trị]])) -> 0 | Q5: 2813076 | R5: =Table1[[#This Row],[Số còn phải thu ĐK]]+Table1[[#This Row],[Giá Trị HD sau CK]]-Table1[[#This Row],[Số tiền đã thu]] -> 0 | S5: =IF(Table1[[#This Row],[Ngày hóa đơn]]<>"",Table1[[#This Row],[Ngày hóa đơn]],Table1[[#This Row],[Ngày hạch toán]]) -> 2024-10-10 | T5: 50 | U5: =IF(Table1[[#This Row],[Ngày tính CN]]="","",S5+T5) -> 2024-11-29 | V5: =IF(Table1[[#This Row],[Hạn thanh toán]]="","",IF((U5-NOW())<0,0,(U5-NOW()))) -> 0 | X5: =IF(OR(U5="",R5=0),"",IF((U5-NOW())<0,-(U5-NOW()),0)) ->  | Y5: =IF(R5=0,"Đã thanh toán",IF(X5="","",IF(X5<=0,"Chưa đến hạn thanh toán",IF(X5<=30,"Nợ quá hạn 30 ngày",IF(X5<=60,"Nợ quá hạn từ 30 ngày đến 60 ngày",IF(X5<=90,"Nợ quá hạn từ 60 ngày đến 90 ngày",IF(X5<=120,"Nợ quá hạn từ 90 ngày đến 120 ngày","Nợ quá hạn hơn 120 ngày có khả năng mất thanh toán"))))))) -> Đã thanh toán | Z5: 2024-10-10 | AA5: 2025-02-19 | AB5: check xong | AD5: =VLOOKUP($A5,MA_KH!$A:$Q,MA_KH!O$1,0) -> SATRA | AE5: =VLOOKUP($A5,MA_KH!$A:$Q,MA_KH!P$1,0) -> CHI NHÁNH TỔNG CÔNG TY THƯƠNG MẠI SÀI GÒN - TNHH MỘT THÀNH VIÊN - TRUNG TÂM PHÁT TRIỂN ĐỊA ỐC SATRA
A6: SATRA-004 | B6: CN TCT TM SÀI GÒN – TNHH MTV – SIÊU THỊ SÀI GÒN | C6: 2024-12-04 | E6: 2024-12-04 | F6: 00068756 | K6: 1717013 | L6: Tồn đầu kỳ | M6: 2025-02-19 | O6: =IF(Table1[[#This Row],[Phân loại]]="Tồn đầu kỳ",Table1[[#This Row],[Tổng giá trị]],0) -> 1717013 | P6: =IF(Table1[[#This Row],[Số còn phải thu ĐK]]<>0,0,IF(Table1[[#This Row],[Phân loại]]="Bán hàng",Table1[[#This Row],[Tổng giá trị]],-Table1[[#This Row],[Tổng giá trị]])) -> 0 | Q6: 1717013 | R6: =Table1[[#This Row],[Số còn phải thu ĐK]]+Table1[[#This Row],[Giá Trị HD sau CK]]-Table1[[#This Row],[Số tiền đã thu]] -> 0 | S6: =IF(Table1[[#This Row],[Ngày hóa đơn]]<>"",Table1[[#This Row],[Ngày hóa đơn]],Table1[[#This Row],[Ngày hạch toán]]) -> 2024-12-04 | T6: 50 | U6: =IF(Table1[[#This Row],[Ngày tính CN]]="","",S6+T6) -> 2025-01-23 | V6: =IF(Table1[[#This Row],[Hạn thanh toán]]="","",IF((U6-NOW())<0,0,(U6-NOW()))) -> 0 | Y6: Đã thanh toán | Z6: 2024-12-04 | AA6: 2025-02-19 | AB6: check xong | AD6: =VLOOKUP($A6,MA_KH!$A:$Q,MA_KH!O$1,0) -> SATRA | AE6: =VLOOKUP($A6,MA_KH!$A:$Q,MA_KH!P$1,0) -> CHI NHÁNH TỔNG CÔNG TY THƯƠNG MẠI SÀI GÒN - TNHH MỘT THÀNH VIÊN - TRUNG TÂM PHÁT TRIỂN ĐỊA ỐC SATRA
A7: SATRA-004 | B7: CN TCT TM SÀI GÒN – TNHH MTV – SIÊU THỊ SÀI GÒN | C7: 2024-12-12 | E7: 2024-12-12 | F7: 00071257 | K7: 1932816 | L7: Tồn đầu kỳ | M7: 2025-01-14 | O7: =IF(Table1[[#This Row],[Phân loại]]="Tồn đầu kỳ",Table1[[#This Row],[Tổng giá trị]],0) -> 1932816 | P7: =IF(Table1[[#This Row],[Số còn phải thu ĐK]]<>0,0,IF(Table1[[#This Row],[Phân loại]]="Bán hàng",Table1[[#This Row],[Tổng giá trị]],-Table1[[#This Row],[Tổng giá trị]])) -> 0 | Q7: 1932816 | R7: =Table1[[#This Row],[Số còn phải thu ĐK]]+Table1[[#This Row],[Giá Trị HD sau CK]]-Table1[[#This Row],[Số tiền đã thu]] -> 0 | S7: =IF(Table1[[#This Row],[Ngày hóa đơn]]<>"",Table1[[#This Row],[Ngày hóa đơn]],Table1[[#This Row],[Ngày hạch toán]]) -> 2024-12-12 | T7: 50 | U7: =IF(Table1[[#This Row],[Ngày tính CN]]="","",S7+T7) -> 2025-01-31 | V7: =IF(Table1[[#This Row],[Hạn thanh toán]]="","",IF((U7-NOW())<0,0,(U7-NOW()))) -> 0 | Y7: Đã thanh toán | Z7: 2024-12-12 | AA7: 2025-01-14 | AB7: check xong | AD7: =VLOOKUP($A7,MA_KH!$A:$Q,MA_KH!O$1,0) -> SATRA | AE7: =VLOOKUP($A7,MA_KH!$A:$Q,MA_KH!P$1,0) -> CHI NHÁNH TỔNG CÔNG TY THƯƠNG MẠI SÀI GÒN - TNHH MỘT THÀNH VIÊN - TRUNG TÂM PHÁT TRIỂN ĐỊA ỐC SATRA
A8: SATRA-004 | B8: CN TCT TM SÀI GÒN – TNHH MTV – SIÊU THỊ SÀI GÒN | C8: 2024-12-18 | E8: 2024-12-18 | F8: 00071907 | K8: 1272825 | L8: Tồn đầu kỳ | M8: 2025-01-14 | O8: =IF(Table1[[#This Row],[Phân loại]]="Tồn đầu kỳ",Table1[[#This Row],[Tổng giá trị]],0) -> 1272825 | P8: =IF(Table1[[#This Row],[Số còn phải thu ĐK]]<>0,0,IF(Table1[[#This Row],[Phân loại]]="Bán hàng",Table1[[#This Row],[Tổng giá trị]],-Table1[[#This Row],[Tổng giá trị]])) -> 0 | Q8: 1272825 | R8: =Table1[[#This Row],[Số còn phải thu ĐK]]+Table1[[#This Row],[Giá Trị HD sau CK]]-Table1[[#This Row],[Số tiền đã thu]] -> 0 | S8: =IF(Table1[[#This Row],[Ngày hóa đơn]]<>"",Table1[[#This Row],[Ngày hóa đơn]],Table1[[#This Row],[Ngày hạch toán]]) -> 2024-12-18 | T8: 50 | U8: =IF(Table1[[#This Row],[Ngày tính CN]]="","",S8+T8) -> 2025-02-06 | V8: =IF(Table1[[#This Row],[Hạn thanh toán]]="","",IF((U8-NOW())<0,0,(U8-NOW()))) -> 0 | Y8: Đã thanh toán | Z8: 2024-12-18 | AA8: 2025-01-14 | AB8: check xong | AD8: =VLOOKUP($A8,MA_KH!$A:$Q,MA_KH!O$1,0) -> SATRA | AE8: =VLOOKUP($A8,MA_KH!$A:$Q,MA_KH!P$1,0) -> CHI NHÁNH TỔNG CÔNG TY THƯƠNG MẠI SÀI GÒN - TNHH MỘT THÀNH VIÊN - TRUNG TÂM PHÁT TRIỂN ĐỊA ỐC SATRA
A9: SATRA-004 | B9: CN TCT TM SÀI GÒN – TNHH MTV – SIÊU THỊ SÀI GÒN | C9: 2024-12-30 | E9: 2024-12-30 | F9: 00074991 | K9: 1507831 | L9: Tồn đầu kỳ | M9: 2025-02-19 | O9: =IF(Table1[[#This Row],[Phân loại]]="Tồn đầu kỳ",Table1[[#This Row],[Tổng giá trị]],0) -> 1507831 | P9: =IF(Table1[[#This Row],[Số còn phải thu ĐK]]<>0,0,IF(Table1[[#This Row],[Phân loại]]="Bán hàng",Table1[[#This Row],[Tổng giá trị]],-Table1[[#This Row],[Tổng giá trị]])) -> 0 | Q9: 1507831 | R9: =Table1[[#This Row],[Số còn phải thu ĐK]]+Table1[[#This Row],[Giá Trị HD sau CK]]-Table1[[#This Row],[Số tiền đã thu]] -> 0 | S9: =IF(Table1[[#This Row],[Ngày hóa đơn]]<>"",Table1[[#This Row],[Ngày hóa đơn]],Table1[[#This Row],[Ngày hạch toán]]) -> 2024-12-30 | T9: 50 | U9: =IF(Table1[[#This Row],[Ngày tính CN]]="","",S9+T9) -> 2025-02-18 | V9: =IF(Table1[[#This Row],[Hạn thanh toán]]="","",IF((U9-NOW())<0,0,(U9-NOW()))) -> 0 | Y9: Đã thanh toán | Z9: 2024-12-30 | AA9: 2025-02-19 | AB9: check xong | AD9: =VLOOKUP($A9,MA_KH!$A:$Q,MA_KH!O$1,0) -> SATRA | AE9: =VLOOKUP($A9,MA_KH!$A:$Q,MA_KH!P$1,0) -> CHI NHÁNH TỔNG CÔNG TY THƯƠNG MẠI SÀI GÒN - TNHH MỘT THÀNH VIÊN - TRUNG TÂM PHÁT TRIỂN ĐỊA ỐC SATRA
A10: SATRA-004 | B10: CN TCT TM SÀI GÒN – TNHH MTV – SIÊU THỊ SÀI GÒN | C10: 2025-01-09 | D10: BH2339891 | E10: 2025-01-09 | F10: 00001963 | G10: CN TCT TM SÀI GÒN – TNHH MTV – SIÊU THỊ SÀI GÒN | H10: 1329640 | I10: 0 | J10: 106371 | K10: 1436011 | L10: Bán hàng | M10: 2025-02-19 | O10: =IF(Table1[[#This Row],[Phân loại]]="Tồn đầu kỳ",Table1[[#This Row],[Tổng giá trị]],0) -> 0 | P10: =IF(Table1[[#This Row],[Số còn phải thu ĐK]]<>0,0,IF(Table1[[#This Row],[Phân loại]]="Bán hàng",Table1[[#This Row],[Tổng giá trị]],-Table1[[#This Row],[Tổng giá trị]])) -> 1436011 | Q10: 1436011 | R10: =Table1[[#This Row],[Số còn phải thu ĐK]]+Table1[[#This Row],[Giá Trị HD sau CK]]-Table1[[#This Row],[Số tiền đã thu]] -> 0 | S10: =IF(Table1[[#This Row],[Ngày hóa đơn]]<>"",Table1[[#This Row],[Ngày hóa đơn]],Table1[[#This Row],[Ngày hạch toán]]) -> 2025-01-09 | T10: 50 | U10: =IF(Table1[[#This Row],[Ngày tính CN]]="","",S10+T10) -> 2025-02-28 | V10: =IF(Table1[[#This Row],[Hạn thanh toán]]="","",IF((U10-NOW())<0,0,(U10-NOW()))) -> 0 | Y10: Đã thanh toán | Z10: 2025-01-09 | AA10: 2025-02-19 | AB10: check xong | AD10: =VLOOKUP($A10,MA_KH!$A:$Q,MA_KH!O$1,0) -> SATRA | AE10: =VLOOKUP($A10,MA_KH!$A:$Q,MA_KH!P$1,0) -> CHI NHÁNH TỔNG CÔNG TY THƯƠNG MẠI SÀI GÒN - TNHH MỘT THÀNH VIÊN - TRUNG TÂM PHÁT TRIỂN ĐỊA ỐC SATRA
A11: SATRA-004 | B11: CN TCT TM SÀI GÒN – TNHH MTV – SIÊU THỊ SÀI GÒN | C11: 2025-01-15 | D11: BH2340455 | E11: 2025-01-15 | F11: 00003611 | G11: CN TCT TM SÀI GÒN – TNHH MTV – SIÊU THỊ SÀI GÒN | H11: 7619225 | I11: 0 | J11: 609538 | K11: 8228763 | L11: Bán hàng | M11: 2025-04-15 | O11: =IF(Table1[[#This Row],[Phân loại]]="Tồn đầu kỳ",Table1[[#This Row],[Tổng giá trị]],0) -> 0 | P11: =IF(Table1[[#This Row],[Số còn phải thu ĐK]]<>0,0,IF(Table1[[#This Row],[Phân loại]]="Bán hàng",Table1[[#This Row],[Tổng giá trị]],-Table1[[#This Row],[Tổng giá trị]])) -> 8228763 | Q11: 8228763 | R11: =Table1[[#This Row],[Số còn phải thu ĐK]]+Table1[[#This Row],[Giá Trị HD sau CK]]-Table1[[#This Row],[Số tiền đã thu]] -> 0 | S11: =IF(Table1[[#This Row],[Ngày hóa đơn]]<>"",Table1[[#This Row],[Ngày hóa đơn]],Table1[[#This Row],[Ngày hạch toán]]) -> 2025-01-15 | T11: 50 | U11: =IF(Table1[[#This Row],[Ngày tính CN]]="","",S11+T11) -> 2025-03-06 | V11: =IF(Table1[[#This Row],[Hạn thanh toán]]="","",IF((U11-NOW())<0,0,(U11-NOW()))) -> 0 | Y11: Đã thanh toán | Z11: 2025-01-15 | AA11: 2025-04-15 | AB11: check xong | AD11: =VLOOKUP($A11,MA_KH!$A:$Q,MA_KH!O$1,0) -> SATRA | AE11: =VLOOKUP($A11,MA_KH!$A:$Q,MA_KH!P$1,0) -> CHI NHÁNH TỔNG CÔNG TY THƯƠNG MẠI SÀI GÒN - TNHH MỘT THÀNH VIÊN - TRUNG TÂM PHÁT TRIỂN ĐỊA ỐC SATRA
A12: SATRA-004 | B12: CN TCT TM SÀI GÒN – TNHH MTV – SIÊU THỊ SÀI GÒN | C12: 2025-01-24 | D12: BH2341400 | E12: 2025-01-24 | F12: 00006648 | G12: CN TCT TM SÀI GÒN – TNHH MTV – SIÊU THỊ SÀI GÒN | H12: 2728396 | I12: 0 | J12: 218272 | K12: 2946668 | L12: Bán hàng | M12: 2025-02-27 | O12: =IF(Table1[[#This Row],[Phân loại]]="Tồn đầu kỳ",Table1[[#This Row],[Tổng giá trị]],0) -> 0 | P12: =IF(Table1[[#This Row],[Số còn phải thu ĐK]]<>0,0,IF(Table1[[#This Row],[Phân loại]]="Bán hàng",Table1[[#This Row],[Tổng giá trị]],-Table1[[#This Row],[Tổng giá trị]])) -> 2946668 | Q12: 2946668 | R12: =Table1[[#This Row],[Số còn phải thu ĐK]]+Table1[[#This Row],[Giá Trị HD sau CK]]-Table1[[#This Row],[Số tiền đã thu]] -> 0 | S12: =IF(Table1[[#This Row],[Ngày hóa đơn]]<>"",Table1[[#This Row],[Ngày hóa đơn]],Table1[[#This Row],[Ngày hạch toán]]) -> 2025-01-24 | T12: 50 | U12: =IF(Table1[[#This Row],[Ngày tính CN]]="","",S12+T12) -> 2025-03-15 | V12: =IF(Table1[[#This Row],[Hạn thanh toán]]="","",IF((U12-NOW())<0,0,(U12-NOW()))) -> 0 | Y12: Đã thanh toán | Z12: 2025-01-24 | AA12: 2025-02-27 | AB12: check xong | AD12: =VLOOKUP($A12,MA_KH!$A:$Q,MA_KH!O$1,0) -> SATRA | AE12: =VLOOKUP($A12,MA_KH!$A:$Q,MA_KH!P$1,0) -> CHI NHÁNH TỔNG CÔNG TY THƯƠNG MẠI SÀI GÒN - TNHH MỘT THÀNH VIÊN - TRUNG TÂM PHÁT TRIỂN ĐỊA ỐC SATRA
A13: SATRA-004 | B13: CN TCT TM SÀI GÒN – TNHH MTV – SIÊU THỊ SÀI GÒN | C13: 2025-02-14 | D13: BH2342329 | E13: 2025-02-14 | F13: 00010267 | G13: CN TCT TM SÀI GÒN – TNHH MTV – SIÊU THỊ SÀI GÒN | H13: 2092707 | I13: 0 | J13: 167417 | K13: 2260124 | L13: Bán hàng | M13: 2025-03-17 | O13: =IF(Table1[[#This Row],[Phân loại]]="Tồn đầu kỳ",Table1[[#This Row],[Tổng giá trị]],0) -> 0 | P13: =IF(Table1[[#This Row],[Số còn phải thu ĐK]]<>0,0,IF(Table1[[#This Row],[Phân loại]]="Bán hàng",Table1[[#This Row],[Tổng giá trị]],-Table1[[#This Row],[Tổng giá trị]])) -> 2260124 | Q13: 2260124 | R13: =Table1[[#This Row],[Số còn phải thu ĐK]]+Table1[[#This Row],[Giá Trị HD sau CK]]-Table1[[#This Row],[Số tiền đã thu]] -> 0 | S13: =IF(Table1[[#This Row],[Ngày hóa đơn]]<>"",Table1[[#This Row],[Ngày hóa đơn]],Table1[[#This Row],[Ngày hạch toán]]) -> 2025-02-14 | T13: 50 | U13: =IF(Table1[[#This Row],[Ngày tính CN]]="","",S13+T13) -> 2025-04-05 | V13: =IF(Table1[[#This Row],[Hạn thanh toán]]="","",IF((U13-NOW())<0,0,(U13-NOW()))) -> 0 | Y13: Đã thanh toán | Z13: 2025-02-14 | AA13: 2025-03-17 | AB13: check xong | AD13: =VLOOKUP($A13,MA_KH!$A:$Q,MA_KH!O$1,0) -> SATRA | AE13: =VLOOKUP($A13,MA_KH!$A:$Q,MA_KH!P$1,0) -> CHI NHÁNH TỔNG CÔNG TY THƯƠNG MẠI SÀI GÒN - TNHH MỘT THÀNH VIÊN - TRUNG TÂM PHÁT TRIỂN ĐỊA ỐC SATRA
A14: SATRA-004 | B14: CN TCT TM SÀI GÒN – TNHH MTV – SIÊU THỊ SÀI GÒN | C14: 2025-02-21 | D14: BH2342997 | E14: 2025-02-21 | F14: 00012331 | G14: CN TCT TM SÀI GÒN – TNHH MTV – SIÊU THỊ SÀI GÒN | H14: 1380497 | I14: 0 | J14: 110440 | K14: 1490937 | L14: Bán hàng | M14: 2025-05-20 | O14: =IF(Table1[[#This Row],[Phân loại]]="Tồn đầu kỳ",Table1[[#This Row],[Tổng giá trị]],0) -> 0 | P14: =IF(Table1[[#This Row],[Số còn phải thu ĐK]]<>0,0,IF(Table1[[#This Row],[Phân loại]]="Bán hàng",Table1[[#This Row],[Tổng giá trị]],-Table1[[#This Row],[Tổng giá trị]])) -> 1490937 | Q14: 1490937 | R14: =Table1[[#This Row],[Số còn phải thu ĐK]]+Table1[[#This Row],[Giá Trị HD sau CK]]-Table1[[#This Row],[Số tiền đã thu]] -> 0 | S14: =IF(Table1[[#This Row],[Ngày hóa đơn]]<>"",Table1[[#This Row],[Ngày hóa đơn]],Table1[[#This Row],[Ngày hạch toán]]) -> 2025-02-21 | T14: 50 | U14: =IF(Table1[[#This Row],[Ngày tính CN]]="","",S14+T14) -> 2025-04-12 | V14: =IF(Table1[[#This Row],[Hạn thanh toán]]="","",IF((U14-NOW())<0,0,(U14-NOW()))) -> 0 | Y14: Đã thanh toán | Z14: 2025-02-21 | AA14: 2025-05-20 | AB14: check xong | AD14: =VLOOKUP($A14,MA_KH!$A:$Q,MA_KH!O$1,0) -> SATRA | AE14: =VLOOKUP($A14,MA_KH!$A:$Q,MA_KH!P$1,0) -> CHI NHÁNH TỔNG CÔNG TY THƯƠNG MẠI SÀI GÒN - TNHH MỘT THÀNH VIÊN - TRUNG TÂM PHÁT TRIỂN ĐỊA ỐC SATRA
A15: SATRA-004 | B15: CN TCT TM SÀI GÒN – TNHH MTV – SIÊU THỊ SÀI GÒN | C15: 2025-03-07 | D15: BH2343871 | E15: 2025-03-07 | F15: 00015322 | G15: CN TCT TM SÀI GÒN – TNHH MTV – SIÊU THỊ SÀI GÒN | H15: 2202692 | I15: 0 | J15: 176215 | K15: 2378907 | L15: Bán hàng | M15: 2025-05-20 | O15: =IF(Table1[[#This Row],[Phân loại]]="Tồn đầu kỳ",Table1[[#This Row],[Tổng giá trị]],0) -> 0 | P15: =IF(Table1[[#This Row],[Số còn phải thu ĐK]]<>0,0,IF(Table1[[#This Row],[Phân loại]]="Bán hàng",Table1[[#This Row],[Tổng giá trị]],-Table1[[#This Row],[Tổng giá trị]])) -> 2378907 | Q15: 2378907 | R15: =Table1[[#This Row],[Số còn phải thu ĐK]]+Table1[[#This Row],[Giá Trị HD sau CK]]-Table1[[#This Row],[Số tiền đã thu]] -> 0 | S15: =IF(Table1[[#This Row],[Ngày hóa đơn]]<>"",Table1[[#This Row],[Ngày hóa đơn]],Table1[[#This Row],[Ngày hạch toán]]) -> 2025-03-07 | T15: 50 | U15: =IF(Table1[[#This Row],[Ngày tính CN]]="","",S15+T15) -> 2025-04-26 | V15: =IF(Table1[[#This Row],[Hạn thanh toán]]="","",IF((U15-NOW())<0,0,(U15-NOW()))) -> 0 | Y15: Đã thanh toán | Z15: 2025-03-07 | AA15: 2025-05-20 | AB15: check xong | AD15: =VLOOKUP($A15,MA_KH!$A:$Q,MA_KH!O$1,0) -> SATRA | AE15: =VLOOKUP($A15,MA_KH!$A:$Q,MA_KH!P$1,0) -> CHI NHÁNH TỔNG CÔNG TY THƯƠNG MẠI SÀI GÒN - TNHH MỘT THÀNH VIÊN - TRUNG TÂM PHÁT TRIỂN ĐỊA ỐC SATRA
A16: SATRA-004 | B16: CN TCT TM SÀI GÒN – TNHH MTV – SIÊU THỊ SÀI GÒN | C16: 2025-03-19 | D16: BH2344922 | E16: 2025-03-19 | F16: 00017517 | G16: CN TCT TM SÀI GÒN – TNHH MTV – SIÊU THỊ SÀI GÒN | H16: 1331465 | I16: 0 | J16: 106517 | K16: 1437982 | L16: Bán hàng | M16: 2025-07-25 | O16: =IF(Table1[[#This Row],[Phân loại]]="Tồn đầu kỳ",Table1[[#This Row],[Tổng giá trị]],0) -> 0 | P16: =IF(Table1[[#This Row],[Số còn phải thu ĐK]]<>0,0,IF(Table1[[#This Row],[Phân loại]]="Bán hàng",Table1[[#This Row],[Tổng giá trị]],-Table1[[#This Row],[Tổng giá trị]])) -> 1437982 | Q16: 1437982 | R16: =Table1[[#This Row],[Số còn phải thu ĐK]]+Table1[[#This Row],[Giá Trị HD sau CK]]-Table1[[#This Row],[Số tiền đã thu]] -> 0 | S16: =IF(Table1[[#This Row],[Ngày hóa đơn]]<>"",Table1[[#This Row],[Ngày hóa đơn]],Table1[[#This Row],[Ngày hạch toán]]) -> 2025-03-19 | T16: 50 | U16: =IF(Table1[[#This Row],[Ngày tính CN]]="","",S16+T16) -> 2025-05-08 | V16: =IF(Table1[[#This Row],[Hạn thanh toán]]="","",IF((U16-NOW())<0,0,(U16-NOW()))) -> 0 | Y16: Đã thanh toán | Z16: 2025-03-19 | AA16: 2025-07-25 | AB16: check xong | AD16: =VLOOKUP($A16,MA_KH!$A:$Q,MA_KH!O$1,0) -> SATRA | AE16: =VLOOKUP($A16,MA_KH!$A:$Q,MA_KH!P$1,0) -> CHI NHÁNH TỔNG CÔNG TY THƯƠNG MẠI SÀI GÒN - TNHH MỘT THÀNH VIÊN - TRUNG TÂM PHÁT TRIỂN ĐỊA ỐC SATRA
A17: SATRA-004 | B17: CN TCT TM SÀI GÒN – TNHH MTV – SIÊU THỊ SÀI GÒN | C17: 2025-04-01 | D17: BH2345829 | E17: 2025-04-01 | F17: 00020632 | G17: CN TCT TM SÀI GÒN – TNHH MTV – SIÊU THỊ SÀI GÒN | H17: 2564924 | I17: 0 | J17: 205194 | K17: 2770118 | L17: Bán hàng | M17: 2025-08-15 | O17: =IF(Table1[[#This Row],[Phân loại]]="Tồn đầu kỳ",Table1[[#This Row],[Tổng giá trị]],0) -> 0 | P17: =IF(Table1[[#This Row],[Số còn phải thu ĐK]]<>0,0,IF(Table1[[#This Row],[Phân loại]]="Bán hàng",Table1[[#This Row],[Tổng giá trị]],-Table1[[#This Row],[Tổng giá trị]])) -> 2770118 | Q17: 2770118 | R17: =Table1[[#This Row],[Số còn phải thu ĐK]]+Table1[[#This Row],[Giá Trị HD sau CK]]-Table1[[#This Row],[Số tiền đã thu]] -> 0 | S17: =IF(Table1[[#This Row],[Ngày hóa đơn]]<>"",Table1[[#This Row],[Ngày hóa đơn]],Table1[[#This Row],[Ngày hạch toán]]) -> 2025-04-01 | T17: 50 | U17: =IF(Table1[[#This Row],[Ngày tính CN]]="","",S17+T17) -> 2025-05-21 | V17: =IF(Table1[[#This Row],[Hạn thanh toán]]="","",IF((U17-NOW())<0,0,(U17-NOW()))) -> 0 | Y17: Đã thanh toán | Z17: 2025-04-01 | AA17: 2025-08-15 | AB17: check xong | AD17: =VLOOKUP($A17,MA_KH!$A:$Q,MA_KH!O$1,0) -> SATRA | AE17: =VLOOKUP($A17,MA_KH!$A:$Q,MA_KH!P$1,0) -> CHI NHÁNH TỔNG CÔNG TY THƯƠNG MẠI SÀI GÒN - TNHH MỘT THÀNH VIÊN - TRUNG TÂM PHÁT TRIỂN ĐỊA ỐC SATRA
A18: SATRA-004 | B18: CN TCT TM SÀI GÒN – TNHH MTV – SIÊU THỊ SÀI GÒN | C18: 2025-04-16 | D18: BH2346776 | E18: 2025-04-16 | F18: 00023850 | G18: CN TCT TM SÀI GÒN – TNHH MTV – SIÊU THỊ SÀI GÒN | H18: 1297232 | I18: 0 | J18: 103779 | K18: 1401011 | L18: Bán hàng | O18: =IF(Table1[[#This Row],[Phân loại]]="Tồn đầu kỳ",Table1[[#This Row],[Tổng giá trị]],0) -> 0 | P18: =IF(Table1[[#This Row],[Số còn phải thu ĐK]]<>0,0,IF(Table1[[#This Row],[Phân loại]]="Bán hàng",Table1[[#This Row],[Tổng giá trị]],-Table1[[#This Row],[Tổng giá trị]])) -> 1401011 | Q18: 0 | R18: =Table1[[#This Row],[Số còn phải thu ĐK]]+Table1[[#This Row],[Giá Trị HD sau CK]]-Table1[[#This Row],[Số tiền đã thu]] -> 1401011 | S18: =IF(Table1[[#This Row],[Ngày hóa đơn]]<>"",Table1[[#This Row],[Ngày hóa đơn]],Table1[[#This Row],[Ngày hạch toán]]) -> 2025-04-16 | T18: 50 | U18: =IF(Table1[[#This Row],[Ngày tính CN]]="","",S18+T18) -> 2025-06-05 | V18: =IF(Table1[[#This Row],[Hạn thanh toán]]="","",IF((U18-NOW())<0,0,(U18-NOW()))) -> 0 | X18: 173.8170837 | Y18: Nợ quá hạn hơn 120 ngày có khả năng mất thanh toán | Z18: 2025-04-16 | AA18: 00:00:00 | AB18: check xong | AD18: =VLOOKUP($A18,MA_KH!$A:$Q,MA_KH!O$1,0) -> SATRA | AE18: =VLOOKUP($A18,MA_KH!$A:$Q,MA_KH!P$1,0) -> CHI NHÁNH TỔNG CÔNG TY THƯƠNG MẠI SÀI GÒN - TNHH MỘT THÀNH VIÊN - TRUNG TÂM PHÁT TRIỂN ĐỊA ỐC SATRA
A19: SATRA-004 | B19: CN TCT TM SÀI GÒN – TNHH MTV – SIÊU THỊ SÀI GÒN | C19: 2025-04-26 | D19: BH2347674 | E19: 2025-04-26 | F19: 00026603 | G19: CN TCT TM SÀI GÒN – TNHH MTV – SIÊU THỊ SÀI GÒN | H19: 2620112 | I19: 0 | J19: 209609 | K19: 2829721 | L19: Bán hàng | M19: 2025-05-29 | O19: =IF(Table1[[#This Row],[Phân loại]]="Tồn đầu kỳ",Table1[[#This Row],[Tổng giá trị]],0) -> 0 | P19: =IF(Table1[[#This Row],[Số còn phải thu ĐK]]<>0,0,IF(Table1[[#This Row],[Phân loại]]="Bán hàng",Table1[[#This Row],[Tổng giá trị]],-Table1[[#This Row],[Tổng giá trị]])) -> 2829721 | Q19: 2829721 | R19: =Table1[[#This Row],[Số còn phải thu ĐK]]+Table1[[#This Row],[Giá Trị HD sau CK]]-Table1[[#This Row],[Số tiền đã thu]] -> 0 | S19: =IF(Table1[[#This Row],[Ngày hóa đơn]]<>"",Table1[[#This Row],[Ngày hóa đơn]],Table1[[#This Row],[Ngày hạch toán]]) -> 2025-04-26 | T19: 50 | U19: =IF(Table1[[#This Row],[Ngày tính CN]]="","",S19+T19) -> 2025-06-15 | V19: =IF(Table1[[#This Row],[Hạn thanh toán]]="","",IF((U19-NOW())<0,0,(U19-NOW()))) -> 0 | Y19: Đã thanh toán | Z19: 2025-04-26 | AA19: 2025-05-29 | AB19: check xong | AD19: =VLOOKUP($A19,MA_KH!$A:$Q,MA_KH!O$1,0) -> SATRA | AE19: =VLOOKUP($A19,MA_KH!$A:$Q,MA_KH!P$1,0) -> CHI NHÁNH TỔNG CÔNG TY THƯƠNG MẠI SÀI GÒN - TNHH MỘT THÀNH VIÊN - TRUNG TÂM PHÁT TRIỂN ĐỊA ỐC SATRA
A20: SATRA-004 | B20: CN TCT TM SÀI GÒN – TNHH MTV – SIÊU THỊ SÀI GÒN | C20: 2025-05-13 | D20: BH2348835 | E20: 2025-05-13 | F20: 00029849 | G20: CN TCT TM SÀI GÒN – TNHH MTV – SIÊU THỊ SÀI GÒN | H20: 1824544 | I20: 0 | J20: 145964 | K20: 1970508 | L20: Bán hàng | M20: 2025-06-16 | O20: =IF(Table1[[#This Row],[Phân loại]]="Tồn đầu kỳ",Table1[[#This Row],[Tổng giá trị]],0) -> 0 | P20: =IF(Table1[[#This Row],[Số còn phải thu ĐK]]<>0,0,IF(Table1[[#This Row],[Phân loại]]="Bán hàng",Table1[[#This Row],[Tổng giá trị]],-Table1[[#This Row],[Tổng giá trị]])) -> 1970508 | Q20: 1970508 | R20: =Table1[[#This Row],[Số còn phải thu ĐK]]+Table1[[#This Row],[Giá Trị HD sau CK]]-Table1[[#This Row],[Số tiền đã thu]] -> 0 | S20: =IF(Table1[[#This Row],[Ngày hóa đơn]]<>"",Table1[[#This Row],[Ngày hóa đơn]],Table1[[#This Row],[Ngày hạch toán]]) -> 2025-05-13 | T20: 50 | U20: =IF(Table1[[#This Row],[Ngày tính CN]]="","",S20+T20) -> 2025-07-02 | V20: =IF(Table1[[#This Row],[Hạn thanh toán]]="","",IF((U20-NOW())<0,0,(U20-NOW()))) -> 0 | Y20: Đã thanh toán | Z20: 2025-05-13 | AA20: 2025-06-16 | AB20: check xong | AD20: =VLOOKUP($A20,MA_KH!$A:$Q,MA_KH!O$1,0) -> SATRA | AE20: =VLOOKUP($A20,MA_KH!$A:$Q,MA_KH!P$1,0) -> CHI NHÁNH TỔNG CÔNG TY THƯƠNG MẠI SÀI GÒN - TNHH MỘT THÀNH VIÊN - TRUNG TÂM PHÁT TRIỂN ĐỊA ỐC SATRA
A21: SATRA-004 | B21: CN TCT TM SÀI GÒN – TNHH MTV – SIÊU THỊ SÀI GÒN | C21: 2025-05-29 | D21: BH2350168 | E21: 2025-05-29 | F21: 00033072 | G21: CN TCT TM SÀI GÒN – TNHH MTV – SIÊU THỊ SÀI GÒN | H21: 1976421 | I21: 0 | J21: 158114 | K21: 2134535 | L21: Bán hàng | M21: 2025-06-27 | O21: =IF(Table1[[#This Row],[Phân loại]]="Tồn đầu kỳ",Table1[[#This Row],[Tổng giá trị]],0) -> 0 | P21: =IF(Table1[[#This Row],[Số còn phải thu ĐK]]<>0,0,IF(Table1[[#This Row],[Phân loại]]="Bán hàng",Table1[[#This Row],[Tổng giá trị]],-Table1[[#This Row],[Tổng giá trị]])) -> 2134535 | Q21: 2134535 | R21: =Table1[[#This Row],[Số còn phải thu ĐK]]+Table1[[#This Row],[Giá Trị HD sau CK]]-Table1[[#This Row],[Số tiền đã thu]] -> 0 | S21: =IF(Table1[[#This Row],[Ngày hóa đơn]]<>"",Table1[[#This Row],[Ngày hóa đơn]],Table1[[#This Row],[Ngày hạch toán]]) -> 2025-05-29 | T21: 50 | U21: =IF(Table1[[#This Row],[Ngày tính CN]]="","",S21+T21) -> 2025-07-18 | V21: =IF(Table1[[#This Row],[Hạn thanh toán]]="","",IF((U21-NOW())<0,0,(U21-NOW()))) -> 0 | Y21: Đã thanh toán | Z21: 2025-05-29 | AA21: 2025-06-27 | AB21: check xong | AD21: =VLOOKUP($A21,MA_KH!$A:$Q,MA_KH!O$1,0) -> SATRA | AE21: =VLOOKUP($A21,MA_KH!$A:$Q,MA_KH!P$1,0) -> CHI NHÁNH TỔNG CÔNG TY THƯƠNG MẠI SÀI GÒN - TNHH MỘT THÀNH VIÊN - TRUNG TÂM PHÁT TRIỂN ĐỊA ỐC SATRA
A22: SATRA-004 | B22: CN TCT TM SÀI GÒN – TNHH MTV – SIÊU THỊ SÀI GÒN | C22: 2025-06-09 | D22: BH2350836 | E22: 2025-06-09 | F22: 00035870 | G22: CN TCT TM SÀI GÒN – TNHH MTV – SIÊU THỊ SÀI GÒN | H22: 1858525 | I22: 0 | J22: 148682 | K22: 2007207 | L22: Bán hàng | M22: 2025-07-14 | O22: =IF(Table1[[#This Row],[Phân loại]]="Tồn đầu kỳ",Table1[[#This Row],[Tổng giá trị]],0) -> 0 | P22: =IF(Table1[[#This Row],[Số còn phải thu ĐK]]<>0,0,IF(Table1[[#This Row],[Phân loại]]="Bán hàng",Table1[[#This Row],[Tổng giá trị]],-Table1[[#This Row],[Tổng giá trị]])) -> 2007207 | Q22: 2007207 | R22: =Table1[[#This Row],[Số còn phải thu ĐK]]+Table1[[#This Row],[Giá Trị HD sau CK]]-Table1[[#This Row],[Số tiền đã thu]] -> 0 | S22: =IF(Table1[[#This Row],[Ngày hóa đơn]]<>"",Table1[[#This Row],[Ngày hóa đơn]],Table1[[#This Row],[Ngày hạch toán]]) -> 2025-06-09 | T22: 50 | U22: =IF(Table1[[#This Row],[Ngày tính CN]]="","",S22+T22) -> 2025-07-29 | V22: =IF(Table1[[#This Row],[Hạn thanh toán]]="","",IF((U22-NOW())<0,0,(U22-NOW()))) -> 0 | Y22: Đã thanh toán | Z22: 2025-06-09 | AA22: 2025-07-14 | AB22: check xong | AD22: =VLOOKUP($A22,MA_KH!$A:$Q,MA_KH!O$1,0) -> SATRA | AE22: =VLOOKUP($A22,MA_KH!$A:$Q,MA_KH!P$1,0) -> CHI NHÁNH TỔNG CÔNG TY THƯƠNG MẠI SÀI GÒN - TNHH MỘT THÀNH VIÊN - TRUNG TÂM PHÁT TRIỂN ĐỊA ỐC SATRA
A23: SATRA-004 | B23: CN TCT TM SÀI GÒN – TNHH MTV – SIÊU THỊ SÀI GÒN | C23: 2025-06-28 | D23: BH2352219 | E23: 2025-06-28 | F23: 00040677 | G23: P-000222002 | H23: 2031927 | I23: 0 | J23: 162554 | K23: 2194481 | L23: Bán hàng | O23: =IF(Table1[[#This Row],[Phân loại]]="Tồn đầu kỳ",Table1[[#This Row],[Tổng giá trị]],0) -> 0 | P23: =IF(Table1[[#This Row],[Số còn phải thu ĐK]]<>0,0,IF(Table1[[#This Row],[Phân loại]]="Bán hàng",Table1[[#This Row],[Tổng giá trị]],-Table1[[#This Row],[Tổng giá trị]])) -> 2194481 | Q23: 0 | R23: =Table1[[#This Row],[Số còn phải thu ĐK]]+Table1[[#This Row],[Giá Trị HD sau CK]]-Table1[[#This Row],[Số tiền đã thu]] -> 2194481 | S23: =IF(Table1[[#This Row],[Ngày hóa đơn]]<>"",Table1[[#This Row],[Ngày hóa đơn]],Table1[[#This Row],[Ngày hạch toán]]) -> 2025-06-28 | T23: 50 | U23: =IF(Table1[[#This Row],[Ngày tính CN]]="","",S23+T23) -> 2025-08-17 | V23: =IF(Table1[[#This Row],[Hạn thanh toán]]="","",IF((U23-NOW())<0,0,(U23-NOW()))) -> 0 | X23: 100.8170837 | Y23: Nợ quá hạn từ 90 ngày đến 120 ngày | Z23: 2025-06-28 | AA23: 00:00:00 | AB23: check xong | AD23: =VLOOKUP($A23,MA_KH!$A:$Q,MA_KH!O$1,0) -> SATRA | AE23: =VLOOKUP($A23,MA_KH!$A:$Q,MA_KH!P$1,0) -> CHI NHÁNH TỔNG CÔNG TY THƯƠNG MẠI SÀI GÒN - TNHH MỘT THÀNH VIÊN - TRUNG TÂM PHÁT TRIỂN ĐỊA ỐC SATRA
A24: SATRA-004 | B24: CN TCT TM SÀI GÒN – TNHH MTV – SIÊU THỊ SÀI GÒN | C24: 2025-07-09 | D24: BH2352957 | E24: 2025-07-09 | F24: 00042621 | G24: P-000222715 | H24: 1770650 | I24: 0 | J24: 141652 | K24: 1912302 | L24: Bán hàng | O24: =IF(Table1[[#This Row],[Phân loại]]="Tồn đầu kỳ",Table1[[#This Row],[Tổng giá trị]],0) -> 0 | P24: =IF(Table1[[#This Row],[Số còn phải thu ĐK]]<>0,0,IF(Table1[[#This Row],[Phân loại]]="Bán hàng",Table1[[#This Row],[Tổng giá trị]],-Table1[[#This Row],[Tổng giá trị]])) -> 1912302 | Q24: 0 | R24: =Table1[[#This Row],[Số còn phải thu ĐK]]+Table1[[#This Row],[Giá Trị HD sau CK]]-Table1[[#This Row],[Số tiền đã thu]] -> 1912302 | S24: =IF(Table1[[#This Row],[Ngày hóa đơn]]<>"",Table1[[#This Row],[Ngày hóa đơn]],Table1[[#This Row],[Ngày hạch toán]]) -> 2025-07-09 | T24: 50 | U24: =IF(Table1[[#This Row],[Ngày tính CN]]="","",S24+T24) -> 2025-08-28 | V24: =IF(Table1[[#This Row],[Hạn thanh toán]]="","",IF((U24-NOW())<0,0,(U24-NOW()))) -> 0 | X24: 89.81708368 | Y24: Nợ quá hạn từ 60 ngày đến 90 ngày | Z24: 2025-07-09 | AA24: 00:00:00 | AB24: check xong | AD24: =VLOOKUP($A24,MA_KH!$A:$Q,MA_KH!O$1,0) -> SATRA | AE24: =VLOOKUP($A24,MA_KH!$A:$Q,MA_KH!P$1,0) -> CHI NHÁNH TỔNG CÔNG TY THƯƠNG MẠI SÀI GÒN - TNHH MỘT THÀNH VIÊN - TRUNG TÂM PHÁT TRIỂN ĐỊA ỐC SATRA
A25: SATRA-004 | B25: CN TCT TM SÀI GÒN – TNHH MTV – SIÊU THỊ SÀI GÒN | C25: 2025-07-19 | D25: TBH0049 | E25: 2025-07-19 | F25: 00045514 | G25: P-000223397 | H25: 2581032 | I25: 0 | J25: 206483 | K25: 2787515 | L25: Bán hàng | M25: 2025-08-15 | O25: =IF(Table1[[#This Row],[Phân loại]]="Tồn đầu kỳ",Table1[[#This Row],[Tổng giá trị]],0) -> 0 | P25: =IF(Table1[[#This Row],[Số còn phải thu ĐK]]<>0,0,IF(Table1[[#This Row],[Phân loại]]="Bán hàng",Table1[[#This Row],[Tổng giá trị]],-Table1[[#This Row],[Tổng giá trị]])) -> 2787515 | Q25: 2787515 | R25: =Table1[[#This Row],[Số còn phải thu ĐK]]+Table1[[#This Row],[Giá Trị HD sau CK]]-Table1[[#This Row],[Số tiền đã thu]] -> 0 | S25: =IF(Table1[[#This Row],[Ngày hóa đơn]]<>"",Table1[[#This Row],[Ngày hóa đơn]],Table1[[#This Row],[Ngày hạch toán]]) -> 2025-07-19 | T25: 50 | U25: =IF(Table1[[#This Row],[Ngày tính CN]]="","",S25+T25) -> 2025-09-07 | V25: =IF(Table1[[#This Row],[Hạn thanh toán]]="","",IF((U25-NOW())<0,0,(U25-NOW()))) -> 0 | Y25: Đã thanh toán | Z25: 2025-07-19 | AA25: 2025-08-15 | AB25: check xong | AD25: =VLOOKUP($A25,MA_KH!$A:$Q,MA_KH!O$1,0) -> SATRA | AE25: =VLOOKUP($A25,MA_KH!$A:$Q,MA_KH!P$1,0) -> CHI NHÁNH TỔNG CÔNG TY THƯƠNG MẠI SÀI GÒN - TNHH MỘT THÀNH VIÊN - TRUNG TÂM PHÁT TRIỂN ĐỊA ỐC SATRA
A26: SATRA-004 | B26: CN TCT TM SÀI GÒN – TNHH MTV – SIÊU THỊ SÀI GÒN | C26: 2025-07-24 | D26: BH2353912 | E26: 2025-07-24 | F26: 00045900 | G26: P-000223591 | H26: 2047700 | I26: 0 | J26: 163816 | K26: 2211516 | L26: Bán hàng | M26: 2025-08-28 | O26: =IF(Table1[[#This Row],[Phân loại]]="Tồn đầu kỳ",Table1[[#This Row],[Tổng giá trị]],0) -> 0 | P26: =IF(Table1[[#This Row],[Số còn phải thu ĐK]]<>0,0,IF(Table1[[#This Row],[Phân loại]]="Bán hàng",Table1[[#This Row],[Tổng giá trị]],-Table1[[#This Row],[Tổng giá trị]])) -> 2211516 | Q26: 2211516 | R26: =Table1[[#This Row],[Số còn phải thu ĐK]]+Table1[[#This Row],[Giá Trị HD sau CK]]-Table1[[#This Row],[Số tiền đã thu]] -> 0 | S26: =IF(Table1[[#This Row],[Ngày hóa đơn]]<>"",Table1[[#This Row],[Ngày hóa đơn]],Table1[[#This Row],[Ngày hạch toán]]) -> 2025-07-24 | T26: 50 | U26: =IF(Table1[[#This Row],[Ngày tính CN]]="","",S26+T26) -> 2025-09-12 | V26: =IF(Table1[[#This Row],[Hạn thanh toán]]="","",IF((U26-NOW())<0,0,(U26-NOW()))) -> 0 | Y26: Đã thanh toán | Z26: 2025-07-24 | AA26: 2025-08-28 | AB26: check xong | AD26: =VLOOKUP($A26,MA_KH!$A:$Q,MA_KH!O$1,0) -> SATRA | AE26: =VLOOKUP($A26,MA_KH!$A:$Q,MA_KH!P$1,0) -> CHI NHÁNH TỔNG CÔNG TY THƯƠNG MẠI SÀI GÒN - TNHH MỘT THÀNH VIÊN - TRUNG TÂM PHÁT TRIỂN ĐỊA ỐC SATRA
A27: SATRA-004 | B27: CN TCT TM SÀI GÒN – TNHH MTV – SIÊU THỊ SÀI GÒN | C27: 2025-07-30 | D27: BH2354310 | E27: 2025-07-30 | F27: 00047670 | G27: P-000224020 | H27: 1985560 | I27: 0 | J27: 158845 | K27: 2144405 | L27: Bán hàng | M27: 2025-08-28 | O27: =IF(Table1[[#This Row],[Phân loại]]="Tồn đầu kỳ",Table1[[#This Row],[Tổng giá trị]],0) -> 0 | P27: =IF(Table1[[#This Row],[Số còn phải thu ĐK]]<>0,0,IF(Table1[[#This Row],[Phân loại]]="Bán hàng",Table1[[#This Row],[Tổng giá trị]],-Table1[[#This Row],[Tổng giá trị]])) -> 2144405 | Q27: 2144405 | R27: =Table1[[#This Row],[Số còn phải thu ĐK]]+Table1[[#This Row],[Giá Trị HD sau CK]]-Table1[[#This Row],[Số tiền đã thu]] -> 0 | S27: =IF(Table1[[#This Row],[Ngày hóa đơn]]<>"",Table1[[#This Row],[Ngày hóa đơn]],Table1[[#This Row],[Ngày hạch toán]]) -> 2025-07-30 | T27: 50 | U27: =IF(Table1[[#This Row],[Ngày tính CN]]="","",S27+T27) -> 2025-09-18 | V27: =IF(Table1[[#This Row],[Hạn thanh toán]]="","",IF((U27-NOW())<0,0,(U27-NOW()))) -> 0 | Y27: Đã thanh toán | Z27: 2025-07-30 | AA27: 2025-08-28 | AB27: check xong | AD27: =VLOOKUP($A27,MA_KH!$A:$Q,MA_KH!O$1,0) -> SATRA | AE27: =VLOOKUP($A27,MA_KH!$A:$Q,MA_KH!P$1,0) -> CHI NHÁNH TỔNG CÔNG TY THƯƠNG MẠI SÀI GÒN - TNHH MỘT THÀNH VIÊN - TRUNG TÂM PHÁT TRIỂN ĐỊA ỐC SATRA
A28: SATRA-004 | B28: CN TCT TM SÀI GÒN – TNHH MTV – SIÊU THỊ SÀI GÒN | C28: 2025-08-08 | D28: BH2354993 | E28: 2025-08-08 | F28: 00050308 | G28: P-000224523 | H28: 1000720 | I28: 0 | J28: 80058 | K28: 1080778 | L28: Bán hàng | M28: 2025-10-02 | O28: =IF(Table1[[#This Row],[Phân loại]]="Tồn đầu kỳ",Table1[[#This Row],[Tổng giá trị]],0) -> 0 | P28: =IF(Table1[[#This Row],[Số còn phải thu ĐK]]<>0,0,IF(Table1[[#This Row],[Phân loại]]="Bán hàng",Table1[[#This Row],[Tổng giá trị]],-Table1[[#This Row],[Tổng giá trị]])) -> 1080778 | Q28: 1080778 | R28: =Table1[[#This Row],[Số còn phải thu ĐK]]+Table1[[#This Row],[Giá Trị HD sau CK]]-Table1[[#This Row],[Số tiền đã thu]] -> 0 | S28: =IF(Table1[[#This Row],[Ngày hóa đơn]]<>"",Table1[[#This Row],[Ngày hóa đơn]],Table1[[#This Row],[Ngày hạch toán]]) -> 2025-08-08 | T28: 50 | U28: =IF(Table1[[#This Row],[Ngày tính CN]]="","",S28+T28) -> 2025-09-27 | V28: =IF(Table1[[#This Row],[Hạn thanh toán]]="","",IF((U28-NOW())<0,0,(U28-NOW()))) -> 0 | Y28: Đã thanh toán | Z28: 2025-08-08 | AA28: 2025-10-02 | AB28: check xong | AD28: =VLOOKUP($A28,MA_KH!$A:$Q,MA_KH!O$1,0) -> SATRA | AE28: =VLOOKUP($A28,MA_KH!$A:$Q,MA_KH!P$1,0) -> CHI NHÁNH TỔNG CÔNG TY THƯƠNG MẠI SÀI GÒN - TNHH MỘT THÀNH VIÊN - TRUNG TÂM PHÁT TRIỂN ĐỊA ỐC SATRA
A29: SATRA-004 | B29: CN TCT TM SÀI GÒN – TNHH MTV – SIÊU THỊ SÀI GÒN | C29: 2025-08-27 | D29: BH2356624 | E29: 2025-08-27 | F29: 00054490 | G29: P-000225739 | H29: 2718498 | I29: 0 | J29: 217480 | K29: 2935978 | L29: Bán hàng | M29: 2025-10-02 | O29: =IF(Table1[[#This Row],[Phân loại]]="Tồn đầu kỳ",Table1[[#This Row],[Tổng giá trị]],0) -> 0 | P29: =IF(Table1[[#This Row],[Số còn phải thu ĐK]]<>0,0,IF(Table1[[#This Row],[Phân loại]]="Bán hàng",Table1[[#This Row],[Tổng giá trị]],-Table1[[#This Row],[Tổng giá trị]])) -> 2935978 | Q29: 2935978 | R29: =Table1[[#This Row],[Số còn phải thu ĐK]]+Table1[[#This Row],[Giá Trị HD sau CK]]-Table1[[#This Row],[Số tiền đã thu]] -> 0 | S29: =IF(Table1[[#This Row],[Ngày hóa đơn]]<>"",Table1[[#This Row],[Ngày hóa đơn]],Table1[[#This Row],[Ngày hạch toán]]) -> 2025-08-27 | T29: 50 | U29: =IF(Table1[[#This Row],[Ngày tính CN]]="","",S29+T29) -> 2025-10-16 | V29: =IF(Table1[[#This Row],[Hạn thanh toán]]="","",IF((U29-NOW())<0,0,(U29-NOW()))) -> 0 | Y29: Đã thanh toán | Z29: 2025-08-27 | AA29: 2025-10-02 | AB29: check xong | AD29: =VLOOKUP($A29,MA_KH!$A:$Q,MA_KH!O$1,0) -> SATRA | AE29: =VLOOKUP($A29,MA_KH!$A:$Q,MA_KH!P$1,0) -> CHI NHÁNH TỔNG CÔNG TY THƯƠNG MẠI SÀI GÒN - TNHH MỘT THÀNH VIÊN - TRUNG TÂM PHÁT TRIỂN ĐỊA ỐC SATRA
A30: SATRA-004 | B30: CN TCT TM SÀI GÒN – TNHH MTV – SIÊU THỊ SÀI GÒN | C30: 2025-09-15 | D30: BH2358476 | E30: 2025-09-15 | F30: 00059500 | G30: P-000226914 | H30: 2630853 | I30: 0 | J30: 210468 | K30: 2841321 | L30: Bán hàng | M30: 2025-10-17 | O30: =IF(Table1[[#This Row],[Phân loại]]="Tồn đầu kỳ",Table1[[#This Row],[Tổng giá trị]],0) -> 0 | P30: =IF(Table1[[#This Row],[Số còn phải thu ĐK]]<>0,0,IF(Table1[[#This Row],[Phân loại]]="Bán hàng",Table1[[#This Row],[Tổng giá trị]],-Table1[[#This Row],[Tổng giá trị]])) -> 2841321 | Q30: 2841321 | R30: =Table1[[#This Row],[Số còn phải thu ĐK]]+Table1[[#This Row],[Giá Trị HD sau CK]]-Table1[[#This Row],[Số tiền đã thu]] -> 0 | S30: =IF(Table1[[#This Row],[Ngày hóa đơn]]<>"",Table1[[#This Row],[Ngày hóa đơn]],Table1[[#This Row],[Ngày hạch toán]]) -> 2025-09-15 | T30: 50 | U30: =IF(Table1[[#This Row],[Ngày tính CN]]="","",S30+T30) -> 2025-11-04 | V30: =IF(Table1[[#This Row],[Hạn thanh toán]]="","",IF((U30-NOW())<0,0,(U30-NOW()))) -> 0 | Y30: Đã thanh toán | Z30: 2025-09-15 | AA30: 2025-10-17 | AB30: check xong | AD30: =VLOOKUP($A30,MA_KH!$A:$Q,MA_KH!O$1,0) -> SATRA | AE30: =VLOOKUP($A30,MA_KH!$A:$Q,MA_KH!P$1,0) -> CHI NHÁNH TỔNG CÔNG TY THƯƠNG MẠI SÀI GÒN - TNHH MỘT THÀNH VIÊN - TRUNG TÂM PHÁT TRIỂN ĐỊA ỐC SATRA
A31: SATRA-004 | B31: CN TCT TM SÀI GÒN – TNHH MTV – SIÊU THỊ SÀI GÒN | C31: 2025-09-27 | D31: BH20250563 | E31: 2025-09-27 | F31: 00063231 | G31: P-000227563 | H31: 1698404 | I31: 0 | J31: 135872 | K31: 1834276 | L31: Bán hàng | M31: 2025-10-30 | O31: =IF(Table1[[#This Row],[Phân loại]]="Tồn đầu kỳ",Table1[[#This Row],[Tổng giá trị]],0) -> 0 | P31: =IF(Table1[[#This Row],[Số còn phải thu ĐK]]<>0,0,IF(Table1[[#This Row],[Phân loại]]="Bán hàng",Table1[[#This Row],[Tổng giá trị]],-Table1[[#This Row],[Tổng giá trị]])) -> 1834276 | Q31: 1834276 | R31: =Table1[[#This Row],[Số còn phải thu ĐK]]+Table1[[#This Row],[Giá Trị HD sau CK]]-Table1[[#This Row],[Số tiền đã thu]] -> 0 | S31: =IF(Table1[[#This Row],[Ngày hóa đơn]]<>"",Table1[[#This Row],[Ngày hóa đơn]],Table1[[#This Row],[Ngày hạch toán]]) -> 2025-09-27 | T31: 50 | U31: =IF(Table1[[#This Row],[Ngày tính CN]]="","",S31+T31) -> 2025-11-16 | V31: =IF(Table1[[#This Row],[Hạn thanh toán]]="","",IF((U31-NOW())<0,0,(U31-NOW()))) -> 0 | Y31: Đã thanh toán | Z31: 2025-09-27 | AA31: 2025-10-30 | AB31: check xong | AD31: =VLOOKUP($A31,MA_KH!$A:$Q,MA_KH!O$1,0) -> SATRA | AE31: =VLOOKUP($A31,MA_KH!$A:$Q,MA_KH!P$1,0) -> CHI NHÁNH TỔNG CÔNG TY THƯƠNG MẠI SÀI GÒN - TNHH MỘT THÀNH VIÊN - TRUNG TÂM PHÁT TRIỂN ĐỊA ỐC SATRA
A32: SATRA-004 | B32: CN TCT TM SÀI GÒN – TNHH MTV – SIÊU THỊ SÀI GÒN | C32: 2025-10-07 | D32: BH/207/2025735 | E32: 2025-10-07 | F32: 00065650 | G32: P-000228146 | H32: 1620000 | I32: 0 | J32: 129600 | K32: 1749600 | L32: Bán hàng | O32: =IF(Table1[[#This Row],[Phân loại]]="Tồn đầu kỳ",Table1[[#This Row],[Tổng giá trị]],0) -> 0 | P32: =IF(Table1[[#This Row],[Số còn phải thu ĐK]]<>0,0,IF(Table1[[#This Row],[Phân loại]]="Bán hàng",Table1[[#This Row],[Tổng giá trị]],-Table1[[#This Row],[Tổng giá trị]])) -> 1749600 | Q32: 0 | R32: =Table1[[#This Row],[Số còn phải thu ĐK]]+Table1[[#This Row],[Giá Trị HD sau CK]]-Table1[[#This Row],[Số tiền đã thu]] -> 1749600 | S32: =IF(Table1[[#This Row],[Ngày hóa đơn]]<>"",Table1[[#This Row],[Ngày hóa đơn]],Table1[[#This Row],[Ngày hạch toán]]) -> 2025-10-07 | T32: 50 | U32: =IF(Table1[[#This Row],[Ngày tính CN]]="","",S32+T32) -> 2025-11-26 | V32: =IF(Table1[[#This Row],[Hạn thanh toán]]="","",IF((U32-NOW())<0,0,(U32-NOW()))) -> 0.1829163194 | X32: 0 | Y32: Chưa đến hạn thanh toán | Z32: 2025-10-07 | AA32: 00:00:00 | AB32: check xong | AD32: =VLOOKUP($A32,MA_KH!$A:$Q,MA_KH!O$1,0) -> SATRA | AE32: =VLOOKUP($A32,MA_KH!$A:$Q,MA_KH!P$1,0) -> CHI NHÁNH TỔNG CÔNG TY THƯƠNG MẠI SÀI GÒN - TNHH MỘT THÀNH VIÊN - TRUNG TÂM PHÁT TRIỂN ĐỊA ỐC SATRA
A33: SATRA-004 | B33: CN TCT TM SÀI GÒN – TNHH MTV – SIÊU THỊ SÀI GÒN | C33: 2025-10-20 | D33: BH2370464 | E33: 2025-10-20 | F33: 00069036 | G33: P-000228886 | H33: 1146950 | I33: 0 | J33: 91756 | K33: 1238706 | L33: Bán hàng | O33: =IF(Table1[[#This Row],[Phân loại]]="Tồn đầu kỳ",Table1[[#This Row],[Tổng giá trị]],0) -> 0 | P33: =IF(Table1[[#This Row],[Số còn phải thu ĐK]]<>0,0,IF(Table1[[#This Row],[Phân loại]]="Bán hàng",Table1[[#This Row],[Tổng giá trị]],-Table1[[#This Row],[Tổng giá trị]])) -> 1238706 | Q33: 0 | R33: =Table1[[#This Row],[Số còn phải thu ĐK]]+Table1[[#This Row],[Giá Trị HD sau CK]]-Table1[[#This Row],[Số tiền đã thu]] -> 1238706 | S33: =IF(Table1[[#This Row],[Ngày hóa đơn]]<>"",Table1[[#This Row],[Ngày hóa đơn]],Table1[[#This Row],[Ngày hạch toán]]) -> 2025-10-20 | T33: 50 | U33: =IF(Table1[[#This Row],[Ngày tính CN]]="","",S33+T33) -> 2025-12-09 | V33: =IF(Table1[[#This Row],[Hạn thanh toán]]="","",IF((U33-NOW())<0,0,(U33-NOW()))) -> 13.1829162 | X33: 0 | Y33: Chưa đến hạn thanh toán | Z33: 2025-10-20 | AA33: 00:00:00 | AB33: check xong | AD33: =VLOOKUP($A33,MA_KH!$A:$Q,MA_KH!O$1,0) -> SATRA | AE33: =VLOOKUP($A33,MA_KH!$A:$Q,MA_KH!P$1,0) -> CHI NHÁNH TỔNG CÔNG TY THƯƠNG MẠI SÀI GÒN - TNHH MỘT THÀNH VIÊN - TRUNG TÂM PHÁT TRIỂN ĐỊA ỐC SATRA
A34: SATRA-004 | B34: CN TCT TM SÀI GÒN – TNHH MTV – SIÊU THỊ SÀI GÒN | C34: 2025-10-24 | D34: BH2370828 | E34: 2025-10-24 | F34: 00070436 | G34: P-000229156 | H34: 649250 | I34: 0 | J34: 51940 | K34: 701190 | L34: Bán hàng | O34: =IF(Table1[[#This Row],[Phân loại]]="Tồn đầu kỳ",Table1[[#This Row],[Tổng giá trị]],0) -> 0 | P34: =IF(Table1[[#This Row],[Số còn phải thu ĐK]]<>0,0,IF(Table1[[#This Row],[Phân loại]]="Bán hàng",Table1[[#This Row],[Tổng giá trị]],-Table1[[#This Row],[Tổng giá trị]])) -> 701190 | Q34: 0 | R34: =Table1[[#This Row],[Số còn phải thu ĐK]]+Table1[[#This Row],[Giá Trị HD sau CK]]-Table1[[#This Row],[Số tiền đã thu]] -> 701190 | S34: =IF(Table1[[#This Row],[Ngày hóa đơn]]<>"",Table1[[#This Row],[Ngày hóa đơn]],Table1[[#This Row],[Ngày hạch toán]]) -> 2025-10-24 | T34: 50 | U34: =IF(Table1[[#This Row],[Ngày tính CN]]="","",S34+T34) -> 2025-12-13 | V34: =IF(Table1[[#This Row],[Hạn thanh toán]]="","",IF((U34-NOW())<0,0,(U34-NOW()))) -> 17.18291632 | X34: 0 | Y34: Chưa đến hạn thanh toán | Z34: 2025-10-24 | AA34: 00:00:00 | AB34: check xong | AD34: =VLOOKUP($A34,MA_KH!$A:$Q,MA_KH!O$1,0) -> SATRA | AE34: =VLOOKUP($A34,MA_KH!$A:$Q,MA_KH!P$1,0) -> CHI NHÁNH TỔNG CÔNG TY THƯƠNG MẠI SÀI GÒN - TNHH MỘT THÀNH VIÊN - TRUNG TÂM PHÁT TRIỂN ĐỊA ỐC SATRA
A35: SATRA-004 | B35: CN TCT TM SÀI GÒN – TNHH MTV – SIÊU THỊ SÀI GÒN | C35: 2025-07-24 | D35: HBTL25012157 | E35: 2025-07-24 | F35: 00006389 | G35: Hàng trả - phiếu HT0009788 - SATRA-004 | H35: 643230 | I35: 0 | J35: 51458 | K35: 694688 | L35: Hàng trả | M35: 2025-08-15 | O35: =IF(Table1[[#This Row],[Phân loại]]="Tồn đầu kỳ",Table1[[#This Row],[Tổng giá trị]],0) -> 0 | P35: =IF(Table1[[#This Row],[Số còn phải thu ĐK]]<>0,0,IF(Table1[[#This Row],[Phân loại]]="Bán hàng",Table1[[#This Row],[Tổng giá trị]],-Table1[[#This Row],[Tổng giá trị]])) -> -694688 | Q35: -694688 | R35: =Table1[[#This Row],[Số còn phải thu ĐK]]+Table1[[#This Row],[Giá Trị HD sau CK]]-Table1[[#This Row],[Số tiền đã thu]] -> 0 | S35: =IF(Table1[[#This Row],[Ngày hóa đơn]]<>"",Table1[[#This Row],[Ngày hóa đơn]],Table1[[#This Row],[Ngày hạch toán]]) -> 2025-07-24 | T35: 50 | U35: =IF(Table1[[#This Row],[Ngày tính CN]]="","",S35+T35) -> 2025-09-12 | V35: =IF(Table1[[#This Row],[Hạn thanh toán]]="","",IF((U35-NOW())<0,0,(U35-NOW()))) -> 0 | Y35: Đã thanh toán | Z35: 2025-07-24 | AA35: 2025-08-15 | AB35: check xong | AD35: =VLOOKUP($A35,MA_KH!$A:$Q,MA_KH!O$1,0) -> SATRA | AE35: =VLOOKUP($A35,MA_KH!$A:$Q,MA_KH!P$1,0) -> CHI NHÁNH TỔNG CÔNG TY THƯƠNG MẠI SÀI GÒN - TNHH MỘT THÀNH VIÊN - TRUNG TÂM PHÁT TRIỂN ĐỊA ỐC SATRA
A36: SATRA-004 | B36: CN TCT TM SÀI GÒN – TNHH MTV – SIÊU THỊ SÀI GÒN | C36: 2025-02-08 | D36: MH002167 | E36: 2025-02-08 | F36: 1454 | G36: Các khoản hỗ trợ T12.2024 | H36: 446563 | I36: 0 | J36: 44656 | K36: 491219 | L36: Giảm công nợ | M36: 2025-02-19 | O36: =IF(Table1[[#This Row],[Phân loại]]="Tồn đầu kỳ",Table1[[#This Row],[Tổng giá trị]],0) -> 0 | P36: =IF(Table1[[#This Row],[Số còn phải thu ĐK]]<>0,0,IF(Table1[[#This Row],[Phân loại]]="Bán hàng",Table1[[#This Row],[Tổng giá trị]],-Table1[[#This Row],[Tổng giá trị]])) -> -491219 | Q36: -491219 | R36: =Table1[[#This Row],[Số còn phải thu ĐK]]+Table1[[#This Row],[Giá Trị HD sau CK]]-Table1[[#This Row],[Số tiền đã thu]] -> 0 | S36: =IF(Table1[[#This Row],[Ngày hóa đơn]]<>"",Table1[[#This Row],[Ngày hóa đơn]],Table1[[#This Row],[Ngày hạch toán]]) -> 2025-02-08 | T36: 50 | U36: =IF(Table1[[#This Row],[Ngày tính CN]]="","",S36+T36) -> 2025-03-30 | V36: =IF(Table1[[#This Row],[Hạn thanh toán]]="","",IF((U36-NOW())<0,0,(U36-NOW()))) -> 0 | Y36: Đã thanh toán | Z36: 2025-02-08 | AA36: 2025-02-19 | AB36: check xong | AD36: =VLOOKUP($A36,MA_KH!$A:$Q,MA_KH!O$1,0) -> SATRA | AE36: =VLOOKUP($A36,MA_KH!$A:$Q,MA_KH!P$1,0) -> CHI NHÁNH TỔNG CÔNG TY THƯƠNG MẠI SÀI GÒN - TNHH MỘT THÀNH VIÊN - TRUNG TÂM PHÁT TRIỂN ĐỊA ỐC SATRA
A37: SATRA-004 | B37: CN TCT TM SÀI GÒN – TNHH MTV – SIÊU THỊ SÀI GÒN | C37: 2025-05-07 | D37: MH002401 | E37: 2025-05-07 | F37: 4499 | G37: Hỗ trợ quý 1.2025 | H37: 1401345 | I37: 0 | J37: 140135 | K37: 1541480 | L37: Giảm công nợ | M37: 2025-05-20 | O37: =IF(Table1[[#This Row],[Phân loại]]="Tồn đầu kỳ",Table1[[#This Row],[Tổng giá trị]],0) -> 0 | P37: =IF(Table1[[#This Row],[Số còn phải thu ĐK]]<>0,0,IF(Table1[[#This Row],[Phân loại]]="Bán hàng",Table1[[#This Row],[Tổng giá trị]],-Table1[[#This Row],[Tổng giá trị]])) -> -1541480 | Q37: -1541480 | R37: =Table1[[#This Row],[Số còn phải thu ĐK]]+Table1[[#This Row],[Giá Trị HD sau CK]]-Table1[[#This Row],[Số tiền đã thu]] -> 0 | S37: =IF(Table1[[#This Row],[Ngày hóa đơn]]<>"",Table1[[#This Row],[Ngày hóa đơn]],Table1[[#This Row],[Ngày hạch toán]]) -> 2025-05-07 | T37: 50 | U37: =IF(Table1[[#This Row],[Ngày tính CN]]="","",S37+T37) -> 2025-06-26 | V37: =IF(Table1[[#This Row],[Hạn thanh toán]]="","",IF((U37-NOW())<0,0,(U37-NOW()))) -> 0 | Y37: Đã thanh toán | Z37: 2025-05-07 | AA37: 2025-05-20 | AB37: check xong | AD37: =VLOOKUP($A37,MA_KH!$A:$Q,MA_KH!O$1,0) -> SATRA | AE37: =VLOOKUP($A37,MA_KH!$A:$Q,MA_KH!P$1,0) -> CHI NHÁNH TỔNG CÔNG TY THƯƠNG MẠI SÀI GÒN - TNHH MỘT THÀNH VIÊN - TRUNG TÂM PHÁT TRIỂN ĐỊA ỐC SATRA
A38: SATRA-004 | B38: CN TCT TM SÀI GÒN – TNHH MTV – SIÊU THỊ SÀI GÒN | C38: 2025-07-24 | D38: MH002577 | E38: 2025-07-24 | F38: 6403 | G38: Hỗ trợ quý 2.2025 | H38: 1063027 | I38: 0 | J38: 106303 | K38: 1169330 | L38: Giảm công nợ | M38: 2025-08-15 | O38: =IF(Table1[[#This Row],[Phân loại]]="Tồn đầu kỳ",Table1[[#This Row],[Tổng giá trị]],0) -> 0 | P38: =IF(Table1[[#This Row],[Số còn phải thu ĐK]]<>0,0,IF(Table1[[#This Row],[Phân loại]]="Bán hàng",Table1[[#This Row],[Tổng giá trị]],-Table1[[#This Row],[Tổng giá trị]])) -> -1169330 | Q38: -1169330 | R38: =Table1[[#This Row],[Số còn phải thu ĐK]]+Table1[[#This Row],[Giá Trị HD sau CK]]-Table1[[#This Row],[Số tiền đã thu]] -> 0 | S38: =IF(Table1[[#This Row],[Ngày hóa đơn]]<>"",Table1[[#This Row],[Ngày hóa đơn]],Table1[[#This Row],[Ngày hạch toán]]) -> 2025-07-24 | T38: 50 | U38: =IF(Table1[[#This Row],[Ngày tính CN]]="","",S38+T38) -> 2025-09-12 | V38: =IF(Table1[[#This Row],[Hạn thanh toán]]="","",IF((U38-NOW())<0,0,(U38-NOW()))) -> 0 | Y38: Đã thanh toán | Z38: 2025-07-24 | AA38: 2025-08-15 | AB38: check xong | AD38: =VLOOKUP($A38,MA_KH!$A:$Q,MA_KH!O$1,0) -> SATRA | AE38: =VLOOKUP($A38,MA_KH!$A:$Q,MA_KH!P$1,0) -> CHI NHÁNH TỔNG CÔNG TY THƯƠNG MẠI SÀI GÒN - TNHH MỘT THÀNH VIÊN - TRUNG TÂM PHÁT TRIỂN ĐỊA ỐC SATRA
A39: SATRA-004 | B39: CN TCT TM SÀI GÒN – TNHH MTV – SIÊU THỊ SÀI GÒN | C39: 2025-10-24 | D39: MDV/PVH/00182 | E39: 2025-10-24 | F39: 8384 | G39: Chi phí hỗ trợ quý 3.2025 | H39: 1223740 | I39: 0 | J39: 122374 | K39: 1346114 | L39: Giảm công nợ | O39: =IF(Table1[[#This Row],[Phân loại]]="Tồn đầu kỳ",Table1[[#This Row],[Tổng giá trị]],0) -> 0 | P39: =IF(Table1[[#This Row],[Số còn phải thu ĐK]]<>0,0,IF(Table1[[#This Row],[Phân loại]]="Bán hàng",Table1[[#This Row],[Tổng giá trị]],-Table1[[#This Row],[Tổng giá trị]])) -> -1346114 | Q39: 0 | R39: =Table1[[#This Row],[Số còn phải thu ĐK]]+Table1[[#This Row],[Giá Trị HD sau CK]]-Table1[[#This Row],[Số tiền đã thu]] -> -1346114 | S39: =IF(Table1[[#This Row],[Ngày hóa đơn]]<>"",Table1[[#This Row],[Ngày hóa đơn]],Table1[[#This Row],[Ngày hạch toán]]) -> 2025-10-24 | T39: 50 | U39: =IF(Table1[[#This Row],[Ngày tính CN]]="","",S39+T39) -> 2025-12-13 | V39: =IF(Table1[[#This Row],[Hạn thanh toán]]="","",IF((U39-NOW())<0,0,(U39-NOW()))) -> 17.1829162 | X39: 0 | Y39: Chưa đến hạn thanh toán | Z39: 2025-10-24 | AA39: 00:00:00 | AB39: check xong | AD39: =VLOOKUP($A39,MA_KH!$A:$Q,MA_KH!O$1,0) -> SATRA | AE39: =VLOOKUP($A39,MA_KH!$A:$Q,MA_KH!P$1,0) -> CHI NHÁNH TỔNG CÔNG TY THƯƠNG MẠI SÀI GÒN - TNHH MỘT THÀNH VIÊN - TRUNG TÂM PHÁT TRIỂN ĐỊA ỐC SATRA
A40: SATRA-004 | B40: CN TCT TM SÀI GÒN – TNHH MTV – SIÊU THỊ SÀI GÒN | C40: 2025-10-28 | D40: MDV/PVH/00202 | E40: 2025-10-28 | F40: 8760 | G40: Hỗ trợ trưng bày - Truy thu Q1+2/2025 | H40: 82146 | I40: 0 | J40: 8215 | K40: 90361 | L40: Giảm công nợ | O40: =IF(Table1[[#This Row],[Phân loại]]="Tồn đầu kỳ",Table1[[#This Row],[Tổng giá trị]],0) -> 0 | P40: =IF(Table1[[#This Row],[Số còn phải thu ĐK]]<>0,0,IF(Table1[[#This Row],[Phân loại]]="Bán hàng",Table1[[#This Row],[Tổng giá trị]],-Table1[[#This Row],[Tổng giá trị]])) -> -90361 | Q40: 0 | R40: =Table1[[#This Row],[Số còn phải thu ĐK]]+Table1[[#This Row],[Giá Trị HD sau CK]]-Table1[[#This Row],[Số tiền đã thu]] -> -90361 | S40: =IF(Table1[[#This Row],[Ngày hóa đơn]]<>"",Table1[[#This Row],[Ngày hóa đơn]],Table1[[#This Row],[Ngày hạch toán]]) -> 2025-10-28 | T40: 50 | U40: =IF(Table1[[#This Row],[Ngày tính CN]]="","",S40+T40) -> 2025-12-17 | V40: =IF(Table1[[#This Row],[Hạn thanh toán]]="","",IF((U40-NOW())<0,0,(U40-NOW()))) -> 21.1829162 | X40: 0 | Y40: Chưa đến hạn thanh toán | Z40: 2025-10-28 | AA40: 00:00:00 | AB40: check xong | AD40: =VLOOKUP($A40,MA_KH!$A:$Q,MA_KH!O$1,0) -> SATRA | AE40: =VLOOKUP($A40,MA_KH!$A:$Q,MA_KH!P$1,0) -> CHI NHÁNH TỔNG CÔNG TY THƯƠNG MẠI SÀI GÒN - TNHH MỘT THÀNH VIÊN - TRUNG TÂM PHÁT TRIỂN ĐỊA ỐC SATRA
A41: SATRA-020 | B41: TTTM Satra đường Phạm Hùng | E41: 2024-02-07 | F41: 00008244 | G41: TTTM Satra đường Phạm Hùng | H41: 7261760 | I41: 0 | J41: 580941 | K41: 7842701 | L41: Tồn đầu kỳ | M41: 2025-06-05 | O41: =IF(Table1[[#This Row],[Phân loại]]="Tồn đầu kỳ",Table1[[#This Row],[Tổng giá trị]],0) -> 7842701 | P41: =IF(Table1[[#This Row],[Số còn phải thu ĐK]]<>0,0,IF(Table1[[#This Row],[Phân loại]]="Bán hàng",Table1[[#This Row],[Tổng giá trị]],-Table1[[#This Row],[Tổng giá trị]])) -> 0 | Q41: 7842701 | R41: =Table1[[#This Row],[Số còn phải thu ĐK]]+Table1[[#This Row],[Giá Trị HD sau CK]]-Table1[[#This Row],[Số tiền đã thu]] -> 0 | S41: =IF(Table1[[#This Row],[Ngày hóa đơn]]<>"",Table1[[#This Row],[Ngày hóa đơn]],Table1[[#This Row],[Ngày hạch toán]]) -> 2024-02-07 | U41: =IF(Table1[[#This Row],[Ngày tính CN]]="","",S41+T41) -> 2024-02-07 | V41: =IF(Table1[[#This Row],[Hạn thanh toán]]="","",IF((U41-NOW())<0,0,(U41-NOW()))) -> 0 | Y41: Đã thanh toán | Z41: 2024-02-07 | AA41: 2025-06-05 | AB41: check xong | AD41: =VLOOKUP($A41,MA_KH!$A:$Q,MA_KH!O$1,0) -> SATRA | AE41: =VLOOKUP($A41,MA_KH!$A:$Q,MA_KH!P$1,0) -> CHI NHÁNH TỔNG CÔNG TY THƯƠNG MẠI SÀI GÒN - TNHH MỘT THÀNH VIÊN - TRUNG TÂM PHÁT TRIỂN ĐỊA ỐC SATRA
A42: SATRA-020 | B42: TTTM Satra đường Phạm Hùng | E42: 2024-11-02 | F42: 00016705 | G42: Truy thu chi phí CT thẻ thành viên quý 01+2.2024 | H42: -48343 | I42: 0 | J42: -4834 | K42: -53177 | L42: Tồn đầu kỳ | M42: 2025-06-05 | O42: =IF(Table1[[#This Row],[Phân loại]]="Tồn đầu kỳ",Table1[[#This Row],[Tổng giá trị]],0) -> -53177 | P42: =IF(Table1[[#This Row],[Số còn phải thu ĐK]]<>0,0,IF(Table1[[#This Row],[Phân loại]]="Bán hàng",Table1[[#This Row],[Tổng giá trị]],-Table1[[#This Row],[Tổng giá trị]])) -> 0 | Q42: -53177 | R42: =Table1[[#This Row],[Số còn phải thu ĐK]]+Table1[[#This Row],[Giá Trị HD sau CK]]-Table1[[#This Row],[Số tiền đã thu]] -> 0 | S42: =IF(Table1[[#This Row],[Ngày hóa đơn]]<>"",Table1[[#This Row],[Ngày hóa đơn]],Table1[[#This Row],[Ngày hạch toán]]) -> 2024-11-02 | U42: =IF(Table1[[#This Row],[Ngày tính CN]]="","",S42+T42) -> 2024-11-02 | V42: =IF(Table1[[#This Row],[Hạn thanh toán]]="","",IF((U42-NOW())<0,0,(U42-NOW()))) -> 0 | Y42: Đã thanh toán | Z42: 2024-11-02 | AA42: 2025-06-05 | AB42: check xong | AD42: =VLOOKUP($A42,MA_KH!$A:$Q,MA_KH!O$1,0) -> SATRA | AE42: =VLOOKUP($A42,MA_KH!$A:$Q,MA_KH!P$1,0) -> CHI NHÁNH TỔNG CÔNG TY THƯƠNG MẠI SÀI GÒN - TNHH MỘT THÀNH VIÊN - TRUNG TÂM PHÁT TRIỂN ĐỊA ỐC SATRA
A43: SATRA-020 | B43: TTTM Satra đường Phạm Hùng | E43: 2024-11-06 | F43: 00017137 | G43: Hỗ trợ thẻ KHTT- Quý 3.2024 | H43: -883583 | I43: 0 | J43: -88358 | K43: -971941 | L43: Tồn đầu kỳ | M43: 2025-06-05 | O43: =IF(Table1[[#This Row],[Phân loại]]="Tồn đầu kỳ",Table1[[#This Row],[Tổng giá trị]],0) -> -971941 | P43: =IF(Table1[[#This Row],[Số còn phải thu ĐK]]<>0,0,IF(Table1[[#This Row],[Phân loại]]="Bán hàng",Table1[[#This Row],[Tổng giá trị]],-Table1[[#This Row],[Tổng giá trị]])) -> 0 | Q43: -971941 | R43: =Table1[[#This Row],[Số còn phải thu ĐK]]+Table1[[#This Row],[Giá Trị HD sau CK]]-Table1[[#This Row],[Số tiền đã thu]] -> 0 | S43: =IF(Table1[[#This Row],[Ngày hóa đơn]]<>"",Table1[[#This Row],[Ngày hóa đơn]],Table1[[#This Row],[Ngày hạch toán]]) -> 2024-11-06 | U43: =IF(Table1[[#This Row],[Ngày tính CN]]="","",S43+T43) -> 2024-11-06 | V43: =IF(Table1[[#This Row],[Hạn thanh toán]]="","",IF((U43-NOW())<0,0,(U43-NOW()))) -> 0 | Y43: Đã thanh toán | Z43: 2024-11-06 | AA43: 2025-06-05 | AB43: check xong | AD43: =VLOOKUP($A43,MA_KH!$A:$Q,MA_KH!O$1,0) -> SATRA | AE43: =VLOOKUP($A43,MA_KH!$A:$Q,MA_KH!P$1,0) -> CHI NHÁNH TỔNG CÔNG TY THƯƠNG MẠI SÀI GÒN - TNHH MỘT THÀNH VIÊN - TRUNG TÂM PHÁT TRIỂN ĐỊA ỐC SATRA
A44: SATRA-020 | B44: TTTM Satra đường Phạm Hùng | E44: 2024-11-28 | F44: 00018974 | G44: Hỗ trợ thẻ KHTT- tháng 10/2024 | H44: -171909 | I44: 0 | J44: -17191 | K44: -189100 | L44: Tồn đầu kỳ | M44: 2025-06-05 | O44: =IF(Table1[[#This Row],[Phân loại]]="Tồn đầu kỳ",Table1[[#This Row],[Tổng giá trị]],0) -> -189100 | P44: =IF(Table1[[#This Row],[Số còn phải thu ĐK]]<>0,0,IF(Table1[[#This Row],[Phân loại]]="Bán hàng",Table1[[#This Row],[Tổng giá trị]],-Table1[[#This Row],[Tổng giá trị]])) -> 0 | Q44: -189100 | R44: =Table1[[#This Row],[Số còn phải thu ĐK]]+Table1[[#This Row],[Giá Trị HD sau CK]]-Table1[[#This Row],[Số tiền đã thu]] -> 0 | S44: =IF(Table1[[#This Row],[Ngày hóa đơn]]<>"",Table1[[#This Row],[Ngày hóa đơn]],Table1[[#This Row],[Ngày hạch toán]]) -> 2024-11-28 | U44: =IF(Table1[[#This Row],[Ngày tính CN]]="","",S44+T44) -> 2024-11-28 | V44: =IF(Table1[[#This Row],[Hạn thanh toán]]="","",IF((U44-NOW())<0,0,(U44-NOW()))) -> 0 | Y44: Đã thanh toán | Z44: 2024-11-28 | AA44: 2025-06-05 | AB44: check xong | AD44: =VLOOKUP($A44,MA_KH!$A:$Q,MA_KH!O$1,0) -> SATRA | AE44: =VLOOKUP($A44,MA_KH!$A:$Q,MA_KH!P$1,0) -> CHI NHÁNH TỔNG CÔNG TY THƯƠNG MẠI SÀI GÒN - TNHH MỘT THÀNH VIÊN - TRUNG TÂM PHÁT TRIỂN ĐỊA ỐC SATRA
A45: SATRA-020 | B45: TTTM Satra đường Phạm Hùng | E45: 2024-12-09 | F45: 00070184 | G45: TTTM Satra đường Phạm Hùng | H45: 2700755 | I45: 0 | J45: 216060 | K45: 2916815 | L45: Tồn đầu kỳ | M45: 2025-06-05 | O45: =IF(Table1[[#This Row],[Phân loại]]="Tồn đầu kỳ",Table1[[#This Row],[Tổng giá trị]],0) -> 2916815 | P45: =IF(Table1[[#This Row],[Số còn phải thu ĐK]]<>0,0,IF(Table1[[#This Row],[Phân loại]]="Bán hàng",Table1[[#This Row],[Tổng giá trị]],-Table1[[#This Row],[Tổng giá trị]])) -> 0 | Q45: 2916815 | R45: =Table1[[#This Row],[Số còn phải thu ĐK]]+Table1[[#This Row],[Giá Trị HD sau CK]]-Table1[[#This Row],[Số tiền đã thu]] -> 0 | S45: =IF(Table1[[#This Row],[Ngày hóa đơn]]<>"",Table1[[#This Row],[Ngày hóa đơn]],Table1[[#This Row],[Ngày hạch toán]]) -> 2024-12-09 | U45: =IF(Table1[[#This Row],[Ngày tính CN]]="","",S45+T45) -> 2024-12-09 | V45: =IF(Table1[[#This Row],[Hạn thanh toán]]="","",IF((U45-NOW())<0,0,(U45-NOW()))) -> 0 | Y45: Đã thanh toán | Z45: 2024-12-09 | AA45: 2025-06-05 | AB45: check xong | AD45: =VLOOKUP($A45,MA_KH!$A:$Q,MA_KH!O$1,0) -> SATRA | AE45: =VLOOKUP($A45,MA_KH!$A:$Q,MA_KH!P$1,0) -> CHI NHÁNH TỔNG CÔNG TY THƯƠNG MẠI SÀI GÒN - TNHH MỘT THÀNH VIÊN - TRUNG TÂM PHÁT TRIỂN ĐỊA ỐC SATRA
A46: SATRA-020 | B46: TTTM Satra đường Phạm Hùng | E46: 2024-12-23 | F46: 00073240 | G46: TTTM Satra đường Phạm Hùng | H46: 2896570 | I46: 0 | J46: 231726 | K46: 3128296 | L46: Tồn đầu kỳ | M46: 2025-06-05 | O46: =IF(Table1[[#This Row],[Phân loại]]="Tồn đầu kỳ",Table1[[#This Row],[Tổng giá trị]],0) -> 3128296 | P46: =IF(Table1[[#This Row],[Số còn phải thu ĐK]]<>0,0,IF(Table1[[#This Row],[Phân loại]]="Bán hàng",Table1[[#This Row],[Tổng giá trị]],-Table1[[#This Row],[Tổng giá trị]])) -> 0 | Q46: 3128296 | R46: =Table1[[#This Row],[Số còn phải thu ĐK]]+Table1[[#This Row],[Giá Trị HD sau CK]]-Table1[[#This Row],[Số tiền đã thu]] -> 0 | S46: =IF(Table1[[#This Row],[Ngày hóa đơn]]<>"",Table1[[#This Row],[Ngày hóa đơn]],Table1[[#This Row],[Ngày hạch toán]]) -> 2024-12-23 | U46: =IF(Table1[[#This Row],[Ngày tính CN]]="","",S46+T46) -> 2024-12-23 | V46: =IF(Table1[[#This Row],[Hạn thanh toán]]="","",IF((U46-NOW())<0,0,(U46-NOW()))) -> 0 | Y46: Đã thanh toán | Z46: 2024-12-23 | AA46: 2025-06-05 | AB46: check xong | AD46: =VLOOKUP($A46,MA_KH!$A:$Q,MA_KH!O$1,0) -> SATRA | AE46: =VLOOKUP($A46,MA_KH!$A:$Q,MA_KH!P$1,0) -> CHI NHÁNH TỔNG CÔNG TY THƯƠNG MẠI SÀI GÒN - TNHH MỘT THÀNH VIÊN - TRUNG TÂM PHÁT TRIỂN ĐỊA ỐC SATRA
A47: SATRA-020 | B47: TTTM Satra đường Phạm Hùng | E47: 2024-12-25 | F47: 00020629 | G47: Hỗ trợ thẻ KHTT- tháng 11/2024 | H47: -144374 | I47: 0 | J47: -14437 | K47: -158811 | L47: Tồn đầu kỳ | M47: 2025-06-05 | O47: =IF(Table1[[#This Row],[Phân loại]]="Tồn đầu kỳ",Table1[[#This Row],[Tổng giá trị]],0) -> -158811 | P47: =IF(Table1[[#This Row],[Số còn phải thu ĐK]]<>0,0,IF(Table1[[#This Row],[Phân loại]]="Bán hàng",Table1[[#This Row],[Tổng giá trị]],-Table1[[#This Row],[Tổng giá trị]])) -> 0 | Q47: -158811 | R47: =Table1[[#This Row],[Số còn phải thu ĐK]]+Table1[[#This Row],[Giá Trị HD sau CK]]-Table1[[#This Row],[Số tiền đã thu]] -> 0 | S47: =IF(Table1[[#This Row],[Ngày hóa đơn]]<>"",Table1[[#This Row],[Ngày hóa đơn]],Table1[[#This Row],[Ngày hạch toán]]) -> 2024-12-25 | U47: =IF(Table1[[#This Row],[Ngày tính CN]]="","",S47+T47) -> 2024-12-25 | V47: =IF(Table1[[#This Row],[Hạn thanh toán]]="","",IF((U47-NOW())<0,0,(U47-NOW()))) -> 0 | Y47: Đã thanh toán | Z47: 2024-12-25 | AA47: 2025-06-05 | AB47: check xong | AD47: =VLOOKUP($A47,MA_KH!$A:$Q,MA_KH!O$1,0) -> SATRA | AE47: =VLOOKUP($A47,MA_KH!$A:$Q,MA_KH!P$1,0) -> CHI NHÁNH TỔNG CÔNG TY THƯƠNG MẠI SÀI GÒN - TNHH MỘT THÀNH VIÊN - TRUNG TÂM PHÁT TRIỂN ĐỊA ỐC SATRA
A48: SATRA-020 | B48: TTTM Satra đường Phạm Hùng | C48: 2025-01-24 | D48: BH2341395 | E48: 2025-01-24 | F48: 00006647 | G48: TTTM Satra đường Phạm Hùng | H48: 4504170 | I48: 0 | J48: 360334 | K48: 4864504 | L48: Bán hàng | O48: =IF(Table1[[#This Row],[Phân loại]]="Tồn đầu kỳ",Table1[[#This Row],[Tổng giá trị]],0) -> 0 | P48: =IF(Table1[[#This Row],[Số còn phải thu ĐK]]<>0,0,IF(Table1[[#This Row],[Phân loại]]="Bán hàng",Table1[[#This Row],[Tổng giá trị]],-Table1[[#This Row],[Tổng giá trị]])) -> 4864504 | Q48: 0 | R48: =Table1[[#This Row],[Số còn phải thu ĐK]]+Table1[[#This Row],[Giá Trị HD sau CK]]-Table1[[#This Row],[Số tiền đã thu]] -> 4864504 | S48: =IF(Table1[[#This Row],[Ngày hóa đơn]]<>"",Table1[[#This Row],[Ngày hóa đơn]],Table1[[#This Row],[Ngày hạch toán]]) -> 2025-01-24 | T48: 50 | U48: =IF(Table1[[#This Row],[Ngày tính CN]]="","",S48+T48) -> 2025-03-15 | V48: =IF(Table1[[#This Row],[Hạn thanh toán]]="","",IF((U48-NOW())<0,0,(U48-NOW()))) -> 0 | X48: 255.8170837 | Y48: Nợ quá hạn hơn 120 ngày có khả năng mất thanh toán | Z48: 2025-01-24 | AA48: 00:00:00 | AB48: check xong | AD48: =VLOOKUP($A48,MA_KH!$A:$Q,MA_KH!O$1,0) -> SATRA | AE48: =VLOOKUP($A48,MA_KH!$A:$Q,MA_KH!P$1,0) -> CHI NHÁNH TỔNG CÔNG TY THƯƠNG MẠI SÀI GÒN - TNHH MỘT THÀNH VIÊN - TRUNG TÂM PHÁT TRIỂN ĐỊA ỐC SATRA
A49: SATRA-020 | B49: TTTM Satra đường Phạm Hùng | C49: 2025-02-11 | D49: BH2342162 | E49: 2025-02-11 | F49: 00008859 | G49: TTTM Satra đường Phạm Hùng | H49: 1785990 | I49: 0 | J49: 142879 | K49: 1928869 | L49: Bán hàng | O49: =IF(Table1[[#This Row],[Phân loại]]="Tồn đầu kỳ",Table1[[#This Row],[Tổng giá trị]],0) -> 0 | P49: =IF(Table1[[#This Row],[Số còn phải thu ĐK]]<>0,0,IF(Table1[[#This Row],[Phân loại]]="Bán hàng",Table1[[#This Row],[Tổng giá trị]],-Table1[[#This Row],[Tổng giá trị]])) -> 1928869 | Q49: 0 | R49: =Table1[[#This Row],[Số còn phải thu ĐK]]+Table1[[#This Row],[Giá Trị HD sau CK]]-Table1[[#This Row],[Số tiền đã thu]] -> 1928869 | S49: =IF(Table1[[#This Row],[Ngày hóa đơn]]<>"",Table1[[#This Row],[Ngày hóa đơn]],Table1[[#This Row],[Ngày hạch toán]]) -> 2025-02-11 | T49: 50 | U49: =IF(Table1[[#This Row],[Ngày tính CN]]="","",S49+T49) -> 2025-04-02 | V49: =IF(Table1[[#This Row],[Hạn thanh toán]]="","",IF((U49-NOW())<0,0,(U49-NOW()))) -> 0 | X49: 237.8170838 | Y49: Nợ quá hạn hơn 120 ngày có khả năng mất thanh toán | Z49: 2025-02-11 | AA49: 00:00:00 | AB49: check xong | AD49: =VLOOKUP($A49,MA_KH!$A:$Q,MA_KH!O$1,0) -> SATRA | AE49: =VLOOKUP($A49,MA_KH!$A:$Q,MA_KH!P$1,0) -> CHI NHÁNH TỔNG CÔNG TY THƯƠNG MẠI SÀI GÒN - TNHH MỘT THÀNH VIÊN - TRUNG TÂM PHÁT TRIỂN ĐỊA ỐC SATRA
A50: SATRA-020 | B50: TTTM Satra đường Phạm Hùng | C50: 2025-02-17 | D50: BH2342455 | E50: 2025-02-17 | F50: 00010534 | G50: TTTM Satra đường Phạm Hùng | H50: 2968970 | I50: 0 | J50: 237518 | K50: 3206488 | L50: Bán hàng | M50: 2025-06-05 | O50: =IF(Table1[[#This Row],[Phân loại]]="Tồn đầu kỳ",Table1[[#This Row],[Tổng giá trị]],0) -> 0 | P50: =IF(Table1[[#This Row],[Số còn phải thu ĐK]]<>0,0,IF(Table1[[#This Row],[Phân loại]]="Bán hàng",Table1[[#This Row],[Tổng giá trị]],-Table1[[#This Row],[Tổng giá trị]])) -> 3206488 | Q50: 3206488 | R50: =Table1[[#This Row],[Số còn phải thu ĐK]]+Table1[[#This Row],[Giá Trị HD sau CK]]-Table1[[#This Row],[Số tiền đã thu]] -> 0 | S50: =IF(Table1[[#This Row],[Ngày hóa đơn]]<>"",Table1[[#This Row],[Ngày hóa đơn]],Table1[[#This Row],[Ngày hạch toán]]) -> 2025-02-17 | T50: 50 | U50: =IF(Table1[[#This Row],[Ngày tính CN]]="","",S50+T50) -> 2025-04-08 | V50: =IF(Table1[[#This Row],[Hạn thanh toán]]="","",IF((U50-NOW())<0,0,(U50-NOW()))) -> 0 | Y50: Đã thanh toán | Z50: 2025-02-17 | AA50: 2025-06-05 | AB50: check xong | AD50: =VLOOKUP($A50,MA_KH!$A:$Q,MA_KH!O$1,0) -> SATRA | AE50: =VLOOKUP($A50,MA_KH!$A:$Q,MA_KH!P$1,0) -> CHI NHÁNH TỔNG CÔNG TY THƯƠNG MẠI SÀI GÒN - TNHH MỘT THÀNH VIÊN - TRUNG TÂM PHÁT TRIỂN ĐỊA ỐC SATRA
A51: SATRA-020 | B51: TTTM Satra đường Phạm Hùng | C51: 2025-03-24 | D51: BH2345286 | E51: 2025-03-24 | F51: 00018860 | G51: TTTM Satra đường Phạm Hùng | H51: 1289600 | I51: 0 | J51: 103168 | K51: 1392768 | L51: Bán hàng | M51: 2025-08-14 | O51: =IF(Table1[[#This Row],[Phân loại]]="Tồn đầu kỳ",Table1[[#This Row],[Tổng giá trị]],0) -> 0 | P51: =IF(Table1[[#This Row],[Số còn phải thu ĐK]]<>0,0,IF(Table1[[#This Row],[Phân loại]]="Bán hàng",Table1[[#This Row],[Tổng giá trị]],-Table1[[#This Row],[Tổng giá trị]])) -> 1392768 | Q51: 1392768 | R51: =Table1[[#This Row],[Số còn phải thu ĐK]]+Table1[[#This Row],[Giá Trị HD sau CK]]-Table1[[#This Row],[Số tiền đã thu]] -> 0 | S51: =IF(Table1[[#This Row],[Ngày hóa đơn]]<>"",Table1[[#This Row],[Ngày hóa đơn]],Table1[[#This Row],[Ngày hạch toán]]) -> 2025-03-24 | T51: 50 | U51: =IF(Table1[[#This Row],[Ngày tính CN]]="","",S51+T51) -> 2025-05-13 | V51: =IF(Table1[[#This Row],[Hạn thanh toán]]="","",IF((U51-NOW())<0,0,(U51-NOW()))) -> 0 | Y51: Đã thanh toán | Z51: 2025-03-24 | AA51: 2025-08-14 | AB51: check xong | AD51: =VLOOKUP($A51,MA_KH!$A:$Q,MA_KH!O$1,0) -> SATRA | AE51: =VLOOKUP($A51,MA_KH!$A:$Q,MA_KH!P$1,0) -> CHI NHÁNH TỔNG CÔNG TY THƯƠNG MẠI SÀI GÒN - TNHH MỘT THÀNH VIÊN - TRUNG TÂM PHÁT TRIỂN ĐỊA ỐC SATRA
A52: SATRA-020 | B52: TTTM Satra đường Phạm Hùng | C52: 2025-04-28 | D52: BH2347810 | E52: 2025-04-28 | F52: 00026703 | G52: TTTM Satra đường Phạm Hùng | H52: 1884930 | I52: 0 | J52: 150794 | K52: 2035724 | L52: Bán hàng | M52: 2025-08-14 | O52: =IF(Table1[[#This Row],[Phân loại]]="Tồn đầu kỳ",Table1[[#This Row],[Tổng giá trị]],0) -> 0 | P52: =IF(Table1[[#This Row],[Số còn phải thu ĐK]]<>0,0,IF(Table1[[#This Row],[Phân loại]]="Bán hàng",Table1[[#This Row],[Tổng giá trị]],-Table1[[#This Row],[Tổng giá trị]])) -> 2035724 | Q52: 2035724 | R52: =Table1[[#This Row],[Số còn phải thu ĐK]]+Table1[[#This Row],[Giá Trị HD sau CK]]-Table1[[#This Row],[Số tiền đã thu]] -> 0 | S52: =IF(Table1[[#This Row],[Ngày hóa đơn]]<>"",Table1[[#This Row],[Ngày hóa đơn]],Table1[[#This Row],[Ngày hạch toán]]) -> 2025-04-28 | T52: 50 | U52: =IF(Table1[[#This Row],[Ngày tính CN]]="","",S52+T52) -> 2025-06-17 | V52: =IF(Table1[[#This Row],[Hạn thanh toán]]="","",IF((U52-NOW())<0,0,(U52-NOW()))) -> 0 | Y52: Đã thanh toán | Z52: 2025-04-28 | AA52: 2025-08-14 | AB52: check xong | AD52: =VLOOKUP($A52,MA_KH!$A:$Q,MA_KH!O$1,0) -> SATRA | AE52: =VLOOKUP($A52,MA_KH!$A:$Q,MA_KH!P$1,0) -> CHI NHÁNH TỔNG CÔNG TY THƯƠNG MẠI SÀI GÒN - TNHH MỘT THÀNH VIÊN - TRUNG TÂM PHÁT TRIỂN ĐỊA ỐC SATRA
A53: SATRA-020 | B53: TTTM Satra đường Phạm Hùng | C53: 2025-05-27 | D53: BH2349894 | E53: 2025-05-27 | F53: 00032855 | G53: TTTM Satra đường Phạm Hùng | H53: 1190660 | I53: 0 | J53: 95253 | K53: 1285913 | L53: Bán hàng | M53: 2025-08-14 | O53: =IF(Table1[[#This Row],[Phân loại]]="Tồn đầu kỳ",Table1[[#This Row],[Tổng giá trị]],0) -> 0 | P53: =IF(Table1[[#This Row],[Số còn phải thu ĐK]]<>0,0,IF(Table1[[#This Row],[Phân loại]]="Bán hàng",Table1[[#This Row],[Tổng giá trị]],-Table1[[#This Row],[Tổng giá trị]])) -> 1285913 | Q53: 1285913 | R53: =Table1[[#This Row],[Số còn phải thu ĐK]]+Table1[[#This Row],[Giá Trị HD sau CK]]-Table1[[#This Row],[Số tiền đã thu]] -> 0 | S53: =IF(Table1[[#This Row],[Ngày hóa đơn]]<>"",Table1[[#This Row],[Ngày hóa đơn]],Table1[[#This Row],[Ngày hạch toán]]) -> 2025-05-27 | T53: 50 | U53: =IF(Table1[[#This Row],[Ngày tính CN]]="","",S53+T53) -> 2025-07-16 | V53: =IF(Table1[[#This Row],[Hạn thanh toán]]="","",IF((U53-NOW())<0,0,(U53-NOW()))) -> 0 | Y53: Đã thanh toán | Z53: 2025-05-27 | AA53: 2025-08-14 | AB53: check xong | AD53: =VLOOKUP($A53,MA_KH!$A:$Q,MA_KH!O$1,0) -> SATRA | AE53: =VLOOKUP($A53,MA_KH!$A:$Q,MA_KH!P$1,0) -> CHI NHÁNH TỔNG CÔNG TY THƯƠNG MẠI SÀI GÒN - TNHH MỘT THÀNH VIÊN - TRUNG TÂM PHÁT TRIỂN ĐỊA ỐC SATRA
A54: SATRA-020 | B54: TTTM Satra đường Phạm Hùng | C54: 2025-06-09 | D54: BH2350835 | E54: 2025-06-09 | F54: 00035869 | G54: TTTM Satra đường Phạm Hùng | H54: 2480260 | I54: 0 | J54: 198421 | K54: 2678681 | L54: Bán hàng | M54: 2025-08-14 | O54: =IF(Table1[[#This Row],[Phân loại]]="Tồn đầu kỳ",Table1[[#This Row],[Tổng giá trị]],0) -> 0 | P54: =IF(Table1[[#This Row],[Số còn phải thu ĐK]]<>0,0,IF(Table1[[#This Row],[Phân loại]]="Bán hàng",Table1[[#This Row],[Tổng giá trị]],-Table1[[#This Row],[Tổng giá trị]])) -> 2678681 | Q54: 2678681 | R54: =Table1[[#This Row],[Số còn phải thu ĐK]]+Table1[[#This Row],[Giá Trị HD sau CK]]-Table1[[#This Row],[Số tiền đã thu]] -> 0 | S54: =IF(Table1[[#This Row],[Ngày hóa đơn]]<>"",Table1[[#This Row],[Ngày hóa đơn]],Table1[[#This Row],[Ngày hạch toán]]) -> 2025-06-09 | T54: 50 | U54: =IF(Table1[[#This Row],[Ngày tính CN]]="","",S54+T54) -> 2025-07-29 | V54: =IF(Table1[[#This Row],[Hạn thanh toán]]="","",IF((U54-NOW())<0,0,(U54-NOW()))) -> 0 | Y54: Đã thanh toán | Z54: 2025-06-09 | AA54: 2025-08-14 | AB54: check xong | AD54: =VLOOKUP($A54,MA_KH!$A:$Q,MA_KH!O$1,0) -> SATRA | AE54: =VLOOKUP($A54,MA_KH!$A:$Q,MA_KH!P$1,0) -> CHI NHÁNH TỔNG CÔNG TY THƯƠNG MẠI SÀI GÒN - TNHH MỘT THÀNH VIÊN - TRUNG TÂM PHÁT TRIỂN ĐỊA ỐC SATRA
A55: SATRA-020 | B55: TTTM Satra đường Phạm Hùng | C55: 2025-07-07 | D55: BH2352747 | E55: 2025-07-07 | F55: 00042415 | G55: P-000212738 | H55: 1190660 | I55: 0 | J55: 95253 | K55: 1285913 | L55: Bán hàng | M55: 2025-10-02 | O55: =IF(Table1[[#This Row],[Phân loại]]="Tồn đầu kỳ",Table1[[#This Row],[Tổng giá trị]],0) -> 0 | P55: =IF(Table1[[#This Row],[Số còn phải thu ĐK]]<>0,0,IF(Table1[[#This Row],[Phân loại]]="Bán hàng",Table1[[#This Row],[Tổng giá trị]],-Table1[[#This Row],[Tổng giá trị]])) -> 1285913 | Q55: 1285913 | R55: =Table1[[#This Row],[Số còn phải thu ĐK]]+Table1[[#This Row],[Giá Trị HD sau CK]]-Table1[[#This Row],[Số tiền đã thu]] -> 0 | S55: =IF(Table1[[#This Row],[Ngày hóa đơn]]<>"",Table1[[#This Row],[Ngày hóa đơn]],Table1[[#This Row],[Ngày hạch toán]]) -> 2025-07-07 | T55: 50 | U55: =IF(Table1[[#This Row],[Ngày tính CN]]="","",S55+T55) -> 2025-08-26 | V55: =IF(Table1[[#This Row],[Hạn thanh toán]]="","",IF((U55-NOW())<0,0,(U55-NOW()))) -> 0 | Y55: Đã thanh toán | Z55: 2025-07-07 | AA55: 2025-10-02 | AB55: check xong | AD55: =VLOOKUP($A55,MA_KH!$A:$Q,MA_KH!O$1,0) -> SATRA | AE55: =VLOOKUP($A55,MA_KH!$A:$Q,MA_KH!P$1,0) -> CHI NHÁNH TỔNG CÔNG TY THƯƠNG MẠI SÀI GÒN - TNHH MỘT THÀNH VIÊN - TRUNG TÂM PHÁT TRIỂN ĐỊA ỐC SATRA
A56: SATRA-020 | B56: TTTM Satra đường Phạm Hùng | C56: 2025-07-14 | D56: BH2353205 | E56: 2025-07-14 | F56: 00043932 | G56: P-000213109 | H56: 660880 | I56: 0 | J56: 52870 | K56: 713750 | L56: Bán hàng | M56: 2025-10-02 | O56: =IF(Table1[[#This Row],[Phân loại]]="Tồn đầu kỳ",Table1[[#This Row],[Tổng giá trị]],0) -> 0 | P56: =IF(Table1[[#This Row],[Số còn phải thu ĐK]]<>0,0,IF(Table1[[#This Row],[Phân loại]]="Bán hàng",Table1[[#This Row],[Tổng giá trị]],-Table1[[#This Row],[Tổng giá trị]])) -> 713750 | Q56: 713750 | R56: =Table1[[#This Row],[Số còn phải thu ĐK]]+Table1[[#This Row],[Giá Trị HD sau CK]]-Table1[[#This Row],[Số tiền đã thu]] -> 0 | S56: =IF(Table1[[#This Row],[Ngày hóa đơn]]<>"",Table1[[#This Row],[Ngày hóa đơn]],Table1[[#This Row],[Ngày hạch toán]]) -> 2025-07-14 | T56: 50 | U56: =IF(Table1[[#This Row],[Ngày tính CN]]="","",S56+T56) -> 2025-09-02 | V56: =IF(Table1[[#This Row],[Hạn thanh toán]]="","",IF((U56-NOW())<0,0,(U56-NOW()))) -> 0 | Y56: Đã thanh toán | Z56: 2025-07-14 | AA56: 2025-10-02 | AB56: check xong | AD56: =VLOOKUP($A56,MA_KH!$A:$Q,MA_KH!O$1,0) -> SATRA | AE56: =VLOOKUP($A56,MA_KH!$A:$Q,MA_KH!P$1,0) -> CHI NHÁNH TỔNG CÔNG TY THƯƠNG MẠI SÀI GÒN - TNHH MỘT THÀNH VIÊN - TRUNG TÂM PHÁT TRIỂN ĐỊA ỐC SATRA
A57: SATRA-020 | B57: TTTM Satra đường Phạm Hùng | C57: 2025-07-30 | D57: BH2354315 | E57: 2025-07-30 | F57: 00047675 | G57: P-000214095 | H57: 1716530 | I57: 0 | J57: 137322 | K57: 1853852 | L57: Bán hàng | M57: 2025-10-02 | O57: =IF(Table1[[#This Row],[Phân loại]]="Tồn đầu kỳ",Table1[[#This Row],[Tổng giá trị]],0) -> 0 | P57: =IF(Table1[[#This Row],[Số còn phải thu ĐK]]<>0,0,IF(Table1[[#This Row],[Phân loại]]="Bán hàng",Table1[[#This Row],[Tổng giá trị]],-Table1[[#This Row],[Tổng giá trị]])) -> 1853852 | Q57: 1853852 | R57: =Table1[[#This Row],[Số còn phải thu ĐK]]+Table1[[#This Row],[Giá Trị HD sau CK]]-Table1[[#This Row],[Số tiền đã thu]] -> 0 | S57: =IF(Table1[[#This Row],[Ngày hóa đơn]]<>"",Table1[[#This Row],[Ngày hóa đơn]],Table1[[#This Row],[Ngày hạch toán]]) -> 2025-07-30 | T57: 50 | U57: =IF(Table1[[#This Row],[Ngày tính CN]]="","",S57+T57) -> 2025-09-18 | V57: =IF(Table1[[#This Row],[Hạn thanh toán]]="","",IF((U57-NOW())<0,0,(U57-NOW()))) -> 0 | Y57: Đã thanh toán | Z57: 2025-07-30 | AA57: 2025-10-02 | AB57: check xong | AD57: =VLOOKUP($A57,MA_KH!$A:$Q,MA_KH!O$1,0) -> SATRA | AE57: =VLOOKUP($A57,MA_KH!$A:$Q,MA_KH!P$1,0) -> CHI NHÁNH TỔNG CÔNG TY THƯƠNG MẠI SÀI GÒN - TNHH MỘT THÀNH VIÊN - TRUNG TÂM PHÁT TRIỂN ĐỊA ỐC SATRA
A58: SATRA-020 | B58: TTTM Satra đường Phạm Hùng | C58: 2025-08-11 | D58: BH2355182 | E58: 2025-08-11 | F58: 00050757 | G58: P-000214779 | H58: 1440840 | I58: 0 | J58: 115267 | K58: 1556107 | L58: Bán hàng | O58: =IF(Table1[[#This Row],[Phân loại]]="Tồn đầu kỳ",Table1[[#This Row],[Tổng giá trị]],0) -> 0 | P58: =IF(Table1[[#This Row],[Số còn phải thu ĐK]]<>0,0,IF(Table1[[#This Row],[Phân loại]]="Bán hàng",Table1[[#This Row],[Tổng giá trị]],-Table1[[#This Row],[Tổng giá trị]])) -> 1556107 | Q58: 0 | R58: =Table1[[#This Row],[Số còn phải thu ĐK]]+Table1[[#This Row],[Giá Trị HD sau CK]]-Table1[[#This Row],[Số tiền đã thu]] -> 1556107 | S58: =IF(Table1[[#This Row],[Ngày hóa đơn]]<>"",Table1[[#This Row],[Ngày hóa đơn]],Table1[[#This Row],[Ngày hạch toán]]) -> 2025-08-11 | T58: 50 | U58: =IF(Table1[[#This Row],[Ngày tính CN]]="","",S58+T58) -> 2025-09-30 | V58: =IF(Table1[[#This Row],[Hạn thanh toán]]="","",IF((U58-NOW())<0,0,(U58-NOW()))) -> 0 | X58: 56.81708368 | Y58: Nợ quá hạn từ 30 ngày đến 60 ngày | Z58: 2025-08-11 | AA58: 00:00:00 | AB58: check xong | AD58: =VLOOKUP($A58,MA_KH!$A:$Q,MA_KH!O$1,0) -> SATRA | AE58: =VLOOKUP($A58,MA_KH!$A:$Q,MA_KH!P$1,0) -> CHI NHÁNH TỔNG CÔNG TY THƯƠNG MẠI SÀI GÒN - TNHH MỘT THÀNH VIÊN - TRUNG TÂM PHÁT TRIỂN ĐỊA ỐC SATRA
A59: SATRA-020 | B59: TTTM Satra đường Phạm Hùng | C59: 2025-08-26 | D59: BH2356500 | E59: 2025-08-26 | F59: 00054388 | G59: P-000215624 | H59: 1637490 | I59: 0 | J59: 130999 | K59: 1768489 | L59: Bán hàng | O59: =IF(Table1[[#This Row],[Phân loại]]="Tồn đầu kỳ",Table1[[#This Row],[Tổng giá trị]],0) -> 0 | P59: =IF(Table1[[#This Row],[Số còn phải thu ĐK]]<>0,0,IF(Table1[[#This Row],[Phân loại]]="Bán hàng",Table1[[#This Row],[Tổng giá trị]],-Table1[[#This Row],[Tổng giá trị]])) -> 1768489 | Q59: 0 | R59: =Table1[[#This Row],[Số còn phải thu ĐK]]+Table1[[#This Row],[Giá Trị HD sau CK]]-Table1[[#This Row],[Số tiền đã thu]] -> 1768489 | S59: =IF(Table1[[#This Row],[Ngày hóa đơn]]<>"",Table1[[#This Row],[Ngày hóa đơn]],Table1[[#This Row],[Ngày hạch toán]]) -> 2025-08-26 | T59: 50 | U59: =IF(Table1[[#This Row],[Ngày tính CN]]="","",S59+T59) -> 2025-10-15 | V59: =IF(Table1[[#This Row],[Hạn thanh toán]]="","",IF((U59-NOW())<0,0,(U59-NOW()))) -> 0 | X59: 41.8170838 | Y59: Nợ quá hạn từ 30 ngày đến 60 ngày | Z59: 2025-08-26 | AA59: 00:00:00 | AB59: check xong | AD59: =VLOOKUP($A59,MA_KH!$A:$Q,MA_KH!O$1,0) -> SATRA | AE59: =VLOOKUP($A59,MA_KH!$A:$Q,MA_KH!P$1,0) -> CHI NHÁNH TỔNG CÔNG TY THƯƠNG MẠI SÀI GÒN - TNHH MỘT THÀNH VIÊN - TRUNG TÂM PHÁT TRIỂN ĐỊA ỐC SATRA
A60: SATRA-020 | B60: TTTM Satra đường Phạm Hùng | C60: 2025-09-10 | D60: BH2357947 | E60: 2025-09-10 | F60: 00057992 | G60: P-000216192 | H60: 1557815 | I60: 0 | J60: 124625 | K60: 1682440 | L60: Bán hàng | O60: =IF(Table1[[#This Row],[Phân loại]]="Tồn đầu kỳ",Table1[[#This Row],[Tổng giá trị]],0) -> 0 | P60: =IF(Table1[[#This Row],[Số còn phải thu ĐK]]<>0,0,IF(Table1[[#This Row],[Phân loại]]="Bán hàng",Table1[[#This Row],[Tổng giá trị]],-Table1[[#This Row],[Tổng giá trị]])) -> 1682440 | Q60: 0 | R60: =Table1[[#This Row],[Số còn phải thu ĐK]]+Table1[[#This Row],[Giá Trị HD sau CK]]-Table1[[#This Row],[Số tiền đã thu]] -> 1682440 | S60: =IF(Table1[[#This Row],[Ngày hóa đơn]]<>"",Table1[[#This Row],[Ngày hóa đơn]],Table1[[#This Row],[Ngày hạch toán]]) -> 2025-09-10 | T60: 50 | U60: =IF(Table1[[#This Row],[Ngày tính CN]]="","",S60+T60) -> 2025-10-30 | V60: =IF(Table1[[#This Row],[Hạn thanh toán]]="","",IF((U60-NOW())<0,0,(U60-NOW()))) -> 0 | X60: 26.81708368 | Y60: Nợ quá hạn 30 ngày | Z60: 2025-09-10 | AA60: 00:00:00 | AB60: check xong | AD60: =VLOOKUP($A60,MA_KH!$A:$Q,MA_KH!O$1,0) -> SATRA | AE60: =VLOOKUP($A60,MA_KH!$A:$Q,MA_KH!P$1,0) -> CHI NHÁNH TỔNG CÔNG TY THƯƠNG MẠI SÀI GÒN - TNHH MỘT THÀNH VIÊN - TRUNG TÂM PHÁT TRIỂN ĐỊA ỐC SATRA
A61: SATRA-020 | B61: TTTM Satra đường Phạm Hùng | C61: 2025-10-29 | D61: BH2372436 | E61: 2025-10-29 | F61: 00071296 | G61: P-000218645 | H61: 2804885 | I61: 0 | J61: 224391 | K61: 3029276 | L61: Bán hàng | O61: =IF(Table1[[#This Row],[Phân loại]]="Tồn đầu kỳ",Table1[[#This Row],[Tổng giá trị]],0) -> 0 | P61: =IF(Table1[[#This Row],[Số còn phải thu ĐK]]<>0,0,IF(Table1[[#This Row],[Phân loại]]="Bán hàng",Table1[[#This Row],[Tổng giá trị]],-Table1[[#This Row],[Tổng giá trị]])) -> 3029276 | Q61: 0 | R61: =Table1[[#This Row],[Số còn phải thu ĐK]]+Table1[[#This Row],[Giá Trị HD sau CK]]-Table1[[#This Row],[Số tiền đã thu]] -> 3029276 | S61: =IF(Table1[[#This Row],[Ngày hóa đơn]]<>"",Table1[[#This Row],[Ngày hóa đơn]],Table1[[#This Row],[Ngày hạch toán]]) -> 2025-10-29 | T61: 50 | U61: =IF(Table1[[#This Row],[Ngày tính CN]]="","",S61+T61) -> 2025-12-18 | V61: =IF(Table1[[#This Row],[Hạn thanh toán]]="","",IF((U61-NOW())<0,0,(U61-NOW()))) -> 22.18291632 | X61: 0 | Y61: Chưa đến hạn thanh toán | Z61: 2025-10-29 | AA61: 00:00:00 | AB61: check xong | AD61: =VLOOKUP($A61,MA_KH!$A:$Q,MA_KH!O$1,0) -> SATRA | AE61: =VLOOKUP($A61,MA_KH!$A:$Q,MA_KH!P$1,0) -> CHI NHÁNH TỔNG CÔNG TY THƯƠNG MẠI SÀI GÒN - TNHH MỘT THÀNH VIÊN - TRUNG TÂM PHÁT TRIỂN ĐỊA ỐC SATRA
A62: SATRA-020 | B62: TTTM Satra đường Phạm Hùng | C62: 2025-03-27 | D62: HBTL25010905 | E62: 2025-03-27 | F62: 00004159 | G62: Hàng trả | H62: 819863 | I62: 0 | J62: 65589 | K62: 885452 | L62: Hàng trả | M62: 2025-08-14 | O62: =IF(Table1[[#This Row],[Phân loại]]="Tồn đầu kỳ",Table1[[#This Row],[Tổng giá trị]],0) -> 0 | P62: =IF(Table1[[#This Row],[Số còn phải thu ĐK]]<>0,0,IF(Table1[[#This Row],[Phân loại]]="Bán hàng",Table1[[#This Row],[Tổng giá trị]],-Table1[[#This Row],[Tổng giá trị]])) -> -885452 | Q62: -885452 | R62: =Table1[[#This Row],[Số còn phải thu ĐK]]+Table1[[#This Row],[Giá Trị HD sau CK]]-Table1[[#This Row],[Số tiền đã thu]] -> 0 | S62: =IF(Table1[[#This Row],[Ngày hóa đơn]]<>"",Table1[[#This Row],[Ngày hóa đơn]],Table1[[#This Row],[Ngày hạch toán]]) -> 2025-03-27 | T62: 50 | U62: =IF(Table1[[#This Row],[Ngày tính CN]]="","",S62+T62) -> 2025-05-16 | V62: =IF(Table1[[#This Row],[Hạn thanh toán]]="","",IF((U62-NOW())<0,0,(U62-NOW()))) -> 0 | Y62: Đã thanh toán | Z62: 2025-03-27 | AA62: 2025-08-14 | AB62: check xong | AD62: =VLOOKUP($A62,MA_KH!$A:$Q,MA_KH!O$1,0) -> SATRA | AE62: =VLOOKUP($A62,MA_KH!$A:$Q,MA_KH!P$1,0) -> CHI NHÁNH TỔNG CÔNG TY THƯƠNG MẠI SÀI GÒN - TNHH MỘT THÀNH VIÊN - TRUNG TÂM PHÁT TRIỂN ĐỊA ỐC SATRA
A63: SATRA-020 | B63: TTTM Satra đường Phạm Hùng | C63: 2025-04-29 | D63: HBTL25011207 | E63: 2025-04-29 | F63: 00005557 | G63: Hàng trả - phiếu HT0008363 - SATRA-020 | H63: 650922 | I63: 0 | J63: 52074 | K63: 702996 | L63: Hàng trả | M63: 2025-08-14 | O63: =IF(Table1[[#This Row],[Phân loại]]="Tồn đầu kỳ",Table1[[#This Row],[Tổng giá trị]],0) -> 0 | P63: =IF(Table1[[#This Row],[Số còn phải thu ĐK]]<>0,0,IF(Table1[[#This Row],[Phân loại]]="Bán hàng",Table1[[#This Row],[Tổng giá trị]],-Table1[[#This Row],[Tổng giá trị]])) -> -702996 | Q63: -702996 | R63: =Table1[[#This Row],[Số còn phải thu ĐK]]+Table1[[#This Row],[Giá Trị HD sau CK]]-Table1[[#This Row],[Số tiền đã thu]] -> 0 | S63: =IF(Table1[[#This Row],[Ngày hóa đơn]]<>"",Table1[[#This Row],[Ngày hóa đơn]],Table1[[#This Row],[Ngày hạch toán]]) -> 2025-04-29 | T63: 50 | U63: =IF(Table1[[#This Row],[Ngày tính CN]]="","",S63+T63) -> 2025-06-18 | V63: =IF(Table1[[#This Row],[Hạn thanh toán]]="","",IF((U63-NOW())<0,0,(U63-NOW()))) -> 0 | Y63: Đã thanh toán | Z63: 2025-04-29 | AA63: 2025-08-14 | AB63: check xong | AD63: =VLOOKUP($A63,MA_KH!$A:$Q,MA_KH!O$1,0) -> SATRA | AE63: =VLOOKUP($A63,MA_KH!$A:$Q,MA_KH!P$1,0) -> CHI NHÁNH TỔNG CÔNG TY THƯƠNG MẠI SÀI GÒN - TNHH MỘT THÀNH VIÊN - TRUNG TÂM PHÁT TRIỂN ĐỊA ỐC SATRA
A64: SATRA-020 | B64: TTTM Satra đường Phạm Hùng | C64: 2025-07-11 | D64: HBTL25012155 | E64: 2025-07-11 | F64: 00008417 | G64: Hàng trả - phiếu HT0009787 - SATRA-020 | H64: 736133 | I64: 0 | J64: 58891 | K64: 795024 | L64: Hàng trả | M64: 2025-08-14 | O64: =IF(Table1[[#This Row],[Phân loại]]="Tồn đầu kỳ",Table1[[#This Row],[Tổng giá trị]],0) -> 0 | P64: =IF(Table1[[#This Row],[Số còn phải thu ĐK]]<>0,0,IF(Table1[[#This Row],[Phân loại]]="Bán hàng",Table1[[#This Row],[Tổng giá trị]],-Table1[[#This Row],[Tổng giá trị]])) -> -795024 | Q64: -795024 | R64: =Table1[[#This Row],[Số còn phải thu ĐK]]+Table1[[#This Row],[Giá Trị HD sau CK]]-Table1[[#This Row],[Số tiền đã thu]] -> 0 | S64: =IF(Table1[[#This Row],[Ngày hóa đơn]]<>"",Table1[[#This Row],[Ngày hóa đơn]],Table1[[#This Row],[Ngày hạch toán]]) -> 2025-07-11 | T64: 50 | U64: =IF(Table1[[#This Row],[Ngày tính CN]]="","",S64+T64) -> 2025-08-30 | V64: =IF(Table1[[#This Row],[Hạn thanh toán]]="","",IF((U64-NOW())<0,0,(U64-NOW()))) -> 0 | Y64: Đã thanh toán | Z64: 2025-07-11 | AA64: 2025-08-14 | AB64: check xong | AD64: =VLOOKUP($A64,MA_KH!$A:$Q,MA_KH!O$1,0) -> SATRA | AE64: =VLOOKUP($A64,MA_KH!$A:$Q,MA_KH!P$1,0) -> CHI NHÁNH TỔNG CÔNG TY THƯƠNG MẠI SÀI GÒN - TNHH MỘT THÀNH VIÊN - TRUNG TÂM PHÁT TRIỂN ĐỊA ỐC SATRA
A65: SATRA-020 | B65: TTTM Satra đường Phạm Hùng | C65: 2025-08-14 | D65: HBTL2306/531 | E65: 2025-08-14 | F65: 00009240 | G65: Hàng trả - phiếu HCM/HT0010325 - SATRA-020 | H65: 423286 | I65: 0 | J65: 33863 | K65: 457149 | L65: Hàng trả | M65: 2025-10-02 | O65: =IF(Table1[[#This Row],[Phân loại]]="Tồn đầu kỳ",Table1[[#This Row],[Tổng giá trị]],0) -> 0 | P65: =IF(Table1[[#This Row],[Số còn phải thu ĐK]]<>0,0,IF(Table1[[#This Row],[Phân loại]]="Bán hàng",Table1[[#This Row],[Tổng giá trị]],-Table1[[#This Row],[Tổng giá trị]])) -> -457149 | Q65: -457149 | R65: =Table1[[#This Row],[Số còn phải thu ĐK]]+Table1[[#This Row],[Giá Trị HD sau CK]]-Table1[[#This Row],[Số tiền đã thu]] -> 0 | S65: =IF(Table1[[#This Row],[Ngày hóa đơn]]<>"",Table1[[#This Row],[Ngày hóa đơn]],Table1[[#This Row],[Ngày hạch toán]]) -> 2025-08-14 | T65: 50 | U65: =IF(Table1[[#This Row],[Ngày tính CN]]="","",S65+T65) -> 2025-10-03 | V65: =IF(Table1[[#This Row],[Hạn thanh toán]]="","",IF((U65-NOW())<0,0,(U65-NOW()))) -> 0 | Y65: Đã thanh toán | Z65: 2025-08-14 | AA65: 2025-10-02 | AB65: check xong | AD65: =VLOOKUP($A65,MA_KH!$A:$Q,MA_KH!O$1,0) -> SATRA | AE65: =VLOOKUP($A65,MA_KH!$A:$Q,MA_KH!P$1,0) -> CHI NHÁNH TỔNG CÔNG TY THƯƠNG MẠI SÀI GÒN - TNHH MỘT THÀNH VIÊN - TRUNG TÂM PHÁT TRIỂN ĐỊA ỐC SATRA
A66: SATRA-020 | B66: TTTM Satra đường Phạm Hùng | C66: 2025-02-23 | D66: MH002201 | E66: 2025-02-23 | F66: 00002487 | G66: Các khoản hỗ trợ T12.2024 | H66: 419799 | I66: 0 | J66: 41980 | K66: 461779 | L66: Giảm công nợ | M66: 2025-06-05 | O66: =IF(Table1[[#This Row],[Phân loại]]="Tồn đầu kỳ",Table1[[#This Row],[Tổng giá trị]],0) -> 0 | P66: =IF(Table1[[#This Row],[Số còn phải thu ĐK]]<>0,0,IF(Table1[[#This Row],[Phân loại]]="Bán hàng",Table1[[#This Row],[Tổng giá trị]],-Table1[[#This Row],[Tổng giá trị]])) -> -461779 | Q66: -461779 | R66: =Table1[[#This Row],[Số còn phải thu ĐK]]+Table1[[#This Row],[Giá Trị HD sau CK]]-Table1[[#This Row],[Số tiền đã thu]] -> 0 | S66: =IF(Table1[[#This Row],[Ngày hóa đơn]]<>"",Table1[[#This Row],[Ngày hóa đơn]],Table1[[#This Row],[Ngày hạch toán]]) -> 2025-02-23 | T66: 50 | U66: =IF(Table1[[#This Row],[Ngày tính CN]]="","",S66+T66) -> 2025-04-14 | V66: =IF(Table1[[#This Row],[Hạn thanh toán]]="","",IF((U66-NOW())<0,0,(U66-NOW()))) -> 0 | Y66: Đã thanh toán | Z66: 2025-02-23 | AA66: 2025-06-05 | AB66: check xong | AD66: =VLOOKUP($A66,MA_KH!$A:$Q,MA_KH!O$1,0) -> SATRA | AE66: =VLOOKUP($A66,MA_KH!$A:$Q,MA_KH!P$1,0) -> CHI NHÁNH TỔNG CÔNG TY THƯƠNG MẠI SÀI GÒN - TNHH MỘT THÀNH VIÊN - TRUNG TÂM PHÁT TRIỂN ĐỊA ỐC SATRA
A67: SATRA-020 | B67: TTTM Satra đường Phạm Hùng | C67: 2025-05-14 | D67: MH002447 | E67: 2025-05-14 | F67: 6337 | G67: Hỗ trợ quý 1.2025 | H67: 729666 | I67: 0 | J67: 72967 | K67: 802633 | L67: Giảm công nợ | M67: 2025-08-14 | O67: =IF(Table1[[#This Row],[Phân loại]]="Tồn đầu kỳ",Table1[[#This Row],[Tổng giá trị]],0) -> 0 | P67: =IF(Table1[[#This Row],[Số còn phải thu ĐK]]<>0,0,IF(Table1[[#This Row],[Phân loại]]="Bán hàng",Table1[[#This Row],[Tổng giá trị]],-Table1[[#This Row],[Tổng giá trị]])) -> -802633 | Q67: -802633 | R67: =Table1[[#This Row],[Số còn phải thu ĐK]]+Table1[[#This Row],[Giá Trị HD sau CK]]-Table1[[#This Row],[Số tiền đã thu]] -> 0 | S67: =IF(Table1[[#This Row],[Ngày hóa đơn]]<>"",Table1[[#This Row],[Ngày hóa đơn]],Table1[[#This Row],[Ngày hạch toán]]) -> 2025-05-14 | T67: 50 | U67: =IF(Table1[[#This Row],[Ngày tính CN]]="","",S67+T67) -> 2025-07-03 | V67: =IF(Table1[[#This Row],[Hạn thanh toán]]="","",IF((U67-NOW())<0,0,(U67-NOW()))) -> 0 | Y67: Đã thanh toán | Z67: 2025-05-14 | AA67: 2025-08-14 | AB67: check xong | AD67: =VLOOKUP($A67,MA_KH!$A:$Q,MA_KH!O$1,0) -> SATRA | AE67: =VLOOKUP($A67,MA_KH!$A:$Q,MA_KH!P$1,0) -> CHI NHÁNH TỔNG CÔNG TY THƯƠNG MẠI SÀI GÒN - TNHH MỘT THÀNH VIÊN - TRUNG TÂM PHÁT TRIỂN ĐỊA ỐC SATRA
A68: SATRA-020 | B68: TTTM Satra đường Phạm Hùng | C68: 2025-08-22 | D68: MDV/PVH/00056 | E68: 2025-08-22 | F68: 9523 | G68: Chi phí hỗ trợ quý 2.2025 | H68: 367869 | I68: 0 | J68: 36787 | K68: 404656 | L68: Giảm công nợ | O68: =IF(Table1[[#This Row],[Phân loại]]="Tồn đầu kỳ",Table1[[#This Row],[Tổng giá trị]],0) -> 0 | P68: =IF(Table1[[#This Row],[Số còn phải thu ĐK]]<>0,0,IF(Table1[[#This Row],[Phân loại]]="Bán hàng",Table1[[#This Row],[Tổng giá trị]],-Table1[[#This Row],[Tổng giá trị]])) -> -404656 | Q68: =IF(M68<>"",IF(O68<>0,O68,P68),0) -> 0 | R68: =Table1[[#This Row],[Số còn phải thu ĐK]]+Table1[[#This Row],[Giá Trị HD sau CK]]-Table1[[#This Row],[Số tiền đã thu]] -> -404656 | S68: =IF(Table1[[#This Row],[Ngày hóa đơn]]<>"",Table1[[#This Row],[Ngày hóa đơn]],Table1[[#This Row],[Ngày hạch toán]]) -> 2025-08-22 | T68: 50 | U68: =IF(Table1[[#This Row],[Ngày tính CN]]="","",S68+T68) -> 2025-10-11 | V68: =IF(Table1[[#This Row],[Hạn thanh toán]]="","",IF((U68-NOW())<0,0,(U68-NOW()))) -> 0 | X68: =IF(OR(U68="",R68=0),"",IF((U68-NOW())<0,-(U68-NOW()),0)) -> 45.8170838 | Y68: =IF(R68=0,"Đã thanh toán",IF(X68="","",IF(X68<=0,"Chưa đến hạn thanh toán",IF(X68<=30,"Nợ quá hạn 30 ngày",IF(X68<=60,"Nợ quá hạn từ 30 ngày đến 60 ngày",IF(X68<=90,"Nợ quá hạn từ 60 ngày đến 90 ngày",IF(X68<=120,"Nợ quá hạn từ 90 ngày đến 120 ngày","Nợ quá hạn hơn 120 ngày có khả năng mất thanh toán"))))))) -> Nợ quá hạn từ 30 ngày đến 60 ngày | Z68: =S68 -> 2025-08-22 | AA68: =M68 -> 00:00:00 | AB68: check xong | AD68: =VLOOKUP($A68,MA_KH!$A:$Q,MA_KH!O$1,0) -> SATRA | AE68: =VLOOKUP($A68,MA_KH!$A:$Q,MA_KH!P$1,0) -> CHI NHÁNH TỔNG CÔNG TY THƯƠNG MẠI SÀI GÒN - TNHH MỘT THÀNH VIÊN - TRUNG TÂM PHÁT TRIỂN ĐỊA ỐC SATRA
A69: SATRA-028 | B69: CHI NHÁNH TỔNG CÔNG TY THƯƠNG MẠI SÀI GÒN- TNHH MTV- TRUNG TÂM THƯƠNG MẠI SATRA VÕ VĂN KIỆT | C69: 2025-01-03 | D69: BH2339464 | E69: 2025-01-03 | F69: 00001126 | G69: CHI NHÁNH TỔNG CÔNG TY THƯƠNG MẠI SÀI GÒN- TNHH MTV- TRUNG TÂM THƯƠNG MẠI SATRA VÕ VĂN KIỆT | H69: 3402700 | I69: 340270 | J69: 244994 | K69: 3307424 | L69: Bán hàng | M69: 2025-03-10 | O69: =IF(Table1[[#This Row],[Phân loại]]="Tồn đầu kỳ",Table1[[#This Row],[Tổng giá trị]],0) -> 0 | P69: =IF(Table1[[#This Row],[Số còn phải thu ĐK]]<>0,0,IF(Table1[[#This Row],[Phân loại]]="Bán hàng",Table1[[#This Row],[Tổng giá trị]],-Table1[[#This Row],[Tổng giá trị]])) -> 3307424 | Q69: 3307424 | R69: =Table1[[#This Row],[Số còn phải thu ĐK]]+Table1[[#This Row],[Giá Trị HD sau CK]]-Table1[[#This Row],[Số tiền đã thu]] -> 0 | S69: =IF(Table1[[#This Row],[Ngày hóa đơn]]<>"",Table1[[#This Row],[Ngày hóa đơn]],Table1[[#This Row],[Ngày hạch toán]]) -> 2025-01-03 | T69: 50 | U69: =IF(Table1[[#This Row],[Ngày tính CN]]="","",S69+T69) -> 2025-02-22 | V69: =IF(Table1[[#This Row],[Hạn thanh toán]]="","",IF((U69-NOW())<0,0,(U69-NOW()))) -> 0 | Y69: Đã thanh toán | Z69: 2025-01-03 | AA69: 2025-03-10 | AB69: check xong | AD69: =VLOOKUP($A69,MA_KH!$A:$Q,MA_KH!O$1,0) -> SATRA | AE69: =VLOOKUP($A69,MA_KH!$A:$Q,MA_KH!P$1,0) -> CHI NHÁNH TỔNG CÔNG TY THƯƠNG MẠI SÀI GÒN - TNHH MỘT THÀNH VIÊN - TRUNG TÂM PHÁT TRIỂN ĐỊA ỐC SATRA
A70: SATRA-028 | B70: CHI NHÁNH TỔNG CÔNG TY THƯƠNG MẠI SÀI GÒN- TNHH MTV- TRUNG TÂM THƯƠNG MẠI SATRA VÕ VĂN KIỆT | C70: 2025-02-20 | D70: BH2342897 | E70: 2025-02-20 | F70: 00011853 | G70: CHI NHÁNH TỔNG CÔNG TY THƯƠNG MẠI SÀI GÒN- TNHH MTV- TRUNG TÂM THƯƠNG MẠI SATRA VÕ VĂN KIỆT | H70: 609194 | I70: 0 | J70: 48736 | K70: 657930 | L70: Bán hàng | O70: =IF(Table1[[#This Row],[Phân loại]]="Tồn đầu kỳ",Table1[[#This Row],[Tổng giá trị]],0) -> 0 | P70: =IF(Table1[[#This Row],[Số còn phải thu ĐK]]<>0,0,IF(Table1[[#This Row],[Phân loại]]="Bán hàng",Table1[[#This Row],[Tổng giá trị]],-Table1[[#This Row],[Tổng giá trị]])) -> 657930 | Q70: 0 | R70: =Table1[[#This Row],[Số còn phải thu ĐK]]+Table1[[#This Row],[Giá Trị HD sau CK]]-Table1[[#This Row],[Số tiền đã thu]] -> 657930 | S70: =IF(Table1[[#This Row],[Ngày hóa đơn]]<>"",Table1[[#This Row],[Ngày hóa đơn]],Table1[[#This Row],[Ngày hạch toán]]) -> 2025-02-20 | T70: 50 | U70: =IF(Table1[[#This Row],[Ngày tính CN]]="","",S70+T70) -> 2025-04-11 | V70: =IF(Table1[[#This Row],[Hạn thanh toán]]="","",IF((U70-NOW())<0,0,(U70-NOW()))) -> 0 | X70: 228.8170837 | Y70: Nợ quá hạn hơn 120 ngày có khả năng mất thanh toán | Z70: 2025-02-20 | AA70: 00:00:00 | AB70: check xong | AD70: =VLOOKUP($A70,MA_KH!$A:$Q,MA_KH!O$1,0) -> SATRA | AE70: =VLOOKUP($A70,MA_KH!$A:$Q,MA_KH!P$1,0) -> CHI NHÁNH TỔNG CÔNG TY THƯƠNG MẠI SÀI GÒN - TNHH MỘT THÀNH VIÊN - TRUNG TÂM PHÁT TRIỂN ĐỊA ỐC SATRA
A71: SATRA-028 | B71: CHI NHÁNH TỔNG CÔNG TY THƯƠNG MẠI SÀI GÒN- TNHH MTV- TRUNG TÂM THƯƠNG MẠI SATRA VÕ VĂN KIỆT | C71: 2025-02-21 | D71: BH2342996 | E71: 2025-02-21 | F71: 00012330 | G71: CHI NHÁNH TỔNG CÔNG TY THƯƠNG MẠI SÀI GÒN- TNHH MTV- TRUNG TÂM THƯƠNG MẠI SATRA VÕ VĂN KIỆT | H71: 4553320 | I71: 0 | J71: 364266 | K71: 4917586 | L71: Bán hàng | O71: =IF(Table1[[#This Row],[Phân loại]]="Tồn đầu kỳ",Table1[[#This Row],[Tổng giá trị]],0) -> 0 | P71: =IF(Table1[[#This Row],[Số còn phải thu ĐK]]<>0,0,IF(Table1[[#This Row],[Phân loại]]="Bán hàng",Table1[[#This Row],[Tổng giá trị]],-Table1[[#This Row],[Tổng giá trị]])) -> 4917586 | Q71: 0 | R71: =Table1[[#This Row],[Số còn phải thu ĐK]]+Table1[[#This Row],[Giá Trị HD sau CK]]-Table1[[#This Row],[Số tiền đã thu]] -> 4917586 | S71: =IF(Table1[[#This Row],[Ngày hóa đơn]]<>"",Table1[[#This Row],[Ngày hóa đơn]],Table1[[#This Row],[Ngày hạch toán]]) -> 2025-02-21 | T71: 50 | U71: =IF(Table1[[#This Row],[Ngày tính CN]]="","",S71+T71) -> 2025-04-12 | V71: =IF(Table1[[#This Row],[Hạn thanh toán]]="","",IF((U71-NOW())<0,0,(U71-NOW()))) -> 0 | X71: 227.8170837 | Y71: Nợ quá hạn hơn 120 ngày có khả năng mất thanh toán | Z71: 2025-02-21 | AA71: 00:00:00 | AB71: check xong | AD71: =VLOOKUP($A71,MA_KH!$A:$Q,MA_KH!O$1,0) -> SATRA | AE71: =VLOOKUP($A71,MA_KH!$A:$Q,MA_KH!P$1,0) -> CHI NHÁNH TỔNG CÔNG TY THƯƠNG MẠI SÀI GÒN - TNHH MỘT THÀNH VIÊN - TRUNG TÂM PHÁT TRIỂN ĐỊA ỐC SATRA
A72: SATRA-028 | B72: CHI NHÁNH TỔNG CÔNG TY THƯƠNG MẠI SÀI GÒN- TNHH MTV- TRUNG TÂM THƯƠNG MẠI SATRA VÕ VĂN KIỆT | C72: 2025-05-08 | D72: BH2348418 | E72: 2025-05-08 | F72: 00029062 | G72: CHI NHÁNH TỔNG CÔNG TY THƯƠNG MẠI SÀI GÒN- TNHH MTV- TRUNG TÂM THƯƠNG MẠI SATRA VÕ VĂN KIỆT | H72: 1491926 | I72: 0 | J72: 119354 | K72: 1611280 | L72: Bán hàng | M72: 2025-08-19 | O72: =IF(Table1[[#This Row],[Phân loại]]="Tồn đầu kỳ",Table1[[#This Row],[Tổng giá trị]],0) -> 0 | P72: =IF(Table1[[#This Row],[Số còn phải thu ĐK]]<>0,0,IF(Table1[[#This Row],[Phân loại]]="Bán hàng",Table1[[#This Row],[Tổng giá trị]],-Table1[[#This Row],[Tổng giá trị]])) -> 1611280 | Q72: 1611280 | R72: =Table1[[#This Row],[Số còn phải thu ĐK]]+Table1[[#This Row],[Giá Trị HD sau CK]]-Table1[[#This Row],[Số tiền đã thu]] -> 0 | S72: =IF(Table1[[#This Row],[Ngày hóa đơn]]<>"",Table1[[#This Row],[Ngày hóa đơn]],Table1[[#This Row],[Ngày hạch toán]]) -> 2025-05-08 | T72: 50 | U72: =IF(Table1[[#This Row],[Ngày tính CN]]="","",S72+T72) -> 2025-06-27 | V72: =IF(Table1[[#This Row],[Hạn thanh toán]]="","",IF((U72-NOW())<0,0,(U72-NOW()))) -> 0 | Y72: Đã thanh toán | Z72: 2025-05-08 | AA72: 2025-08-19 | AB72: check xong | AD72: =VLOOKUP($A72,MA_KH!$A:$Q,MA_KH!O$1,0) -> SATRA | AE72: =VLOOKUP($A72,MA_KH!$A:$Q,MA_KH!P$1,0) -> CHI NHÁNH TỔNG CÔNG TY THƯƠNG MẠI SÀI GÒN - TNHH MỘT THÀNH VIÊN - TRUNG TÂM PHÁT TRIỂN ĐỊA ỐC SATRA
A73: SATRA-028 | B73: CHI NHÁNH TỔNG CÔNG TY THƯƠNG MẠI SÀI GÒN- TNHH MTV- TRUNG TÂM THƯƠNG MẠI SATRA VÕ VĂN KIỆT | C73: 2025-05-23 | D73: BH2349704 | E73: 2025-05-23 | F73: 00032363 | G73: CHI NHÁNH TỔNG CÔNG TY THƯƠNG MẠI SÀI GÒN- TNHH MTV- TRUNG TÂM THƯƠNG MẠI SATRA VÕ VĂN KIỆT | H73: 976088 | I73: 0 | J73: 78087 | K73: 1054175 | L73: Bán hàng | M73: 2025-08-19 | O73: =IF(Table1[[#This Row],[Phân loại]]="Tồn đầu kỳ",Table1[[#This Row],[Tổng giá trị]],0) -> 0 | P73: =IF(Table1[[#This Row],[Số còn phải thu ĐK]]<>0,0,IF(Table1[[#This Row],[Phân loại]]="Bán hàng",Table1[[#This Row],[Tổng giá trị]],-Table1[[#This Row],[Tổng giá trị]])) -> 1054175 | Q73: 1054175 | R73: =Table1[[#This Row],[Số còn phải thu ĐK]]+Table1[[#This Row],[Giá Trị HD sau CK]]-Table1[[#This Row],[Số tiền đã thu]] -> 0 | S73: =IF(Table1[[#This Row],[Ngày hóa đơn]]<>"",Table1[[#This Row],[Ngày hóa đơn]],Table1[[#This Row],[Ngày hạch toán]]) -> 2025-05-23 | T73: 50 | U73: =IF(Table1[[#This Row],[Ngày tính CN]]="","",S73+T73) -> 2025-07-12 | V73: =IF(Table1[[#This Row],[Hạn thanh toán]]="","",IF((U73-NOW())<0,0,(U73-NOW()))) -> 0 | Y73: Đã thanh toán | Z73: 2025-05-23 | AA73: 2025-08-19 | AB73: check xong | AD73: =VLOOKUP($A73,MA_KH!$A:$Q,MA_KH!O$1,0) -> SATRA | AE73: =VLOOKUP($A73,MA_KH!$A:$Q,MA_KH!P$1,0) -> CHI NHÁNH TỔNG CÔNG TY THƯƠNG MẠI SÀI GÒN - TNHH MỘT THÀNH VIÊN - TRUNG TÂM PHÁT TRIỂN ĐỊA ỐC SATRA
A74: SATRA-028 | B74: CHI NHÁNH TỔNG CÔNG TY THƯƠNG MẠI SÀI GÒN- TNHH MTV- TRUNG TÂM THƯƠNG MẠI SATRA VÕ VĂN KIỆT | C74: 2025-07-17 | D74: BH2353576 | E74: 2025-07-17 | F74: 00044915 | G74: P-000007909 | H74: 781256 | I74: 0 | J74: 62500 | K74: 843756 | L74: Bán hàng | M74: 2025-08-19 | O74: =IF(Table1[[#This Row],[Phân loại]]="Tồn đầu kỳ",Table1[[#This Row],[Tổng giá trị]],0) -> 0 | P74: =IF(Table1[[#This Row],[Số còn phải thu ĐK]]<>0,0,IF(Table1[[#This Row],[Phân loại]]="Bán hàng",Table1[[#This Row],[Tổng giá trị]],-Table1[[#This Row],[Tổng giá trị]])) -> 843756 | Q74: 843756 | R74: =Table1[[#This Row],[Số còn phải thu ĐK]]+Table1[[#This Row],[Giá Trị HD sau CK]]-Table1[[#This Row],[Số tiền đã thu]] -> 0 | S74: =IF(Table1[[#This Row],[Ngày hóa đơn]]<>"",Table1[[#This Row],[Ngày hóa đơn]],Table1[[#This Row],[Ngày hạch toán]]) -> 2025-07-17 | T74: 50 | U74: =IF(Table1[[#This Row],[Ngày tính CN]]="","",S74+T74) -> 2025-09-05 | V74: =IF(Table1[[#This Row],[Hạn thanh toán]]="","",IF((U74-NOW())<0,0,(U74-NOW()))) -> 0 | Y74: Đã thanh toán | Z74: 2025-07-17 | AA74: 2025-08-19 | AB74: check xong | AD74: =VLOOKUP($A74,MA_KH!$A:$Q,MA_KH!O$1,0) -> SATRA | AE74: =VLOOKUP($A74,MA_KH!$A:$Q,MA_KH!P$1,0) -> CHI NHÁNH TỔNG CÔNG TY THƯƠNG MẠI SÀI GÒN - TNHH MỘT THÀNH VIÊN - TRUNG TÂM PHÁT TRIỂN ĐỊA ỐC SATRA
A75: SATRA-028 | B75: CHI NHÁNH TỔNG CÔNG TY THƯƠNG MẠI SÀI GÒN- TNHH MTV- TRUNG TÂM THƯƠNG MẠI SATRA VÕ VĂN KIỆT | C75: 2025-07-22 | D75: TBH0185 | E75: 2025-07-22 | F75: 00045743 | G75: P-000008058 | H75: 396528 | I75: 0 | J75: 31722 | K75: 428250 | L75: Bán hàng | M75: 2025-09-19 | O75: =IF(Table1[[#This Row],[Phân loại]]="Tồn đầu kỳ",Table1[[#This Row],[Tổng giá trị]],0) -> 0 | P75: =IF(Table1[[#This Row],[Số còn phải thu ĐK]]<>0,0,IF(Table1[[#This Row],[Phân loại]]="Bán hàng",Table1[[#This Row],[Tổng giá trị]],-Table1[[#This Row],[Tổng giá trị]])) -> 428250 | Q75: 428250 | R75: =Table1[[#This Row],[Số còn phải thu ĐK]]+Table1[[#This Row],[Giá Trị HD sau CK]]-Table1[[#This Row],[Số tiền đã thu]] -> 0 | S75: =IF(Table1[[#This Row],[Ngày hóa đơn]]<>"",Table1[[#This Row],[Ngày hóa đơn]],Table1[[#This Row],[Ngày hạch toán]]) -> 2025-07-22 | T75: 50 | U75: =IF(Table1[[#This Row],[Ngày tính CN]]="","",S75+T75) -> 2025-09-10 | V75: =IF(Table1[[#This Row],[Hạn thanh toán]]="","",IF((U75-NOW())<0,0,(U75-NOW()))) -> 0 | Y75: Đã thanh toán | Z75: 2025-07-22 | AA75: 2025-09-19 | AB75: check xong | AD75: =VLOOKUP($A75,MA_KH!$A:$Q,MA_KH!O$1,0) -> SATRA | AE75: =VLOOKUP($A75,MA_KH!$A:$Q,MA_KH!P$1,0) -> CHI NHÁNH TỔNG CÔNG TY THƯƠNG MẠI SÀI GÒN - TNHH MỘT THÀNH VIÊN - TRUNG TÂM PHÁT TRIỂN ĐỊA ỐC SATRA
A76: SATRA-028 | B76: CHI NHÁNH TỔNG CÔNG TY THƯƠNG MẠI SÀI GÒN- TNHH MTV- TRUNG TÂM THƯƠNG MẠI SATRA VÕ VĂN KIỆT | C76: 2025-07-24 | D76: BH2353947 | E76: 2025-07-24 | F76: 00046790 | G76: P-000008223 | H76: 844520 | I76: 0 | J76: 67562 | K76: 912082 | L76: Bán hàng | M76: 2025-09-19 | O76: =IF(Table1[[#This Row],[Phân loại]]="Tồn đầu kỳ",Table1[[#This Row],[Tổng giá trị]],0) -> 0 | P76: =IF(Table1[[#This Row],[Số còn phải thu ĐK]]<>0,0,IF(Table1[[#This Row],[Phân loại]]="Bán hàng",Table1[[#This Row],[Tổng giá trị]],-Table1[[#This Row],[Tổng giá trị]])) -> 912082 | Q76: 912082 | R76: =Table1[[#This Row],[Số còn phải thu ĐK]]+Table1[[#This Row],[Giá Trị HD sau CK]]-Table1[[#This Row],[Số tiền đã thu]] -> 0 | S76: =IF(Table1[[#This Row],[Ngày hóa đơn]]<>"",Table1[[#This Row],[Ngày hóa đơn]],Table1[[#This Row],[Ngày hạch toán]]) -> 2025-07-24 | T76: 50 | U76: =IF(Table1[[#This Row],[Ngày tính CN]]="","",S76+T76) -> 2025-09-12 | V76: =IF(Table1[[#This Row],[Hạn thanh toán]]="","",IF((U76-NOW())<0,0,(U76-NOW()))) -> 0 | Y76: Đã thanh toán | Z76: 2025-07-24 | AA76: 2025-09-19 | AB76: check xong | AD76: =VLOOKUP($A76,MA_KH!$A:$Q,MA_KH!O$1,0) -> SATRA | AE76: =VLOOKUP($A76,MA_KH!$A:$Q,MA_KH!P$1,0) -> CHI NHÁNH TỔNG CÔNG TY THƯƠNG MẠI SÀI GÒN - TNHH MỘT THÀNH VIÊN - TRUNG TÂM PHÁT TRIỂN ĐỊA ỐC SATRA
A77: SATRA-028 | B77: CHI NHÁNH TỔNG CÔNG TY THƯƠNG MẠI SÀI GÒN- TNHH MTV- TRUNG TÂM THƯƠNG MẠI SATRA VÕ VĂN KIỆT | C77: 2025-09-15 | D77: BH2358478 | E77: 2025-09-15 | F77: 00059502 | G77: P-000010415 | H77: 1795480 | I77: 0 | J77: 143638 | K77: 1939118 | L77: Bán hàng | O77: =IF(Table1[[#This Row],[Phân loại]]="Tồn đầu kỳ",Table1[[#This Row],[Tổng giá trị]],0) -> 0 | P77: =IF(Table1[[#This Row],[Số còn phải thu ĐK]]<>0,0,IF(Table1[[#This Row],[Phân loại]]="Bán hàng",Table1[[#This Row],[Tổng giá trị]],-Table1[[#This Row],[Tổng giá trị]])) -> 1939118 | Q77: 0 | R77: =Table1[[#This Row],[Số còn phải thu ĐK]]+Table1[[#This Row],[Giá Trị HD sau CK]]-Table1[[#This Row],[Số tiền đã thu]] -> 1939118 | S77: =IF(Table1[[#This Row],[Ngày hóa đơn]]<>"",Table1[[#This Row],[Ngày hóa đơn]],Table1[[#This Row],[Ngày hạch toán]]) -> 2025-09-15 | T77: 50 | U77: =IF(Table1[[#This Row],[Ngày tính CN]]="","",S77+T77) -> 2025-11-04 | V77: =IF(Table1[[#This Row],[Hạn thanh toán]]="","",IF((U77-NOW())<0,0,(U77-NOW()))) -> 0 | X77: 21.8170838 | Y77: Nợ quá hạn 30 ngày | Z77: 2025-09-15 | AA77: 00:00:00 | AB77: check xong | AD77: =VLOOKUP($A77,MA_KH!$A:$Q,MA_KH!O$1,0) -> SATRA | AE77: =VLOOKUP($A77,MA_KH!$A:$Q,MA_KH!P$1,0) -> CHI NHÁNH TỔNG CÔNG TY THƯƠNG MẠI SÀI GÒN - TNHH MỘT THÀNH VIÊN - TRUNG TÂM PHÁT TRIỂN ĐỊA ỐC SATRA
A78: SATRA-028 | B78: CHI NHÁNH TỔNG CÔNG TY THƯƠNG MẠI SÀI GÒN- TNHH MTV- TRUNG TÂM THƯƠNG MẠI SATRA VÕ VĂN KIỆT | C78: 2025-10-30 | D78: BH2372493 | E78: 2025-10-30 | F78: 00071367 | G78: P-000012199 | H78: 860860 | I78: 0 | J78: 68869 | K78: 929729 | L78: Bán hàng | O78: =IF(Table1[[#This Row],[Phân loại]]="Tồn đầu kỳ",Table1[[#This Row],[Tổng giá trị]],0) -> 0 | P78: =IF(Table1[[#This Row],[Số còn phải thu ĐK]]<>0,0,IF(Table1[[#This Row],[Phân loại]]="Bán hàng",Table1[[#This Row],[Tổng giá trị]],-Table1[[#This Row],[Tổng giá trị]])) -> 929729 | Q78: 0 | R78: =Table1[[#This Row],[Số còn phải thu ĐK]]+Table1[[#This Row],[Giá Trị HD sau CK]]-Table1[[#This Row],[Số tiền đã thu]] -> 929729 | S78: =IF(Table1[[#This Row],[Ngày hóa đơn]]<>"",Table1[[#This Row],[Ngày hóa đơn]],Table1[[#This Row],[Ngày hạch toán]]) -> 2025-10-30 | T78: 50 | U78: =IF(Table1[[#This Row],[Ngày tính CN]]="","",S78+T78) -> 2025-12-19 | V78: =IF(Table1[[#This Row],[Hạn thanh toán]]="","",IF((U78-NOW())<0,0,(U78-NOW()))) -> 23.1829162 | X78: 0 | Y78: Chưa đến hạn thanh toán | Z78: 2025-10-30 | AA78: 00:00:00 | AB78: check xong | AD78: =VLOOKUP($A78,MA_KH!$A:$Q,MA_KH!O$1,0) -> SATRA | AE78: =VLOOKUP($A78,MA_KH!$A:$Q,MA_KH!P$1,0) -> CHI NHÁNH TỔNG CÔNG TY THƯƠNG MẠI SÀI GÒN - TNHH MỘT THÀNH VIÊN - TRUNG TÂM PHÁT TRIỂN ĐỊA ỐC SATRA
A79: SATRA-028 | B79: CHI NHÁNH TỔNG CÔNG TY THƯƠNG MẠI SÀI GÒN- TNHH MTV- TRUNG TÂM THƯƠNG MẠI SATRA VÕ VĂN KIỆT | C79: 2025-04-02 | D79: HBTL25011714 | E79: 2025-04-02 | F79: 00001802 | G79: Hàng trả - phiếu HT0008140 - SATRA-028 | H79: 601563 | I79: 0 | J79: 48125 | K79: 649688 | L79: Hàng trả | M79: 2025-08-19 | O79: =IF(Table1[[#This Row],[Phân loại]]="Tồn đầu kỳ",Table1[[#This Row],[Tổng giá trị]],0) -> 0 | P79: =IF(Table1[[#This Row],[Số còn phải thu ĐK]]<>0,0,IF(Table1[[#This Row],[Phân loại]]="Bán hàng",Table1[[#This Row],[Tổng giá trị]],-Table1[[#This Row],[Tổng giá trị]])) -> -649688 | Q79: -649688 | R79: =Table1[[#This Row],[Số còn phải thu ĐK]]+Table1[[#This Row],[Giá Trị HD sau CK]]-Table1[[#This Row],[Số tiền đã thu]] -> 0 | S79: =IF(Table1[[#This Row],[Ngày hóa đơn]]<>"",Table1[[#This Row],[Ngày hóa đơn]],Table1[[#This Row],[Ngày hạch toán]]) -> 2025-04-02 | T79: 50 | U79: =IF(Table1[[#This Row],[Ngày tính CN]]="","",S79+T79) -> 2025-05-22 | V79: =IF(Table1[[#This Row],[Hạn thanh toán]]="","",IF((U79-NOW())<0,0,(U79-NOW()))) -> 0 | Y79: Đã thanh toán | Z79: 2025-04-02 | AA79: 2025-08-19 | AB79: check xong | AD79: =VLOOKUP($A79,MA_KH!$A:$Q,MA_KH!O$1,0) -> SATRA | AE79: =VLOOKUP($A79,MA_KH!$A:$Q,MA_KH!P$1,0) -> CHI NHÁNH TỔNG CÔNG TY THƯƠNG MẠI SÀI GÒN - TNHH MỘT THÀNH VIÊN - TRUNG TÂM PHÁT TRIỂN ĐỊA ỐC SATRA
A80: SATRA-028 | B80: CHI NHÁNH TỔNG CÔNG TY THƯƠNG MẠI SÀI GÒN- TNHH MTV- TRUNG TÂM THƯƠNG MẠI SATRA VÕ VĂN KIỆT | C80: 2025-04-19 | D80: HBTL25011089 | E80: 2025-04-19 | F80: 00002025 | G80: Hàng trả | H80: 611017 | I80: 0 | J80: 48881 | K80: 659898 | L80: Hàng trả | M80: 2025-08-19 | O80: =IF(Table1[[#This Row],[Phân loại]]="Tồn đầu kỳ",Table1[[#This Row],[Tổng giá trị]],0) -> 0 | P80: =IF(Table1[[#This Row],[Số còn phải thu ĐK]]<>0,0,IF(Table1[[#This Row],[Phân loại]]="Bán hàng",Table1[[#This Row],[Tổng giá trị]],-Table1[[#This Row],[Tổng giá trị]])) -> -659898 | Q80: -659898 | R80: =Table1[[#This Row],[Số còn phải thu ĐK]]+Table1[[#This Row],[Giá Trị HD sau CK]]-Table1[[#This Row],[Số tiền đã thu]] -> 0 | S80: =IF(Table1[[#This Row],[Ngày hóa đơn]]<>"",Table1[[#This Row],[Ngày hóa đơn]],Table1[[#This Row],[Ngày hạch toán]]) -> 2025-04-19 | T80: 50 | U80: =IF(Table1[[#This Row],[Ngày tính CN]]="","",S80+T80) -> 2025-06-08 | V80: =IF(Table1[[#This Row],[Hạn thanh toán]]="","",IF((U80-NOW())<0,0,(U80-NOW()))) -> 0 | Y80: Đã thanh toán | Z80: 2025-04-19 | AA80: 2025-08-19 | AB80: check xong | AD80: =VLOOKUP($A80,MA_KH!$A:$Q,MA_KH!O$1,0) -> SATRA | AE80: =VLOOKUP($A80,MA_KH!$A:$Q,MA_KH!P$1,0) -> CHI NHÁNH TỔNG CÔNG TY THƯƠNG MẠI SÀI GÒN - TNHH MỘT THÀNH VIÊN - TRUNG TÂM PHÁT TRIỂN ĐỊA ỐC SATRA
A81: SATRA-028 | B81: CHI NHÁNH TỔNG CÔNG TY THƯƠNG MẠI SÀI GÒN- TNHH MTV- TRUNG TÂM THƯƠNG MẠI SATRA VÕ VĂN KIỆT | C81: 2025-07-16 | D81: HBTL25012156 | E81: 2025-07-16 | F81: 00003680 | G81: Hàng trả - phiếu HT0009543 - SATRA-028 | H81: 698641 | I81: 0 | J81: 55891 | K81: 754532 | L81: Hàng trả | M81: 2025-08-19 | O81: =IF(Table1[[#This Row],[Phân loại]]="Tồn đầu kỳ",Table1[[#This Row],[Tổng giá trị]],0) -> 0 | P81: =IF(Table1[[#This Row],[Số còn phải thu ĐK]]<>0,0,IF(Table1[[#This Row],[Phân loại]]="Bán hàng",Table1[[#This Row],[Tổng giá trị]],-Table1[[#This Row],[Tổng giá trị]])) -> -754532 | Q81: -754532 | R81: =Table1[[#This Row],[Số còn phải thu ĐK]]+Table1[[#This Row],[Giá Trị HD sau CK]]-Table1[[#This Row],[Số tiền đã thu]] -> 0 | S81: =IF(Table1[[#This Row],[Ngày hóa đơn]]<>"",Table1[[#This Row],[Ngày hóa đơn]],Table1[[#This Row],[Ngày hạch toán]]) -> 2025-07-16 | T81: 50 | U81: =IF(Table1[[#This Row],[Ngày tính CN]]="","",S81+T81) -> 2025-09-04 | V81: =IF(Table1[[#This Row],[Hạn thanh toán]]="","",IF((U81-NOW())<0,0,(U81-NOW()))) -> 0 | Y81: Đã thanh toán | Z81: 2025-07-16 | AA81: 2025-08-19 | AB81: check xong | AD81: =VLOOKUP($A81,MA_KH!$A:$Q,MA_KH!O$1,0) -> SATRA | AE81: =VLOOKUP($A81,MA_KH!$A:$Q,MA_KH!P$1,0) -> CHI NHÁNH TỔNG CÔNG TY THƯƠNG MẠI SÀI GÒN - TNHH MỘT THÀNH VIÊN - TRUNG TÂM PHÁT TRIỂN ĐỊA ỐC SATRA
A82: SATRA-028 | B82: CHI NHÁNH TỔNG CÔNG TY THƯƠNG MẠI SÀI GÒN- TNHH MTV- TRUNG TÂM THƯƠNG MẠI SATRA VÕ VĂN KIỆT | C82: 2025-09-09 | D82: 9105970088 | E82: 2025-09-09 | F82: 00004655 | G82: Hàng trả - phiếu SG/HTP-000010261 - SATRA-028 | H82: 727802 | I82: 0 | J82: 58224 | K82: 786026 | L82: Hàng trả | M82: 2025-09-19 | O82: =IF(Table1[[#This Row],[Phân loại]]="Tồn đầu kỳ",Table1[[#This Row],[Tổng giá trị]],0) -> 0 | P82: =IF(Table1[[#This Row],[Số còn phải thu ĐK]]<>0,0,IF(Table1[[#This Row],[Phân loại]]="Bán hàng",Table1[[#This Row],[Tổng giá trị]],-Table1[[#This Row],[Tổng giá trị]])) -> -786026 | Q82: -786026 | R82: =Table1[[#This Row],[Số còn phải thu ĐK]]+Table1[[#This Row],[Giá Trị HD sau CK]]-Table1[[#This Row],[Số tiền đã thu]] -> 0 | S82: =IF(Table1[[#This Row],[Ngày hóa đơn]]<>"",Table1[[#This Row],[Ngày hóa đơn]],Table1[[#This Row],[Ngày hạch toán]]) -> 2025-09-09 | T82: 50 | U82: =IF(Table1[[#This Row],[Ngày tính CN]]="","",S82+T82) -> 2025-10-29 | V82: =IF(Table1[[#This Row],[Hạn thanh toán]]="","",IF((U82-NOW())<0,0,(U82-NOW()))) -> 0 | Y82: Đã thanh toán | Z82: 2025-09-09 | AA82: 2025-09-19 | AB82: check xong | AD82: =VLOOKUP($A82,MA_KH!$A:$Q,MA_KH!O$1,0) -> SATRA | AE82: =VLOOKUP($A82,MA_KH!$A:$Q,MA_KH!P$1,0) -> CHI NHÁNH TỔNG CÔNG TY THƯƠNG MẠI SÀI GÒN - TNHH MỘT THÀNH VIÊN - TRUNG TÂM PHÁT TRIỂN ĐỊA ỐC SATRA
A83: SATRA-028 | B83: CHI NHÁNH TỔNG CÔNG TY THƯƠNG MẠI SÀI GÒN- TNHH MTV- TRUNG TÂM THƯƠNG MẠI SATRA VÕ VĂN KIỆT | C83: 2025-10-27 | D83: SG/HT000012271 | E83: 2025-10-27 | F83: 00005421 | G83: ĐÃ KIỂM TRA -Hàng trả - SATRA - SATRA-028 - TTTM SATRA VÕ VĂN KIỆT - phiếu: P-000012271 | H83: 349422 | I83: 0 | J83: 27954 | K83: 377376 | L83: Hàng trả | O83: =IF(Table1[[#This Row],[Phân loại]]="Tồn đầu kỳ",Table1[[#This Row],[Tổng giá trị]],0) -> 0 | P83: =IF(Table1[[#This Row],[Số còn phải thu ĐK]]<>0,0,IF(Table1[[#This Row],[Phân loại]]="Bán hàng",Table1[[#This Row],[Tổng giá trị]],-Table1[[#This Row],[Tổng giá trị]])) -> -377376 | Q83: 0 | R83: =Table1[[#This Row],[Số còn phải thu ĐK]]+Table1[[#This Row],[Giá Trị HD sau CK]]-Table1[[#This Row],[Số tiền đã thu]] -> -377376 | S83: =IF(Table1[[#This Row],[Ngày hóa đơn]]<>"",Table1[[#This Row],[Ngày hóa đơn]],Table1[[#This Row],[Ngày hạch toán]]) -> 2025-10-27 | T83: 50 | U83: =IF(Table1[[#This Row],[Ngày tính CN]]="","",S83+T83) -> 2025-12-16 | V83: =IF(Table1[[#This Row],[Hạn thanh toán]]="","",IF((U83-NOW())<0,0,(U83-NOW()))) -> 20.1829162 | X83: 0 | Y83: Chưa đến hạn thanh toán | Z83: 2025-10-27 | AA83: 00:00:00 | AB83: check xong | AD83: =VLOOKUP($A83,MA_KH!$A:$Q,MA_KH!O$1,0) -> SATRA | AE83: =VLOOKUP($A83,MA_KH!$A:$Q,MA_KH!P$1,0) -> CHI NHÁNH TỔNG CÔNG TY THƯƠNG MẠI SÀI GÒN - TNHH MỘT THÀNH VIÊN - TRUNG TÂM PHÁT TRIỂN ĐỊA ỐC SATRA
A84: SATRA-028 | B84: CHI NHÁNH TỔNG CÔNG TY THƯƠNG MẠI SÀI GÒN- TNHH MTV- TRUNG TÂM THƯƠNG MẠI SATRA VÕ VĂN KIỆT | C84: 2025-04-28 | D84: MH002380 | E84: 2025-04-28 | F84: 00002289 | G84: Hỗ trợ quý 1 theo hóa đơn số 00002289 | H84: 616869 | I84: 0 | J84: 61687 | K84: 678556 | L84: Giảm công nợ | M84: 2025-08-19 | O84: =IF(Table1[[#This Row],[Phân loại]]="Tồn đầu kỳ",Table1[[#This Row],[Tổng giá trị]],0) -> 0 | P84: =IF(Table1[[#This Row],[Số còn phải thu ĐK]]<>0,0,IF(Table1[[#This Row],[Phân loại]]="Bán hàng",Table1[[#This Row],[Tổng giá trị]],-Table1[[#This Row],[Tổng giá trị]])) -> -678556 | Q84: -678556 | R84: =Table1[[#This Row],[Số còn phải thu ĐK]]+Table1[[#This Row],[Giá Trị HD sau CK]]-Table1[[#This Row],[Số tiền đã thu]] -> 0 | S84: =IF(Table1[[#This Row],[Ngày hóa đơn]]<>"",Table1[[#This Row],[Ngày hóa đơn]],Table1[[#This Row],[Ngày hạch toán]]) -> 2025-04-28 | T84: 50 | U84: =IF(Table1[[#This Row],[Ngày tính CN]]="","",S84+T84) -> 2025-06-17 | V84: =IF(Table1[[#This Row],[Hạn thanh toán]]="","",IF((U84-NOW())<0,0,(U84-NOW()))) -> 0 | Y84: Đã thanh toán | Z84: 2025-04-28 | AA84: 2025-08-19 | AB84: check xong | AD84: =VLOOKUP($A84,MA_KH!$A:$Q,MA_KH!O$1,0) -> SATRA | AE84: =VLOOKUP($A84,MA_KH!$A:$Q,MA_KH!P$1,0) -> CHI NHÁNH TỔNG CÔNG TY THƯƠNG MẠI SÀI GÒN - TNHH MỘT THÀNH VIÊN - TRUNG TÂM PHÁT TRIỂN ĐỊA ỐC SATRA
A85: SATRA-028 | B85: CHI NHÁNH TỔNG CÔNG TY THƯƠNG MẠI SÀI GÒN- TNHH MTV- TRUNG TÂM THƯƠNG MẠI SATRA VÕ VĂN KIỆT | C85: 2025-07-25 | D85: MH002578 | E85: 2025-07-25 | F85: 3860 | G85: Hỗ trợ quý 2.2025 | H85: 94157 | I85: 0 | J85: 9416 | K85: 103573 | L85: Giảm công nợ | M85: 2025-08-19 | O85: =IF(Table1[[#This Row],[Phân loại]]="Tồn đầu kỳ",Table1[[#This Row],[Tổng giá trị]],0) -> 0 | P85: =IF(Table1[[#This Row],[Số còn phải thu ĐK]]<>0,0,IF(Table1[[#This Row],[Phân loại]]="Bán hàng",Table1[[#This Row],[Tổng giá trị]],-Table1[[#This Row],[Tổng giá trị]])) -> -103573 | Q85: -103573 | R85: =Table1[[#This Row],[Số còn phải thu ĐK]]+Table1[[#This Row],[Giá Trị HD sau CK]]-Table1[[#This Row],[Số tiền đã thu]] -> 0 | S85: =IF(Table1[[#This Row],[Ngày hóa đơn]]<>"",Table1[[#This Row],[Ngày hóa đơn]],Table1[[#This Row],[Ngày hạch toán]]) -> 2025-07-25 | T85: 50 | U85: =IF(Table1[[#This Row],[Ngày tính CN]]="","",S85+T85) -> 2025-09-13 | V85: =IF(Table1[[#This Row],[Hạn thanh toán]]="","",IF((U85-NOW())<0,0,(U85-NOW()))) -> 0 | Y85: Đã thanh toán | Z85: 2025-07-25 | AA85: 2025-08-19 | AB85: check xong | AD85: =VLOOKUP($A85,MA_KH!$A:$Q,MA_KH!O$1,0) -> SATRA | AE85: =VLOOKUP($A85,MA_KH!$A:$Q,MA_KH!P$1,0) -> CHI NHÁNH TỔNG CÔNG TY THƯƠNG MẠI SÀI GÒN - TNHH MỘT THÀNH VIÊN - TRUNG TÂM PHÁT TRIỂN ĐỊA ỐC SATRA
A86: SATRA-028 | B86: CHI NHÁNH TỔNG CÔNG TY THƯƠNG MẠI SÀI GÒN- TNHH MTV- TRUNG TÂM THƯƠNG MẠI SATRA VÕ VĂN KIỆT | C86: 2025-10-27 | D86: MDV/PVH/00198 | E86: 2025-10-27 | F86: 5302 | G86: Chi phí hỗ trợ quý 3.2025 | H86: 185328 | I86: 0 | J86: 18533 | K86: 203861 | L86: Giảm công nợ | O86: =IF(Table1[[#This Row],[Phân loại]]="Tồn đầu kỳ",Table1[[#This Row],[Tổng giá trị]],0) -> 0 | P86: =IF(Table1[[#This Row],[Số còn phải thu ĐK]]<>0,0,IF(Table1[[#This Row],[Phân loại]]="Bán hàng",Table1[[#This Row],[Tổng giá trị]],-Table1[[#This Row],[Tổng giá trị]])) -> -203861 | Q86: 0 | R86: =Table1[[#This Row],[Số còn phải thu ĐK]]+Table1[[#This Row],[Giá Trị HD sau CK]]-Table1[[#This Row],[Số tiền đã thu]] -> -203861 | S86: =IF(Table1[[#This Row],[Ngày hóa đơn]]<>"",Table1[[#This Row],[Ngày hóa đơn]],Table1[[#This Row],[Ngày hạch toán]]) -> 2025-10-27 | T86: 50 | U86: =IF(Table1[[#This Row],[Ngày tính CN]]="","",S86+T86) -> 2025-12-16 | V86: =IF(Table1[[#This Row],[Hạn thanh toán]]="","",IF((U86-NOW())<0,0,(U86-NOW()))) -> 20.1829162 | X86: 0 | Y86: Chưa đến hạn thanh toán | Z86: 2025-10-27 | AA86: 00:00:00 | AB86: check xong | AD86: =VLOOKUP($A86,MA_KH!$A:$Q,MA_KH!O$1,0) -> SATRA | AE86: =VLOOKUP($A86,MA_KH!$A:$Q,MA_KH!P$1,0) -> CHI NHÁNH TỔNG CÔNG TY THƯƠNG MẠI SÀI GÒN - TNHH MỘT THÀNH VIÊN - TRUNG TÂM PHÁT TRIỂN ĐỊA ỐC SATRA
A87: SATRA-028 | B87: CHI NHÁNH TỔNG CÔNG TY THƯƠNG MẠI SÀI GÒN- TNHH MTV- TRUNG TÂM THƯƠNG MẠI SATRA VÕ VĂN KIỆT | C87: 2025-10-31 | D87: MDV/PVH/00199 | E87: 2025-10-31 | F87: 5706 | G87: Hỗ trợ trưng bày - Truy thu Q1+2/2025 | H87: 23701 | I87: 0 | J87: 2370 | K87: 26071 | L87: Giảm công nợ | O87: =IF(Table1[[#This Row],[Phân loại]]="Tồn đầu kỳ",Table1[[#This Row],[Tổng giá trị]],0) -> 0 | P87: =IF(Table1[[#This Row],[Số còn phải thu ĐK]]<>0,0,IF(Table1[[#This Row],[Phân loại]]="Bán hàng",Table1[[#This Row],[Tổng giá trị]],-Table1[[#This Row],[Tổng giá trị]])) -> -26071 | Q87: 0 | R87: =Table1[[#This Row],[Số còn phải thu ĐK]]+Table1[[#This Row],[Giá Trị HD sau CK]]-Table1[[#This Row],[Số tiền đã thu]] -> -26071 | S87: =IF(Table1[[#This Row],[Ngày hóa đơn]]<>"",Table1[[#This Row],[Ngày hóa đơn]],Table1[[#This Row],[Ngày hạch toán]]) -> 2025-10-31 | T87: 50 | U87: =IF(Table1[[#This Row],[Ngày tính CN]]="","",S87+T87) -> 2025-12-20 | V87: =IF(Table1[[#This Row],[Hạn thanh toán]]="","",IF((U87-NOW())<0,0,(U87-NOW()))) -> 24.18291632 | X87: 0 | Y87: Chưa đến hạn thanh toán | Z87: 2025-10-31 | AA87: 00:00:00 | AB87: check xong | AD87: =VLOOKUP($A87,MA_KH!$A:$Q,MA_KH!O$1,0) -> SATRA | AE87: =VLOOKUP($A87,MA_KH!$A:$Q,MA_KH!P$1,0) -> CHI NHÁNH TỔNG CÔNG TY THƯƠNG MẠI SÀI GÒN - TNHH MỘT THÀNH VIÊN - TRUNG TÂM PHÁT TRIỂN ĐỊA ỐC SATRA
A88: CircleK | B88: CÔNG TY TNHH VÒNG TRÒN ĐỎ | C88: 2024-10-21 | E88: 2024-10-21 | F88: 00058951 | G88: CircleK 193 Đường Số 1 | H88: 129224 | I88: 0 | J88: 10338 | K88: 139562 | L88: Tồn đầu kỳ | M88: 2025-01-10 | O88: =IF(Table1[[#This Row],[Phân loại]]="Tồn đầu kỳ",Table1[[#This Row],[Tổng giá trị]],0) -> 139562 | P88: =IF(Table1[[#This Row],[Số còn phải thu ĐK]]<>0,0,IF(Table1[[#This Row],[Phân loại]]="Bán hàng",Table1[[#This Row],[Tổng giá trị]],-Table1[[#This Row],[Tổng giá trị]])) -> 0 | Q88: 139562 | R88: =Table1[[#This Row],[Số còn phải thu ĐK]]+Table1[[#This Row],[Giá Trị HD sau CK]]-Table1[[#This Row],[Số tiền đã thu]] -> 0 | S88: =IF(Table1[[#This Row],[Ngày hóa đơn]]<>"",Table1[[#This Row],[Ngày hóa đơn]],Table1[[#This Row],[Ngày hạch toán]]) -> 2024-10-21 | U88: =IF(Table1[[#This Row],[Ngày tính CN]]="","",S88+T88) -> 2024-10-21 | V88: =IF(Table1[[#This Row],[Hạn thanh toán]]="","",IF((U88-NOW())<0,0,(U88-NOW()))) -> 0 | Y88: Đã thanh toán | Z88: 2024-10-21 | AA88: 2025-01-10 | AB88: check xong | AD88: =VLOOKUP($A88,MA_KH!$A:$Q,MA_KH!O$1,0) -> CIRCLE K | AE88: =VLOOKUP($A88,MA_KH!$A:$Q,MA_KH!P$1,0) -> CÔNG TY TNHH VÒNG TRÒN ĐỎ
A89: CircleK-028 | B89: CHI NHÁNH CÔNG TY TNHH VÒNG TRÒN ĐỎ TẠI KHÁNH HÒA | C89: 2024-10-29 | E89: 2024-10-29 | F89: 00060763 | G89: CircleK Số 06 Tháp Bà, Nha Trang, Khánh Hòa | H89: 567683 | I89: 0 | J89: 45415 | K89: 613098 | L89: Tồn đầu kỳ | M89: 2025-01-10 | O89: =IF(Table1[[#This Row],[Phân loại]]="Tồn đầu kỳ",Table1[[#This Row],[Tổng giá trị]],0) -> 613098 | P89: =IF(Table1[[#This Row],[Số còn phải thu ĐK]]<>0,0,IF(Table1[[#This Row],[Phân loại]]="Bán hàng",Table1[[#This Row],[Tổng giá trị]],-Table1[[#This Row],[Tổng giá trị]])) -> 0 | Q89: 613098 | R89: =Table1[[#This Row],[Số còn phải thu ĐK]]+Table1[[#This Row],[Giá Trị HD sau CK]]-Table1[[#This Row],[Số tiền đã thu]] -> 0 | S89: =IF(Table1[[#This Row],[Ngày hóa đơn]]<>"",Table1[[#This Row],[Ngày hóa đơn]],Table1[[#This Row],[Ngày hạch toán]]) -> 2024-10-29 | U89: =IF(Table1[[#This Row],[Ngày tính CN]]="","",S89+T89) -> 2024-10-29 | V89: =IF(Table1[[#This Row],[Hạn thanh toán]]="","",IF((U89-NOW())<0,0,(U89-NOW()))) -> 0 | Y89: Đã thanh toán | Z89: 2024-10-29 | AA89: 2025-01-10 | AB89: check xong | AD89: =VLOOKUP($A89,MA_KH!$A:$Q,MA_KH!O$1,0) -> CIRCLE K | AE89: =VLOOKUP($A89,MA_KH!$A:$Q,MA_KH!P$1,0) -> CÔNG TY TNHH VÒNG TRÒN ĐỎ
A90: CircleK | B90: CÔNG TY TNHH VÒNG TRÒN ĐỎ | C90: 2024-11-01 | E90: 2024-11-01 | F90: 00061916 | G90: CircleK 8A/11D1 Thái Văn Lung | H90: 161530 | I90: 0 | J90: 12922 | K90: 174452 | L90: Tồn đầu kỳ | M90: 2025-01-10 | O90: =IF(Table1[[#This Row],[Phân loại]]="Tồn đầu kỳ",Table1[[#This Row],[Tổng giá trị]],0) -> 174452 | P90: =IF(Table1[[#This Row],[Số còn phải thu ĐK]]<>0,0,IF(Table1[[#This Row],[Phân loại]]="Bán hàng",Table1[[#This Row],[Tổng giá trị]],-Table1[[#This Row],[Tổng giá trị]])) -> 0 | Q90: 174452 | R90: =Table1[[#This Row],[Số còn phải thu ĐK]]+Table1[[#This Row],[Giá Trị HD sau CK]]-Table1[[#This Row],[Số tiền đã thu]] -> 0 | S90: =IF(Table1[[#This Row],[Ngày hóa đơn]]<>"",Table1[[#This Row],[Ngày hóa đơn]],Table1[[#This Row],[Ngày hạch toán]]) -> 2024-11-01 | U90: =IF(Table1[[#This Row],[Ngày tính CN]]="","",S90+T90) -> 2024-11-01 | V90: =IF(Table1[[#This Row],[Hạn thanh toán]]="","",IF((U90-NOW())<0,0,(U90-NOW()))) -> 0 | Y90: Đã thanh toán | Z90: 2024-11-01 | AA90: 2025-01-10 | AB90: check xong | AD90: =VLOOKUP($A90,MA_KH!$A:$Q,MA_KH!O$1,0) -> CIRCLE K | AE90: =VLOOKUP($A90,MA_KH!$A:$Q,MA_KH!P$1,0) -> CÔNG TY TNHH VÒNG TRÒN ĐỎ
A91: CircleK-027 | B91: CHI NHÁNH CÔNG TY TNHH VÒNG TRÒN ĐỎ TẠI KIÊN GIANG | C91: 2024-11-01 | E91: 2024-11-01 | F91: 00061946 | G91: CircleK E9-3 và E9-4 đường 3 tháng 2 | H91: 1002200 | I91: 0 | J91: 80176 | K91: 1082376 | L91: Tồn đầu kỳ | M91: 2025-01-10 | O91: =IF(Table1[[#This Row],[Phân loại]]="Tồn đầu kỳ",Table1[[#This Row],[Tổng giá trị]],0) -> 1082376 | P91: =IF(Table1[[#This Row],[Số còn phải thu ĐK]]<>0,0,IF(Table1[[#This Row],[Phân loại]]="Bán hàng",Table1[[#This Row],[Tổng giá trị]],-Table1[[#This Row],[Tổng giá trị]])) -> 0 | Q91: 1082376 | R91: =Table1[[#This Row],[Số còn phải thu ĐK]]+Table1[[#This Row],[Giá Trị HD sau CK]]-Table1[[#This Row],[Số tiền đã thu]] -> 0 | S91: =IF(Table1[[#This Row],[Ngày hóa đơn]]<>"",Table1[[#This Row],[Ngày hóa đơn]],Table1[[#This Row],[Ngày hạch toán]]) -> 2024-11-01 | U91: =IF(Table1[[#This Row],[Ngày tính CN]]="","",S91+T91) -> 2024-11-01 | V91: =IF(Table1[[#This Row],[Hạn thanh toán]]="","",IF((U91-NOW())<0,0,(U91-NOW()))) -> 0 | Y91: Đã thanh toán | Z91: 2024-11-01 | AA91: 2025-01-10 | AB91: check xong | AD91: =VLOOKUP($A91,MA_KH!$A:$Q,MA_KH!O$1,0) -> CIRCLE K | AE91: =VLOOKUP($A91,MA_KH!$A:$Q,MA_KH!P$1,0) -> CÔNG TY TNHH VÒNG TRÒN ĐỎ
A92: CircleK-011 | B92: CHI NHÁNH TẠI BÌNH DƯƠNG CÔNG TY TNHH VÒNG TRÒN ĐỎ | C92: 2024-11-01 | E92: 2024-11-01 | F92: 00061982 | G92: CircleK 105 Lê Trọng Tấn, Khu Phố Bình Đường 2 | H92: 530104 | I92: 0 | J92: 42408 | K92: 572512 | L92: Tồn đầu kỳ | M92: 2025-01-10 | O92: =IF(Table1[[#This Row],[Phân loại]]="Tồn đầu kỳ",Table1[[#This Row],[Tổng giá trị]],0) -> 572512 | P92: =IF(Table1[[#This Row],[Số còn phải thu ĐK]]<>0,0,IF(Table1[[#This Row],[Phân loại]]="Bán hàng",Table1[[#This Row],[Tổng giá trị]],-Table1[[#This Row],[Tổng giá trị]])) -> 0 | Q92: 572512 | R92: =Table1[[#This Row],[Số còn phải thu ĐK]]+Table1[[#This Row],[Giá Trị HD sau CK]]-Table1[[#This Row],[Số tiền đã thu]] -> 0 | S92: =IF(Table1[[#This Row],[Ngày hóa đơn]]<>"",Table1[[#This Row],[Ngày hóa đơn]],Table1[[#This Row],[Ngày hạch toán]]) -> 2024-11-01 | U92: =IF(Table1[[#This Row],[Ngày tính CN]]="","",S92+T92) -> 2024-11-01 | V92: =IF(Table1[[#This Row],[Hạn thanh toán]]="","",IF((U92-NOW())<0,0,(U92-NOW()))) -> 0 | Y92: Đã thanh toán | Z92: 2024-11-01 | AA92: 2025-01-10 | AB92: check xong | AD92: =VLOOKUP($A92,MA_KH!$A:$Q,MA_KH!O$1,0) -> CIRCLE K | AE92: =VLOOKUP($A92,MA_KH!$A:$Q,MA_KH!P$1,0) -> CÔNG TY TNHH VÒNG TRÒN ĐỎ
A93: CircleK | B93: CÔNG TY TNHH VÒNG TRÒN ĐỎ | C93: 2024-11-01 | E93: 2024-11-01 | F93: 00062005 | G93: CircleK 139-141 Âu Dương Lân | H93: 331315 | I93: 0 | J93: 26505 | K93: 357820 | L93: Tồn đầu kỳ | M93: 2025-01-10 | O93: =IF(Table1[[#This Row],[Phân loại]]="Tồn đầu kỳ",Table1[[#This Row],[Tổng giá trị]],0) -> 357820 | P93: =IF(Table1[[#This Row],[Số còn phải thu ĐK]]<>0,0,IF(Table1[[#This Row],[Phân loại]]="Bán hàng",Table1[[#This Row],[Tổng giá trị]],-Table1[[#This Row],[Tổng giá trị]])) -> 0 | Q93: 357820 | R93: =Table1[[#This Row],[Số còn phải thu ĐK]]+Table1[[#This Row],[Giá Trị HD sau CK]]-Table1[[#This Row],[Số tiền đã thu]] -> 0 | S93: =IF(Table1[[#This Row],[Ngày hóa đơn]]<>"",Table1[[#This Row],[Ngày hóa đơn]],Table1[[#This Row],[Ngày hạch toán]]) -> 2024-11-01 | U93: =IF(Table1[[#This Row],[Ngày tính CN]]="","",S93+T93) -> 2024-11-01 | V93: =IF(Table1[[#This Row],[Hạn thanh toán]]="","",IF((U93-NOW())<0,0,(U93-NOW()))) -> 0 | Y93: Đã thanh toán | Z93: 2024-11-01 | AA93: 2025-01-10 | AB93: check xong | AD93: =VLOOKUP($A93,MA_KH!$A:$Q,MA_KH!O$1,0) -> CIRCLE K | AE93: =VLOOKUP($A93,MA_KH!$A:$Q,MA_KH!P$1,0) -> CÔNG TY TNHH VÒNG TRÒN ĐỎ
A94: CircleK | B94: CÔNG TY TNHH VÒNG TRÒN ĐỎ | C94: 2024-11-01 | E94: 2024-11-01 | F94: 00062007 | G94: CircleK 277 Âu Dương Lân | H94: 129224 | I94: 0 | J94: 10338 | K94: 139562 | L94: Tồn đầu kỳ | M94: 2025-01-10 | O94: =IF(Table1[[#This Row],[Phân loại]]="Tồn đầu kỳ",Table1[[#This Row],[Tổng giá trị]],0) -> 139562 | P94: =IF(Table1[[#This Row],[Số còn phải thu ĐK]]<>0,0,IF(Table1[[#This Row],[Phân loại]]="Bán hàng",Table1[[#This Row],[Tổng giá trị]],-Table1[[#This Row],[Tổng giá trị]])) -> 0 | Q94: 139562 | R94: =Table1[[#This Row],[Số còn phải thu ĐK]]+Table1[[#This Row],[Giá Trị HD sau CK]]-Table1[[#This Row],[Số tiền đã thu]] -> 0 | S94: =IF(Table1[[#This Row],[Ngày hóa đơn]]<>"",Table1[[#This Row],[Ngày hóa đơn]],Table1[[#This Row],[Ngày hạch toán]]) -> 2024-11-01 | U94: =IF(Table1[[#This Row],[Ngày tính CN]]="","",S94+T94) -> 2024-11-01 | V94: =IF(Table1[[#This Row],[Hạn thanh toán]]="","",IF((U94-NOW())<0,0,(U94-NOW()))) -> 0 | Y94: Đã thanh toán | Z94: 2024-11-01 | AA94: 2025-01-10 | AB94: check xong | AD94: =VLOOKUP($A94,MA_KH!$A:$Q,MA_KH!O$1,0) -> CIRCLE K | AE94: =VLOOKUP($A94,MA_KH!$A:$Q,MA_KH!P$1,0) -> CÔNG TY TNHH VÒNG TRÒN ĐỎ
A95: CircleK | B95: CÔNG TY TNHH VÒNG TRÒN ĐỎ | C95: 2024-11-01 | E95: 2024-11-01 | F95: 00062024 | G95: CircleK 42 Đường Phạm Nhữ Tăng | H95: 129224 | I95: 0 | J95: 10338 | K95: 139562 | L95: Tồn đầu kỳ | M95: 2025-01-10 | O95: =IF(Table1[[#This Row],[Phân loại]]="Tồn đầu kỳ",Table1[[#This Row],[Tổng giá trị]],0) -> 139562 | P95: =IF(Table1[[#This Row],[Số còn phải thu ĐK]]<>0,0,IF(Table1[[#This Row],[Phân loại]]="Bán hàng",Table1[[#This Row],[Tổng giá trị]],-Table1[[#This Row],[Tổng giá trị]])) -> 0 | Q95: 139562 | R95: =Table1[[#This Row],[Số còn phải thu ĐK]]+Table1[[#This Row],[Giá Trị HD sau CK]]-Table1[[#This Row],[Số tiền đã thu]] -> 0 | S95: =IF(Table1[[#This Row],[Ngày hóa đơn]]<>"",Table1[[#This Row],[Ngày hóa đơn]],Table1[[#This Row],[Ngày hạch toán]]) -> 2024-11-01 | U95: =IF(Table1[[#This Row],[Ngày tính CN]]="","",S95+T95) -> 2024-11-01 | V95: =IF(Table1[[#This Row],[Hạn thanh toán]]="","",IF((U95-NOW())<0,0,(U95-NOW()))) -> 0 | Y95: Đã thanh toán | Z95: 2024-11-01 | AA95: 2025-01-10 | AB95: check xong | AD95: =VLOOKUP($A95,MA_KH!$A:$Q,MA_KH!O$1,0) -> CIRCLE K | AE95: =VLOOKUP($A95,MA_KH!$A:$Q,MA_KH!P$1,0) -> CÔNG TY TNHH VÒNG TRÒN ĐỎ
A96: CircleK | B96: CÔNG TY TNHH VÒNG TRÒN ĐỎ | C96: 2024-11-01 | E96: 2024-11-01 | F96: 00062035 | G96: CircleK 13 Tôn Đản | H96: 129224 | I96: 0 | J96: 10338 | K96: 139562 | L96: Tồn đầu kỳ | M96: 2025-01-10 | O96: =IF(Table1[[#This Row],[Phân loại]]="Tồn đầu kỳ",Table1[[#This Row],[Tổng giá trị]],0) -> 139562 | P96: =IF(Table1[[#This Row],[Số còn phải thu ĐK]]<>0,0,IF(Table1[[#This Row],[Phân loại]]="Bán hàng",Table1[[#This Row],[Tổng giá trị]],-Table1[[#This Row],[Tổng giá trị]])) -> 0 | Q96: 139562 | R96: =Table1[[#This Row],[Số còn phải thu ĐK]]+Table1[[#This Row],[Giá Trị HD sau CK]]-Table1[[#This Row],[Số tiền đã thu]] -> 0 | S96: =IF(Table1[[#This Row],[Ngày hóa đơn]]<>"",Table1[[#This Row],[Ngày hóa đơn]],Table1[[#This Row],[Ngày hạch toán]]) -> 2024-11-01 | U96: =IF(Table1[[#This Row],[Ngày tính CN]]="","",S96+T96) -> 2024-11-01 | V96: =IF(Table1[[#This Row],[Hạn thanh toán]]="","",IF((U96-NOW())<0,0,(U96-NOW()))) -> 0 | Y96: Đã thanh toán | Z96: 2024-11-01 | AA96: 2025-01-10 | AB96: check xong | AD96: =VLOOKUP($A96,MA_KH!$A:$Q,MA_KH!O$1,0) -> CIRCLE K | AE96: =VLOOKUP($A96,MA_KH!$A:$Q,MA_KH!P$1,0) -> CÔNG TY TNHH VÒNG TRÒN ĐỎ
A97: CircleK | B97: CÔNG TY TNHH VÒNG TRÒN ĐỎ | C97: 2024-11-02 | E97: 2024-11-02 | F97: 00062057 | G97: CircleK 128 Lê Đức Thọ | H97: 129224 | I97: 0 | J97: 10338 | K97: 139562 | L97: Tồn đầu kỳ | M97: 2025-01-10 | O97: =IF(Table1[[#This Row],[Phân loại]]="Tồn đầu kỳ",Table1[[#This Row],[Tổng giá trị]],0) -> 139562 | P97: =IF(Table1[[#This Row],[Số còn phải thu ĐK]]<>0,0,IF(Table1[[#This Row],[Phân loại]]="Bán hàng",Table1[[#This Row],[Tổng giá trị]],-Table1[[#This Row],[Tổng giá trị]])) -> 0 | Q97: 139562 | R97: =Table1[[#This Row],[Số còn phải thu ĐK]]+Table1[[#This Row],[Giá Trị HD sau CK]]-Table1[[#This Row],[Số tiền đã thu]] -> 0 | S97: =IF(Table1[[#This Row],[Ngày hóa đơn]]<>"",Table1[[#This Row],[Ngày hóa đơn]],Table1[[#This Row],[Ngày hạch toán]]) -> 2024-11-02 | U97: =IF(Table1[[#This Row],[Ngày tính CN]]="","",S97+T97) -> 2024-11-02 | V97: =IF(Table1[[#This Row],[Hạn thanh toán]]="","",IF((U97-NOW())<0,0,(U97-NOW()))) -> 0 | Y97: Đã thanh toán | Z97: 2024-11-02 | AA97: 2025-01-10 | AB97: check xong | AD97: =VLOOKUP($A97,MA_KH!$A:$Q,MA_KH!O$1,0) -> CIRCLE K | AE97: =VLOOKUP($A97,MA_KH!$A:$Q,MA_KH!P$1,0) -> CÔNG TY TNHH VÒNG TRÒN ĐỎ
A98: CircleK | B98: CÔNG TY TNHH VÒNG TRÒN ĐỎ | C98: 2024-11-02 | E98: 2024-11-02 | F98: 00062058 | G98: CircleK Một phần của căn nhà số 586 - 588 Quang Trung, Quận Gò Vấp | H98: 129224 | I98: 0 | J98: 10338 | K98: 139562 | L98: Tồn đầu kỳ | M98: 2025-01-10 | O98: =IF(Table1[[#This Row],[Phân loại]]="Tồn đầu kỳ",Table1[[#This Row],[Tổng giá trị]],0) -> 139562 | P98: =IF(Table1[[#This Row],[Số còn phải thu ĐK]]<>0,0,IF(Table1[[#This Row],[Phân loại]]="Bán hàng",Table1[[#This Row],[Tổng giá trị]],-Table1[[#This Row],[Tổng giá trị]])) -> 0 | Q98: 139562 | R98: =Table1[[#This Row],[Số còn phải thu ĐK]]+Table1[[#This Row],[Giá Trị HD sau CK]]-Table1[[#This Row],[Số tiền đã thu]] -> 0 | S98: =IF(Table1[[#This Row],[Ngày hóa đơn]]<>"",Table1[[#This Row],[Ngày hóa đơn]],Table1[[#This Row],[Ngày hạch toán]]) -> 2024-11-02 | U98: =IF(Table1[[#This Row],[Ngày tính CN]]="","",S98+T98) -> 2024-11-02 | V98: =IF(Table1[[#This Row],[Hạn thanh toán]]="","",IF((U98-NOW())<0,0,(U98-NOW()))) -> 0 | Y98: Đã thanh toán | Z98: 2024-11-02 | AA98: 2025-01-10 | AB98: check xong | AD98: =VLOOKUP($A98,MA_KH!$A:$Q,MA_KH!O$1,0) -> CIRCLE K | AE98: =VLOOKUP($A98,MA_KH!$A:$Q,MA_KH!P$1,0) -> CÔNG TY TNHH VÒNG TRÒN ĐỎ
A99: CircleK | B99: CÔNG TY TNHH VÒNG TRÒN ĐỎ | C99: 2024-11-02 | E99: 2024-11-02 | F99: 00062059 | G99: CircleK 271 Lê Văn Thọ | H99: 163181 | I99: 0 | J99: 13054 | K99: 176235 | L99: Tồn đầu kỳ | M99: 2025-01-10 | O99: =IF(Table1[[#This Row],[Phân loại]]="Tồn đầu kỳ",Table1[[#This Row],[Tổng giá trị]],0) -> 176235 | P99: =IF(Table1[[#This Row],[Số còn phải thu ĐK]]<>0,0,IF(Table1[[#This Row],[Phân loại]]="Bán hàng",Table1[[#This Row],[Tổng giá trị]],-Table1[[#This Row],[Tổng giá trị]])) -> 0 | Q99: 176235 | R99: =Table1[[#This Row],[Số còn phải thu ĐK]]+Table1[[#This Row],[Giá Trị HD sau CK]]-Table1[[#This Row],[Số tiền đã thu]] -> 0 | S99: =IF(Table1[[#This Row],[Ngày hóa đơn]]<>"",Table1[[#This Row],[Ngày hóa đơn]],Table1[[#This Row],[Ngày hạch toán]]) -> 2024-11-02 | U99: =IF(Table1[[#This Row],[Ngày tính CN]]="","",S99+T99) -> 2024-11-02 | V99: =IF(Table1[[#This Row],[Hạn thanh toán]]="","",IF((U99-NOW())<0,0,(U99-NOW()))) -> 0 | Y99: Đã thanh toán | Z99: 2024-11-02 | AA99: 2025-01-10 | AB99: check xong | AD99: =VLOOKUP($A99,MA_KH!$A:$Q,MA_KH!O$1,0) -> CIRCLE K | AE99: =VLOOKUP($A99,MA_KH!$A:$Q,MA_KH!P$1,0) -> CÔNG TY TNHH VÒNG TRÒN ĐỎ
A100: CircleK | B100: CÔNG TY TNHH VÒNG TRÒN ĐỎ | C100: 2024-11-02 | E100: 2024-11-02 | F100: 00062064 | G100: CircleK 11 Nguyễn Văn Tráng | H100: 129224 | I100: 0 | J100: 10338 | K100: 139562 | L100: Tồn đầu kỳ | M100: 2025-01-10 | O100: =IF(Table1[[#This Row],[Phân loại]]="Tồn đầu kỳ",Table1[[#This Row],[Tổng giá trị]],0) -> 139562 | P100: =IF(Table1[[#This Row],[Số còn phải thu ĐK]]<>0,0,IF(Table1[[#This Row],[Phân loại]]="Bán hàng",Table1[[#This Row],[Tổng giá trị]],-Table1[[#This Row],[Tổng giá trị]])) -> 0 | Q100: 139562 | R100: =Table1[[#This Row],[Số còn phải thu ĐK]]+Table1[[#This Row],[Giá Trị HD sau CK]]-Table1[[#This Row],[Số tiền đã thu]] -> 0 | S100: =IF(Table1[[#This Row],[Ngày hóa đơn]]<>"",Table1[[#This Row],[Ngày hóa đơn]],Table1[[#This Row],[Ngày hạch toán]]) -> 2024-11-02 | U100: =IF(Table1[[#This Row],[Ngày tính CN]]="","",S100+T100) -> 2024-11-02 | V100: =IF(Table1[[#This Row],[Hạn thanh toán]]="","",IF((U100-NOW())<0,0,(U100-NOW()))) -> 0 | Y100: Đã thanh toán | Z100: 2024-11-02 | AA100: 2025-01-10 | AB100: check xong | AD100: =VLOOKUP($A100,MA_KH!$A:$Q,MA_KH!O$1,0) -> CIRCLE K | AE100: =VLOOKUP($A100,MA_KH!$A:$Q,MA_KH!P$1,0) -> CÔNG TY TNHH VÒNG TRÒN ĐỎ
A101: CircleK | B101: CÔNG TY TNHH VÒNG TRÒN ĐỎ | C101: 2024-11-02 | E101: 2024-11-02 | F101: 00062065 | G101: CircleK 27Bis Tôn Thất Tùng | H101: 129224 | I101: 0 | J101: 10338 | K101: 139562 | L101: Tồn đầu kỳ | M101: 2025-01-10 | O101: =IF(Table1[[#This Row],[Phân loại]]="Tồn đầu kỳ",Table1[[#This Row],[Tổng giá trị]],0) -> 139562 | P101: =IF(Table1[[#This Row],[Số còn phải thu ĐK]]<>0,0,IF(Table1[[#This Row],[Phân loại]]="Bán hàng",Table1[[#This Row],[Tổng giá trị]],-Table1[[#This Row],[Tổng giá trị]])) -> 0 | Q101: 139562 | R101: =Table1[[#This Row],[Số còn phải thu ĐK]]+Table1[[#This Row],[Giá Trị HD sau CK]]-Table1[[#This Row],[Số tiền đã thu]] -> 0 | S101: =IF(Table1[[#This Row],[Ngày hóa đơn]]<>"",Table1[[#This Row],[Ngày hóa đơn]],Table1[[#This Row],[Ngày hạch toán]]) -> 2024-11-02 | U101: =IF(Table1[[#This Row],[Ngày tính CN]]="","",S101+T101) -> 2024-11-02 | V101: =IF(Table1[[#This Row],[Hạn thanh toán]]="","",IF((U101-NOW())<0,0,(U101-NOW()))) -> 0 | Y101: Đã thanh toán | Z101: 2024-11-02 | AA101: 2025-01-10 | AB101: check xong | AD101: =VLOOKUP($A101,MA_KH!$A:$Q,MA_KH!O$1,0) -> CIRCLE K | AE101: =VLOOKUP($A101,MA_KH!$A:$Q,MA_KH!P$1,0) -> CÔNG TY TNHH VÒNG TRÒN ĐỎ
A102: CircleK | B102: CÔNG TY TNHH VÒNG TRÒN ĐỎ | C102: 2024-11-02 | E102: 2024-11-02 | F102: 00062066 | G102: CircleK L1-02 Tầng 1 Cao ốc Chung Cư SaiGon Mia, Đường số 9A Chung Cư Cụm 3,4 - Khu Dân Cư Trung Sơn | H102: 129224 | I102: 0 | J102: 10338 | K102: 139562 | L102: Tồn đầu kỳ | M102: 2025-01-10 | O102: =IF(Table1[[#This Row],[Phân loại]]="Tồn đầu kỳ",Table1[[#This Row],[Tổng giá trị]],0) -> 139562 | P102: =IF(Table1[[#This Row],[Số còn phải thu ĐK]]<>0,0,IF(Table1[[#This Row],[Phân loại]]="Bán hàng",Table1[[#This Row],[Tổng giá trị]],-Table1[[#This Row],[Tổng giá trị]])) -> 0 | Q102: 139562 | R102: =Table1[[#This Row],[Số còn phải thu ĐK]]+Table1[[#This Row],[Giá Trị HD sau CK]]-Table1[[#This Row],[Số tiền đã thu]] -> 0 | S102: =IF(Table1[[#This Row],[Ngày hóa đơn]]<>"",Table1[[#This Row],[Ngày hóa đơn]],Table1[[#This Row],[Ngày hạch toán]]) -> 2024-11-02 | U102: =IF(Table1[[#This Row],[Ngày tính CN]]="","",S102+T102) -> 2024-11-02 | V102: =IF(Table1[[#This Row],[Hạn thanh toán]]="","",IF((U102-NOW())<0,0,(U102-NOW()))) -> 0 | Y102: Đã thanh toán | Z102: 2024-11-02 | AA102: 2025-01-10 | AB102: check xong | AD102: =VLOOKUP($A102,MA_KH!$A:$Q,MA_KH!O$1,0) -> CIRCLE K | AE102: =VLOOKUP($A102,MA_KH!$A:$Q,MA_KH!P$1,0) -> CÔNG TY TNHH VÒNG TRÒN ĐỎ
A103: CircleK | B103: CÔNG TY TNHH VÒNG TRÒN ĐỎ | C103: 2024-11-02 | E103: 2024-11-02 | F103: 00062067 | G103: CircleK Số 21 Nguyễn Văn Tráng | H103: 129224 | I103: 0 | J103: 10338 | K103: 139562 | L103: Tồn đầu kỳ | M103: 2025-01-10 | O103: =IF(Table1[[#This Row],[Phân loại]]="Tồn đầu kỳ",Table1[[#This Row],[Tổng giá trị]],0) -> 139562 | P103: =IF(Table1[[#This Row],[Số còn phải thu ĐK]]<>0,0,IF(Table1[[#This Row],[Phân loại]]="Bán hàng",Table1[[#This Row],[Tổng giá trị]],-Table1[[#This Row],[Tổng giá trị]])) -> 0 | Q103: 139562 | R103: =Table1[[#This Row],[Số còn phải thu ĐK]]+Table1[[#This Row],[Giá Trị HD sau CK]]-Table1[[#This Row],[Số tiền đã thu]] -> 0 | S103: =IF(Table1[[#This Row],[Ngày hóa đơn]]<>"",Table1[[#This Row],[Ngày hóa đơn]],Table1[[#This Row],[Ngày hạch toán]]) -> 2024-11-02 | U103: =IF(Table1[[#This Row],[Ngày tính CN]]="","",S103+T103) -> 2024-11-02 | V103: =IF(Table1[[#This Row],[Hạn thanh toán]]="","",IF((U103-NOW())<0,0,(U103-NOW()))) -> 0 | Y103: Đã thanh toán | Z103: 2024-11-02 | AA103: 2025-01-10 | AB103: check xong | AD103: =VLOOKUP($A103,MA_KH!$A:$Q,MA_KH!O$1,0) -> CIRCLE K | AE103: =VLOOKUP($A103,MA_KH!$A:$Q,MA_KH!P$1,0) -> CÔNG TY TNHH VÒNG TRÒN ĐỎ
A104: CircleK | B104: CÔNG TY TNHH VÒNG TRÒN ĐỎ | C104: 2024-11-02 | E104: 2024-11-02 | F104: 00062068 | G104: CircleK Citizen Apartment, Trung Son Residential quarter | H104: 129224 | I104: 0 | J104: 10338 | K104: 139562 | L104: Tồn đầu kỳ | M104: 2025-01-10 | O104: =IF(Table1[[#This Row],[Phân loại]]="Tồn đầu kỳ",Table1[[#This Row],[Tổng giá trị]],0) -> 139562 | P104: =IF(Table1[[#This Row],[Số còn phải thu ĐK]]<>0,0,IF(Table1[[#This Row],[Phân loại]]="Bán hàng",Table1[[#This Row],[Tổng giá trị]],-Table1[[#This Row],[Tổng giá trị]])) -> 0 | Q104: 139562 | R104: =Table1[[#This Row],[Số còn phải thu ĐK]]+Table1[[#This Row],[Giá Trị HD sau CK]]-Table1[[#This Row],[Số tiền đã thu]] -> 0 | S104: =IF(Table1[[#This Row],[Ngày hóa đơn]]<>"",Table1[[#This Row],[Ngày hóa đơn]],Table1[[#This Row],[Ngày hạch toán]]) -> 2024-11-02 | U104: =IF(Table1[[#This Row],[Ngày tính CN]]="","",S104+T104) -> 2024-11-02 | V104: =IF(Table1[[#This Row],[Hạn thanh toán]]="","",IF((U104-NOW())<0,0,(U104-NOW()))) -> 0 | Y104: Đã thanh toán | Z104: 2024-11-02 | AA104: 2025-01-10 | AB104: check xong | AD104: =VLOOKUP($A104,MA_KH!$A:$Q,MA_KH!O$1,0) -> CIRCLE K | AE104: =VLOOKUP($A104,MA_KH!$A:$Q,MA_KH!P$1,0) -> CÔNG TY TNHH VÒNG TRÒN ĐỎ
A105: CircleK | B105: CÔNG TY TNHH VÒNG TRÒN ĐỎ | C105: 2024-11-02 | E105: 2024-11-02 | F105: 00062069 | G105: CircleK 160 Bùi Thị Xuân | H105: 129224 | I105: 0 | J105: 10338 | K105: 139562 | L105: Tồn đầu kỳ | M105: 2025-01-10 | O105: =IF(Table1[[#This Row],[Phân loại]]="Tồn đầu kỳ",Table1[[#This Row],[Tổng giá trị]],0) -> 139562 | P105: =IF(Table1[[#This Row],[Số còn phải thu ĐK]]<>0,0,IF(Table1[[#This Row],[Phân loại]]="Bán hàng",Table1[[#This Row],[Tổng giá trị]],-Table1[[#This Row],[Tổng giá trị]])) -> 0 | Q105: 139562 | R105: =Table1[[#This Row],[Số còn phải thu ĐK]]+Table1[[#This Row],[Giá Trị HD sau CK]]-Table1[[#This Row],[Số tiền đã thu]] -> 0 | S105: =IF(Table1[[#This Row],[Ngày hóa đơn]]<>"",Table1[[#This Row],[Ngày hóa đơn]],Table1[[#This Row],[Ngày hạch toán]]) -> 2024-11-02 | U105: =IF(Table1[[#This Row],[Ngày tính CN]]="","",S105+T105) -> 2024-11-02 | V105: =IF(Table1[[#This Row],[Hạn thanh toán]]="","",IF((U105-NOW())<0,0,(U105-NOW()))) -> 0 | Y105: Đã thanh toán | Z105: 2024-11-02 | AA105: 2025-01-10 | AB105: check xong | AD105: =VLOOKUP($A105,MA_KH!$A:$Q,MA_KH!O$1,0) -> CIRCLE K | AE105: =VLOOKUP($A105,MA_KH!$A:$Q,MA_KH!P$1,0) -> CÔNG TY TNHH VÒNG TRÒN ĐỎ
A106: CircleK | B106: CÔNG TY TNHH VÒNG TRÒN ĐỎ | C106: 2024-11-02 | E106: 2024-11-02 | F106: 00062070 | G106: CircleK 37 đường số 9A, Khu dân cư Trung Sơn | H106: 331315 | I106: 0 | J106: 26505 | K106: 357820 | L106: Tồn đầu kỳ | M106: 2025-01-10 | O106: =IF(Table1[[#This Row],[Phân loại]]="Tồn đầu kỳ",Table1[[#This Row],[Tổng giá trị]],0) -> 357820 | P106: =IF(Table1[[#This Row],[Số còn phải thu ĐK]]<>0,0,IF(Table1[[#This Row],[Phân loại]]="Bán hàng",Table1[[#This Row],[Tổng giá trị]],-Table1[[#This Row],[Tổng giá trị]])) -> 0 | Q106: 357820 | R106: =Table1[[#This Row],[Số còn phải thu ĐK]]+Table1[[#This Row],[Giá Trị HD sau CK]]-Table1[[#This Row],[Số tiền đã thu]] -> 0 | S106: =IF(Table1[[#This Row],[Ngày hóa đơn]]<>"",Table1[[#This Row],[Ngày hóa đơn]],Table1[[#This Row],[Ngày hạch toán]]) -> 2024-11-02 | U106: =IF(Table1[[#This Row],[Ngày tính CN]]="","",S106+T106) -> 2024-11-02 | V106: =IF(Table1[[#This Row],[Hạn thanh toán]]="","",IF((U106-NOW())<0,0,(U106-NOW()))) -> 0 | Y106: Đã thanh toán | Z106: 2024-11-02 | AA106: 2025-01-10 | AB106: check xong | AD106: =VLOOKUP($A106,MA_KH!$A:$Q,MA_KH!O$1,0) -> CIRCLE K | AE106: =VLOOKUP($A106,MA_KH!$A:$Q,MA_KH!P$1,0) -> CÔNG TY TNHH VÒNG TRÒN ĐỎ
A107: CircleK-017 | B107: CHI NHÁNH CÔNG TY TNHH VÒNG TRÒN ĐỎ TẠI CẦN THƠ | C107: 2024-11-02 | E107: 2024-11-02 | F107: 00062074 | G107: CircleK 3-5 Lý Tự Trọng | H107: 242295 | I107: 0 | J107: 19384 | K107: 261679 | L107: Tồn đầu kỳ | M107: 2025-01-10 | O107: =IF(Table1[[#This Row],[Phân loại]]="Tồn đầu kỳ",Table1[[#This Row],[Tổng giá trị]],0) -> 261679 | P107: =IF(Table1[[#This Row],[Số còn phải thu ĐK]]<>0,0,IF(Table1[[#This Row],[Phân loại]]="Bán hàng",Table1[[#This Row],[Tổng giá trị]],-Table1[[#This Row],[Tổng giá trị]])) -> 0 | Q107: 261679 | R107: =Table1[[#This Row],[Số còn phải thu ĐK]]+Table1[[#This Row],[Giá Trị HD sau CK]]-Table1[[#This Row],[Số tiền đã thu]] -> 0 | S107: =IF(Table1[[#This Row],[Ngày hóa đơn]]<>"",Table1[[#This Row],[Ngày hóa đơn]],Table1[[#This Row],[Ngày hạch toán]]) -> 2024-11-02 | U107: =IF(Table1[[#This Row],[Ngày tính CN]]="","",S107+T107) -> 2024-11-02 | V107: =IF(Table1[[#This Row],[Hạn thanh toán]]="","",IF((U107-NOW())<0,0,(U107-NOW()))) -> 0 | Y107: Đã thanh toán | Z107: 2024-11-02 | AA107: 2025-01-10 | AB107: check xong | AD107: =VLOOKUP($A107,MA_KH!$A:$Q,MA_KH!O$1,0) -> CIRCLE K | AE107: =VLOOKUP($A107,MA_KH!$A:$Q,MA_KH!P$1,0) -> CÔNG TY TNHH VÒNG TRÒN ĐỎ
A108: CircleK | B108: CÔNG TY TNHH VÒNG TRÒN ĐỎ | C108: 2024-11-02 | E108: 2024-11-02 | F108: 00062078 | G108: CircleK T2,00.01 Toà Nhà Krista 537 Nguyễn Duy Trinh | H108: 400880 | I108: 0 | J108: 32070 | K108: 432950 | L108: Tồn đầu kỳ | M108: 2025-01-10 | O108: =IF(Table1[[#This Row],[Phân loại]]="Tồn đầu kỳ",Table1[[#This Row],[Tổng giá trị]],0) -> 432950 | P108: =IF(Table1[[#This Row],[Số còn phải thu ĐK]]<>0,0,IF(Table1[[#This Row],[Phân loại]]="Bán hàng",Table1[[#This Row],[Tổng giá trị]],-Table1[[#This Row],[Tổng giá trị]])) -> 0 | Q108: 432950 | R108: =Table1[[#This Row],[Số còn phải thu ĐK]]+Table1[[#This Row],[Giá Trị HD sau CK]]-Table1[[#This Row],[Số tiền đã thu]] -> 0 | S108: =IF(Table1[[#This Row],[Ngày hóa đơn]]<>"",Table1[[#This Row],[Ngày hóa đơn]],Table1[[#This Row],[Ngày hạch toán]]) -> 2024-11-02 | U108: =IF(Table1[[#This Row],[Ngày tính CN]]="","",S108+T108) -> 2024-11-02 | V108: =IF(Table1[[#This Row],[Hạn thanh toán]]="","",IF((U108-NOW())<0,0,(U108-NOW()))) -> 0 | Y108: Đã thanh toán | Z108: 2024-11-02 | AA108: 2025-01-10 | AB108: check xong | AD108: =VLOOKUP($A108,MA_KH!$A:$Q,MA_KH!O$1,0) -> CIRCLE K | AE108: =VLOOKUP($A108,MA_KH!$A:$Q,MA_KH!P$1,0) -> CÔNG TY TNHH VÒNG TRÒN ĐỎ
A109: CircleK | B109: CÔNG TY TNHH VÒNG TRÒN ĐỎ | C109: 2024-11-02 | E109: 2024-11-02 | F109: 00062086 | G109: CircleK 135 Nguyễn Cửu Đàm | H109: 129224 | I109: 0 | J109: 10338 | K109: 139562 | L109: Tồn đầu kỳ | M109: 2025-01-10 | O109: =IF(Table1[[#This Row],[Phân loại]]="Tồn đầu kỳ",Table1[[#This Row],[Tổng giá trị]],0) -> 139562 | P109: =IF(Table1[[#This Row],[Số còn phải thu ĐK]]<>0,0,IF(Table1[[#This Row],[Phân loại]]="Bán hàng",Table1[[#This Row],[Tổng giá trị]],-Table1[[#This Row],[Tổng giá trị]])) -> 0 | Q109: 139562 | R109: =Table1[[#This Row],[Số còn phải thu ĐK]]+Table1[[#This Row],[Giá Trị HD sau CK]]-Table1[[#This Row],[Số tiền đã thu]] -> 0 | S109: =IF(Table1[[#This Row],[Ngày hóa đơn]]<>"",Table1[[#This Row],[Ngày hóa đơn]],Table1[[#This Row],[Ngày hạch toán]]) -> 2024-11-02 | U109: =IF(Table1[[#This Row],[Ngày tính CN]]="","",S109+T109) -> 2024-11-02 | V109: =IF(Table1[[#This Row],[Hạn thanh toán]]="","",IF((U109-NOW())<0,0,(U109-NOW()))) -> 0 | Y109: Đã thanh toán | Z109: 2024-11-02 | AA109: 2025-01-10 | AB109: check xong | AD109: =VLOOKUP($A109,MA_KH!$A:$Q,MA_KH!O$1,0) -> CIRCLE K | AE109: =VLOOKUP($A109,MA_KH!$A:$Q,MA_KH!P$1,0) -> CÔNG TY TNHH VÒNG TRÒN ĐỎ
A110: CircleK | B110: CÔNG TY TNHH VÒNG TRÒN ĐỎ | C110: 2024-11-02 | E110: 2024-11-02 | F110: 00062091 | G110: CircleK 160 Đường Số 19 | H110: 129224 | I110: 0 | J110: 10338 | K110: 139562 | L110: Tồn đầu kỳ | M110: 2025-01-10 | O110: =IF(Table1[[#This Row],[Phân loại]]="Tồn đầu kỳ",Table1[[#This Row],[Tổng giá trị]],0) -> 139562 | P110: =IF(Table1[[#This Row],[Số còn phải thu ĐK]]<>0,0,IF(Table1[[#This Row],[Phân loại]]="Bán hàng",Table1[[#This Row],[Tổng giá trị]],-Table1[[#This Row],[Tổng giá trị]])) -> 0 | Q110: 139562 | R110: =Table1[[#This Row],[Số còn phải thu ĐK]]+Table1[[#This Row],[Giá Trị HD sau CK]]-Table1[[#This Row],[Số tiền đã thu]] -> 0 | S110: =IF(Table1[[#This Row],[Ngày hóa đơn]]<>"",Table1[[#This Row],[Ngày hóa đơn]],Table1[[#This Row],[Ngày hạch toán]]) -> 2024-11-02 | U110: =IF(Table1[[#This Row],[Ngày tính CN]]="","",S110+T110) -> 2024-11-02 | V110: =IF(Table1[[#This Row],[Hạn thanh toán]]="","",IF((U110-NOW())<0,0,(U110-NOW()))) -> 0 | Y110: Đã thanh toán | Z110: 2024-11-02 | AA110: 2025-01-10 | AB110: check xong | AD110: =VLOOKUP($A110,MA_KH!$A:$Q,MA_KH!O$1,0) -> CIRCLE K | AE110: =VLOOKUP($A110,MA_KH!$A:$Q,MA_KH!P$1,0) -> CÔNG TY TNHH VÒNG TRÒN ĐỎ
A111: CircleK | B111: CÔNG TY TNHH VÒNG TRÒN ĐỎ | C111: 2024-11-04 | E111: 2024-11-04 | F111: 00062137 | G111: CircleK 87 Trần Nguyên Đán | H111: 161530 | I111: 0 | J111: 12922 | K111: 174452 | L111: Tồn đầu kỳ | M111: 2025-01-10 | O111: =IF(Table1[[#This Row],[Phân loại]]="Tồn đầu kỳ",Table1[[#This Row],[Tổng giá trị]],0) -> 174452 | P111: =IF(Table1[[#This Row],[Số còn phải thu ĐK]]<>0,0,IF(Table1[[#This Row],[Phân loại]]="Bán hàng",Table1[[#This Row],[Tổng giá trị]],-Table1[[#This Row],[Tổng giá trị]])) -> 0 | Q111: 174452 | R111: =Table1[[#This Row],[Số còn phải thu ĐK]]+Table1[[#This Row],[Giá Trị HD sau CK]]-Table1[[#This Row],[Số tiền đã thu]] -> 0 | S111: =IF(Table1[[#This Row],[Ngày hóa đơn]]<>"",Table1[[#This Row],[Ngày hóa đơn]],Table1[[#This Row],[Ngày hạch toán]]) -> 2024-11-04 | U111: =IF(Table1[[#This Row],[Ngày tính CN]]="","",S111+T111) -> 2024-11-04 | V111: =IF(Table1[[#This Row],[Hạn thanh toán]]="","",IF((U111-NOW())<0,0,(U111-NOW()))) -> 0 | Y111: Đã thanh toán | Z111: 2024-11-04 | AA111: 2025-01-10 | AB111: check xong | AD111: =VLOOKUP($A111,MA_KH!$A:$Q,MA_KH!O$1,0) -> CIRCLE K | AE111: =VLOOKUP($A111,MA_KH!$A:$Q,MA_KH!P$1,0) -> CÔNG TY TNHH VÒNG TRÒN ĐỎ
A112: CircleK-011 | B112: CHI NHÁNH TẠI BÌNH DƯƠNG CÔNG TY TNHH VÒNG TRÒN ĐỎ | C112: 2024-11-05 | E112: 2024-11-05 | F112: 00062229 | G112: CircleK 105 Lê Trọng Tấn, Khu Phố Bình Đường 2 | H112: 129224 | I112: 0 | J112: 10338 | K112: 139562 | L112: Tồn đầu kỳ | M112: 2025-01-10 | O112: =IF(Table1[[#This Row],[Phân loại]]="Tồn đầu kỳ",Table1[[#This Row],[Tổng giá trị]],0) -> 139562 | P112: =IF(Table1[[#This Row],[Số còn phải thu ĐK]]<>0,0,IF(Table1[[#This Row],[Phân loại]]="Bán hàng",Table1[[#This Row],[Tổng giá trị]],-Table1[[#This Row],[Tổng giá trị]])) -> 0 | Q112: 139562 | R112: =Table1[[#This Row],[Số còn phải thu ĐK]]+Table1[[#This Row],[Giá Trị HD sau CK]]-Table1[[#This Row],[Số tiền đã thu]] -> 0 | S112: =IF(Table1[[#This Row],[Ngày hóa đơn]]<>"",Table1[[#This Row],[Ngày hóa đơn]],Table1[[#This Row],[Ngày hạch toán]]) -> 2024-11-05 | U112: =IF(Table1[[#This Row],[Ngày tính CN]]="","",S112+T112) -> 2024-11-05 | V112: =IF(Table1[[#This Row],[Hạn thanh toán]]="","",IF((U112-NOW())<0,0,(U112-NOW()))) -> 0 | Y112: Đã thanh toán | Z112: 2024-11-05 | AA112: 2025-01-10 | AB112: check xong | AD112: =VLOOKUP($A112,MA_KH!$A:$Q,MA_KH!O$1,0) -> CIRCLE K | AE112: =VLOOKUP($A112,MA_KH!$A:$Q,MA_KH!P$1,0) -> CÔNG TY TNHH VÒNG TRÒN ĐỎ
A113: CircleK | B113: CÔNG TY TNHH VÒNG TRÒN ĐỎ | C113: 2024-11-05 | E113: 2024-11-05 | F113: 00062234 | G113: CircleK 529 Sư Vạn Hạnh | H113: 400880 | I113: 0 | J113: 32070 | K113: 432950 | L113: Tồn đầu kỳ | M113: 2025-01-10 | O113: =IF(Table1[[#This Row],[Phân loại]]="Tồn đầu kỳ",Table1[[#This Row],[Tổng giá trị]],0) -> 432950 | P113: =IF(Table1[[#This Row],[Số còn phải thu ĐK]]<>0,0,IF(Table1[[#This Row],[Phân loại]]="Bán hàng",Table1[[#This Row],[Tổng giá trị]],-Table1[[#This Row],[Tổng giá trị]])) -> 0 | Q113: 432950 | R113: =Table1[[#This Row],[Số còn phải thu ĐK]]+Table1[[#This Row],[Giá Trị HD sau CK]]-Table1[[#This Row],[Số tiền đã thu]] -> 0 | S113: =IF(Table1[[#This Row],[Ngày hóa đơn]]<>"",Table1[[#This Row],[Ngày hóa đơn]],Table1[[#This Row],[Ngày hạch toán]]) -> 2024-11-05 | U113: =IF(Table1[[#This Row],[Ngày tính CN]]="","",S113+T113) -> 2024-11-05 | V113: =IF(Table1[[#This Row],[Hạn thanh toán]]="","",IF((U113-NOW())<0,0,(U113-NOW()))) -> 0 | Y113: Đã thanh toán | Z113: 2024-11-05 | AA113: 2025-01-10 | AB113: check xong | AD113: =VLOOKUP($A113,MA_KH!$A:$Q,MA_KH!O$1,0) -> CIRCLE K | AE113: =VLOOKUP($A113,MA_KH!$A:$Q,MA_KH!P$1,0) -> CÔNG TY TNHH VÒNG TRÒN ĐỎ
A114: CircleK | B114: CÔNG TY TNHH VÒNG TRÒN ĐỎ | C114: 2024-11-05 | E114: 2024-11-05 | F114: 00062235 | G114: CircleK 02 Đường Nội Khu Hưng Gia IV | H114: 400880 | I114: 0 | J114: 32070 | K114: 432950 | L114: Tồn đầu kỳ | M114: 2025-01-10 | O114: =IF(Table1[[#This Row],[Phân loại]]="Tồn đầu kỳ",Table1[[#This Row],[Tổng giá trị]],0) -> 432950 | P114: =IF(Table1[[#This Row],[Số còn phải thu ĐK]]<>0,0,IF(Table1[[#This Row],[Phân loại]]="Bán hàng",Table1[[#This Row],[Tổng giá trị]],-Table1[[#This Row],[Tổng giá trị]])) -> 0 | Q114: 432950 | R114: =Table1[[#This Row],[Số còn phải thu ĐK]]+Table1[[#This Row],[Giá Trị HD sau CK]]-Table1[[#This Row],[Số tiền đã thu]] -> 0 | S114: =IF(Table1[[#This Row],[Ngày hóa đơn]]<>"",Table1[[#This Row],[Ngày hóa đơn]],Table1[[#This Row],[Ngày hạch toán]]) -> 2024-11-05 | U114: =IF(Table1[[#This Row],[Ngày tính CN]]="","",S114+T114) -> 2024-11-05 | V114: =IF(Table1[[#This Row],[Hạn thanh toán]]="","",IF((U114-NOW())<0,0,(U114-NOW()))) -> 0 | Y114: Đã thanh toán | Z114: 2024-11-05 | AA114: 2025-01-10 | AB114: check xong | AD114: =VLOOKUP($A114,MA_KH!$A:$Q,MA_KH!O$1,0) -> CIRCLE K | AE114: =VLOOKUP($A114,MA_KH!$A:$Q,MA_KH!P$1,0) -> CÔNG TY TNHH VÒNG TRÒN ĐỎ
A115: CircleK | B115: CÔNG TY TNHH VÒNG TRÒN ĐỎ | C115: 2024-11-05 | E115: 2024-11-05 | F115: 00062236 | G115: CircleK 459/8A Nguyễn Thị Thập | H115: 161530 | I115: 0 | J115: 12922 | K115: 174452 | L115: Tồn đầu kỳ | M115: 2025-01-10 | O115: =IF(Table1[[#This Row],[Phân loại]]="Tồn đầu kỳ",Table1[[#This Row],[Tổng giá trị]],0) -> 174452 | P115: =IF(Table1[[#This Row],[Số còn phải thu ĐK]]<>0,0,IF(Table1[[#This Row],[Phân loại]]="Bán hàng",Table1[[#This Row],[Tổng giá trị]],-Table1[[#This Row],[Tổng giá trị]])) -> 0 | Q115: 174452 | R115: =Table1[[#This Row],[Số còn phải thu ĐK]]+Table1[[#This Row],[Giá Trị HD sau CK]]-Table1[[#This Row],[Số tiền đã thu]] -> 0 | S115: =IF(Table1[[#This Row],[Ngày hóa đơn]]<>"",Table1[[#This Row],[Ngày hóa đơn]],Table1[[#This Row],[Ngày hạch toán]]) -> 2024-11-05 | U115: =IF(Table1[[#This Row],[Ngày tính CN]]="","",S115+T115) -> 2024-11-05 | V115: =IF(Table1[[#This Row],[Hạn thanh toán]]="","",IF((U115-NOW())<0,0,(U115-NOW()))) -> 0 | Y115: Đã thanh toán | Z115: 2024-11-05 | AA115: 2025-01-10 | AB115: check xong | AD115: =VLOOKUP($A115,MA_KH!$A:$Q,MA_KH!O$1,0) -> CIRCLE K | AE115: =VLOOKUP($A115,MA_KH!$A:$Q,MA_KH!P$1,0) -> CÔNG TY TNHH VÒNG TRÒN ĐỎ
A116: CircleK | B116: CÔNG TY TNHH VÒNG TRÒN ĐỎ | C116: 2024-11-05 | E116: 2024-11-05 | F116: 00062237 | G116: CircleK 17 Cao Thắng | H116: 231095 | I116: 0 | J116: 18488 | K116: 249583 | L116: Tồn đầu kỳ | M116: 2025-01-10 | O116: =IF(Table1[[#This Row],[Phân loại]]="Tồn đầu kỳ",Table1[[#This Row],[Tổng giá trị]],0) -> 249583 | P116: =IF(Table1[[#This Row],[Số còn phải thu ĐK]]<>0,0,IF(Table1[[#This Row],[Phân loại]]="Bán hàng",Table1[[#This Row],[Tổng giá trị]],-Table1[[#This Row],[Tổng giá trị]])) -> 0 | Q116: 249583 | R116: =Table1[[#This Row],[Số còn phải thu ĐK]]+Table1[[#This Row],[Giá Trị HD sau CK]]-Table1[[#This Row],[Số tiền đã thu]] -> 0 | S116: =IF(Table1[[#This Row],[Ngày hóa đơn]]<>"",Table1[[#This Row],[Ngày hóa đơn]],Table1[[#This Row],[Ngày hạch toán]]) -> 2024-11-05 | U116: =IF(Table1[[#This Row],[Ngày tính CN]]="","",S116+T116) -> 2024-11-05 | V116: =IF(Table1[[#This Row],[Hạn thanh toán]]="","",IF((U116-NOW())<0,0,(U116-NOW()))) -> 0 | Y116: Đã thanh toán | Z116: 2024-11-05 | AA116: 2025-01-10 | AB116: check xong | AD116: =VLOOKUP($A116,MA_KH!$A:$Q,MA_KH!O$1,0) -> CIRCLE K | AE116: =VLOOKUP($A116,MA_KH!$A:$Q,MA_KH!P$1,0) -> CÔNG TY TNHH VÒNG TRÒN ĐỎ
A117: CircleK | B117: CÔNG TY TNHH VÒNG TRÒN ĐỎ | C117: 2024-11-05 | E117: 2024-11-05 | F117: 00062238 | G117: CircleK 525 Tô Hiến Thành | H117: 161530 | I117: 0 | J117: 12922 | K117: 174452 | L117: Tồn đầu kỳ | M117: 2025-01-10 | O117: =IF(Table1[[#This Row],[Phân loại]]="Tồn đầu kỳ",Table1[[#This Row],[Tổng giá trị]],0) -> 174452 | P117: =IF(Table1[[#This Row],[Số còn phải thu ĐK]]<>0,0,IF(Table1[[#This Row],[Phân loại]]="Bán hàng",Table1[[#This Row],[Tổng giá trị]],-Table1[[#This Row],[Tổng giá trị]])) -> 0 | Q117: 174452 | R117: =Table1[[#This Row],[Số còn phải thu ĐK]]+Table1[[#This Row],[Giá Trị HD sau CK]]-Table1[[#This Row],[Số tiền đã thu]] -> 0 | S117: =IF(Table1[[#This Row],[Ngày hóa đơn]]<>"",Table1[[#This Row],[Ngày hóa đơn]],Table1[[#This Row],[Ngày hạch toán]]) -> 2024-11-05 | U117: =IF(Table1[[#This Row],[Ngày tính CN]]="","",S117+T117) -> 2024-11-05 | V117: =IF(Table1[[#This Row],[Hạn thanh toán]]="","",IF((U117-NOW())<0,0,(U117-NOW()))) -> 0 | Y117: Đã thanh toán | Z117: 2024-11-05 | AA117: 2025-01-10 | AB117: check xong | AD117: =VLOOKUP($A117,MA_KH!$A:$Q,MA_KH!O$1,0) -> CIRCLE K | AE117: =VLOOKUP($A117,MA_KH!$A:$Q,MA_KH!P$1,0) -> CÔNG TY TNHH VÒNG TRÒN ĐỎ
A118: CircleK | B118: CÔNG TY TNHH VÒNG TRÒN ĐỎ | C118: 2024-11-05 | E118: 2024-11-05 | F118: 00062239 | G118: CircleK 271 Phạm Ngũ Lão | H118: 643175 | I118: 0 | J118: 51454 | K118: 694629 | L118: Tồn đầu kỳ | M118: 2025-01-10 | O118: =IF(Table1[[#This Row],[Phân loại]]="Tồn đầu kỳ",Table1[[#This Row],[Tổng giá trị]],0) -> 694629 | P118: =IF(Table1[[#This Row],[Số còn phải thu ĐK]]<>0,0,IF(Table1[[#This Row],[Phân loại]]="Bán hàng",Table1[[#This Row],[Tổng giá trị]],-Table1[[#This Row],[Tổng giá trị]])) -> 0 | Q118: 694629 | R118: =Table1[[#This Row],[Số còn phải thu ĐK]]+Table1[[#This Row],[Giá Trị HD sau CK]]-Table1[[#This Row],[Số tiền đã thu]] -> 0 | S118: =IF(Table1[[#This Row],[Ngày hóa đơn]]<>"",Table1[[#This Row],[Ngày hóa đơn]],Table1[[#This Row],[Ngày hạch toán]]) -> 2024-11-05 | U118: =IF(Table1[[#This Row],[Ngày tính CN]]="","",S118+T118) -> 2024-11-05 | V118: =IF(Table1[[#This Row],[Hạn thanh toán]]="","",IF((U118-NOW())<0,0,(U118-NOW()))) -> 0 | Y118: Đã thanh toán | Z118: 2024-11-05 | AA118: 2025-01-10 | AB118: check xong | AD118: =VLOOKUP($A118,MA_KH!$A:$Q,MA_KH!O$1,0) -> CIRCLE K | AE118: =VLOOKUP($A118,MA_KH!$A:$Q,MA_KH!P$1,0) -> CÔNG TY TNHH VÒNG TRÒN ĐỎ
A119: CircleK | B119: CÔNG TY TNHH VÒNG TRÒN ĐỎ | C119: 2024-11-05 | E119: 2024-11-05 | F119: 00062241 | G119: CircleK 15C Nguyễn Thị Minh Khai | H119: 129224 | I119: 0 | J119: 10338 | K119: 139562 | L119: Tồn đầu kỳ | M119: 2025-01-10 | O119: =IF(Table1[[#This Row],[Phân loại]]="Tồn đầu kỳ",Table1[[#This Row],[Tổng giá trị]],0) -> 139562 | P119: =IF(Table1[[#This Row],[Số còn phải thu ĐK]]<>0,0,IF(Table1[[#This Row],[Phân loại]]="Bán hàng",Table1[[#This Row],[Tổng giá trị]],-Table1[[#This Row],[Tổng giá trị]])) -> 0 | Q119: 139562 | R119: =Table1[[#This Row],[Số còn phải thu ĐK]]+Table1[[#This Row],[Giá Trị HD sau CK]]-Table1[[#This Row],[Số tiền đã thu]] -> 0 | S119: =IF(Table1[[#This Row],[Ngày hóa đơn]]<>"",Table1[[#This Row],[Ngày hóa đơn]],Table1[[#This Row],[Ngày hạch toán]]) -> 2024-11-05 | U119: =IF(Table1[[#This Row],[Ngày tính CN]]="","",S119+T119) -> 2024-11-05 | V119: =IF(Table1[[#This Row],[Hạn thanh toán]]="","",IF((U119-NOW())<0,0,(U119-NOW()))) -> 0 | Y119: Đã thanh toán | Z119: 2024-11-05 | AA119: 2025-01-10 | AB119: check xong | AD119: =VLOOKUP($A119,MA_KH!$A:$Q,MA_KH!O$1,0) -> CIRCLE K | AE119: =VLOOKUP($A119,MA_KH!$A:$Q,MA_KH!P$1,0) -> CÔNG TY TNHH VÒNG TRÒN ĐỎ
A120: CircleK | B120: CÔNG TY TNHH VÒNG TRÒN ĐỎ | C120: 2024-11-05 | E120: 2024-11-05 | F120: 00062242 | G120: CircleK A1.09 Sunrise City View - Khu Phức Hợp Căn Hộ Nhật Hoa, 33 Nguyễn Hữu Thọ | H120: 129224 | I120: 0 | J120: 10338 | K120: 139562 | L120: Tồn đầu kỳ | M120: 2025-01-10 | O120: =IF(Table1[[#This Row],[Phân loại]]="Tồn đầu kỳ",Table1[[#This Row],[Tổng giá trị]],0) -> 139562 | P120: =IF(Table1[[#This Row],[Số còn phải thu ĐK]]<>0,0,IF(Table1[[#This Row],[Phân loại]]="Bán hàng",Table1[[#This Row],[Tổng giá trị]],-Table1[[#This Row],[Tổng giá trị]])) -> 0 | Q120: 139562 | R120: =Table1[[#This Row],[Số còn phải thu ĐK]]+Table1[[#This Row],[Giá Trị HD sau CK]]-Table1[[#This Row],[Số tiền đã thu]] -> 0 | S120: =IF(Table1[[#This Row],[Ngày hóa đơn]]<>"",Table1[[#This Row],[Ngày hóa đơn]],Table1[[#This Row],[Ngày hạch toán]]) -> 2024-11-05 | U120: =IF(Table1[[#This Row],[Ngày tính CN]]="","",S120+T120) -> 2024-11-05 | V120: =IF(Table1[[#This Row],[Hạn thanh toán]]="","",IF((U120-NOW())<0,0,(U120-NOW()))) -> 0 | Y120: Đã thanh toán | Z120: 2024-11-05 | AA120: 2025-01-10 | AB120: check xong | AD120: =VLOOKUP($A120,MA_KH!$A:$Q,MA_KH!O$1,0) -> CIRCLE K | AE120: =VLOOKUP($A120,MA_KH!$A:$Q,MA_KH!P$1,0) -> CÔNG TY TNHH VÒNG TRÒN ĐỎ
A121: CircleK | B121: CÔNG TY TNHH VÒNG TRÒN ĐỎ | C121: 2024-11-05 | E121: 2024-11-05 | F121: 00062243 | G121: CircleK 69 Nguyễn Khắc Nhu | H121: 129224 | I121: 0 | J121: 10338 | K121: 139562 | L121: Tồn đầu kỳ | M121: 2025-01-10 | O121: =IF(Table1[[#This Row],[Phân loại]]="Tồn đầu kỳ",Table1[[#This Row],[Tổng giá trị]],0) -> 139562 | P121: =IF(Table1[[#This Row],[Số còn phải thu ĐK]]<>0,0,IF(Table1[[#This Row],[Phân loại]]="Bán hàng",Table1[[#This Row],[Tổng giá trị]],-Table1[[#This Row],[Tổng giá trị]])) -> 0 | Q121: 139562 | R121: =Table1[[#This Row],[Số còn phải thu ĐK]]+Table1[[#This Row],[Giá Trị HD sau CK]]-Table1[[#This Row],[Số tiền đã thu]] -> 0 | S121: =IF(Table1[[#This Row],[Ngày hóa đơn]]<>"",Table1[[#This Row],[Ngày hóa đơn]],Table1[[#This Row],[Ngày hạch toán]]) -> 2024-11-05 | U121: =IF(Table1[[#This Row],[Ngày tính CN]]="","",S121+T121) -> 2024-11-05 | V121: =IF(Table1[[#This Row],[Hạn thanh toán]]="","",IF((U121-NOW())<0,0,(U121-NOW()))) -> 0 | Y121: Đã thanh toán | Z121: 2024-11-05 | AA121: 2025-01-10 | AB121: check xong | AD121: =VLOOKUP($A121,MA_KH!$A:$Q,MA_KH!O$1,0) -> CIRCLE K | AE121: =VLOOKUP($A121,MA_KH!$A:$Q,MA_KH!P$1,0) -> CÔNG TY TNHH VÒNG TRÒN ĐỎ
A122: CircleK | B122: CÔNG TY TNHH VÒNG TRÒN ĐỎ | C122: 2024-11-05 | E122: 2024-11-05 | F122: 00062244 | G122: CircleK Tầng Trệt - Số 167 Phạm Hữu Lầu, Tổ 17, Khu Phố 1 | H122: 379774 | I122: 0 | J122: 30382 | K122: 410156 | L122: Tồn đầu kỳ | M122: 2025-01-10 | O122: =IF(Table1[[#This Row],[Phân loại]]="Tồn đầu kỳ",Table1[[#This Row],[Tổng giá trị]],0) -> 410156 | P122: =IF(Table1[[#This Row],[Số còn phải thu ĐK]]<>0,0,IF(Table1[[#This Row],[Phân loại]]="Bán hàng",Table1[[#This Row],[Tổng giá trị]],-Table1[[#This Row],[Tổng giá trị]])) -> 0 | Q122: 410156 | R122: =Table1[[#This Row],[Số còn phải thu ĐK]]+Table1[[#This Row],[Giá Trị HD sau CK]]-Table1[[#This Row],[Số tiền đã thu]] -> 0 | S122: =IF(Table1[[#This Row],[Ngày hóa đơn]]<>"",Table1[[#This Row],[Ngày hóa đơn]],Table1[[#This Row],[Ngày hạch toán]]) -> 2024-11-05 | U122: =IF(Table1[[#This Row],[Ngày tính CN]]="","",S122+T122) -> 2024-11-05 | V122: =IF(Table1[[#This Row],[Hạn thanh toán]]="","",IF((U122-NOW())<0,0,(U122-NOW()))) -> 0 | Y122: Đã thanh toán | Z122: 2024-11-05 | AA122: 2025-01-10 | AB122: check xong | AD122: =VLOOKUP($A122,MA_KH!$A:$Q,MA_KH!O$1,0) -> CIRCLE K | AE122: =VLOOKUP($A122,MA_KH!$A:$Q,MA_KH!P$1,0) -> CÔNG TY TNHH VÒNG TRÒN ĐỎ
A123: CircleK | B123: CÔNG TY TNHH VÒNG TRÒN ĐỎ | C123: 2024-11-05 | E123: 2024-11-05 | F123: 00062245 | G123: CircleK 78-80 Đồng Đen | H123: 161530 | I123: 0 | J123: 12922 | K123: 174452 | L123: Tồn đầu kỳ | M123: 2025-01-10 | O123: =IF(Table1[[#This Row],[Phân loại]]="Tồn đầu kỳ",Table1[[#This Row],[Tổng giá trị]],0) -> 174452 | P123: =IF(Table1[[#This Row],[Số còn phải thu ĐK]]<>0,0,IF(Table1[[#This Row],[Phân loại]]="Bán hàng",Table1[[#This Row],[Tổng giá trị]],-Table1[[#This Row],[Tổng giá trị]])) -> 0 | Q123: 174452 | R123: =Table1[[#This Row],[Số còn phải thu ĐK]]+Table1[[#This Row],[Giá Trị HD sau CK]]-Table1[[#This Row],[Số tiền đã thu]] -> 0 | S123: =IF(Table1[[#This Row],[Ngày hóa đơn]]<>"",Table1[[#This Row],[Ngày hóa đơn]],Table1[[#This Row],[Ngày hạch toán]]) -> 2024-11-05 | U123: =IF(Table1[[#This Row],[Ngày tính CN]]="","",S123+T123) -> 2024-11-05 | V123: =IF(Table1[[#This Row],[Hạn thanh toán]]="","",IF((U123-NOW())<0,0,(U123-NOW()))) -> 0 | Y123: Đã thanh toán | Z123: 2024-11-05 | AA123: 2025-01-10 | AB123: check xong | AD123: =VLOOKUP($A123,MA_KH!$A:$Q,MA_KH!O$1,0) -> CIRCLE K | AE123: =VLOOKUP($A123,MA_KH!$A:$Q,MA_KH!P$1,0) -> CÔNG TY TNHH VÒNG TRÒN ĐỎ
A124: CircleK | B124: CÔNG TY TNHH VÒNG TRÒN ĐỎ | C124: 2024-11-05 | E124: 2024-11-05 | F124: 00062246 | G124: CircleK 374 Lê Văn Sỹ | H124: 231095 | I124: 0 | J124: 18488 | K124: 249583 | L124: Tồn đầu kỳ | M124: 2025-01-10 | O124: =IF(Table1[[#This Row],[Phân loại]]="Tồn đầu kỳ",Table1[[#This Row],[Tổng giá trị]],0) -> 249583 | P124: =IF(Table1[[#This Row],[Số còn phải thu ĐK]]<>0,0,IF(Table1[[#This Row],[Phân loại]]="Bán hàng",Table1[[#This Row],[Tổng giá trị]],-Table1[[#This Row],[Tổng giá trị]])) -> 0 | Q124: 249583 | R124: =Table1[[#This Row],[Số còn phải thu ĐK]]+Table1[[#This Row],[Giá Trị HD sau CK]]-Table1[[#This Row],[Số tiền đã thu]] -> 0 | S124: =IF(Table1[[#This Row],[Ngày hóa đơn]]<>"",Table1[[#This Row],[Ngày hóa đơn]],Table1[[#This Row],[Ngày hạch toán]]) -> 2024-11-05 | U124: =IF(Table1[[#This Row],[Ngày tính CN]]="","",S124+T124) -> 2024-11-05 | V124: =IF(Table1[[#This Row],[Hạn thanh toán]]="","",IF((U124-NOW())<0,0,(U124-NOW()))) -> 0 | Y124: Đã thanh toán | Z124: 2024-11-05 | AA124: 2025-01-10 | AB124: check xong | AD124: =VLOOKUP($A124,MA_KH!$A:$Q,MA_KH!O$1,0) -> CIRCLE K | AE124: =VLOOKUP($A124,MA_KH!$A:$Q,MA_KH!P$1,0) -> CÔNG TY TNHH VÒNG TRÒN ĐỎ
A125: CircleK | B125: CÔNG TY TNHH VÒNG TRÒN ĐỎ | C125: 2024-11-05 | E125: 2024-11-05 | F125: 00062247 | G125: CircleK 50 Nhất Chi Mai | H125: 323060 | I125: 0 | J125: 25845 | K125: 348905 | L125: Tồn đầu kỳ | M125: 2025-01-10 | O125: =IF(Table1[[#This Row],[Phân loại]]="Tồn đầu kỳ",Table1[[#This Row],[Tổng giá trị]],0) -> 348905 | P125: =IF(Table1[[#This Row],[Số còn phải thu ĐK]]<>0,0,IF(Table1[[#This Row],[Phân loại]]="Bán hàng",Table1[[#This Row],[Tổng giá trị]],-Table1[[#This Row],[Tổng giá trị]])) -> 0 | Q125: 348905 | R125: =Table1[[#This Row],[Số còn phải thu ĐK]]+Table1[[#This Row],[Giá Trị HD sau CK]]-Table1[[#This Row],[Số tiền đã thu]] -> 0 | S125: =IF(Table1[[#This Row],[Ngày hóa đơn]]<>"",Table1[[#This Row],[Ngày hóa đơn]],Table1[[#This Row],[Ngày hạch toán]]) -> 2024-11-05 | U125: =IF(Table1[[#This Row],[Ngày tính CN]]="","",S125+T125) -> 2024-11-05 | V125: =IF(Table1[[#This Row],[Hạn thanh toán]]="","",IF((U125-NOW())<0,0,(U125-NOW()))) -> 0 | Y125: Đã thanh toán | Z125: 2024-11-05 | AA125: 2025-01-10 | AB125: check xong | AD125: =VLOOKUP($A125,MA_KH!$A:$Q,MA_KH!O$1,0) -> CIRCLE K | AE125: =VLOOKUP($A125,MA_KH!$A:$Q,MA_KH!P$1,0) -> CÔNG TY TNHH VÒNG TRÒN ĐỎ
A126: CircleK | B126: CÔNG TY TNHH VÒNG TRÒN ĐỎ | C126: 2024-11-05 | E126: 2024-11-05 | F126: 00062248 | G126: CircleK 26 Nguyễn Thái Bình | H126: 412080 | I126: 0 | J126: 32966 | K126: 445046 | L126: Tồn đầu kỳ | M126: 2025-01-10 | O126: =IF(Table1[[#This Row],[Phân loại]]="Tồn đầu kỳ",Table1[[#This Row],[Tổng giá trị]],0) -> 445046 | P126: =IF(Table1[[#This Row],[Số còn phải thu ĐK]]<>0,0,IF(Table1[[#This Row],[Phân loại]]="Bán hàng",Table1[[#This Row],[Tổng giá trị]],-Table1[[#This Row],[Tổng giá trị]])) -> 0 | Q126: 445046 | R126: =Table1[[#This Row],[Số còn phải thu ĐK]]+Table1[[#This Row],[Giá Trị HD sau CK]]-Table1[[#This Row],[Số tiền đã thu]] -> 0 | S126: =IF(Table1[[#This Row],[Ngày hóa đơn]]<>"",Table1[[#This Row],[Ngày hóa đơn]],Table1[[#This Row],[Ngày hạch toán]]) -> 2024-11-05 | U126: =IF(Table1[[#This Row],[Ngày tính CN]]="","",S126+T126) -> 2024-11-05 | V126: =IF(Table1[[#This Row],[Hạn thanh toán]]="","",IF((U126-NOW())<0,0,(U126-NOW()))) -> 0 | Y126: Đã thanh toán | Z126: 2024-11-05 | AA126: 2025-01-10 | AB126: check xong | AD126: =VLOOKUP($A126,MA_KH!$A:$Q,MA_KH!O$1,0) -> CIRCLE K | AE126: =VLOOKUP($A126,MA_KH!$A:$Q,MA_KH!P$1,0) -> CÔNG TY TNHH VÒNG TRÒN ĐỎ
A127: CircleK | B127: CÔNG TY TNHH VÒNG TRÒN ĐỎ | C127: 2024-11-05 | E127: 2024-11-05 | F127: 00062249 | G127: CircleK 69B Phạm Văn Hai | H127: 231095 | I127: 0 | J127: 18488 | K127: 249583 | L127: Tồn đầu kỳ | M127: 2025-01-10 | O127: =IF(Table1[[#This Row],[Phân loại]]="Tồn đầu kỳ",Table1[[#This Row],[Tổng giá trị]],0) -> 249583 | P127: =IF(Table1[[#This Row],[Số còn phải thu ĐK]]<>0,0,IF(Table1[[#This Row],[Phân loại]]="Bán hàng",Table1[[#This Row],[Tổng giá trị]],-Table1[[#This Row],[Tổng giá trị]])) -> 0 | Q127: 249583 | R127: =Table1[[#This Row],[Số còn phải thu ĐK]]+Table1[[#This Row],[Giá Trị HD sau CK]]-Table1[[#This Row],[Số tiền đã thu]] -> 0 | S127: =IF(Table1[[#This Row],[Ngày hóa đơn]]<>"",Table1[[#This Row],[Ngày hóa đơn]],Table1[[#This Row],[Ngày hạch toán]]) -> 2024-11-05 | U127: =IF(Table1[[#This Row],[Ngày tính CN]]="","",S127+T127) -> 2024-11-05 | V127: =IF(Table1[[#This Row],[Hạn thanh toán]]="","",IF((U127-NOW())<0,0,(U127-NOW()))) -> 0 | Y127: Đã thanh toán | Z127: 2024-11-05 | AA127: 2025-01-10 | AB127: check xong | AD127: =VLOOKUP($A127,MA_KH!$A:$Q,MA_KH!O$1,0) -> CIRCLE K | AE127: =VLOOKUP($A127,MA_KH!$A:$Q,MA_KH!P$1,0) -> CÔNG TY TNHH VÒNG TRÒN ĐỎ
A128: CircleK | B128: CÔNG TY TNHH VÒNG TRÒN ĐỎ | C128: 2024-11-05 | E128: 2024-11-05 | F128: 00062250 | G128: CircleK 36-38 Trần Thái Tông | H128: 161530 | I128: 0 | J128: 12922 | K128: 174452 | L128: Tồn đầu kỳ | M128: 2025-01-10 | O128: =IF(Table1[[#This Row],[Phân loại]]="Tồn đầu kỳ",Table1[[#This Row],[Tổng giá trị]],0) -> 174452 | P128: =IF(Table1[[#This Row],[Số còn phải thu ĐK]]<>0,0,IF(Table1[[#This Row],[Phân loại]]="Bán hàng",Table1[[#This Row],[Tổng giá trị]],-Table1[[#This Row],[Tổng giá trị]])) -> 0 | Q128: 174452 | R128: =Table1[[#This Row],[Số còn phải thu ĐK]]+Table1[[#This Row],[Giá Trị HD sau CK]]-Table1[[#This Row],[Số tiền đã thu]] -> 0 | S128: =IF(Table1[[#This Row],[Ngày hóa đơn]]<>"",Table1[[#This Row],[Ngày hóa đơn]],Table1[[#This Row],[Ngày hạch toán]]) -> 2024-11-05 | U128: =IF(Table1[[#This Row],[Ngày tính CN]]="","",S128+T128) -> 2024-11-05 | V128: =IF(Table1[[#This Row],[Hạn thanh toán]]="","",IF((U128-NOW())<0,0,(U128-NOW()))) -> 0 | Y128: Đã thanh toán | Z128: 2024-11-05 | AA128: 2025-01-10 | AB128: check xong | AD128: =VLOOKUP($A128,MA_KH!$A:$Q,MA_KH!O$1,0) -> CIRCLE K | AE128: =VLOOKUP($A128,MA_KH!$A:$Q,MA_KH!P$1,0) -> CÔNG TY TNHH VÒNG TRÒN ĐỎ
A129: CircleK | B129: CÔNG TY TNHH VÒNG TRÒN ĐỎ | C129: 2024-11-06 | E129: 2024-11-06 | F129: 00062303 | G129: CircleK 188 Nguyễn Thị Minh Khai | H129: 129224 | I129: 0 | J129: 10338 | K129: 139562 | L129: Tồn đầu kỳ | M129: 2025-01-10 | O129: =IF(Table1[[#This Row],[Phân loại]]="Tồn đầu kỳ",Table1[[#This Row],[Tổng giá trị]],0) -> 139562 | P129: =IF(Table1[[#This Row],[Số còn phải thu ĐK]]<>0,0,IF(Table1[[#This Row],[Phân loại]]="Bán hàng",Table1[[#This Row],[Tổng giá trị]],-Table1[[#This Row],[Tổng giá trị]])) -> 0 | Q129: 139562 | R129: =Table1[[#This Row],[Số còn phải thu ĐK]]+Table1[[#This Row],[Giá Trị HD sau CK]]-Table1[[#This Row],[Số tiền đã thu]] -> 0 | S129: =IF(Table1[[#This Row],[Ngày hóa đơn]]<>"",Table1[[#This Row],[Ngày hóa đơn]],Table1[[#This Row],[Ngày hạch toán]]) -> 2024-11-06 | U129: =IF(Table1[[#This Row],[Ngày tính CN]]="","",S129+T129) -> 2024-11-06 | V129: =IF(Table1[[#This Row],[Hạn thanh toán]]="","",IF((U129-NOW())<0,0,(U129-NOW()))) -> 0 | Y129: Đã thanh toán | Z129: 2024-11-06 | AA129: 2025-01-10 | AB129: check xong | AD129: =VLOOKUP($A129,MA_KH!$A:$Q,MA_KH!O$1,0) -> CIRCLE K | AE129: =VLOOKUP($A129,MA_KH!$A:$Q,MA_KH!P$1,0) -> CÔNG TY TNHH VÒNG TRÒN ĐỎ
A130: CircleK | B130: CÔNG TY TNHH VÒNG TRÒN ĐỎ | C130: 2024-11-06 | E130: 2024-11-06 | F130: 00062304 | G130: CircleK 58 Phạm Văn Nghị, Khu Sky Garden 2-Phú Mỹ Hưng | H130: 299009 | I130: 0 | J130: 23921 | K130: 322930 | L130: Tồn đầu kỳ | M130: 2025-01-10 | O130: =IF(Table1[[#This Row],[Phân loại]]="Tồn đầu kỳ",Table1[[#This Row],[Tổng giá trị]],0) -> 322930 | P130: =IF(Table1[[#This Row],[Số còn phải thu ĐK]]<>0,0,IF(Table1[[#This Row],[Phân loại]]="Bán hàng",Table1[[#This Row],[Tổng giá trị]],-Table1[[#This Row],[Tổng giá trị]])) -> 0 | Q130: 322930 | R130: =Table1[[#This Row],[Số còn phải thu ĐK]]+Table1[[#This Row],[Giá Trị HD sau CK]]-Table1[[#This Row],[Số tiền đã thu]] -> 0 | S130: =IF(Table1[[#This Row],[Ngày hóa đơn]]<>"",Table1[[#This Row],[Ngày hóa đơn]],Table1[[#This Row],[Ngày hạch toán]]) -> 2024-11-06 | U130: =IF(Table1[[#This Row],[Ngày tính CN]]="","",S130+T130) -> 2024-11-06 | V130: =IF(Table1[[#This Row],[Hạn thanh toán]]="","",IF((U130-NOW())<0,0,(U130-NOW()))) -> 0 | Y130: Đã thanh toán | Z130: 2024-11-06 | AA130: 2025-01-10 | AB130: check xong | AD130: =VLOOKUP($A130,MA_KH!$A:$Q,MA_KH!O$1,0) -> CIRCLE K | AE130: =VLOOKUP($A130,MA_KH!$A:$Q,MA_KH!P$1,0) -> CÔNG TY TNHH VÒNG TRÒN ĐỎ
A131: CircleK | B131: CÔNG TY TNHH VÒNG TRÒN ĐỎ | C131: 2024-11-06 | E131: 2024-11-06 | F131: 00062315 | G131: CircleK 113 Nguyễn Gia Trí | H131: 231095 | I131: 0 | J131: 18488 | K131: 249583 | L131: Tồn đầu kỳ | M131: 2025-01-10 | O131: =IF(Table1[[#This Row],[Phân loại]]="Tồn đầu kỳ",Table1[[#This Row],[Tổng giá trị]],0) -> 249583 | P131: =IF(Table1[[#This Row],[Số còn phải thu ĐK]]<>0,0,IF(Table1[[#This Row],[Phân loại]]="Bán hàng",Table1[[#This Row],[Tổng giá trị]],-Table1[[#This Row],[Tổng giá trị]])) -> 0 | Q131: 249583 | R131: =Table1[[#This Row],[Số còn phải thu ĐK]]+Table1[[#This Row],[Giá Trị HD sau CK]]-Table1[[#This Row],[Số tiền đã thu]] -> 0 | S131: =IF(Table1[[#This Row],[Ngày hóa đơn]]<>"",Table1[[#This Row],[Ngày hóa đơn]],Table1[[#This Row],[Ngày hạch toán]]) -> 2024-11-06 | U131: =IF(Table1[[#This Row],[Ngày tính CN]]="","",S131+T131) -> 2024-11-06 | V131: =IF(Table1[[#This Row],[Hạn thanh toán]]="","",IF((U131-NOW())<0,0,(U131-NOW()))) -> 0 | Y131: Đã thanh toán | Z131: 2024-11-06 | AA131: 2025-01-10 | AB131: check xong | AD131: =VLOOKUP($A131,MA_KH!$A:$Q,MA_KH!O$1,0) -> CIRCLE K | AE131: =VLOOKUP($A131,MA_KH!$A:$Q,MA_KH!P$1,0) -> CÔNG TY TNHH VÒNG TRÒN ĐỎ
A132: CircleK | B132: CÔNG TY TNHH VÒNG TRÒN ĐỎ | C132: 2024-11-06 | E132: 2024-11-06 | F132: 00062316 | G132: CircleK Số 142/7A Xô Viết Nghệ Tĩnh | H132: 129224 | I132: 0 | J132: 10338 | K132: 139562 | L132: Tồn đầu kỳ | M132: 2025-01-10 | O132: =IF(Table1[[#This Row],[Phân loại]]="Tồn đầu kỳ",Table1[[#This Row],[Tổng giá trị]],0) -> 139562 | P132: =IF(Table1[[#This Row],[Số còn phải thu ĐK]]<>0,0,IF(Table1[[#This Row],[Phân loại]]="Bán hàng",Table1[[#This Row],[Tổng giá trị]],-Table1[[#This Row],[Tổng giá trị]])) -> 0 | Q132: =IF(M132<>"",IF(O132<>0,O132,P132),0) -> 139562 | R132: =Table1[[#This Row],[Số còn phải thu ĐK]]+Table1[[#This Row],[Giá Trị HD sau CK]]-Table1[[#This Row],[Số tiền đã thu]] -> 0 | S132: =IF(Table1[[#This Row],[Ngày hóa đơn]]<>"",Table1[[#This Row],[Ngày hóa đơn]],Table1[[#This Row],[Ngày hạch toán]]) -> 2024-11-06 | U132: =IF(Table1[[#This Row],[Ngày tính CN]]="","",S132+T132) -> 2024-11-06 | V132: =IF(Table1[[#This Row],[Hạn thanh toán]]="","",IF((U132-NOW())<0,0,(U132-NOW()))) -> 0 | X132: =IF(OR(U132="",R132=0),"",IF((U132-NOW())<0,-(U132-NOW()),0)) ->  | Y132: =IF(R132=0,"Đã thanh toán",IF(X132="","",IF(X132<=0,"Chưa đến hạn thanh toán",IF(X132<=30,"Nợ quá hạn 30 ngày",IF(X132<=60,"Nợ quá hạn từ 30 ngày đến 60 ngày",IF(X132<=90,"Nợ quá hạn từ 60 ngày đến 90 ngày",IF(X132<=120,"Nợ quá hạn từ 90 ngày đến 120 ngày","Nợ quá hạn hơn 120 ngày có khả năng mất thanh toán"))))))) -> Đã thanh toán | Z132: =S132 -> 2024-11-06 | AA132: =M132 -> 2025-01-10 | AB132: check xong | AD132: =VLOOKUP($A132,MA_KH!$A:$Q,MA_KH!O$1,0) -> CIRCLE K | AE132: =VLOOKUP($A132,MA_KH!$A:$Q,MA_KH!P$1,0) -> CÔNG TY TNHH VÒNG TRÒN ĐỎ
A133: CircleK | B133: CÔNG TY TNHH VÒNG TRÒN ĐỎ | C133: 2024-11-06 | E133: 2024-11-06 | F133: 00062317 | G133: CircleK Số 74 Nguyễn Văn Thương | H133: 197138 | I133: 0 | J133: 15771 | K133: 212909 | L133: Tồn đầu kỳ | M133: 2025-01-10 | O133: =IF(Table1[[#This Row],[Phân loại]]="Tồn đầu kỳ",Table1[[#This Row],[Tổng giá trị]],0) -> 212909 | P133: =IF(Table1[[#This Row],[Số còn phải thu ĐK]]<>0,0,IF(Table1[[#This Row],[Phân loại]]="Bán hàng",Table1[[#This Row],[Tổng giá trị]],-Table1[[#This Row],[Tổng giá trị]])) -> 0 | Q133: 212909 | R133: =Table1[[#This Row],[Số còn phải thu ĐK]]+Table1[[#This Row],[Giá Trị HD sau CK]]-Table1[[#This Row],[Số tiền đã thu]] -> 0 | S133: =IF(Table1[[#This Row],[Ngày hóa đơn]]<>"",Table1[[#This Row],[Ngày hóa đơn]],Table1[[#This Row],[Ngày hạch toán]]) -> 2024-11-06 | U133: =IF(Table1[[#This Row],[Ngày tính CN]]="","",S133+T133) -> 2024-11-06 | V133: =IF(Table1[[#This Row],[Hạn thanh toán]]="","",IF((U133-NOW())<0,0,(U133-NOW()))) -> 0 | Y133: Đã thanh toán | Z133: 2024-11-06 | AA133: 2025-01-10 | AB133: check xong | AD133: =VLOOKUP($A133,MA_KH!$A:$Q,MA_KH!O$1,0) -> CIRCLE K | AE133: =VLOOKUP($A133,MA_KH!$A:$Q,MA_KH!P$1,0) -> CÔNG TY TNHH VÒNG TRÒN ĐỎ
A134: CircleK | B134: CÔNG TY TNHH VÒNG TRÒN ĐỎ | C134: 2024-11-06 | E134: 2024-11-06 | F134: 00062318 | G134: CircleK Số 27 Nguyễn Gia Trí | H134: 129224 | I134: 0 | J134: 10338 | K134: 139562 | L134: Tồn đầu kỳ | M134: 2025-01-10 | O134: =IF(Table1[[#This Row],[Phân loại]]="Tồn đầu kỳ",Table1[[#This Row],[Tổng giá trị]],0) -> 139562 | P134: =IF(Table1[[#This Row],[Số còn phải thu ĐK]]<>0,0,IF(Table1[[#This Row],[Phân loại]]="Bán hàng",Table1[[#This Row],[Tổng giá trị]],-Table1[[#This Row],[Tổng giá trị]])) -> 0 | Q134: 139562 | R134: =Table1[[#This Row],[Số còn phải thu ĐK]]+Table1[[#This Row],[Giá Trị HD sau CK]]-Table1[[#This Row],[Số tiền đã thu]] -> 0 | S134: =IF(Table1[[#This Row],[Ngày hóa đơn]]<>"",Table1[[#This Row],[Ngày hóa đơn]],Table1[[#This Row],[Ngày hạch toán]]) -> 2024-11-06 | U134: =IF(Table1[[#This Row],[Ngày tính CN]]="","",S134+T134) -> 2024-11-06 | V134: =IF(Table1[[#This Row],[Hạn thanh toán]]="","",IF((U134-NOW())<0,0,(U134-NOW()))) -> 0 | Y134: Đã thanh toán | Z134: 2024-11-06 | AA134: 2025-01-10 | AB134: check xong | AD134: =VLOOKUP($A134,MA_KH!$A:$Q,MA_KH!O$1,0) -> CIRCLE K | AE134: =VLOOKUP($A134,MA_KH!$A:$Q,MA_KH!P$1,0) -> CÔNG TY TNHH VÒNG TRÒN ĐỎ
A135: CircleK | B135: CÔNG TY TNHH VÒNG TRÒN ĐỎ | C135: 2024-11-06 | E135: 2024-11-06 | F135: 00062322 | G135: CircleK 220 Nguyễn Trọng Tuyển | H135: 197138 | I135: 0 | J135: 15771 | K135: 212909 | L135: Tồn đầu kỳ | M135: 2025-01-10 | O135: =IF(Table1[[#This Row],[Phân loại]]="Tồn đầu kỳ",Table1[[#This Row],[Tổng giá trị]],0) -> 212909 | P135: =IF(Table1[[#This Row],[Số còn phải thu ĐK]]<>0,0,IF(Table1[[#This Row],[Phân loại]]="Bán hàng",Table1[[#This Row],[Tổng giá trị]],-Table1[[#This Row],[Tổng giá trị]])) -> 0 | Q135: 212909 | R135: =Table1[[#This Row],[Số còn phải thu ĐK]]+Table1[[#This Row],[Giá Trị HD sau CK]]-Table1[[#This Row],[Số tiền đã thu]] -> 0 | S135: =IF(Table1[[#This Row],[Ngày hóa đơn]]<>"",Table1[[#This Row],[Ngày hóa đơn]],Table1[[#This Row],[Ngày hạch toán]]) -> 2024-11-06 | U135: =IF(Table1[[#This Row],[Ngày tính CN]]="","",S135+T135) -> 2024-11-06 | V135: =IF(Table1[[#This Row],[Hạn thanh toán]]="","",IF((U135-NOW())<0,0,(U135-NOW()))) -> 0 | Y135: Đã thanh toán | Z135: 2024-11-06 | AA135: 2025-01-10 | AB135: check xong | AD135: =VLOOKUP($A135,MA_KH!$A:$Q,MA_KH!O$1,0) -> CIRCLE K | AE135: =VLOOKUP($A135,MA_KH!$A:$Q,MA_KH!P$1,0) -> CÔNG TY TNHH VÒNG TRÒN ĐỎ
A136: CircleK | B136: CÔNG TY TNHH VÒNG TRÒN ĐỎ | C136: 2024-11-06 | E136: 2024-11-06 | F136: 00062326 | G136: CircleK 14 Nguyễn Văn Bảo | H136: 129224 | I136: 0 | J136: 10338 | K136: 139562 | L136: Tồn đầu kỳ | M136: 2025-01-10 | O136: =IF(Table1[[#This Row],[Phân loại]]="Tồn đầu kỳ",Table1[[#This Row],[Tổng giá trị]],0) -> 139562 | P136: =IF(Table1[[#This Row],[Số còn phải thu ĐK]]<>0,0,IF(Table1[[#This Row],[Phân loại]]="Bán hàng",Table1[[#This Row],[Tổng giá trị]],-Table1[[#This Row],[Tổng giá trị]])) -> 0 | Q136: 139562 | R136: =Table1[[#This Row],[Số còn phải thu ĐK]]+Table1[[#This Row],[Giá Trị HD sau CK]]-Table1[[#This Row],[Số tiền đã thu]] -> 0 | S136: =IF(Table1[[#This Row],[Ngày hóa đơn]]<>"",Table1[[#This Row],[Ngày hóa đơn]],Table1[[#This Row],[Ngày hạch toán]]) -> 2024-11-06 | U136: =IF(Table1[[#This Row],[Ngày tính CN]]="","",S136+T136) -> 2024-11-06 | V136: =IF(Table1[[#This Row],[Hạn thanh toán]]="","",IF((U136-NOW())<0,0,(U136-NOW()))) -> 0 | Y136: Đã thanh toán | Z136: 2024-11-06 | AA136: 2025-01-10 | AB136: check xong | AD136: =VLOOKUP($A136,MA_KH!$A:$Q,MA_KH!O$1,0) -> CIRCLE K | AE136: =VLOOKUP($A136,MA_KH!$A:$Q,MA_KH!P$1,0) -> CÔNG TY TNHH VÒNG TRÒN ĐỎ
A137: CircleK | B137: CÔNG TY TNHH VÒNG TRÒN ĐỎ | C137: 2024-11-06 | E137: 2024-11-06 | F137: 00062327 | G137: CircleK 184 Lê Đức Thọ | H137: 161530 | I137: 0 | J137: 12922 | K137: 174452 | L137: Tồn đầu kỳ | M137: 2025-01-10 | O137: =IF(Table1[[#This Row],[Phân loại]]="Tồn đầu kỳ",Table1[[#This Row],[Tổng giá trị]],0) -> 174452 | P137: =IF(Table1[[#This Row],[Số còn phải thu ĐK]]<>0,0,IF(Table1[[#This Row],[Phân loại]]="Bán hàng",Table1[[#This Row],[Tổng giá trị]],-Table1[[#This Row],[Tổng giá trị]])) -> 0 | Q137: 174452 | R137: =Table1[[#This Row],[Số còn phải thu ĐK]]+Table1[[#This Row],[Giá Trị HD sau CK]]-Table1[[#This Row],[Số tiền đã thu]] -> 0 | S137: =IF(Table1[[#This Row],[Ngày hóa đơn]]<>"",Table1[[#This Row],[Ngày hóa đơn]],Table1[[#This Row],[Ngày hạch toán]]) -> 2024-11-06 | U137: =IF(Table1[[#This Row],[Ngày tính CN]]="","",S137+T137) -> 2024-11-06 | V137: =IF(Table1[[#This Row],[Hạn thanh toán]]="","",IF((U137-NOW())<0,0,(U137-NOW()))) -> 0 | Y137: Đã thanh toán | Z137: 2024-11-06 | AA137: 2025-01-10 | AB137: check xong | AD137: =VLOOKUP($A137,MA_KH!$A:$Q,MA_KH!O$1,0) -> CIRCLE K | AE137: =VLOOKUP($A137,MA_KH!$A:$Q,MA_KH!P$1,0) -> CÔNG TY TNHH VÒNG TRÒN ĐỎ
A138: CircleK | B138: CÔNG TY TNHH VÒNG TRÒN ĐỎ | C138: 2024-11-06 | E138: 2024-11-06 | F138: 00062328 | G138: CircleK 386-388 Dương Quảng Hàm, Phường 5, Quận Gò Vấp | H138: 299009 | I138: 0 | J138: 23921 | K138: 322930 | L138: Tồn đầu kỳ | M138: 2025-01-10 | O138: =IF(Table1[[#This Row],[Phân loại]]="Tồn đầu kỳ",Table1[[#This Row],[Tổng giá trị]],0) -> 322930 | P138: =IF(Table1[[#This Row],[Số còn phải thu ĐK]]<>0,0,IF(Table1[[#This Row],[Phân loại]]="Bán hàng",Table1[[#This Row],[Tổng giá trị]],-Table1[[#This Row],[Tổng giá trị]])) -> 0 | Q138: 322930 | R138: =Table1[[#This Row],[Số còn phải thu ĐK]]+Table1[[#This Row],[Giá Trị HD sau CK]]-Table1[[#This Row],[Số tiền đã thu]] -> 0 | S138: =IF(Table1[[#This Row],[Ngày hóa đơn]]<>"",Table1[[#This Row],[Ngày hóa đơn]],Table1[[#This Row],[Ngày hạch toán]]) -> 2024-11-06 | U138: =IF(Table1[[#This Row],[Ngày tính CN]]="","",S138+T138) -> 2024-11-06 | V138: =IF(Table1[[#This Row],[Hạn thanh toán]]="","",IF((U138-NOW())<0,0,(U138-NOW()))) -> 0 | Y138: Đã thanh toán | Z138: 2024-11-06 | AA138: 2025-01-10 | AB138: check xong | AD138: =VLOOKUP($A138,MA_KH!$A:$Q,MA_KH!O$1,0) -> CIRCLE K | AE138: =VLOOKUP($A138,MA_KH!$A:$Q,MA_KH!P$1,0) -> CÔNG TY TNHH VÒNG TRÒN ĐỎ
A139: CircleK | B139: CÔNG TY TNHH VÒNG TRÒN ĐỎ | C139: 2024-11-06 | E139: 2024-11-06 | F139: 00062329 | G139: CircleK 45 Thống Nhất | H139: 400880 | I139: 0 | J139: 32070 | K139: 432950 | L139: Tồn đầu kỳ | M139: 2025-01-10 | O139: =IF(Table1[[#This Row],[Phân loại]]="Tồn đầu kỳ",Table1[[#This Row],[Tổng giá trị]],0) -> 432950 | P139: =IF(Table1[[#This Row],[Số còn phải thu ĐK]]<>0,0,IF(Table1[[#This Row],[Phân loại]]="Bán hàng",Table1[[#This Row],[Tổng giá trị]],-Table1[[#This Row],[Tổng giá trị]])) -> 0 | Q139: 432950 | R139: =Table1[[#This Row],[Số còn phải thu ĐK]]+Table1[[#This Row],[Giá Trị HD sau CK]]-Table1[[#This Row],[Số tiền đã thu]] -> 0 | S139: =IF(Table1[[#This Row],[Ngày hóa đơn]]<>"",Table1[[#This Row],[Ngày hóa đơn]],Table1[[#This Row],[Ngày hạch toán]]) -> 2024-11-06 | U139: =IF(Table1[[#This Row],[Ngày tính CN]]="","",S139+T139) -> 2024-11-06 | V139: =IF(Table1[[#This Row],[Hạn thanh toán]]="","",IF((U139-NOW())<0,0,(U139-NOW()))) -> 0 | Y139: Đã thanh toán | Z139: 2024-11-06 | AA139: 2025-01-10 | AB139: check xong | AD139: =VLOOKUP($A139,MA_KH!$A:$Q,MA_KH!O$1,0) -> CIRCLE K | AE139: =VLOOKUP($A139,MA_KH!$A:$Q,MA_KH!P$1,0) -> CÔNG TY TNHH VÒNG TRÒN ĐỎ
A140: CircleK | B140: CÔNG TY TNHH VÒNG TRÒN ĐỎ | C140: 2024-11-06 | E140: 2024-11-06 | F140: 00062330 | G140: CircleK 619 Lê Đức Thọ | H140: 247248 | I140: 0 | J140: 19780 | K140: 267028 | L140: Tồn đầu kỳ | M140: 2025-01-10 | O140: =IF(Table1[[#This Row],[Phân loại]]="Tồn đầu kỳ",Table1[[#This Row],[Tổng giá trị]],0) -> 267028 | P140: =IF(Table1[[#This Row],[Số còn phải thu ĐK]]<>0,0,IF(Table1[[#This Row],[Phân loại]]="Bán hàng",Table1[[#This Row],[Tổng giá trị]],-Table1[[#This Row],[Tổng giá trị]])) -> 0 | Q140: 267028 | R140: =Table1[[#This Row],[Số còn phải thu ĐK]]+Table1[[#This Row],[Giá Trị HD sau CK]]-Table1[[#This Row],[Số tiền đã thu]] -> 0 | S140: =IF(Table1[[#This Row],[Ngày hóa đơn]]<>"",Table1[[#This Row],[Ngày hóa đơn]],Table1[[#This Row],[Ngày hạch toán]]) -> 2024-11-06 | U140: =IF(Table1[[#This Row],[Ngày tính CN]]="","",S140+T140) -> 2024-11-06 | V140: =IF(Table1[[#This Row],[Hạn thanh toán]]="","",IF((U140-NOW())<0,0,(U140-NOW()))) -> 0 | Y140: Đã thanh toán | Z140: 2024-11-06 | AA140: 2025-01-10 | AB140: check xong | AD140: =VLOOKUP($A140,MA_KH!$A:$Q,MA_KH!O$1,0) -> CIRCLE K | AE140: =VLOOKUP($A140,MA_KH!$A:$Q,MA_KH!P$1,0) -> CÔNG TY TNHH VÒNG TRÒN ĐỎ
A141: CircleK | B141: CÔNG TY TNHH VÒNG TRÒN ĐỎ | C141: 2024-11-06 | E141: 2024-11-06 | F141: 00062331 | G141: CircleK 190 Lê Văn Thọ | H141: 197138 | I141: 0 | J141: 15771 | K141: 212909 | L141: Tồn đầu kỳ | M141: 2025-01-10 | O141: =IF(Table1[[#This Row],[Phân loại]]="Tồn đầu kỳ",Table1[[#This Row],[Tổng giá trị]],0) -> 212909 | P141: =IF(Table1[[#This Row],[Số còn phải thu ĐK]]<>0,0,IF(Table1[[#This Row],[Phân loại]]="Bán hàng",Table1[[#This Row],[Tổng giá trị]],-Table1[[#This Row],[Tổng giá trị]])) -> 0 | Q141: 212909 | R141: =Table1[[#This Row],[Số còn phải thu ĐK]]+Table1[[#This Row],[Giá Trị HD sau CK]]-Table1[[#This Row],[Số tiền đã thu]] -> 0 | S141: =IF(Table1[[#This Row],[Ngày hóa đơn]]<>"",Table1[[#This Row],[Ngày hóa đơn]],Table1[[#This Row],[Ngày hạch toán]]) -> 2024-11-06 | U141: =IF(Table1[[#This Row],[Ngày tính CN]]="","",S141+T141) -> 2024-11-06 | V141: =IF(Table1[[#This Row],[Hạn thanh toán]]="","",IF((U141-NOW())<0,0,(U141-NOW()))) -> 0 | Y141: Đã thanh toán | Z141: 2024-11-06 | AA141: 2025-01-10 | AB141: check xong | AD141: =VLOOKUP($A141,MA_KH!$A:$Q,MA_KH!O$1,0) -> CIRCLE K | AE141: =VLOOKUP($A141,MA_KH!$A:$Q,MA_KH!P$1,0) -> CÔNG TY TNHH VÒNG TRÒN ĐỎ
A142: CircleK | B142: CÔNG TY TNHH VÒNG TRÒN ĐỎ | C142: 2024-11-06 | E142: 2024-11-06 | F142: 00062341 | G142: CircleK 41 Yên Thế | H142: 161530 | I142: 0 | J142: 12922 | K142: 174452 | L142: Tồn đầu kỳ | M142: 2025-01-10 | O142: =IF(Table1[[#This Row],[Phân loại]]="Tồn đầu kỳ",Table1[[#This Row],[Tổng giá trị]],0) -> 174452 | P142: =IF(Table1[[#This Row],[Số còn phải thu ĐK]]<>0,0,IF(Table1[[#This Row],[Phân loại]]="Bán hàng",Table1[[#This Row],[Tổng giá trị]],-Table1[[#This Row],[Tổng giá trị]])) -> 0 | Q142: 174452 | R142: =Table1[[#This Row],[Số còn phải thu ĐK]]+Table1[[#This Row],[Giá Trị HD sau CK]]-Table1[[#This Row],[Số tiền đã thu]] -> 0 | S142: =IF(Table1[[#This Row],[Ngày hóa đơn]]<>"",Table1[[#This Row],[Ngày hóa đơn]],Table1[[#This Row],[Ngày hạch toán]]) -> 2024-11-06 | U142: =IF(Table1[[#This Row],[Ngày tính CN]]="","",S142+T142) -> 2024-11-06 | V142: =IF(Table1[[#This Row],[Hạn thanh toán]]="","",IF((U142-NOW())<0,0,(U142-NOW()))) -> 0 | Y142: Đã thanh toán | Z142: 2024-11-06 | AA142: 2025-01-10 | AB142: check xong | AD142: =VLOOKUP($A142,MA_KH!$A:$Q,MA_KH!O$1,0) -> CIRCLE K | AE142: =VLOOKUP($A142,MA_KH!$A:$Q,MA_KH!P$1,0) -> CÔNG TY TNHH VÒNG TRÒN ĐỎ
A143: CircleK | B143: CÔNG TY TNHH VÒNG TRÒN ĐỎ | C143: 2024-11-06 | E143: 2024-11-06 | F143: 00062347 | G143: CircleK 240 Hoàng Diệu 2, Khu Phố 5, Phường Linh Chiểu, Thành phố Thủ Đức | H143: 161530 | I143: 0 | J143: 12922 | K143: 174452 | L143: Tồn đầu kỳ | M143: 2025-01-10 | O143: =IF(Table1[[#This Row],[Phân loại]]="Tồn đầu kỳ",Table1[[#This Row],[Tổng giá trị]],0) -> 174452 | P143: =IF(Table1[[#This Row],[Số còn phải thu ĐK]]<>0,0,IF(Table1[[#This Row],[Phân loại]]="Bán hàng",Table1[[#This Row],[Tổng giá trị]],-Table1[[#This Row],[Tổng giá trị]])) -> 0 | Q143: 174452 | R143: =Table1[[#This Row],[Số còn phải thu ĐK]]+Table1[[#This Row],[Giá Trị HD sau CK]]-Table1[[#This Row],[Số tiền đã thu]] -> 0 | S143: =IF(Table1[[#This Row],[Ngày hóa đơn]]<>"",Table1[[#This Row],[Ngày hóa đơn]],Table1[[#This Row],[Ngày hạch toán]]) -> 2024-11-06 | U143: =IF(Table1[[#This Row],[Ngày tính CN]]="","",S143+T143) -> 2024-11-06 | V143: =IF(Table1[[#This Row],[Hạn thanh toán]]="","",IF((U143-NOW())<0,0,(U143-NOW()))) -> 0 | Y143: Đã thanh toán | Z143: 2024-11-06 | AA143: 2025-01-10 | AB143: check xong | AD143: =VLOOKUP($A143,MA_KH!$A:$Q,MA_KH!O$1,0) -> CIRCLE K | AE143: =VLOOKUP($A143,MA_KH!$A:$Q,MA_KH!P$1,0) -> CÔNG TY TNHH VÒNG TRÒN ĐỎ
A144: CircleK | B144: CÔNG TY TNHH VÒNG TRÒN ĐỎ | C144: 2024-11-06 | E144: 2024-11-06 | F144: 00062348 | G144: CircleK Kiot Khu Vực Mặt Tiền Kinh Dương Vương - 395 Kinh Dương Vương | H144: 161530 | I144: 0 | J144: 12922 | K144: 174452 | L144: Tồn đầu kỳ | M144: 2025-01-10 | O144: =IF(Table1[[#This Row],[Phân loại]]="Tồn đầu kỳ",Table1[[#This Row],[Tổng giá trị]],0) -> 174452 | P144: =IF(Table1[[#This Row],[Số còn phải thu ĐK]]<>0,0,IF(Table1[[#This Row],[Phân loại]]="Bán hàng",Table1[[#This Row],[Tổng giá trị]],-Table1[[#This Row],[Tổng giá trị]])) -> 0 | Q144: 174452 | R144: =Table1[[#This Row],[Số còn phải thu ĐK]]+Table1[[#This Row],[Giá Trị HD sau CK]]-Table1[[#This Row],[Số tiền đã thu]] -> 0 | S144: =IF(Table1[[#This Row],[Ngày hóa đơn]]<>"",Table1[[#This Row],[Ngày hóa đơn]],Table1[[#This Row],[Ngày hạch toán]]) -> 2024-11-06 | U144: =IF(Table1[[#This Row],[Ngày tính CN]]="","",S144+T144) -> 2024-11-06 | V144: =IF(Table1[[#This Row],[Hạn thanh toán]]="","",IF((U144-NOW())<0,0,(U144-NOW()))) -> 0 | Y144: Đã thanh toán | Z144: 2024-11-06 | AA144: 2025-01-10 | AB144: check xong | AD144: =VLOOKUP($A144,MA_KH!$A:$Q,MA_KH!O$1,0) -> CIRCLE K | AE144: =VLOOKUP($A144,MA_KH!$A:$Q,MA_KH!P$1,0) -> CÔNG TY TNHH VÒNG TRÒN ĐỎ
A145: CircleK | B145: CÔNG TY TNHH VÒNG TRÒN ĐỎ | C145: 2024-11-06 | E145: 2024-11-06 | F145: 00062366 | G145: CircleK 633 Tỉnh Lộ 10 | H145: 161530 | I145: 0 | J145: 12922 | K145: 174452 | L145: Tồn đầu kỳ | M145: 2025-01-10 | O145: =IF(Table1[[#This Row],[Phân loại]]="Tồn đầu kỳ",Table1[[#This Row],[Tổng giá trị]],0) -> 174452 | P145: =IF(Table1[[#This Row],[Số còn phải thu ĐK]]<>0,0,IF(Table1[[#This Row],[Phân loại]]="Bán hàng",Table1[[#This Row],[Tổng giá trị]],-Table1[[#This Row],[Tổng giá trị]])) -> 0 | Q145: 174452 | R145: =Table1[[#This Row],[Số còn phải thu ĐK]]+Table1[[#This Row],[Giá Trị HD sau CK]]-Table1[[#This Row],[Số tiền đã thu]] -> 0 | S145: =IF(Table1[[#This Row],[Ngày hóa đơn]]<>"",Table1[[#This Row],[Ngày hóa đơn]],Table1[[#This Row],[Ngày hạch toán]]) -> 2024-11-06 | U145: =IF(Table1[[#This Row],[Ngày tính CN]]="","",S145+T145) -> 2024-11-06 | V145: =IF(Table1[[#This Row],[Hạn thanh toán]]="","",IF((U145-NOW())<0,0,(U145-NOW()))) -> 0 | Y145: Đã thanh toán | Z145: 2024-11-06 | AA145: 2025-01-10 | AB145: check xong | AD145: =VLOOKUP($A145,MA_KH!$A:$Q,MA_KH!O$1,0) -> CIRCLE K | AE145: =VLOOKUP($A145,MA_KH!$A:$Q,MA_KH!P$1,0) -> CÔNG TY TNHH VÒNG TRÒN ĐỎ
A146: CircleK | B146: CÔNG TY TNHH VÒNG TRÒN ĐỎ | C146: 2024-11-06 | E146: 2024-11-06 | F146: 00062374 | G146: CircleK 150 Nguyễn Thị Nhỏ | H146: 231095 | I146: 0 | J146: 18488 | K146: 249583 | L146: Tồn đầu kỳ | M146: 2025-01-10 | O146: =IF(Table1[[#This Row],[Phân loại]]="Tồn đầu kỳ",Table1[[#This Row],[Tổng giá trị]],0) -> 249583 | P146: =IF(Table1[[#This Row],[Số còn phải thu ĐK]]<>0,0,IF(Table1[[#This Row],[Phân loại]]="Bán hàng",Table1[[#This Row],[Tổng giá trị]],-Table1[[#This Row],[Tổng giá trị]])) -> 0 | Q146: 249583 | R146: =Table1[[#This Row],[Số còn phải thu ĐK]]+Table1[[#This Row],[Giá Trị HD sau CK]]-Table1[[#This Row],[Số tiền đã thu]] -> 0 | S146: =IF(Table1[[#This Row],[Ngày hóa đơn]]<>"",Table1[[#This Row],[Ngày hóa đơn]],Table1[[#This Row],[Ngày hạch toán]]) -> 2024-11-06 | U146: =IF(Table1[[#This Row],[Ngày tính CN]]="","",S146+T146) -> 2024-11-06 | V146: =IF(Table1[[#This Row],[Hạn thanh toán]]="","",IF((U146-NOW())<0,0,(U146-NOW()))) -> 0 | Y146: Đã thanh toán | Z146: 2024-11-06 | AA146: 2025-01-10 | AB146: check xong | AD146: =VLOOKUP($A146,MA_KH!$A:$Q,MA_KH!O$1,0) -> CIRCLE K | AE146: =VLOOKUP($A146,MA_KH!$A:$Q,MA_KH!P$1,0) -> CÔNG TY TNHH VÒNG TRÒN ĐỎ
A147: CircleK-022 | B147: CHI NHÁNH CÔNG TY TNHH VÒNG TRÒN ĐỎ TẠI TIỀN GIANG | C147: 2024-11-06 | E147: 2024-11-06 | F147: 00062375 | G147: CircleK Số 05 Lý Thường Kiệt, Tỉnh Tiền Giang, Việt Nam | H147: 1155475 | I147: 0 | J147: 92438 | K147: 1247913 | L147: Tồn đầu kỳ | M147: 2025-01-10 | O147: =IF(Table1[[#This Row],[Phân loại]]="Tồn đầu kỳ",Table1[[#This Row],[Tổng giá trị]],0) -> 1247913 | P147: =IF(Table1[[#This Row],[Số còn phải thu ĐK]]<>0,0,IF(Table1[[#This Row],[Phân loại]]="Bán hàng",Table1[[#This Row],[Tổng giá trị]],-Table1[[#This Row],[Tổng giá trị]])) -> 0 | Q147: 1247913 | R147: =Table1[[#This Row],[Số còn phải thu ĐK]]+Table1[[#This Row],[Giá Trị HD sau CK]]-Table1[[#This Row],[Số tiền đã thu]] -> 0 | S147: =IF(Table1[[#This Row],[Ngày hóa đơn]]<>"",Table1[[#This Row],[Ngày hóa đơn]],Table1[[#This Row],[Ngày hạch toán]]) -> 2024-11-06 | U147: =IF(Table1[[#This Row],[Ngày tính CN]]="","",S147+T147) -> 2024-11-06 | V147: =IF(Table1[[#This Row],[Hạn thanh toán]]="","",IF((U147-NOW())<0,0,(U147-NOW()))) -> 0 | Y147: Đã thanh toán | Z147: 2024-11-06 | AA147: 2025-01-10 | AB147: check xong | AD147: =VLOOKUP($A147,MA_KH!$A:$Q,MA_KH!O$1,0) -> CIRCLE K | AE147: =VLOOKUP($A147,MA_KH!$A:$Q,MA_KH!P$1,0) -> CÔNG TY TNHH VÒNG TRÒN ĐỎ
A148: CircleK-017 | B148: CHI NHÁNH CÔNG TY TNHH VÒNG TRÒN ĐỎ TẠI CẦN THƠ | C148: 2024-11-06 | E148: 2024-11-06 | F148: 00062376 | G148: CircleK 134A Đường 3/2 | H148: 242295 | I148: 0 | J148: 19384 | K148: 261679 | L148: Tồn đầu kỳ | M148: 2025-01-10 | O148: =IF(Table1[[#This Row],[Phân loại]]="Tồn đầu kỳ",Table1[[#This Row],[Tổng giá trị]],0) -> 261679 | P148: =IF(Table1[[#This Row],[Số còn phải thu ĐK]]<>0,0,IF(Table1[[#This Row],[Phân loại]]="Bán hàng",Table1[[#This Row],[Tổng giá trị]],-Table1[[#This Row],[Tổng giá trị]])) -> 0 | Q148: 261679 | R148: =Table1[[#This Row],[Số còn phải thu ĐK]]+Table1[[#This Row],[Giá Trị HD sau CK]]-Table1[[#This Row],[Số tiền đã thu]] -> 0 | S148: =IF(Table1[[#This Row],[Ngày hóa đơn]]<>"",Table1[[#This Row],[Ngày hóa đơn]],Table1[[#This Row],[Ngày hạch toán]]) -> 2024-11-06 | U148: =IF(Table1[[#This Row],[Ngày tính CN]]="","",S148+T148) -> 2024-11-06 | V148: =IF(Table1[[#This Row],[Hạn thanh toán]]="","",IF((U148-NOW())<0,0,(U148-NOW()))) -> 0 | Y148: Đã thanh toán | Z148: 2024-11-06 | AA148: 2025-01-10 | AB148: check xong | AD148: =VLOOKUP($A148,MA_KH!$A:$Q,MA_KH!O$1,0) -> CIRCLE K | AE148: =VLOOKUP($A148,MA_KH!$A:$Q,MA_KH!P$1,0) -> CÔNG TY TNHH VÒNG TRÒN ĐỎ
A149: CircleK-017 | B149: CHI NHÁNH CÔNG TY TNHH VÒNG TRÒN ĐỎ TẠI CẦN THƠ | C149: 2024-11-06 | E149: 2024-11-06 | F149: 00062377 | G149: CircleK Số 80C Trần Chiên, Khu Vực Thạnh Mỹ | H149: 323060 | I149: 0 | J149: 25845 | K149: 348905 | L149: Tồn đầu kỳ | M149: 2025-01-10 | O149: =IF(Table1[[#This Row],[Phân loại]]="Tồn đầu kỳ",Table1[[#This Row],[Tổng giá trị]],0) -> 348905 | P149: =IF(Table1[[#This Row],[Số còn phải thu ĐK]]<>0,0,IF(Table1[[#This Row],[Phân loại]]="Bán hàng",Table1[[#This Row],[Tổng giá trị]],-Table1[[#This Row],[Tổng giá trị]])) -> 0 | Q149: 348905 | R149: =Table1[[#This Row],[Số còn phải thu ĐK]]+Table1[[#This Row],[Giá Trị HD sau CK]]-Table1[[#This Row],[Số tiền đã thu]] -> 0 | S149: =IF(Table1[[#This Row],[Ngày hóa đơn]]<>"",Table1[[#This Row],[Ngày hóa đơn]],Table1[[#This Row],[Ngày hạch toán]]) -> 2024-11-06 | U149: =IF(Table1[[#This Row],[Ngày tính CN]]="","",S149+T149) -> 2024-11-06 | V149: =IF(Table1[[#This Row],[Hạn thanh toán]]="","",IF((U149-NOW())<0,0,(U149-NOW()))) -> 0 | Y149: Đã thanh toán | Z149: 2024-11-06 | AA149: 2025-01-10 | AB149: check xong | AD149: =VLOOKUP($A149,MA_KH!$A:$Q,MA_KH!O$1,0) -> CIRCLE K | AE149: =VLOOKUP($A149,MA_KH!$A:$Q,MA_KH!P$1,0) -> CÔNG TY TNHH VÒNG TRÒN ĐỎ
A150: CircleK | B150: CÔNG TY TNHH VÒNG TRÒN ĐỎ | C150: 2024-11-07 | E150: 2024-11-07 | F150: 00062436 | G150: CircleK 1.05 tại tầng 1, Tòa nhà chung cư BS11 thuộc Khu nhà ở cao tầng - Dự án Khu dân cư và Công viên Phước Thiện tại số 88 đường Phước Thiện, khu phố Phước Thiện, Phường Long Bình, Thành phố Thủ Đức, Thành phố Hồ Chí Minh, Việt Nam | H150: 501100 | I150: 0 | J150: 40088 | K150: 541188 | L150: Tồn đầu kỳ | M150: 2025-01-10 | O150: =IF(Table1[[#This Row],[Phân loại]]="Tồn đầu kỳ",Table1[[#This Row],[Tổng giá trị]],0) -> 541188 | P150: =IF(Table1[[#This Row],[Số còn phải thu ĐK]]<>0,0,IF(Table1[[#This Row],[Phân loại]]="Bán hàng",Table1[[#This Row],[Tổng giá trị]],-Table1[[#This Row],[Tổng giá trị]])) -> 0 | Q150: 541188 | R150: =Table1[[#This Row],[Số còn phải thu ĐK]]+Table1[[#This Row],[Giá Trị HD sau CK]]-Table1[[#This Row],[Số tiền đã thu]] -> 0 | S150: =IF(Table1[[#This Row],[Ngày hóa đơn]]<>"",Table1[[#This Row],[Ngày hóa đơn]],Table1[[#This Row],[Ngày hạch toán]]) -> 2024-11-07 | U150: =IF(Table1[[#This Row],[Ngày tính CN]]="","",S150+T150) -> 2024-11-07 | V150: =IF(Table1[[#This Row],[Hạn thanh toán]]="","",IF((U150-NOW())<0,0,(U150-NOW()))) -> 0 | Y150: Đã thanh toán | Z150: 2024-11-07 | AA150: 2025-01-10 | AB150: check xong | AD150: =VLOOKUP($A150,MA_KH!$A:$Q,MA_KH!O$1,0) -> CIRCLE K | AE150: =VLOOKUP($A150,MA_KH!$A:$Q,MA_KH!P$1,0) -> CÔNG TY TNHH VÒNG TRÒN ĐỎ
A151: CircleK | B151: CÔNG TY TNHH VÒNG TRÒN ĐỎ | C151: 2024-11-07 | E151: 2024-11-07 | F151: 00062437 | G151: CircleK 18A15 Tăng Nhơn Phú | H151: 963290 | I151: 0 | J151: 77063 | K151: 1040353 | L151: Tồn đầu kỳ | M151: 2025-01-10 | O151: =IF(Table1[[#This Row],[Phân loại]]="Tồn đầu kỳ",Table1[[#This Row],[Tổng giá trị]],0) -> 1040353 | P151: =IF(Table1[[#This Row],[Số còn phải thu ĐK]]<>0,0,IF(Table1[[#This Row],[Phân loại]]="Bán hàng",Table1[[#This Row],[Tổng giá trị]],-Table1[[#This Row],[Tổng giá trị]])) -> 0 | Q151: 1040353 | R151: =Table1[[#This Row],[Số còn phải thu ĐK]]+Table1[[#This Row],[Giá Trị HD sau CK]]-Table1[[#This Row],[Số tiền đã thu]] -> 0 | S151: =IF(Table1[[#This Row],[Ngày hóa đơn]]<>"",Table1[[#This Row],[Ngày hóa đơn]],Table1[[#This Row],[Ngày hạch toán]]) -> 2024-11-07 | U151: =IF(Table1[[#This Row],[Ngày tính CN]]="","",S151+T151) -> 2024-11-07 | V151: =IF(Table1[[#This Row],[Hạn thanh toán]]="","",IF((U151-NOW())<0,0,(U151-NOW()))) -> 0 | Y151: Đã thanh toán | Z151: 2024-11-07 | AA151: 2025-01-10 | AB151: check xong | AD151: =VLOOKUP($A151,MA_KH!$A:$Q,MA_KH!O$1,0) -> CIRCLE K | AE151: =VLOOKUP($A151,MA_KH!$A:$Q,MA_KH!P$1,0) -> CÔNG TY TNHH VÒNG TRÒN ĐỎ
A152: CircleK | B152: CÔNG TY TNHH VÒNG TRÒN ĐỎ | C152: 2024-11-07 | E152: 2024-11-07 | F152: 00062438 | G152: CircleK Số 127 Lê Văn Việt | H152: 197138 | I152: 0 | J152: 15771 | K152: 212909 | L152: Tồn đầu kỳ | M152: 2025-01-10 | O152: =IF(Table1[[#This Row],[Phân loại]]="Tồn đầu kỳ",Table1[[#This Row],[Tổng giá trị]],0) -> 212909 | P152: =IF(Table1[[#This Row],[Số còn phải thu ĐK]]<>0,0,IF(Table1[[#This Row],[Phân loại]]="Bán hàng",Table1[[#This Row],[Tổng giá trị]],-Table1[[#This Row],[Tổng giá trị]])) -> 0 | Q152: 212909 | R152: =Table1[[#This Row],[Số còn phải thu ĐK]]+Table1[[#This Row],[Giá Trị HD sau CK]]-Table1[[#This Row],[Số tiền đã thu]] -> 0 | S152: =IF(Table1[[#This Row],[Ngày hóa đơn]]<>"",Table1[[#This Row],[Ngày hóa đơn]],Table1[[#This Row],[Ngày hạch toán]]) -> 2024-11-07 | U152: =IF(Table1[[#This Row],[Ngày tính CN]]="","",S152+T152) -> 2024-11-07 | V152: =IF(Table1[[#This Row],[Hạn thanh toán]]="","",IF((U152-NOW())<0,0,(U152-NOW()))) -> 0 | Y152: Đã thanh toán | Z152: 2024-11-07 | AA152: 2025-01-10 | AB152: check xong | AD152: =VLOOKUP($A152,MA_KH!$A:$Q,MA_KH!O$1,0) -> CIRCLE K | AE152: =VLOOKUP($A152,MA_KH!$A:$Q,MA_KH!P$1,0) -> CÔNG TY TNHH VÒNG TRÒN ĐỎ
A153: CircleK | B153: CÔNG TY TNHH VÒNG TRÒN ĐỎ | C153: 2024-11-07 | E153: 2024-11-07 | F153: 00062439 | G153: CircleK Số 449 Đường Lê Văn Việt | H153: 161530 | I153: 0 | J153: 12922 | K153: 174452 | L153: Tồn đầu kỳ | M153: 2025-01-10 | O153: =IF(Table1[[#This Row],[Phân loại]]="Tồn đầu kỳ",Table1[[#This Row],[Tổng giá trị]],0) -> 174452 | P153: =IF(Table1[[#This Row],[Số còn phải thu ĐK]]<>0,0,IF(Table1[[#This Row],[Phân loại]]="Bán hàng",Table1[[#This Row],[Tổng giá trị]],-Table1[[#This Row],[Tổng giá trị]])) -> 0 | Q153: 174452 | R153: =Table1[[#This Row],[Số còn phải thu ĐK]]+Table1[[#This Row],[Giá Trị HD sau CK]]-Table1[[#This Row],[Số tiền đã thu]] -> 0 | S153: =IF(Table1[[#This Row],[Ngày hóa đơn]]<>"",Table1[[#This Row],[Ngày hóa đơn]],Table1[[#This Row],[Ngày hạch toán]]) -> 2024-11-07 | U153: =IF(Table1[[#This Row],[Ngày tính CN]]="","",S153+T153) -> 2024-11-07 | V153: =IF(Table1[[#This Row],[Hạn thanh toán]]="","",IF((U153-NOW())<0,0,(U153-NOW()))) -> 0 | Y153: Đã thanh toán | Z153: 2024-11-07 | AA153: 2025-01-10 | AB153: check xong | AD153: =VLOOKUP($A153,MA_KH!$A:$Q,MA_KH!O$1,0) -> CIRCLE K | AE153: =VLOOKUP($A153,MA_KH!$A:$Q,MA_KH!P$1,0) -> CÔNG TY TNHH VÒNG TRÒN ĐỎ
A154: CircleK-011 | B154: CHI NHÁNH TẠI BÌNH DƯƠNG CÔNG TY TNHH VÒNG TRÒN ĐỎ | C154: 2024-11-07 | E154: 2024-11-07 | F154: 00062522 | G154: Circle K 355 Lý Thường Kiệt, Khu phố Thống Nhất 1 | H154: 161530 | I154: 0 | J154: 12922 | K154: 174452 | L154: Tồn đầu kỳ | M154: 2025-01-10 | O154: =IF(Table1[[#This Row],[Phân loại]]="Tồn đầu kỳ",Table1[[#This Row],[Tổng giá trị]],0) -> 174452 | P154: =IF(Table1[[#This Row],[Số còn phải thu ĐK]]<>0,0,IF(Table1[[#This Row],[Phân loại]]="Bán hàng",Table1[[#This Row],[Tổng giá trị]],-Table1[[#This Row],[Tổng giá trị]])) -> 0 | Q154: 174452 | R154: =Table1[[#This Row],[Số còn phải thu ĐK]]+Table1[[#This Row],[Giá Trị HD sau CK]]-Table1[[#This Row],[Số tiền đã thu]] -> 0 | S154: =IF(Table1[[#This Row],[Ngày hóa đơn]]<>"",Table1[[#This Row],[Ngày hóa đơn]],Table1[[#This Row],[Ngày hạch toán]]) -> 2024-11-07 | U154: =IF(Table1[[#This Row],[Ngày tính CN]]="","",S154+T154) -> 2024-11-07 | V154: =IF(Table1[[#This Row],[Hạn thanh toán]]="","",IF((U154-NOW())<0,0,(U154-NOW()))) -> 0 | Y154: Đã thanh toán | Z154: 2024-11-07 | AA154: 2025-01-10 | AB154: check xong | AD154: =VLOOKUP($A154,MA_KH!$A:$Q,MA_KH!O$1,0) -> CIRCLE K | AE154: =VLOOKUP($A154,MA_KH!$A:$Q,MA_KH!P$1,0) -> CÔNG TY TNHH VÒNG TRÒN ĐỎ
A155: CircleK | B155: CÔNG TY TNHH VÒNG TRÒN ĐỎ | C155: 2024-11-07 | E155: 2024-11-07 | F155: 00062962 | G155: CircleK 474 Trần Thị Năm | H155: 129224 | I155: 0 | J155: 10338 | K155: 139562 | L155: Tồn đầu kỳ | M155: 2025-01-10 | O155: =IF(Table1[[#This Row],[Phân loại]]="Tồn đầu kỳ",Table1[[#This Row],[Tổng giá trị]],0) -> 139562 | P155: =IF(Table1[[#This Row],[Số còn phải thu ĐK]]<>0,0,IF(Table1[[#This Row],[Phân loại]]="Bán hàng",Table1[[#This Row],[Tổng giá trị]],-Table1[[#This Row],[Tổng giá trị]])) -> 0 | Q155: 139562 | R155: =Table1[[#This Row],[Số còn phải thu ĐK]]+Table1[[#This Row],[Giá Trị HD sau CK]]-Table1[[#This Row],[Số tiền đã thu]] -> 0 | S155: =IF(Table1[[#This Row],[Ngày hóa đơn]]<>"",Table1[[#This Row],[Ngày hóa đơn]],Table1[[#This Row],[Ngày hạch toán]]) -> 2024-11-07 | U155: =IF(Table1[[#This Row],[Ngày tính CN]]="","",S155+T155) -> 2024-11-07 | V155: =IF(Table1[[#This Row],[Hạn thanh toán]]="","",IF((U155-NOW())<0,0,(U155-NOW()))) -> 0 | Y155: Đã thanh toán | Z155: 2024-11-07 | AA155: 2025-01-10 | AB155: check xong | AD155: =VLOOKUP($A155,MA_KH!$A:$Q,MA_KH!O$1,0) -> CIRCLE K | AE155: =VLOOKUP($A155,MA_KH!$A:$Q,MA_KH!P$1,0) -> CÔNG TY TNHH VÒNG TRÒN ĐỎ
A156: CircleK | B156: CÔNG TY TNHH VÒNG TRÒN ĐỎ | C156: 2024-11-07 | E156: 2024-11-07 | F156: 00062963 | G156: CircleK 309 Nguyễn Văn Khối | H156: 400880 | I156: 0 | J156: 32070 | K156: 432950 | L156: Tồn đầu kỳ | M156: 2025-01-10 | O156: =IF(Table1[[#This Row],[Phân loại]]="Tồn đầu kỳ",Table1[[#This Row],[Tổng giá trị]],0) -> 432950 | P156: =IF(Table1[[#This Row],[Số còn phải thu ĐK]]<>0,0,IF(Table1[[#This Row],[Phân loại]]="Bán hàng",Table1[[#This Row],[Tổng giá trị]],-Table1[[#This Row],[Tổng giá trị]])) -> 0 | Q156: 432950 | R156: =Table1[[#This Row],[Số còn phải thu ĐK]]+Table1[[#This Row],[Giá Trị HD sau CK]]-Table1[[#This Row],[Số tiền đã thu]] -> 0 | S156: =IF(Table1[[#This Row],[Ngày hóa đơn]]<>"",Table1[[#This Row],[Ngày hóa đơn]],Table1[[#This Row],[Ngày hạch toán]]) -> 2024-11-07 | U156: =IF(Table1[[#This Row],[Ngày tính CN]]="","",S156+T156) -> 2024-11-07 | V156: =IF(Table1[[#This Row],[Hạn thanh toán]]="","",IF((U156-NOW())<0,0,(U156-NOW()))) -> 0 | Y156: Đã thanh toán | Z156: 2024-11-07 | AA156: 2025-01-10 | AB156: check xong | AD156: =VLOOKUP($A156,MA_KH!$A:$Q,MA_KH!O$1,0) -> CIRCLE K | AE156: =VLOOKUP($A156,MA_KH!$A:$Q,MA_KH!P$1,0) -> CÔNG TY TNHH VÒNG TRÒN ĐỎ
A157: CircleK | B157: CÔNG TY TNHH VÒNG TRÒN ĐỎ | C157: 2024-11-07 | E157: 2024-11-07 | F157: 00063104 | G157: CircleK 26 Nguyễn Thái Bình | H157: 501100 | I157: 0 | J157: 40088 | K157: 541188 | L157: Tồn đầu kỳ | M157: 2025-01-10 | O157: =IF(Table1[[#This Row],[Phân loại]]="Tồn đầu kỳ",Table1[[#This Row],[Tổng giá trị]],0) -> 541188 | P157: =IF(Table1[[#This Row],[Số còn phải thu ĐK]]<>0,0,IF(Table1[[#This Row],[Phân loại]]="Bán hàng",Table1[[#This Row],[Tổng giá trị]],-Table1[[#This Row],[Tổng giá trị]])) -> 0 | Q157: 541188 | R157: =Table1[[#This Row],[Số còn phải thu ĐK]]+Table1[[#This Row],[Giá Trị HD sau CK]]-Table1[[#This Row],[Số tiền đã thu]] -> 0 | S157: =IF(Table1[[#This Row],[Ngày hóa đơn]]<>"",Table1[[#This Row],[Ngày hóa đơn]],Table1[[#This Row],[Ngày hạch toán]]) -> 2024-11-07 | U157: =IF(Table1[[#This Row],[Ngày tính CN]]="","",S157+T157) -> 2024-11-07 | V157: =IF(Table1[[#This Row],[Hạn thanh toán]]="","",IF((U157-NOW())<0,0,(U157-NOW()))) -> 0 | Y157: Đã thanh toán | Z157: 2024-11-07 | AA157: 2025-01-10 | AB157: check xong | AD157: =VLOOKUP($A157,MA_KH!$A:$Q,MA_KH!O$1,0) -> CIRCLE K | AE157: =VLOOKUP($A157,MA_KH!$A:$Q,MA_KH!P$1,0) -> CÔNG TY TNHH VÒNG TRÒN ĐỎ
A158: CircleK-012 | B158: CHI NHÁNH CÔNG TY TNHH VÒNG TRÒN ĐỎ TẠI BÀ RỊA-VŨNG TÀU | C158: 2024-11-07 | E158: 2024-11-07 | F158: 00063110 | G158: CircleK 43 Thùy Vân | H158: 649779 | I158: 0 | J158: 51982 | K158: 701761 | L158: Tồn đầu kỳ | M158: 2025-01-10 | O158: =IF(Table1[[#This Row],[Phân loại]]="Tồn đầu kỳ",Table1[[#This Row],[Tổng giá trị]],0) -> 701761 | P158: =IF(Table1[[#This Row],[Số còn phải thu ĐK]]<>0,0,IF(Table1[[#This Row],[Phân loại]]="Bán hàng",Table1[[#This Row],[Tổng giá trị]],-Table1[[#This Row],[Tổng giá trị]])) -> 0 | Q158: 701761 | R158: =Table1[[#This Row],[Số còn phải thu ĐK]]+Table1[[#This Row],[Giá Trị HD sau CK]]-Table1[[#This Row],[Số tiền đã thu]] -> 0 | S158: =IF(Table1[[#This Row],[Ngày hóa đơn]]<>"",Table1[[#This Row],[Ngày hóa đơn]],Table1[[#This Row],[Ngày hạch toán]]) -> 2024-11-07 | U158: =IF(Table1[[#This Row],[Ngày tính CN]]="","",S158+T158) -> 2024-11-07 | V158: =IF(Table1[[#This Row],[Hạn thanh toán]]="","",IF((U158-NOW())<0,0,(U158-NOW()))) -> 0 | Y158: Đã thanh toán | Z158: 2024-11-07 | AA158: 2025-01-10 | AB158: check xong | AD158: =VLOOKUP($A158,MA_KH!$A:$Q,MA_KH!O$1,0) -> CIRCLE K | AE158: =VLOOKUP($A158,MA_KH!$A:$Q,MA_KH!P$1,0) -> CÔNG TY TNHH VÒNG TRÒN ĐỎ
A159: CircleK-012 | B159: CHI NHÁNH CÔNG TY TNHH VÒNG TRÒN ĐỎ TẠI BÀ RỊA-VŨNG TÀU | C159: 2024-11-07 | E159: 2024-11-07 | F159: 00063111 | G159: CircleK 1 Thùy Vân | H159: 1053604 | I159: 0 | J159: 84288 | K159: 1137892 | L159: Tồn đầu kỳ | M159: 2025-01-10 | O159: =IF(Table1[[#This Row],[Phân loại]]="Tồn đầu kỳ",Table1[[#This Row],[Tổng giá trị]],0) -> 1137892 | P159: =IF(Table1[[#This Row],[Số còn phải thu ĐK]]<>0,0,IF(Table1[[#This Row],[Phân loại]]="Bán hàng",Table1[[#This Row],[Tổng giá trị]],-Table1[[#This Row],[Tổng giá trị]])) -> 0 | Q159: 1137892 | R159: =Table1[[#This Row],[Số còn phải thu ĐK]]+Table1[[#This Row],[Giá Trị HD sau CK]]-Table1[[#This Row],[Số tiền đã thu]] -> 0 | S159: =IF(Table1[[#This Row],[Ngày hóa đơn]]<>"",Table1[[#This Row],[Ngày hóa đơn]],Table1[[#This Row],[Ngày hạch toán]]) -> 2024-11-07 | U159: =IF(Table1[[#This Row],[Ngày tính CN]]="","",S159+T159) -> 2024-11-07 | V159: =IF(Table1[[#This Row],[Hạn thanh toán]]="","",IF((U159-NOW())<0,0,(U159-NOW()))) -> 0 | Y159: Đã thanh toán | Z159: 2024-11-07 | AA159: 2025-01-10 | AB159: check xong | AD159: =VLOOKUP($A159,MA_KH!$A:$Q,MA_KH!O$1,0) -> CIRCLE K | AE159: =VLOOKUP($A159,MA_KH!$A:$Q,MA_KH!P$1,0) -> CÔNG TY TNHH VÒNG TRÒN ĐỎ
A160: CircleK-028 | B160: CHI NHÁNH CÔNG TY TNHH VÒNG TRÒN ĐỎ TẠI KHÁNH HÒA | C160: 2024-11-07 | E160: 2024-11-07 | F160: 00063112 | G160: CircleK Số 18 Trần Phú, Nha Trang, Khánh Hòa | H160: 387672 | I160: 0 | J160: 31014 | K160: 418686 | L160: Tồn đầu kỳ | M160: 2025-01-10 | O160: =IF(Table1[[#This Row],[Phân loại]]="Tồn đầu kỳ",Table1[[#This Row],[Tổng giá trị]],0) -> 418686 | P160: =IF(Table1[[#This Row],[Số còn phải thu ĐK]]<>0,0,IF(Table1[[#This Row],[Phân loại]]="Bán hàng",Table1[[#This Row],[Tổng giá trị]],-Table1[[#This Row],[Tổng giá trị]])) -> 0 | Q160: 418686 | R160: =Table1[[#This Row],[Số còn phải thu ĐK]]+Table1[[#This Row],[Giá Trị HD sau CK]]-Table1[[#This Row],[Số tiền đã thu]] -> 0 | S160: =IF(Table1[[#This Row],[Ngày hóa đơn]]<>"",Table1[[#This Row],[Ngày hóa đơn]],Table1[[#This Row],[Ngày hạch toán]]) -> 2024-11-07 | U160: =IF(Table1[[#This Row],[Ngày tính CN]]="","",S160+T160) -> 2024-11-07 | V160: =IF(Table1[[#This Row],[Hạn thanh toán]]="","",IF((U160-NOW())<0,0,(U160-NOW()))) -> 0 | Y160: Đã thanh toán | Z160: 2024-11-07 | AA160: 2025-01-10 | AB160: check xong | AD160: =VLOOKUP($A160,MA_KH!$A:$Q,MA_KH!O$1,0) -> CIRCLE K | AE160: =VLOOKUP($A160,MA_KH!$A:$Q,MA_KH!P$1,0) -> CÔNG TY TNHH VÒNG TRÒN ĐỎ
A161: CircleK-012 | B161: CHI NHÁNH CÔNG TY TNHH VÒNG TRÒN ĐỎ TẠI BÀ RỊA-VŨNG TÀU | C161: 2024-11-07 | E161: 2024-11-07 | F161: 00063113 | G161: CircleK 15 La Văn Cầu | H161: 972839 | I161: 0 | J161: 77827 | K161: 1050666 | L161: Tồn đầu kỳ | M161: 2025-01-10 | O161: =IF(Table1[[#This Row],[Phân loại]]="Tồn đầu kỳ",Table1[[#This Row],[Tổng giá trị]],0) -> 1050666 | P161: =IF(Table1[[#This Row],[Số còn phải thu ĐK]]<>0,0,IF(Table1[[#This Row],[Phân loại]]="Bán hàng",Table1[[#This Row],[Tổng giá trị]],-Table1[[#This Row],[Tổng giá trị]])) -> 0 | Q161: 1050666 | R161: =Table1[[#This Row],[Số còn phải thu ĐK]]+Table1[[#This Row],[Giá Trị HD sau CK]]-Table1[[#This Row],[Số tiền đã thu]] -> 0 | S161: =IF(Table1[[#This Row],[Ngày hóa đơn]]<>"",Table1[[#This Row],[Ngày hóa đơn]],Table1[[#This Row],[Ngày hạch toán]]) -> 2024-11-07 | U161: =IF(Table1[[#This Row],[Ngày tính CN]]="","",S161+T161) -> 2024-11-07 | V161: =IF(Table1[[#This Row],[Hạn thanh toán]]="","",IF((U161-NOW())<0,0,(U161-NOW()))) -> 0 | Y161: Đã thanh toán | Z161: 2024-11-07 | AA161: 2025-01-10 | AB161: check xong | AD161: =VLOOKUP($A161,MA_KH!$A:$Q,MA_KH!O$1,0) -> CIRCLE K | AE161: =VLOOKUP($A161,MA_KH!$A:$Q,MA_KH!P$1,0) -> CÔNG TY TNHH VÒNG TRÒN ĐỎ
A162: CircleK | B162: CÔNG TY TNHH VÒNG TRÒN ĐỎ | C162: 2024-11-07 | E162: 2024-11-07 | F162: 00063114 | G162: CircleK 704 Sư Vạn Hạnh | H162: 161530 | I162: 0 | J162: 12922 | K162: 174452 | L162: Tồn đầu kỳ | M162: 2025-01-10 | O162: =IF(Table1[[#This Row],[Phân loại]]="Tồn đầu kỳ",Table1[[#This Row],[Tổng giá trị]],0) -> 174452 | P162: =IF(Table1[[#This Row],[Số còn phải thu ĐK]]<>0,0,IF(Table1[[#This Row],[Phân loại]]="Bán hàng",Table1[[#This Row],[Tổng giá trị]],-Table1[[#This Row],[Tổng giá trị]])) -> 0 | Q162: 174452 | R162: =Table1[[#This Row],[Số còn phải thu ĐK]]+Table1[[#This Row],[Giá Trị HD sau CK]]-Table1[[#This Row],[Số tiền đã thu]] -> 0 | S162: =IF(Table1[[#This Row],[Ngày hóa đơn]]<>"",Table1[[#This Row],[Ngày hóa đơn]],Table1[[#This Row],[Ngày hạch toán]]) -> 2024-11-07 | U162: =IF(Table1[[#This Row],[Ngày tính CN]]="","",S162+T162) -> 2024-11-07 | V162: =IF(Table1[[#This Row],[Hạn thanh toán]]="","",IF((U162-NOW())<0,0,(U162-NOW()))) -> 0 | Y162: Đã thanh toán | Z162: 2024-11-07 | AA162: 2025-01-10 | AB162: check xong | AD162: =VLOOKUP($A162,MA_KH!$A:$Q,MA_KH!O$1,0) -> CIRCLE K | AE162: =VLOOKUP($A162,MA_KH!$A:$Q,MA_KH!P$1,0) -> CÔNG TY TNHH VÒNG TRÒN ĐỎ
A163: CircleK | B163: CÔNG TY TNHH VÒNG TRÒN ĐỎ | C163: 2024-11-07 | E163: 2024-11-07 | F163: 00063115 | G163: CircleK 62 Nguyễn Khoái | H163: 281205 | I163: 0 | J163: 22496 | K163: 303701 | L163: Tồn đầu kỳ | M163: 2025-01-10 | O163: =IF(Table1[[#This Row],[Phân loại]]="Tồn đầu kỳ",Table1[[#This Row],[Tổng giá trị]],0) -> 303701 | P163: =IF(Table1[[#This Row],[Số còn phải thu ĐK]]<>0,0,IF(Table1[[#This Row],[Phân loại]]="Bán hàng",Table1[[#This Row],[Tổng giá trị]],-Table1[[#This Row],[Tổng giá trị]])) -> 0 | Q163: 303701 | R163: =Table1[[#This Row],[Số còn phải thu ĐK]]+Table1[[#This Row],[Giá Trị HD sau CK]]-Table1[[#This Row],[Số tiền đã thu]] -> 0 | S163: =IF(Table1[[#This Row],[Ngày hóa đơn]]<>"",Table1[[#This Row],[Ngày hóa đơn]],Table1[[#This Row],[Ngày hạch toán]]) -> 2024-11-07 | U163: =IF(Table1[[#This Row],[Ngày tính CN]]="","",S163+T163) -> 2024-11-07 | V163: =IF(Table1[[#This Row],[Hạn thanh toán]]="","",IF((U163-NOW())<0,0,(U163-NOW()))) -> 0 | Y163: Đã thanh toán | Z163: 2024-11-07 | AA163: 2025-01-10 | AB163: check xong | AD163: =VLOOKUP($A163,MA_KH!$A:$Q,MA_KH!O$1,0) -> CIRCLE K | AE163: =VLOOKUP($A163,MA_KH!$A:$Q,MA_KH!P$1,0) -> CÔNG TY TNHH VÒNG TRÒN ĐỎ
A164: CircleK | B164: CÔNG TY TNHH VÒNG TRÒN ĐỎ | C164: 2024-11-07 | E164: 2024-11-07 | F164: 00063116 | G164: CircleK A67 Nguyễn Trãi | H164: 400880 | I164: 0 | J164: 32070 | K164: 432950 | L164: Tồn đầu kỳ | M164: 2025-01-10 | O164: =IF(Table1[[#This Row],[Phân loại]]="Tồn đầu kỳ",Table1[[#This Row],[Tổng giá trị]],0) -> 432950 | P164: =IF(Table1[[#This Row],[Số còn phải thu ĐK]]<>0,0,IF(Table1[[#This Row],[Phân loại]]="Bán hàng",Table1[[#This Row],[Tổng giá trị]],-Table1[[#This Row],[Tổng giá trị]])) -> 0 | Q164: 432950 | R164: =Table1[[#This Row],[Số còn phải thu ĐK]]+Table1[[#This Row],[Giá Trị HD sau CK]]-Table1[[#This Row],[Số tiền đã thu]] -> 0 | S164: =IF(Table1[[#This Row],[Ngày hóa đơn]]<>"",Table1[[#This Row],[Ngày hóa đơn]],Table1[[#This Row],[Ngày hạch toán]]) -> 2024-11-07 | U164: =IF(Table1[[#This Row],[Ngày tính CN]]="","",S164+T164) -> 2024-11-07 | V164: =IF(Table1[[#This Row],[Hạn thanh toán]]="","",IF((U164-NOW())<0,0,(U164-NOW()))) -> 0 | Y164: Đã thanh toán | Z164: 2024-11-07 | AA164: 2025-01-10 | AB164: check xong | AD164: =VLOOKUP($A164,MA_KH!$A:$Q,MA_KH!O$1,0) -> CIRCLE K | AE164: =VLOOKUP($A164,MA_KH!$A:$Q,MA_KH!P$1,0) -> CÔNG TY TNHH VÒNG TRÒN ĐỎ
A165: CircleK | B165: CÔNG TY TNHH VÒNG TRÒN ĐỎ | C165: 2024-11-07 | E165: 2024-11-07 | F165: 00063117 | G165: CircleK 8A/11D1 Thái Văn Lung | H165: 161530 | I165: 0 | J165: 12922 | K165: 174452 | L165: Tồn đầu kỳ | M165: 2025-01-10 | O165: =IF(Table1[[#This Row],[Phân loại]]="Tồn đầu kỳ",Table1[[#This Row],[Tổng giá trị]],0) -> 174452 | P165: =IF(Table1[[#This Row],[Số còn phải thu ĐK]]<>0,0,IF(Table1[[#This Row],[Phân loại]]="Bán hàng",Table1[[#This Row],[Tổng giá trị]],-Table1[[#This Row],[Tổng giá trị]])) -> 0 | Q165: 174452 | R165: =Table1[[#This Row],[Số còn phải thu ĐK]]+Table1[[#This Row],[Giá Trị HD sau CK]]-Table1[[#This Row],[Số tiền đã thu]] -> 0 | S165: =IF(Table1[[#This Row],[Ngày hóa đơn]]<>"",Table1[[#This Row],[Ngày hóa đơn]],Table1[[#This Row],[Ngày hạch toán]]) -> 2024-11-07 | U165: =IF(Table1[[#This Row],[Ngày tính CN]]="","",S165+T165) -> 2024-11-07 | V165: =IF(Table1[[#This Row],[Hạn thanh toán]]="","",IF((U165-NOW())<0,0,(U165-NOW()))) -> 0 | Y165: Đã thanh toán | Z165: 2024-11-07 | AA165: 2025-01-10 | AB165: check xong | AD165: =VLOOKUP($A165,MA_KH!$A:$Q,MA_KH!O$1,0) -> CIRCLE K | AE165: =VLOOKUP($A165,MA_KH!$A:$Q,MA_KH!P$1,0) -> CÔNG TY TNHH VÒNG TRÒN ĐỎ
A166: CircleK | B166: CÔNG TY TNHH VÒNG TRÒN ĐỎ | C166: 2024-11-07 | E166: 2024-11-07 | F166: 00063118 | G166: CircleK 529 Sư Vạn Hạnh | H166: 161530 | I166: 0 | J166: 12922 | K166: 174452 | L166: Tồn đầu kỳ | M166: 2025-01-10 | O166: =IF(Table1[[#This Row],[Phân loại]]="Tồn đầu kỳ",Table1[[#This Row],[Tổng giá trị]],0) -> 174452 | P166: =IF(Table1[[#This Row],[Số còn phải thu ĐK]]<>0,0,IF(Table1[[#This Row],[Phân loại]]="Bán hàng",Table1[[#This Row],[Tổng giá trị]],-Table1[[#This Row],[Tổng giá trị]])) -> 0 | Q166: 174452 | R166: =Table1[[#This Row],[Số còn phải thu ĐK]]+Table1[[#This Row],[Giá Trị HD sau CK]]-Table1[[#This Row],[Số tiền đã thu]] -> 0 | S166: =IF(Table1[[#This Row],[Ngày hóa đơn]]<>"",Table1[[#This Row],[Ngày hóa đơn]],Table1[[#This Row],[Ngày hạch toán]]) -> 2024-11-07 | U166: =IF(Table1[[#This Row],[Ngày tính CN]]="","",S166+T166) -> 2024-11-07 | V166: =IF(Table1[[#This Row],[Hạn thanh toán]]="","",IF((U166-NOW())<0,0,(U166-NOW()))) -> 0 | Y166: Đã thanh toán | Z166: 2024-11-07 | AA166: 2025-01-10 | AB166: check xong | AD166: =VLOOKUP($A166,MA_KH!$A:$Q,MA_KH!O$1,0) -> CIRCLE K | AE166: =VLOOKUP($A166,MA_KH!$A:$Q,MA_KH!P$1,0) -> CÔNG TY TNHH VÒNG TRÒN ĐỎ
A167: CircleK | B167: CÔNG TY TNHH VÒNG TRÒN ĐỎ | C167: 2024-11-07 | E167: 2024-11-07 | F167: 00063119 | G167: CircleK 285 Cách Mạng Tháng Tám | H167: 400880 | I167: 0 | J167: 32070 | K167: 432950 | L167: Tồn đầu kỳ | M167: 2025-01-10 | O167: =IF(Table1[[#This Row],[Phân loại]]="Tồn đầu kỳ",Table1[[#This Row],[Tổng giá trị]],0) -> 432950 | P167: =IF(Table1[[#This Row],[Số còn phải thu ĐK]]<>0,0,IF(Table1[[#This Row],[Phân loại]]="Bán hàng",Table1[[#This Row],[Tổng giá trị]],-Table1[[#This Row],[Tổng giá trị]])) -> 0 | Q167: 432950 | R167: =Table1[[#This Row],[Số còn phải thu ĐK]]+Table1[[#This Row],[Giá Trị HD sau CK]]-Table1[[#This Row],[Số tiền đã thu]] -> 0 | S167: =IF(Table1[[#This Row],[Ngày hóa đơn]]<>"",Table1[[#This Row],[Ngày hóa đơn]],Table1[[#This Row],[Ngày hạch toán]]) -> 2024-11-07 | U167: =IF(Table1[[#This Row],[Ngày tính CN]]="","",S167+T167) -> 2024-11-07 | V167: =IF(Table1[[#This Row],[Hạn thanh toán]]="","",IF((U167-NOW())<0,0,(U167-NOW()))) -> 0 | Y167: Đã thanh toán | Z167: 2024-11-07 | AA167: 2025-01-10 | AB167: check xong | AD167: =VLOOKUP($A167,MA_KH!$A:$Q,MA_KH!O$1,0) -> CIRCLE K | AE167: =VLOOKUP($A167,MA_KH!$A:$Q,MA_KH!P$1,0) -> CÔNG TY TNHH VÒNG TRÒN ĐỎ
A168: CircleK | B168: CÔNG TY TNHH VÒNG TRÒN ĐỎ | C168: 2024-11-07 | E168: 2024-11-07 | F168: 00063122 | G168: CircleK 55 Đường S11 | H168: 129224 | I168: 0 | J168: 10338 | K168: 139562 | L168: Tồn đầu kỳ | M168: 2025-01-10 | O168: =IF(Table1[[#This Row],[Phân loại]]="Tồn đầu kỳ",Table1[[#This Row],[Tổng giá trị]],0) -> 139562 | P168: =IF(Table1[[#This Row],[Số còn phải thu ĐK]]<>0,0,IF(Table1[[#This Row],[Phân loại]]="Bán hàng",Table1[[#This Row],[Tổng giá trị]],-Table1[[#This Row],[Tổng giá trị]])) -> 0 | Q168: 139562 | R168: =Table1[[#This Row],[Số còn phải thu ĐK]]+Table1[[#This Row],[Giá Trị HD sau CK]]-Table1[[#This Row],[Số tiền đã thu]] -> 0 | S168: =IF(Table1[[#This Row],[Ngày hóa đơn]]<>"",Table1[[#This Row],[Ngày hóa đơn]],Table1[[#This Row],[Ngày hạch toán]]) -> 2024-11-07 | U168: =IF(Table1[[#This Row],[Ngày tính CN]]="","",S168+T168) -> 2024-11-07 | V168: =IF(Table1[[#This Row],[Hạn thanh toán]]="","",IF((U168-NOW())<0,0,(U168-NOW()))) -> 0 | Y168: Đã thanh toán | Z168: 2024-11-07 | AA168: 2025-01-10 | AB168: check xong | AD168: =VLOOKUP($A168,MA_KH!$A:$Q,MA_KH!O$1,0) -> CIRCLE K | AE168: =VLOOKUP($A168,MA_KH!$A:$Q,MA_KH!P$1,0) -> CÔNG TY TNHH VÒNG TRÒN ĐỎ
A169: CircleK-011 | B169: CHI NHÁNH TẠI BÌNH DƯƠNG CÔNG TY TNHH VÒNG TRÒN ĐỎ | C169: 2024-11-07 | E169: 2024-11-07 | F169: 00063125 | G169: CircleK Số 138 Đường 30 Tháng 4 | H169: 129224 | I169: 0 | J169: 10338 | K169: 139562 | L169: Tồn đầu kỳ | M169: 2025-01-10 | O169: =IF(Table1[[#This Row],[Phân loại]]="Tồn đầu kỳ",Table1[[#This Row],[Tổng giá trị]],0) -> 139562 | P169: =IF(Table1[[#This Row],[Số còn phải thu ĐK]]<>0,0,IF(Table1[[#This Row],[Phân loại]]="Bán hàng",Table1[[#This Row],[Tổng giá trị]],-Table1[[#This Row],[Tổng giá trị]])) -> 0 | Q169: 139562 | R169: =Table1[[#This Row],[Số còn phải thu ĐK]]+Table1[[#This Row],[Giá Trị HD sau CK]]-Table1[[#This Row],[Số tiền đã thu]] -> 0 | S169: =IF(Table1[[#This Row],[Ngày hóa đơn]]<>"",Table1[[#This Row],[Ngày hóa đơn]],Table1[[#This Row],[Ngày hạch toán]]) -> 2024-11-07 | U169: =IF(Table1[[#This Row],[Ngày tính CN]]="","",S169+T169) -> 2024-11-07 | V169: =IF(Table1[[#This Row],[Hạn thanh toán]]="","",IF((U169-NOW())<0,0,(U169-NOW()))) -> 0 | Y169: Đã thanh toán | Z169: 2024-11-07 | AA169: 2025-01-10 | AB169: check xong | AD169: =VLOOKUP($A169,MA_KH!$A:$Q,MA_KH!O$1,0) -> CIRCLE K | AE169: =VLOOKUP($A169,MA_KH!$A:$Q,MA_KH!P$1,0) -> CÔNG TY TNHH VÒNG TRÒN ĐỎ
A170: CircleK-011 | B170: CHI NHÁNH TẠI BÌNH DƯƠNG CÔNG TY TNHH VÒNG TRÒN ĐỎ | C170: 2024-11-07 | E170: 2024-11-07 | F170: 00063126 | G170: CircleK 508 Cách Mạng Tháng 8 | H170: 129224 | I170: 0 | J170: 10338 | K170: 139562 | L170: Tồn đầu kỳ | M170: 2025-01-10 | O170: =IF(Table1[[#This Row],[Phân loại]]="Tồn đầu kỳ",Table1[[#This Row],[Tổng giá trị]],0) -> 139562 | P170: =IF(Table1[[#This Row],[Số còn phải thu ĐK]]<>0,0,IF(Table1[[#This Row],[Phân loại]]="Bán hàng",Table1[[#This Row],[Tổng giá trị]],-Table1[[#This Row],[Tổng giá trị]])) -> 0 | Q170: 139562 | R170: =Table1[[#This Row],[Số còn phải thu ĐK]]+Table1[[#This Row],[Giá Trị HD sau CK]]-Table1[[#This Row],[Số tiền đã thu]] -> 0 | S170: =IF(Table1[[#This Row],[Ngày hóa đơn]]<>"",Table1[[#This Row],[Ngày hóa đơn]],Table1[[#This Row],[Ngày hạch toán]]) -> 2024-11-07 | U170: =IF(Table1[[#This Row],[Ngày tính CN]]="","",S170+T170) -> 2024-11-07 | V170: =IF(Table1[[#This Row],[Hạn thanh toán]]="","",IF((U170-NOW())<0,0,(U170-NOW()))) -> 0 | Y170: Đã thanh toán | Z170: 2024-11-07 | AA170: 2025-01-10 | AB170: check xong | AD170: =VLOOKUP($A170,MA_KH!$A:$Q,MA_KH!O$1,0) -> CIRCLE K | AE170: =VLOOKUP($A170,MA_KH!$A:$Q,MA_KH!P$1,0) -> CÔNG TY TNHH VÒNG TRÒN ĐỎ
A171: CircleK | B171: CÔNG TY TNHH VÒNG TRÒN ĐỎ | C171: 2024-11-07 | E171: 2024-11-07 | F171: 00063133 | G171: CircleK 319 Lý Thường Kiệt | H171: 231095 | I171: 0 | J171: 18488 | K171: 249583 | L171: Tồn đầu kỳ | M171: 2025-01-10 | O171: =IF(Table1[[#This Row],[Phân loại]]="Tồn đầu kỳ",Table1[[#This Row],[Tổng giá trị]],0) -> 249583 | P171: =IF(Table1[[#This Row],[Số còn phải thu ĐK]]<>0,0,IF(Table1[[#This Row],[Phân loại]]="Bán hàng",Table1[[#This Row],[Tổng giá trị]],-Table1[[#This Row],[Tổng giá trị]])) -> 0 | Q171: 249583 | R171: =Table1[[#This Row],[Số còn phải thu ĐK]]+Table1[[#This Row],[Giá Trị HD sau CK]]-Table1[[#This Row],[Số tiền đã thu]] -> 0 | S171: =IF(Table1[[#This Row],[Ngày hóa đơn]]<>"",Table1[[#This Row],[Ngày hóa đơn]],Table1[[#This Row],[Ngày hạch toán]]) -> 2024-11-07 | U171: =IF(Table1[[#This Row],[Ngày tính CN]]="","",S171+T171) -> 2024-11-07 | V171: =IF(Table1[[#This Row],[Hạn thanh toán]]="","",IF((U171-NOW())<0,0,(U171-NOW()))) -> 0 | Y171: Đã thanh toán | Z171: 2024-11-07 | AA171: 2025-01-10 | AB171: check xong | AD171: =VLOOKUP($A171,MA_KH!$A:$Q,MA_KH!O$1,0) -> CIRCLE K | AE171: =VLOOKUP($A171,MA_KH!$A:$Q,MA_KH!P$1,0) -> CÔNG TY TNHH VÒNG TRÒN ĐỎ
A172: CircleK-017 | B172: CHI NHÁNH CÔNG TY TNHH VÒNG TRÒN ĐỎ TẠI CẦN THƠ | C172: 2024-11-07 | E172: 2024-11-07 | F172: 00063136 | G172: CircleK 166 Đường 3/2 | H172: 323060 | I172: 0 | J172: 25845 | K172: 348905 | L172: Tồn đầu kỳ | M172: 2025-01-10 | O172: =IF(Table1[[#This Row],[Phân loại]]="Tồn đầu kỳ",Table1[[#This Row],[Tổng giá trị]],0) -> 348905 | P172: =IF(Table1[[#This Row],[Số còn phải thu ĐK]]<>0,0,IF(Table1[[#This Row],[Phân loại]]="Bán hàng",Table1[[#This Row],[Tổng giá trị]],-Table1[[#This Row],[Tổng giá trị]])) -> 0 | Q172: 348905 | R172: =Table1[[#This Row],[Số còn phải thu ĐK]]+Table1[[#This Row],[Giá Trị HD sau CK]]-Table1[[#This Row],[Số tiền đã thu]] -> 0 | S172: =IF(Table1[[#This Row],[Ngày hóa đơn]]<>"",Table1[[#This Row],[Ngày hóa đơn]],Table1[[#This Row],[Ngày hạch toán]]) -> 2024-11-07 | U172: =IF(Table1[[#This Row],[Ngày tính CN]]="","",S172+T172) -> 2024-11-07 | V172: =IF(Table1[[#This Row],[Hạn thanh toán]]="","",IF((U172-NOW())<0,0,(U172-NOW()))) -> 0 | Y172: Đã thanh toán | Z172: 2024-11-07 | AA172: 2025-01-10 | AB172: check xong | AD172: =VLOOKUP($A172,MA_KH!$A:$Q,MA_KH!O$1,0) -> CIRCLE K | AE172: =VLOOKUP($A172,MA_KH!$A:$Q,MA_KH!P$1,0) -> CÔNG TY TNHH VÒNG TRÒN ĐỎ
A173: CircleK | B173: CÔNG TY TNHH VÒNG TRÒN ĐỎ | C173: 2024-11-09 | E173: 2024-11-09 | F173: 00063481 | G173: CircleK Số 15 Nguyễn Ảnh Thủ | H173: 265052 | I173: 0 | J173: 21204 | K173: 286256 | L173: Tồn đầu kỳ | M173: 2025-01-10 | O173: =IF(Table1[[#This Row],[Phân loại]]="Tồn đầu kỳ",Table1[[#This Row],[Tổng giá trị]],0) -> 286256 | P173: =IF(Table1[[#This Row],[Số còn phải thu ĐK]]<>0,0,IF(Table1[[#This Row],[Phân loại]]="Bán hàng",Table1[[#This Row],[Tổng giá trị]],-Table1[[#This Row],[Tổng giá trị]])) -> 0 | Q173: 286256 | R173: =Table1[[#This Row],[Số còn phải thu ĐK]]+Table1[[#This Row],[Giá Trị HD sau CK]]-Table1[[#This Row],[Số tiền đã thu]] -> 0 | S173: =IF(Table1[[#This Row],[Ngày hóa đơn]]<>"",Table1[[#This Row],[Ngày hóa đơn]],Table1[[#This Row],[Ngày hạch toán]]) -> 2024-11-09 | U173: =IF(Table1[[#This Row],[Ngày tính CN]]="","",S173+T173) -> 2024-11-09 | V173: =IF(Table1[[#This Row],[Hạn thanh toán]]="","",IF((U173-NOW())<0,0,(U173-NOW()))) -> 0 | Y173: Đã thanh toán | Z173: 2024-11-09 | AA173: 2025-01-10 | AB173: check xong | AD173: =VLOOKUP($A173,MA_KH!$A:$Q,MA_KH!O$1,0) -> CIRCLE K | AE173: =VLOOKUP($A173,MA_KH!$A:$Q,MA_KH!P$1,0) -> CÔNG TY TNHH VÒNG TRÒN ĐỎ
A174: CircleK-028 | B174: CHI NHÁNH CÔNG TY TNHH VÒNG TRÒN ĐỎ TẠI KHÁNH HÒA | C174: 2024-11-09 | E174: 2024-11-09 | F174: 00063492 | G174: CircleK 15 đường Trần Hữu Duyệt, Nha Trang, Khánh Hòa | H174: 242295 | I174: 0 | J174: 19384 | K174: 261679 | L174: Tồn đầu kỳ | M174: 2025-01-10 | O174: =IF(Table1[[#This Row],[Phân loại]]="Tồn đầu kỳ",Table1[[#This Row],[Tổng giá trị]],0) -> 261679 | P174: =IF(Table1[[#This Row],[Số còn phải thu ĐK]]<>0,0,IF(Table1[[#This Row],[Phân loại]]="Bán hàng",Table1[[#This Row],[Tổng giá trị]],-Table1[[#This Row],[Tổng giá trị]])) -> 0 | Q174: 261679 | R174: =Table1[[#This Row],[Số còn phải thu ĐK]]+Table1[[#This Row],[Giá Trị HD sau CK]]-Table1[[#This Row],[Số tiền đã thu]] -> 0 | S174: =IF(Table1[[#This Row],[Ngày hóa đơn]]<>"",Table1[[#This Row],[Ngày hóa đơn]],Table1[[#This Row],[Ngày hạch toán]]) -> 2024-11-09 | U174: =IF(Table1[[#This Row],[Ngày tính CN]]="","",S174+T174) -> 2024-11-09 | V174: =IF(Table1[[#This Row],[Hạn thanh toán]]="","",IF((U174-NOW())<0,0,(U174-NOW()))) -> 0 | Y174: Đã thanh toán | Z174: 2024-11-09 | AA174: 2025-01-10 | AB174: check xong | AD174: =VLOOKUP($A174,MA_KH!$A:$Q,MA_KH!O$1,0) -> CIRCLE K | AE174: =VLOOKUP($A174,MA_KH!$A:$Q,MA_KH!P$1,0) -> CÔNG TY TNHH VÒNG TRÒN ĐỎ
A175: CircleK | B175: CÔNG TY TNHH VÒNG TRÒN ĐỎ | C175: 2024-11-09 | E175: 2024-11-09 | F175: 00063493 | G175: CircleK 32A-32B Bùi Thị Xuân | H175: 501100 | I175: 0 | J175: 40088 | K175: 541188 | L175: Tồn đầu kỳ | M175: 2025-01-10 | O175: =IF(Table1[[#This Row],[Phân loại]]="Tồn đầu kỳ",Table1[[#This Row],[Tổng giá trị]],0) -> 541188 | P175: =IF(Table1[[#This Row],[Số còn phải thu ĐK]]<>0,0,IF(Table1[[#This Row],[Phân loại]]="Bán hàng",Table1[[#This Row],[Tổng giá trị]],-Table1[[#This Row],[Tổng giá trị]])) -> 0 | Q175: 541188 | R175: =Table1[[#This Row],[Số còn phải thu ĐK]]+Table1[[#This Row],[Giá Trị HD sau CK]]-Table1[[#This Row],[Số tiền đã thu]] -> 0 | S175: =IF(Table1[[#This Row],[Ngày hóa đơn]]<>"",Table1[[#This Row],[Ngày hóa đơn]],Table1[[#This Row],[Ngày hạch toán]]) -> 2024-11-09 | U175: =IF(Table1[[#This Row],[Ngày tính CN]]="","",S175+T175) -> 2024-11-09 | V175: =IF(Table1[[#This Row],[Hạn thanh toán]]="","",IF((U175-NOW())<0,0,(U175-NOW()))) -> 0 | Y175: Đã thanh toán | Z175: 2024-11-09 | AA175: 2025-01-10 | AB175: check xong | AD175: =VLOOKUP($A175,MA_KH!$A:$Q,MA_KH!O$1,0) -> CIRCLE K | AE175: =VLOOKUP($A175,MA_KH!$A:$Q,MA_KH!P$1,0) -> CÔNG TY TNHH VÒNG TRÒN ĐỎ
A176: CircleK | B176: CÔNG TY TNHH VÒNG TRÒN ĐỎ | C176: 2024-11-09 | E176: 2024-11-09 | F176: 00063494 | G176: CircleK 37 đường số 9A, Khu dân cư Trung Sơn | H176: 311860 | I176: 0 | J176: 24949 | K176: 336809 | L176: Tồn đầu kỳ | M176: 2025-01-10 | O176: =IF(Table1[[#This Row],[Phân loại]]="Tồn đầu kỳ",Table1[[#This Row],[Tổng giá trị]],0) -> 336809 | P176: =IF(Table1[[#This Row],[Số còn phải thu ĐK]]<>0,0,IF(Table1[[#This Row],[Phân loại]]="Bán hàng",Table1[[#This Row],[Tổng giá trị]],-Table1[[#This Row],[Tổng giá trị]])) -> 0 | Q176: 336809 | R176: =Table1[[#This Row],[Số còn phải thu ĐK]]+Table1[[#This Row],[Giá Trị HD sau CK]]-Table1[[#This Row],[Số tiền đã thu]] -> 0 | S176: =IF(Table1[[#This Row],[Ngày hóa đơn]]<>"",Table1[[#This Row],[Ngày hóa đơn]],Table1[[#This Row],[Ngày hạch toán]]) -> 2024-11-09 | U176: =IF(Table1[[#This Row],[Ngày tính CN]]="","",S176+T176) -> 2024-11-09 | V176: =IF(Table1[[#This Row],[Hạn thanh toán]]="","",IF((U176-NOW())<0,0,(U176-NOW()))) -> 0 | Y176: Đã thanh toán | Z176: 2024-11-09 | AA176: 2025-01-10 | AB176: check xong | AD176: =VLOOKUP($A176,MA_KH!$A:$Q,MA_KH!O$1,0) -> CIRCLE K | AE176: =VLOOKUP($A176,MA_KH!$A:$Q,MA_KH!P$1,0) -> CÔNG TY TNHH VÒNG TRÒN ĐỎ
A177: CircleK | B177: CÔNG TY TNHH VÒNG TRÒN ĐỎ | C177: 2024-11-09 | E177: 2024-11-09 | F177: 00063495 | G177: CircleK Citizen Apartment, Trung Son Residential quarter | H177: 129224 | I177: 0 | J177: 10338 | K177: 139562 | L177: Tồn đầu kỳ | M177: 2025-01-10 | O177: =IF(Table1[[#This Row],[Phân loại]]="Tồn đầu kỳ",Table1[[#This Row],[Tổng giá trị]],0) -> 139562 | P177: =IF(Table1[[#This Row],[Số còn phải thu ĐK]]<>0,0,IF(Table1[[#This Row],[Phân loại]]="Bán hàng",Table1[[#This Row],[Tổng giá trị]],-Table1[[#This Row],[Tổng giá trị]])) -> 0 | Q177: 139562 | R177: =Table1[[#This Row],[Số còn phải thu ĐK]]+Table1[[#This Row],[Giá Trị HD sau CK]]-Table1[[#This Row],[Số tiền đã thu]] -> 0 | S177: =IF(Table1[[#This Row],[Ngày hóa đơn]]<>"",Table1[[#This Row],[Ngày hóa đơn]],Table1[[#This Row],[Ngày hạch toán]]) -> 2024-11-09 | U177: =IF(Table1[[#This Row],[Ngày tính CN]]="","",S177+T177) -> 2024-11-09 | V177: =IF(Table1[[#This Row],[Hạn thanh toán]]="","",IF((U177-NOW())<0,0,(U177-NOW()))) -> 0 | Y177: Đã thanh toán | Z177: 2024-11-09 | AA177: 2025-01-10 | AB177: check xong | AD177: =VLOOKUP($A177,MA_KH!$A:$Q,MA_KH!O$1,0) -> CIRCLE K | AE177: =VLOOKUP($A177,MA_KH!$A:$Q,MA_KH!P$1,0) -> CÔNG TY TNHH VÒNG TRÒN ĐỎ
A178: CircleK | B178: CÔNG TY TNHH VÒNG TRÒN ĐỎ | C178: 2024-11-09 | E178: 2024-11-09 | F178: 00063496 | G178: CircleK 12 Phạm Văn Nghị | H178: 231095 | I178: 0 | J178: 18488 | K178: 249583 | L178: Tồn đầu kỳ | M178: 2025-01-10 | O178: =IF(Table1[[#This Row],[Phân loại]]="Tồn đầu kỳ",Table1[[#This Row],[Tổng giá trị]],0) -> 249583 | P178: =IF(Table1[[#This Row],[Số còn phải thu ĐK]]<>0,0,IF(Table1[[#This Row],[Phân loại]]="Bán hàng",Table1[[#This Row],[Tổng giá trị]],-Table1[[#This Row],[Tổng giá trị]])) -> 0 | Q178: 249583 | R178: =Table1[[#This Row],[Số còn phải thu ĐK]]+Table1[[#This Row],[Giá Trị HD sau CK]]-Table1[[#This Row],[Số tiền đã thu]] -> 0 | S178: =IF(Table1[[#This Row],[Ngày hóa đơn]]<>"",Table1[[#This Row],[Ngày hóa đơn]],Table1[[#This Row],[Ngày hạch toán]]) -> 2024-11-09 | U178: =IF(Table1[[#This Row],[Ngày tính CN]]="","",S178+T178) -> 2024-11-09 | V178: =IF(Table1[[#This Row],[Hạn thanh toán]]="","",IF((U178-NOW())<0,0,(U178-NOW()))) -> 0 | Y178: Đã thanh toán | Z178: 2024-11-09 | AA178: 2025-01-10 | AB178: check xong | AD178: =VLOOKUP($A178,MA_KH!$A:$Q,MA_KH!O$1,0) -> CIRCLE K | AE178: =VLOOKUP($A178,MA_KH!$A:$Q,MA_KH!P$1,0) -> CÔNG TY TNHH VÒNG TRÒN ĐỎ
A179: CircleK | B179: CÔNG TY TNHH VÒNG TRÒN ĐỎ | C179: 2024-11-09 | E179: 2024-11-09 | F179: 00063497 | G179: CircleK 402 Hà Huy Tập | H179: 161530 | I179: 0 | J179: 12922 | K179: 174452 | L179: Tồn đầu kỳ | M179: 2025-01-10 | O179: =IF(Table1[[#This Row],[Phân loại]]="Tồn đầu kỳ",Table1[[#This Row],[Tổng giá trị]],0) -> 174452 | P179: =IF(Table1[[#This Row],[Số còn phải thu ĐK]]<>0,0,IF(Table1[[#This Row],[Phân loại]]="Bán hàng",Table1[[#This Row],[Tổng giá trị]],-Table1[[#This Row],[Tổng giá trị]])) -> 0 | Q179: 174452 | R179: =Table1[[#This Row],[Số còn phải thu ĐK]]+Table1[[#This Row],[Giá Trị HD sau CK]]-Table1[[#This Row],[Số tiền đã thu]] -> 0 | S179: =IF(Table1[[#This Row],[Ngày hóa đơn]]<>"",Table1[[#This Row],[Ngày hóa đơn]],Table1[[#This Row],[Ngày hạch toán]]) -> 2024-11-09 | U179: =IF(Table1[[#This Row],[Ngày tính CN]]="","",S179+T179) -> 2024-11-09 | V179: =IF(Table1[[#This Row],[Hạn thanh toán]]="","",IF((U179-NOW())<0,0,(U179-NOW()))) -> 0 | Y179: Đã thanh toán | Z179: 2024-11-09 | AA179: 2025-01-10 | AB179: check xong | AD179: =VLOOKUP($A179,MA_KH!$A:$Q,MA_KH!O$1,0) -> CIRCLE K | AE179: =VLOOKUP($A179,MA_KH!$A:$Q,MA_KH!P$1,0) -> CÔNG TY TNHH VÒNG TRÒN ĐỎ
A180: CircleK | B180: CÔNG TY TNHH VÒNG TRÒN ĐỎ | C180: 2024-11-09 | E180: 2024-11-09 | F180: 00063498 | G180: CircleK Phú Mỹ Hưng - 12 Tân Trào | H180: 129224 | I180: 0 | J180: 10338 | K180: 139562 | L180: Tồn đầu kỳ | M180: 2025-01-10 | O180: =IF(Table1[[#This Row],[Phân loại]]="Tồn đầu kỳ",Table1[[#This Row],[Tổng giá trị]],0) -> 139562 | P180: =IF(Table1[[#This Row],[Số còn phải thu ĐK]]<>0,0,IF(Table1[[#This Row],[Phân loại]]="Bán hàng",Table1[[#This Row],[Tổng giá trị]],-Table1[[#This Row],[Tổng giá trị]])) -> 0 | Q180: 139562 | R180: =Table1[[#This Row],[Số còn phải thu ĐK]]+Table1[[#This Row],[Giá Trị HD sau CK]]-Table1[[#This Row],[Số tiền đã thu]] -> 0 | S180: =IF(Table1[[#This Row],[Ngày hóa đơn]]<>"",Table1[[#This Row],[Ngày hóa đơn]],Table1[[#This Row],[Ngày hạch toán]]) -> 2024-11-09 | U180: =IF(Table1[[#This Row],[Ngày tính CN]]="","",S180+T180) -> 2024-11-09 | V180: =IF(Table1[[#This Row],[Hạn thanh toán]]="","",IF((U180-NOW())<0,0,(U180-NOW()))) -> 0 | Y180: Đã thanh toán | Z180: 2024-11-09 | AA180: 2025-01-10 | AB180: check xong | AD180: =VLOOKUP($A180,MA_KH!$A:$Q,MA_KH!O$1,0) -> CIRCLE K | AE180: =VLOOKUP($A180,MA_KH!$A:$Q,MA_KH!P$1,0) -> CÔNG TY TNHH VÒNG TRÒN ĐỎ
A181: CircleK | B181: CÔNG TY TNHH VÒNG TRÒN ĐỎ | C181: 2024-11-09 | E181: 2024-11-09 | F181: 00063499 | G181: CircleK 73-75 Trần Trọng Cung | H181: 129224 | I181: 0 | J181: 10338 | K181: 139562 | L181: Tồn đầu kỳ | M181: 2025-01-10 | O181: =IF(Table1[[#This Row],[Phân loại]]="Tồn đầu kỳ",Table1[[#This Row],[Tổng giá trị]],0) -> 139562 | P181: =IF(Table1[[#This Row],[Số còn phải thu ĐK]]<>0,0,IF(Table1[[#This Row],[Phân loại]]="Bán hàng",Table1[[#This Row],[Tổng giá trị]],-Table1[[#This Row],[Tổng giá trị]])) -> 0 | Q181: 139562 | R181: =Table1[[#This Row],[Số còn phải thu ĐK]]+Table1[[#This Row],[Giá Trị HD sau CK]]-Table1[[#This Row],[Số tiền đã thu]] -> 0 | S181: =IF(Table1[[#This Row],[Ngày hóa đơn]]<>"",Table1[[#This Row],[Ngày hóa đơn]],Table1[[#This Row],[Ngày hạch toán]]) -> 2024-11-09 | U181: =IF(Table1[[#This Row],[Ngày tính CN]]="","",S181+T181) -> 2024-11-09 | V181: =IF(Table1[[#This Row],[Hạn thanh toán]]="","",IF((U181-NOW())<0,0,(U181-NOW()))) -> 0 | Y181: Đã thanh toán | Z181: 2024-11-09 | AA181: 2025-01-10 | AB181: check xong | AD181: =VLOOKUP($A181,MA_KH!$A:$Q,MA_KH!O$1,0) -> CIRCLE K | AE181: =VLOOKUP($A181,MA_KH!$A:$Q,MA_KH!P$1,0) -> CÔNG TY TNHH VÒNG TRÒN ĐỎ
A182: CircleK | B182: CÔNG TY TNHH VÒNG TRÒN ĐỎ | C182: 2024-11-09 | E182: 2024-11-09 | F182: 00063500 | G182: CircleK 69 Hồ Tùng Mậu | H182: 161530 | I182: 0 | J182: 12922 | K182: 174452 | L182: Tồn đầu kỳ | M182: 2025-01-10 | O182: =IF(Table1[[#This Row],[Phân loại]]="Tồn đầu kỳ",Table1[[#This Row],[Tổng giá trị]],0) -> 174452 | P182: =IF(Table1[[#This Row],[Số còn phải thu ĐK]]<>0,0,IF(Table1[[#This Row],[Phân loại]]="Bán hàng",Table1[[#This Row],[Tổng giá trị]],-Table1[[#This Row],[Tổng giá trị]])) -> 0 | Q182: 174452 | R182: =Table1[[#This Row],[Số còn phải thu ĐK]]+Table1[[#This Row],[Giá Trị HD sau CK]]-Table1[[#This Row],[Số tiền đã thu]] -> 0 | S182: =IF(Table1[[#This Row],[Ngày hóa đơn]]<>"",Table1[[#This Row],[Ngày hóa đơn]],Table1[[#This Row],[Ngày hạch toán]]) -> 2024-11-09 | U182: =IF(Table1[[#This Row],[Ngày tính CN]]="","",S182+T182) -> 2024-11-09 | V182: =IF(Table1[[#This Row],[Hạn thanh toán]]="","",IF((U182-NOW())<0,0,(U182-NOW()))) -> 0 | Y182: Đã thanh toán | Z182: 2024-11-09 | AA182: 2025-01-10 | AB182: check xong | AD182: =VLOOKUP($A182,MA_KH!$A:$Q,MA_KH!O$1,0) -> CIRCLE K | AE182: =VLOOKUP($A182,MA_KH!$A:$Q,MA_KH!P$1,0) -> CÔNG TY TNHH VÒNG TRÒN ĐỎ
A183: CircleK | B183: CÔNG TY TNHH VÒNG TRÒN ĐỎ | C183: 2024-11-09 | E183: 2024-11-09 | F183: 00063501 | G183: CircleK 47 Nguyễn Huệ | H183: 161530 | I183: 0 | J183: 12922 | K183: 174452 | L183: Tồn đầu kỳ | M183: 2025-01-10 | O183: =IF(Table1[[#This Row],[Phân loại]]="Tồn đầu kỳ",Table1[[#This Row],[Tổng giá trị]],0) -> 174452 | P183: =IF(Table1[[#This Row],[Số còn phải thu ĐK]]<>0,0,IF(Table1[[#This Row],[Phân loại]]="Bán hàng",Table1[[#This Row],[Tổng giá trị]],-Table1[[#This Row],[Tổng giá trị]])) -> 0 | Q183: 174452 | R183: =Table1[[#This Row],[Số còn phải thu ĐK]]+Table1[[#This Row],[Giá Trị HD sau CK]]-Table1[[#This Row],[Số tiền đã thu]] -> 0 | S183: =IF(Table1[[#This Row],[Ngày hóa đơn]]<>"",Table1[[#This Row],[Ngày hóa đơn]],Table1[[#This Row],[Ngày hạch toán]]) -> 2024-11-09 | U183: =IF(Table1[[#This Row],[Ngày tính CN]]="","",S183+T183) -> 2024-11-09 | V183: =IF(Table1[[#This Row],[Hạn thanh toán]]="","",IF((U183-NOW())<0,0,(U183-NOW()))) -> 0 | Y183: Đã thanh toán | Z183: 2024-11-09 | AA183: 2025-01-10 | AB183: check xong | AD183: =VLOOKUP($A183,MA_KH!$A:$Q,MA_KH!O$1,0) -> CIRCLE K | AE183: =VLOOKUP($A183,MA_KH!$A:$Q,MA_KH!P$1,0) -> CÔNG TY TNHH VÒNG TRÒN ĐỎ
A184: CircleK | B184: CÔNG TY TNHH VÒNG TRÒN ĐỎ | C184: 2024-11-09 | E184: 2024-11-09 | F184: 00063502 | G184: CircleK 165-167 Lê Thánh Tôn | H184: 231095 | I184: 0 | J184: 18488 | K184: 249583 | L184: Tồn đầu kỳ | M184: 2025-01-10 | O184: =IF(Table1[[#This Row],[Phân loại]]="Tồn đầu kỳ",Table1[[#This Row],[Tổng giá trị]],0) -> 249583 | P184: =IF(Table1[[#This Row],[Số còn phải thu ĐK]]<>0,0,IF(Table1[[#This Row],[Phân loại]]="Bán hàng",Table1[[#This Row],[Tổng giá trị]],-Table1[[#This Row],[Tổng giá trị]])) -> 0 | Q184: 249583 | R184: =Table1[[#This Row],[Số còn phải thu ĐK]]+Table1[[#This Row],[Giá Trị HD sau CK]]-Table1[[#This Row],[Số tiền đã thu]] -> 0 | S184: =IF(Table1[[#This Row],[Ngày hóa đơn]]<>"",Table1[[#This Row],[Ngày hóa đơn]],Table1[[#This Row],[Ngày hạch toán]]) -> 2024-11-09 | U184: =IF(Table1[[#This Row],[Ngày tính CN]]="","",S184+T184) -> 2024-11-09 | V184: =IF(Table1[[#This Row],[Hạn thanh toán]]="","",IF((U184-NOW())<0,0,(U184-NOW()))) -> 0 | Y184: Đã thanh toán | Z184: 2024-11-09 | AA184: 2025-01-10 | AB184: check xong | AD184: =VLOOKUP($A184,MA_KH!$A:$Q,MA_KH!O$1,0) -> CIRCLE K | AE184: =VLOOKUP($A184,MA_KH!$A:$Q,MA_KH!P$1,0) -> CÔNG TY TNHH VÒNG TRÒN ĐỎ
A185: CircleK | B185: CÔNG TY TNHH VÒNG TRÒN ĐỎ | C185: 2024-11-09 | E185: 2024-11-09 | F185: 00063503 | G185: CircleK 45 Lý Tự Trọng | H185: 161530 | I185: 0 | J185: 12922 | K185: 174452 | L185: Tồn đầu kỳ | M185: 2025-01-10 | O185: =IF(Table1[[#This Row],[Phân loại]]="Tồn đầu kỳ",Table1[[#This Row],[Tổng giá trị]],0) -> 174452 | P185: =IF(Table1[[#This Row],[Số còn phải thu ĐK]]<>0,0,IF(Table1[[#This Row],[Phân loại]]="Bán hàng",Table1[[#This Row],[Tổng giá trị]],-Table1[[#This Row],[Tổng giá trị]])) -> 0 | Q185: 174452 | R185: =Table1[[#This Row],[Số còn phải thu ĐK]]+Table1[[#This Row],[Giá Trị HD sau CK]]-Table1[[#This Row],[Số tiền đã thu]] -> 0 | S185: =IF(Table1[[#This Row],[Ngày hóa đơn]]<>"",Table1[[#This Row],[Ngày hóa đơn]],Table1[[#This Row],[Ngày hạch toán]]) -> 2024-11-09 | U185: =IF(Table1[[#This Row],[Ngày tính CN]]="","",S185+T185) -> 2024-11-09 | V185: =IF(Table1[[#This Row],[Hạn thanh toán]]="","",IF((U185-NOW())<0,0,(U185-NOW()))) -> 0 | Y185: Đã thanh toán | Z185: 2024-11-09 | AA185: 2025-01-10 | AB185: check xong | AD185: =VLOOKUP($A185,MA_KH!$A:$Q,MA_KH!O$1,0) -> CIRCLE K | AE185: =VLOOKUP($A185,MA_KH!$A:$Q,MA_KH!P$1,0) -> CÔNG TY TNHH VÒNG TRÒN ĐỎ
A186: CircleK | B186: CÔNG TY TNHH VÒNG TRÒN ĐỎ | C186: 2024-11-09 | E186: 2024-11-09 | F186: 00063504 | G186: CircleK 103 Trương Định | H186: 129224 | I186: 0 | J186: 10338 | K186: 139562 | L186: Tồn đầu kỳ | M186: 2025-01-10 | O186: =IF(Table1[[#This Row],[Phân loại]]="Tồn đầu kỳ",Table1[[#This Row],[Tổng giá trị]],0) -> 139562 | P186: =IF(Table1[[#This Row],[Số còn phải thu ĐK]]<>0,0,IF(Table1[[#This Row],[Phân loại]]="Bán hàng",Table1[[#This Row],[Tổng giá trị]],-Table1[[#This Row],[Tổng giá trị]])) -> 0 | Q186: 139562 | R186: =Table1[[#This Row],[Số còn phải thu ĐK]]+Table1[[#This Row],[Giá Trị HD sau CK]]-Table1[[#This Row],[Số tiền đã thu]] -> 0 | S186: =IF(Table1[[#This Row],[Ngày hóa đơn]]<>"",Table1[[#This Row],[Ngày hóa đơn]],Table1[[#This Row],[Ngày hạch toán]]) -> 2024-11-09 | U186: =IF(Table1[[#This Row],[Ngày tính CN]]="","",S186+T186) -> 2024-11-09 | V186: =IF(Table1[[#This Row],[Hạn thanh toán]]="","",IF((U186-NOW())<0,0,(U186-NOW()))) -> 0 | Y186: Đã thanh toán | Z186: 2024-11-09 | AA186: 2025-01-10 | AB186: check xong | AD186: =VLOOKUP($A186,MA_KH!$A:$Q,MA_KH!O$1,0) -> CIRCLE K | AE186: =VLOOKUP($A186,MA_KH!$A:$Q,MA_KH!P$1,0) -> CÔNG TY TNHH VÒNG TRÒN ĐỎ
A187: CircleK | B187: CÔNG TY TNHH VÒNG TRÒN ĐỎ | C187: 2024-11-09 | E187: 2024-11-09 | F187: 00063505 | G187: CircleK 43 Phạm Ngọc Thạch | H187: 129224 | I187: 0 | J187: 10338 | K187: 139562 | L187: Tồn đầu kỳ | M187: 2025-01-10 | O187: =IF(Table1[[#This Row],[Phân loại]]="Tồn đầu kỳ",Table1[[#This Row],[Tổng giá trị]],0) -> 139562 | P187: =IF(Table1[[#This Row],[Số còn phải thu ĐK]]<>0,0,IF(Table1[[#This Row],[Phân loại]]="Bán hàng",Table1[[#This Row],[Tổng giá trị]],-Table1[[#This Row],[Tổng giá trị]])) -> 0 | Q187: 139562 | R187: =Table1[[#This Row],[Số còn phải thu ĐK]]+Table1[[#This Row],[Giá Trị HD sau CK]]-Table1[[#This Row],[Số tiền đã thu]] -> 0 | S187: =IF(Table1[[#This Row],[Ngày hóa đơn]]<>"",Table1[[#This Row],[Ngày hóa đơn]],Table1[[#This Row],[Ngày hạch toán]]) -> 2024-11-09 | U187: =IF(Table1[[#This Row],[Ngày tính CN]]="","",S187+T187) -> 2024-11-09 | V187: =IF(Table1[[#This Row],[Hạn thanh toán]]="","",IF((U187-NOW())<0,0,(U187-NOW()))) -> 0 | Y187: Đã thanh toán | Z187: 2024-11-09 | AA187: 2025-01-10 | AB187: check xong | AD187: =VLOOKUP($A187,MA_KH!$A:$Q,MA_KH!O$1,0) -> CIRCLE K | AE187: =VLOOKUP($A187,MA_KH!$A:$Q,MA_KH!P$1,0) -> CÔNG TY TNHH VÒNG TRÒN ĐỎ
A188: CircleK | B188: CÔNG TY TNHH VÒNG TRÒN ĐỎ | C188: 2024-11-09 | E188: 2024-11-09 | F188: 00063513 | G188: CircleK 44 Huỳnh Văn Bánh | H188: 323060 | I188: 0 | J188: 25845 | K188: 348905 | L188: Tồn đầu kỳ | M188: 2025-01-10 | O188: =IF(Table1[[#This Row],[Phân loại]]="Tồn đầu kỳ",Table1[[#This Row],[Tổng giá trị]],0) -> 348905 | P188: =IF(Table1[[#This Row],[Số còn phải thu ĐK]]<>0,0,IF(Table1[[#This Row],[Phân loại]]="Bán hàng",Table1[[#This Row],[Tổng giá trị]],-Table1[[#This Row],[Tổng giá trị]])) -> 0 | Q188: 348905 | R188: =Table1[[#This Row],[Số còn phải thu ĐK]]+Table1[[#This Row],[Giá Trị HD sau CK]]-Table1[[#This Row],[Số tiền đã thu]] -> 0 | S188: =IF(Table1[[#This Row],[Ngày hóa đơn]]<>"",Table1[[#This Row],[Ngày hóa đơn]],Table1[[#This Row],[Ngày hạch toán]]) -> 2024-11-09 | U188: =IF(Table1[[#This Row],[Ngày tính CN]]="","",S188+T188) -> 2024-11-09 | V188: =IF(Table1[[#This Row],[Hạn thanh toán]]="","",IF((U188-NOW())<0,0,(U188-NOW()))) -> 0 | Y188: Đã thanh toán | Z188: 2024-11-09 | AA188: 2025-01-10 | AB188: check xong | AD188: =VLOOKUP($A188,MA_KH!$A:$Q,MA_KH!O$1,0) -> CIRCLE K | AE188: =VLOOKUP($A188,MA_KH!$A:$Q,MA_KH!P$1,0) -> CÔNG TY TNHH VÒNG TRÒN ĐỎ
A189: CircleK | B189: CÔNG TY TNHH VÒNG TRÒN ĐỎ | C189: 2024-11-09 | E189: 2024-11-09 | F189: 00063514 | G189: CircleK 58-60 Hoa Cúc | H189: 129224 | I189: 0 | J189: 10338 | K189: 139562 | L189: Tồn đầu kỳ | M189: 2025-01-10 | O189: =IF(Table1[[#This Row],[Phân loại]]="Tồn đầu kỳ",Table1[[#This Row],[Tổng giá trị]],0) -> 139562 | P189: =IF(Table1[[#This Row],[Số còn phải thu ĐK]]<>0,0,IF(Table1[[#This Row],[Phân loại]]="Bán hàng",Table1[[#This Row],[Tổng giá trị]],-Table1[[#This Row],[Tổng giá trị]])) -> 0 | Q189: 139562 | R189: =Table1[[#This Row],[Số còn phải thu ĐK]]+Table1[[#This Row],[Giá Trị HD sau CK]]-Table1[[#This Row],[Số tiền đã thu]] -> 0 | S189: =IF(Table1[[#This Row],[Ngày hóa đơn]]<>"",Table1[[#This Row],[Ngày hóa đơn]],Table1[[#This Row],[Ngày hạch toán]]) -> 2024-11-09 | U189: =IF(Table1[[#This Row],[Ngày tính CN]]="","",S189+T189) -> 2024-11-09 | V189: =IF(Table1[[#This Row],[Hạn thanh toán]]="","",IF((U189-NOW())<0,0,(U189-NOW()))) -> 0 | Y189: Đã thanh toán | Z189: 2024-11-09 | AA189: 2025-01-10 | AB189: check xong | AD189: =VLOOKUP($A189,MA_KH!$A:$Q,MA_KH!O$1,0) -> CIRCLE K | AE189: =VLOOKUP($A189,MA_KH!$A:$Q,MA_KH!P$1,0) -> CÔNG TY TNHH VÒNG TRÒN ĐỎ
A190: CircleK | B190: CÔNG TY TNHH VÒNG TRÒN ĐỎ | C190: 2024-11-09 | E190: 2024-11-09 | F190: 00063515 | G190: CircleK Số 1 Công Trường Tự Do | H190: 161530 | I190: 0 | J190: 12922 | K190: 174452 | L190: Tồn đầu kỳ | M190: 2025-01-10 | O190: =IF(Table1[[#This Row],[Phân loại]]="Tồn đầu kỳ",Table1[[#This Row],[Tổng giá trị]],0) -> 174452 | P190: =IF(Table1[[#This Row],[Số còn phải thu ĐK]]<>0,0,IF(Table1[[#This Row],[Phân loại]]="Bán hàng",Table1[[#This Row],[Tổng giá trị]],-Table1[[#This Row],[Tổng giá trị]])) -> 0 | Q190: 174452 | R190: =Table1[[#This Row],[Số còn phải thu ĐK]]+Table1[[#This Row],[Giá Trị HD sau CK]]-Table1[[#This Row],[Số tiền đã thu]] -> 0 | S190: =IF(Table1[[#This Row],[Ngày hóa đơn]]<>"",Table1[[#This Row],[Ngày hóa đơn]],Table1[[#This Row],[Ngày hạch toán]]) -> 2024-11-09 | U190: =IF(Table1[[#This Row],[Ngày tính CN]]="","",S190+T190) -> 2024-11-09 | V190: =IF(Table1[[#This Row],[Hạn thanh toán]]="","",IF((U190-NOW())<0,0,(U190-NOW()))) -> 0 | Y190: Đã thanh toán | Z190: 2024-11-09 | AA190: 2025-01-10 | AB190: check xong | AD190: =VLOOKUP($A190,MA_KH!$A:$Q,MA_KH!O$1,0) -> CIRCLE K | AE190: =VLOOKUP($A190,MA_KH!$A:$Q,MA_KH!P$1,0) -> CÔNG TY TNHH VÒNG TRÒN ĐỎ
A191: CircleK | B191: CÔNG TY TNHH VÒNG TRÒN ĐỎ | C191: 2024-11-09 | E191: 2024-11-09 | F191: 00063516 | G191: CircleK 1.01 tại tầng 1, Tòa nhà chung cư S7.01 thuộc Khu nhà ở cao tầng - Dự án Khu dân cư và Công viên Phước Thiện tại số 88 đường Phước Thiện, khu phố Phước Thiện, Phường Long Bình, Thành phố Thủ Đức | H191: 161530 | I191: 0 | J191: 12922 | K191: 174452 | L191: Tồn đầu kỳ | M191: 2025-01-10 | O191: =IF(Table1[[#This Row],[Phân loại]]="Tồn đầu kỳ",Table1[[#This Row],[Tổng giá trị]],0) -> 174452 | P191: =IF(Table1[[#This Row],[Số còn phải thu ĐK]]<>0,0,IF(Table1[[#This Row],[Phân loại]]="Bán hàng",Table1[[#This Row],[Tổng giá trị]],-Table1[[#This Row],[Tổng giá trị]])) -> 0 | Q191: 174452 | R191: =Table1[[#This Row],[Số còn phải thu ĐK]]+Table1[[#This Row],[Giá Trị HD sau CK]]-Table1[[#This Row],[Số tiền đã thu]] -> 0 | S191: =IF(Table1[[#This Row],[Ngày hóa đơn]]<>"",Table1[[#This Row],[Ngày hóa đơn]],Table1[[#This Row],[Ngày hạch toán]]) -> 2024-11-09 | U191: =IF(Table1[[#This Row],[Ngày tính CN]]="","",S191+T191) -> 2024-11-09 | V191: =IF(Table1[[#This Row],[Hạn thanh toán]]="","",IF((U191-NOW())<0,0,(U191-NOW()))) -> 0 | Y191: Đã thanh toán | Z191: 2024-11-09 | AA191: 2025-01-10 | AB191: check xong | AD191: =VLOOKUP($A191,MA_KH!$A:$Q,MA_KH!O$1,0) -> CIRCLE K | AE191: =VLOOKUP($A191,MA_KH!$A:$Q,MA_KH!P$1,0) -> CÔNG TY TNHH VÒNG TRÒN ĐỎ
A192: CircleK | B192: CÔNG TY TNHH VÒNG TRÒN ĐỎ | C192: 2024-11-09 | E192: 2024-11-09 | F192: 00063517 | G192: CircleK 1.05 tại tầng 1, Tòa nhà chung cư BS11 thuộc Khu nhà ở cao tầng - Dự án Khu dân cư và Công viên Phước Thiện tại số 88 đường Phước Thiện, khu phố Phước Thiện, Phường Long Bình, Thành phố Thủ Đức, Thành phố Hồ Chí Minh, Việt Nam | H192: 161530 | I192: 0 | J192: 12922 | K192: 174452 | L192: Tồn đầu kỳ | M192: 2025-01-10 | O192: =IF(Table1[[#This Row],[Phân loại]]="Tồn đầu kỳ",Table1[[#This Row],[Tổng giá trị]],0) -> 174452 | P192: =IF(Table1[[#This Row],[Số còn phải thu ĐK]]<>0,0,IF(Table1[[#This Row],[Phân loại]]="Bán hàng",Table1[[#This Row],[Tổng giá trị]],-Table1[[#This Row],[Tổng giá trị]])) -> 0 | Q192: 174452 | R192: =Table1[[#This Row],[Số còn phải thu ĐK]]+Table1[[#This Row],[Giá Trị HD sau CK]]-Table1[[#This Row],[Số tiền đã thu]] -> 0 | S192: =IF(Table1[[#This Row],[Ngày hóa đơn]]<>"",Table1[[#This Row],[Ngày hóa đơn]],Table1[[#This Row],[Ngày hạch toán]]) -> 2024-11-09 | U192: =IF(Table1[[#This Row],[Ngày tính CN]]="","",S192+T192) -> 2024-11-09 | V192: =IF(Table1[[#This Row],[Hạn thanh toán]]="","",IF((U192-NOW())<0,0,(U192-NOW()))) -> 0 | Y192: Đã thanh toán | Z192: 2024-11-09 | AA192: 2025-01-10 | AB192: check xong | AD192: =VLOOKUP($A192,MA_KH!$A:$Q,MA_KH!O$1,0) -> CIRCLE K | AE192: =VLOOKUP($A192,MA_KH!$A:$Q,MA_KH!P$1,0) -> CÔNG TY TNHH VÒNG TRÒN ĐỎ
A193: CircleK | B193: CÔNG TY TNHH VÒNG TRÒN ĐỎ | C193: 2024-11-09 | E193: 2024-11-09 | F193: 00063518 | G193: CircleK 197A-199 Điện Biên Phủ | H193: 231095 | I193: 0 | J193: 18488 | K193: 249583 | L193: Tồn đầu kỳ | M193: 2025-01-10 | O193: =IF(Table1[[#This Row],[Phân loại]]="Tồn đầu kỳ",Table1[[#This Row],[Tổng giá trị]],0) -> 249583 | P193: =IF(Table1[[#This Row],[Số còn phải thu ĐK]]<>0,0,IF(Table1[[#This Row],[Phân loại]]="Bán hàng",Table1[[#This Row],[Tổng giá trị]],-Table1[[#This Row],[Tổng giá trị]])) -> 0 | Q193: 249583 | R193: =Table1[[#This Row],[Số còn phải thu ĐK]]+Table1[[#This Row],[Giá Trị HD sau CK]]-Table1[[#This Row],[Số tiền đã thu]] -> 0 | S193: =IF(Table1[[#This Row],[Ngày hóa đơn]]<>"",Table1[[#This Row],[Ngày hóa đơn]],Table1[[#This Row],[Ngày hạch toán]]) -> 2024-11-09 | U193: =IF(Table1[[#This Row],[Ngày tính CN]]="","",S193+T193) -> 2024-11-09 | V193: =IF(Table1[[#This Row],[Hạn thanh toán]]="","",IF((U193-NOW())<0,0,(U193-NOW()))) -> 0 | Y193: Đã thanh toán | Z193: 2024-11-09 | AA193: 2025-01-10 | AB193: check xong | AD193: =VLOOKUP($A193,MA_KH!$A:$Q,MA_KH!O$1,0) -> CIRCLE K | AE193: =VLOOKUP($A193,MA_KH!$A:$Q,MA_KH!P$1,0) -> CÔNG TY TNHH VÒNG TRÒN ĐỎ
A194: CircleK-021 | B194: CHI NHÁNH CÔNG TY TNHH VÒNG TRÒN ĐỎ TẠI ĐỒNG NAI | C194: 2024-11-09 | E194: 2024-11-09 | F194: 00063527 | G194: CircleK Số 1347 Đường Nguyễn Ái Quốc, Khu Phố 6 | H194: 129224 | I194: 0 | J194: 10338 | K194: 139562 | L194: Tồn đầu kỳ | M194: 2025-01-10 | O194: =IF(Table1[[#This Row],[Phân loại]]="Tồn đầu kỳ",Table1[[#This Row],[Tổng giá trị]],0) -> 139562 | P194: =IF(Table1[[#This Row],[Số còn phải thu ĐK]]<>0,0,IF(Table1[[#This Row],[Phân loại]]="Bán hàng",Table1[[#This Row],[Tổng giá trị]],-Table1[[#This Row],[Tổng giá trị]])) -> 0 | Q194: 139562 | R194: =Table1[[#This Row],[Số còn phải thu ĐK]]+Table1[[#This Row],[Giá Trị HD sau CK]]-Table1[[#This Row],[Số tiền đã thu]] -> 0 | S194: =IF(Table1[[#This Row],[Ngày hóa đơn]]<>"",Table1[[#This Row],[Ngày hóa đơn]],Table1[[#This Row],[Ngày hạch toán]]) -> 2024-11-09 | U194: =IF(Table1[[#This Row],[Ngày tính CN]]="","",S194+T194) -> 2024-11-09 | V194: =IF(Table1[[#This Row],[Hạn thanh toán]]="","",IF((U194-NOW())<0,0,(U194-NOW()))) -> 0 | Y194: Đã thanh toán | Z194: 2024-11-09 | AA194: 2025-01-10 | AB194: check xong | AD194: =VLOOKUP($A194,MA_KH!$A:$Q,MA_KH!O$1,0) -> CIRCLE K | AE194: =VLOOKUP($A194,MA_KH!$A:$Q,MA_KH!P$1,0) -> CÔNG TY TNHH VÒNG TRÒN ĐỎ
A195: CircleK | B195: CÔNG TY TNHH VÒNG TRÒN ĐỎ | C195: 2024-11-09 | E195: 2024-11-09 | F195: 00063529 | G195: CircleK 81 Trần Bình Trọng | H195: 161530 | I195: 0 | J195: 12922 | K195: 174452 | L195: Tồn đầu kỳ | M195: 2025-01-10 | O195: =IF(Table1[[#This Row],[Phân loại]]="Tồn đầu kỳ",Table1[[#This Row],[Tổng giá trị]],0) -> 174452 | P195: =IF(Table1[[#This Row],[Số còn phải thu ĐK]]<>0,0,IF(Table1[[#This Row],[Phân loại]]="Bán hàng",Table1[[#This Row],[Tổng giá trị]],-Table1[[#This Row],[Tổng giá trị]])) -> 0 | Q195: 174452 | R195: =Table1[[#This Row],[Số còn phải thu ĐK]]+Table1[[#This Row],[Giá Trị HD sau CK]]-Table1[[#This Row],[Số tiền đã thu]] -> 0 | S195: =IF(Table1[[#This Row],[Ngày hóa đơn]]<>"",Table1[[#This Row],[Ngày hóa đơn]],Table1[[#This Row],[Ngày hạch toán]]) -> 2024-11-09 | U195: =IF(Table1[[#This Row],[Ngày tính CN]]="","",S195+T195) -> 2024-11-09 | V195: =IF(Table1[[#This Row],[Hạn thanh toán]]="","",IF((U195-NOW())<0,0,(U195-NOW()))) -> 0 | Y195: Đã thanh toán | Z195: 2024-11-09 | AA195: 2025-01-10 | AB195: check xong | AD195: =VLOOKUP($A195,MA_KH!$A:$Q,MA_KH!O$1,0) -> CIRCLE K | AE195: =VLOOKUP($A195,MA_KH!$A:$Q,MA_KH!P$1,0) -> CÔNG TY TNHH VÒNG TRÒN ĐỎ
A196: CircleK | B196: CÔNG TY TNHH VÒNG TRÒN ĐỎ | C196: 2024-11-09 | E196: 2024-11-09 | F196: 00063530 | G196: CircleK 277 Âu Dương Lân | H196: 161530 | I196: 0 | J196: 12922 | K196: 174452 | L196: Tồn đầu kỳ | M196: 2025-01-10 | O196: =IF(Table1[[#This Row],[Phân loại]]="Tồn đầu kỳ",Table1[[#This Row],[Tổng giá trị]],0) -> 174452 | P196: =IF(Table1[[#This Row],[Số còn phải thu ĐK]]<>0,0,IF(Table1[[#This Row],[Phân loại]]="Bán hàng",Table1[[#This Row],[Tổng giá trị]],-Table1[[#This Row],[Tổng giá trị]])) -> 0 | Q196: =IF(M196<>"",IF(O196<>0,O196,P196),0) -> 174452 | R196: =Table1[[#This Row],[Số còn phải thu ĐK]]+Table1[[#This Row],[Giá Trị HD sau CK]]-Table1[[#This Row],[Số tiền đã thu]] -> 0 | S196: =IF(Table1[[#This Row],[Ngày hóa đơn]]<>"",Table1[[#This Row],[Ngày hóa đơn]],Table1[[#This Row],[Ngày hạch toán]]) -> 2024-11-09 | U196: =IF(Table1[[#This Row],[Ngày tính CN]]="","",S196+T196) -> 2024-11-09 | V196: =IF(Table1[[#This Row],[Hạn thanh toán]]="","",IF((U196-NOW())<0,0,(U196-NOW()))) -> 0 | X196: =IF(OR(U196="",R196=0),"",IF((U196-NOW())<0,-(U196-NOW()),0)) ->  | Y196: =IF(R196=0,"Đã thanh toán",IF(X196="","",IF(X196<=0,"Chưa đến hạn thanh toán",IF(X196<=30,"Nợ quá hạn 30 ngày",IF(X196<=60,"Nợ quá hạn từ 30 ngày đến 60 ngày",IF(X196<=90,"Nợ quá hạn từ 60 ngày đến 90 ngày",IF(X196<=120,"Nợ quá hạn từ 90 ngày đến 120 ngày","Nợ quá hạn hơn 120 ngày có khả năng mất thanh toán"))))))) -> Đã thanh toán | Z196: =S196 -> 2024-11-09 | AA196: =M196 -> 2025-01-10 | AB196: check xong | AD196: =VLOOKUP($A196,MA_KH!$A:$Q,MA_KH!O$1,0) -> CIRCLE K | AE196: =VLOOKUP($A196,MA_KH!$A:$Q,MA_KH!P$1,0) -> CÔNG TY TNHH VÒNG TRÒN ĐỎ
A197: CircleK | B197: CÔNG TY TNHH VÒNG TRÒN ĐỎ | C197: 2024-11-09 | E197: 2024-11-09 | F197: 00063531 | G197: CircleK 2H Trần Nhân Tôn | H197: 161530 | I197: 0 | J197: 12922 | K197: 174452 | L197: Tồn đầu kỳ | M197: 2025-01-10 | O197: =IF(Table1[[#This Row],[Phân loại]]="Tồn đầu kỳ",Table1[[#This Row],[Tổng giá trị]],0) -> 174452 | P197: =IF(Table1[[#This Row],[Số còn phải thu ĐK]]<>0,0,IF(Table1[[#This Row],[Phân loại]]="Bán hàng",Table1[[#This Row],[Tổng giá trị]],-Table1[[#This Row],[Tổng giá trị]])) -> 0 | Q197: 174452 | R197: =Table1[[#This Row],[Số còn phải thu ĐK]]+Table1[[#This Row],[Giá Trị HD sau CK]]-Table1[[#This Row],[Số tiền đã thu]] -> 0 | S197: =IF(Table1[[#This Row],[Ngày hóa đơn]]<>"",Table1[[#This Row],[Ngày hóa đơn]],Table1[[#This Row],[Ngày hạch toán]]) -> 2024-11-09 | U197: =IF(Table1[[#This Row],[Ngày tính CN]]="","",S197+T197) -> 2024-11-09 | V197: =IF(Table1[[#This Row],[Hạn thanh toán]]="","",IF((U197-NOW())<0,0,(U197-NOW()))) -> 0 | Y197: Đã thanh toán | Z197: 2024-11-09 | AA197: 2025-01-10 | AB197: check xong | AD197: =VLOOKUP($A197,MA_KH!$A:$Q,MA_KH!O$1,0) -> CIRCLE K | AE197: =VLOOKUP($A197,MA_KH!$A:$Q,MA_KH!P$1,0) -> CÔNG TY TNHH VÒNG TRÒN ĐỎ
A198: CircleK | B198: CÔNG TY TNHH VÒNG TRÒN ĐỎ | C198: 2024-11-09 | E198: 2024-11-09 | F198: 00063532 | G198: CircleK 171B Hoàng Hoa Thám | H198: 193836 | I198: 0 | J198: 15507 | K198: 209343 | L198: Tồn đầu kỳ | M198: 2025-01-10 | O198: =IF(Table1[[#This Row],[Phân loại]]="Tồn đầu kỳ",Table1[[#This Row],[Tổng giá trị]],0) -> 209343 | P198: =IF(Table1[[#This Row],[Số còn phải thu ĐK]]<>0,0,IF(Table1[[#This Row],[Phân loại]]="Bán hàng",Table1[[#This Row],[Tổng giá trị]],-Table1[[#This Row],[Tổng giá trị]])) -> 0 | Q198: 209343 | R198: =Table1[[#This Row],[Số còn phải thu ĐK]]+Table1[[#This Row],[Giá Trị HD sau CK]]-Table1[[#This Row],[Số tiền đã thu]] -> 0 | S198: =IF(Table1[[#This Row],[Ngày hóa đơn]]<>"",Table1[[#This Row],[Ngày hóa đơn]],Table1[[#This Row],[Ngày hạch toán]]) -> 2024-11-09 | U198: =IF(Table1[[#This Row],[Ngày tính CN]]="","",S198+T198) -> 2024-11-09 | V198: =IF(Table1[[#This Row],[Hạn thanh toán]]="","",IF((U198-NOW())<0,0,(U198-NOW()))) -> 0 | Y198: Đã thanh toán | Z198: 2024-11-09 | AA198: 2025-01-10 | AB198: check xong | AD198: =VLOOKUP($A198,MA_KH!$A:$Q,MA_KH!O$1,0) -> CIRCLE K | AE198: =VLOOKUP($A198,MA_KH!$A:$Q,MA_KH!P$1,0) -> CÔNG TY TNHH VÒNG TRÒN ĐỎ
A199: CircleK | B199: CÔNG TY TNHH VÒNG TRÒN ĐỎ | C199: 2024-11-09 | E199: 2024-11-09 | F199: 00063533 | G199: CircleK 21 Thạch Lam | H199: 400880 | I199: 0 | J199: 32070 | K199: 432950 | L199: Tồn đầu kỳ | M199: 2025-01-10 | O199: =IF(Table1[[#This Row],[Phân loại]]="Tồn đầu kỳ",Table1[[#This Row],[Tổng giá trị]],0) -> 432950 | P199: =IF(Table1[[#This Row],[Số còn phải thu ĐK]]<>0,0,IF(Table1[[#This Row],[Phân loại]]="Bán hàng",Table1[[#This Row],[Tổng giá trị]],-Table1[[#This Row],[Tổng giá trị]])) -> 0 | Q199: 432950 | R199: =Table1[[#This Row],[Số còn phải thu ĐK]]+Table1[[#This Row],[Giá Trị HD sau CK]]-Table1[[#This Row],[Số tiền đã thu]] -> 0 | S199: =IF(Table1[[#This Row],[Ngày hóa đơn]]<>"",Table1[[#This Row],[Ngày hóa đơn]],Table1[[#This Row],[Ngày hạch toán]]) -> 2024-11-09 | U199: =IF(Table1[[#This Row],[Ngày tính CN]]="","",S199+T199) -> 2024-11-09 | V199: =IF(Table1[[#This Row],[Hạn thanh toán]]="","",IF((U199-NOW())<0,0,(U199-NOW()))) -> 0 | Y199: Đã thanh toán | Z199: 2024-11-09 | AA199: 2025-01-10 | AB199: check xong | AD199: =VLOOKUP($A199,MA_KH!$A:$Q,MA_KH!O$1,0) -> CIRCLE K | AE199: =VLOOKUP($A199,MA_KH!$A:$Q,MA_KH!P$1,0) -> CÔNG TY TNHH VÒNG TRÒN ĐỎ
